Workbook

Sheet MENU
A1: CHRONO DES LIMOUCHES | I1: EDITION | J1: 2018
A3: MENU
A6: PARAMETRES DE DEPART
A7: Heure de départ du chronomètre : | D7: 0.34375
A8: Nombre de minutes séparant les concurents : | D8: 0.0006944444444 | F8: Liste des catégories
A9: Premier N°de dossard | D9: 1
A10: distance du parcours en km | D10: 11.4
F11: Liste des engagés
A14: contrôle nbre concurents :
A15: liste des engagés | B15: =+'liste engagés'!M216 -> 91
A16: scratch | B16: =+scratch!I217 -> 90
A17: par catégorie | B17: =+'cat1'!I217+'cat2'!I217+'cat3'!I217+'cat4'!I217+'cat5'!I217+'cat6'!I217+'cat7'!I217+'cat8'!I217+'cat9'!I217+'cat10'!I217+#REF!+#REF!+#REF! -> 
C20: Alerte général | E20: =+records!D4 -> 0 | F20: Résultats par catégorie
C21: Alerte catégorie | E21: =+records!D10 -> 0
F22: Records de l'épreuve

Sheet Catégories
A1: LISTE DES CATEGORIES | E1: MENU
B3: code | C3: Catégorie | D3: Nom Catégorie
B4: 1 | C4: FSGT 1-2 | D4: FSGT 1-2
B5: =+B4+1 -> 2 | C5: FSGT 3 | D5: FSGT 3
B6: 3 | C6: FSGT 4 | D6: FSGT 4
B7: 4 | C7: FSGT 5 | D7: FSGT 5 | E7: Liste des engagés
B8: 5 | C8: + 60 ans | D8: Autres fédés / non licenciés + 60 ans
B9: 6 | C9: 50-59 ans | D9: Autres fédés / NL : 50-59 ans
B10: 7 | C10: 40-49 ans | D10: Autres fédés / NL : 40-49 ans
B11: 8 | C11: 30-39 ans | D11: Autres fédés / NL : 30-39 ans
B12: 9 | C12: 17-29 ans | D12: Autres fédés / NL : 17-29 ans
B13: 10 | C13: Féminines | D13: Féminines
B14: 11 | C14: Cadets | D14: Cadets
B15: 12 | C15: Minimes | D15: Minimes
B16: 13
B17: 14

Sheet liste engagés
A1: LISTE DES ENGAGES | K1: =+MENU!$I$1 -> EDITION | L1: 2018
L3: MENU
A5: N°de DOSSARD | B5: Nom | C5: Prénom | D5: Club | E5: Fédération | F5: code catégorie | H5: Catégorie | I5: Heure de départ | J5: Heure arrivée | K5: Temps | L5: Moyenne
A6: 1 | B6: ESCHARD | C6: GUILLAUME | D6: UCMV | E6: FFC | F6: Code | G6: 8 | H6: =+IF(G6="","",VLOOKUP(G6,Catégories!$B$3:$C$17,2)) -> 30-39 ans | I6: 0.34375 | J6: 08:48:52 | K6: =+IF(J6="","",J6-I6) -> 00:33:52 | L6: =IF(K6="","",MENU!$D$10/('liste engagés'!K6*24)) -> 20.19685039 | M6: =+IF(B6="",0,1) -> 1
A7: 2 | B7: TERRON | C7: SERGE | D7: CS COUXOIS | E7: FSGT | F7: Code | G7: 4 | H7: =+IF(G7="","",VLOOKUP(G7,Catégories!$B$3:$C$17,2)) -> FSGT 5 | I7: 0.3444444444 | J7: 0.3767361111 | K7: 00:46:30 | L7: =IF(K7="","",MENU!$D$10/('liste engagés'!K7*24)) -> 14.70967742 | M7: 1
A8: 3 | B8: HERBAUT | C8: BAPTISTE | D8: UCMV | E8: FFC | F8: Code | G8: 9 | H8: =+IF(G8="","",VLOOKUP(G8,Catégories!$B$3:$C$17,2)) -> 17-29 ans | I8: 0.3451388889 | J8: 0.3798611111 | K8: 00:50:00 | L8: =IF(K8="","",MENU!$D$10/('liste engagés'!K8*24)) -> 13.68 | M8: 1
A9: 4 | F9: Code | H9: =+IF(G9="","",VLOOKUP(G9,Catégories!$B$3:$C$17,2)) ->  | I9: 0.3458333333 | L9: =IF(K9="","",MENU!$D$10/('liste engagés'!K9*24)) ->  | M9: 0
A10: 5 | F10: Code | H10: =+IF(G10="","",VLOOKUP(G10,Catégories!$B$3:$C$17,2)) ->  | I10: 0.3465277778 | L10: =IF(K10="","",MENU!$D$10/('liste engagés'!K10*24)) ->  | M10: 0
A11: 6 | B11: DIDIER | C11: PHILIPPE | D11: UCMV | E11: FSGT | F11: Code | G11: 4 | H11: =+IF(G11="","",VLOOKUP(G11,Catégories!$B$3:$C$17,2)) -> FSGT 5 | I11: 0.3472222222 | J11: 0.3771759259 | K11: 00:43:08 | L11: =IF(K11="","",MENU!$D$10/('liste engagés'!K11*24)) -> 15.85780526 | M11: 1
A12: 7 | B12: LAFFONT | C12: FRANCIS | D12: NON LICENCIE | E12: NL | F12: Code | G12: 6 | H12: =+IF(G12="","",VLOOKUP(G12,Catégories!$B$3:$C$17,2)) -> 50-59 ans | I12: 0.3479166667 | J12: 0.3828125 | K12: 00:50:15 | L12: =IF(K12="","",MENU!$D$10/('liste engagés'!K12*24)) -> 13.6119403 | M12: 1
A13: 8 | F13: Code | H13: =+IF(G13="","",VLOOKUP(G13,Catégories!$B$3:$C$17,2)) ->  | I13: 0.3486111111 | L13: =IF(K13="","",MENU!$D$10/('liste engagés'!K13*24)) ->  | M13: 0
A14: 9 | F14: Code | H14: =+IF(G14="","",VLOOKUP(G14,Catégories!$B$3:$C$17,2)) ->  | I14: 0.3493055556 | L14: =IF(K14="","",MENU!$D$10/('liste engagés'!K14*24)) ->  | M14: 0
A15: 10 | F15: Code | H15: =+IF(G15="","",VLOOKUP(G15,Catégories!$B$3:$C$17,2)) ->  | I15: 0.35 | L15: =IF(K15="","",MENU!$D$10/('liste engagés'!K15*24)) ->  | M15: 0
A16: 11 | F16: Code | H16: =+IF(G16="","",VLOOKUP(G16,Catégories!$B$3:$C$17,2)) ->  | I16: 0.3506944444 | L16: =IF(K16="","",MENU!$D$10/('liste engagés'!K16*24)) ->  | M16: 0
A17: 12 | F17: Code | H17: =+IF(G17="","",VLOOKUP(G17,Catégories!$B$3:$C$17,2)) ->  | I17: 0.3513888889 | L17: =IF(K17="","",MENU!$D$10/('liste engagés'!K17*24)) ->  | M17: 0
A18: 13 | F18: Code | H18: =+IF(G18="","",VLOOKUP(G18,Catégories!$B$3:$C$17,2)) ->  | I18: 0.3520833333 | L18: =IF(K18="","",MENU!$D$10/('liste engagés'!K18*24)) ->  | M18: 0
A19: 14 | F19: Code | H19: =+IF(G19="","",VLOOKUP(G19,Catégories!$B$3:$C$17,2)) ->  | I19: 0.3527777778 | L19: =IF(K19="","",MENU!$D$10/('liste engagés'!K19*24)) ->  | M19: 0
A20: 15 | F20: Code | H20: =+IF(G20="","",VLOOKUP(G20,Catégories!$B$3:$C$17,2)) ->  | I20: 0.3534722222 | L20: =IF(K20="","",MENU!$D$10/('liste engagés'!K20*24)) ->  | M20: 0
A21: 16 | B21: HEROLD | C21: GABIN | D21: UCMV | E21: FFC | F21: Code | G21: 12 | H21: =+IF(G21="","",VLOOKUP(G21,Catégories!$B$3:$C$17,2)) -> Minimes | I21: 0.3541666667 | J21: 0.3854976852 | K21: 00:45:07 | L21: =IF(K21="","",MENU!$D$10/('liste engagés'!K21*24)) -> 15.1606945 | M21: 1
A22: 17 | B22: ZOULIAMIS | C22: NICOLAS | D22: CS PANTIN | E22: FSGT | F22: Code | G22: 1 | H22: =+IF(G22="","",VLOOKUP(G22,Catégories!$B$3:$C$17,2)) -> FSGT 1-2 | I22: 0.3548611111 | J22: 0.3838194444 | K22: 00:41:42 | L22: =IF(K22="","",MENU!$D$10/('liste engagés'!K22*24)) -> 16.4028777 | M22: 1
A23: 18 | B23: BOYER | C23: FRANCK | D23: UCMV | E23: FFC | F23: Code | G23: 7 | H23: =+IF(G23="","",VLOOKUP(G23,Catégories!$B$3:$C$17,2)) -> 40-49 ans | I23: 0.3555555556 | J23: 0.3856365741 | K23: 00:43:19 | L23: =IF(K23="","",MENU!$D$10/('liste engagés'!K23*24)) -> 15.79068873 | M23: 1
A24: 19 | F24: Code | H24: =+IF(G24="","",VLOOKUP(G24,Catégories!$B$3:$C$17,2)) ->  | I24: 0.35625 | L24: =IF(K24="","",MENU!$D$10/('liste engagés'!K24*24)) ->  | M24: 0
A25: 20 | F25: Code | H25: =+IF(G25="","",VLOOKUP(G25,Catégories!$B$3:$C$17,2)) ->  | I25: 0.3569444444 | L25: =IF(K25="","",MENU!$D$10/('liste engagés'!K25*24)) ->  | M25: 0
A26: 21 | F26: Code | H26: =+IF(G26="","",VLOOKUP(G26,Catégories!$B$3:$C$17,2)) ->  | I26: 0.3576388889 | L26: =IF(K26="","",MENU!$D$10/('liste engagés'!K26*24)) ->  | M26: 0
A27: 22 | F27: Code | H27: =+IF(G27="","",VLOOKUP(G27,Catégories!$B$3:$C$17,2)) ->  | I27: 0.3583333333 | L27: =IF(K27="","",MENU!$D$10/('liste engagés'!K27*24)) ->  | M27: 0
A28: 23 | F28: Code | H28: =+IF(G28="","",VLOOKUP(G28,Catégories!$B$3:$C$17,2)) ->  | I28: 0.3590277778 | L28: =IF(K28="","",MENU!$D$10/('liste engagés'!K28*24)) ->  | M28: 0
A29: 24 | F29: Code | H29: =+IF(G29="","",VLOOKUP(G29,Catégories!$B$3:$C$17,2)) ->  | I29: 0.3597222222 | L29: =IF(K29="","",MENU!$D$10/('liste engagés'!K29*24)) ->  | M29: 0
A30: 25 | F30: Code | H30: =+IF(G30="","",VLOOKUP(G30,Catégories!$B$3:$C$17,2)) ->  | I30: 0.3604166667 | L30: =IF(K30="","",MENU!$D$10/('liste engagés'!K30*24)) ->  | M30: 0
A31: 26 | B31: BOYER | C31: AXEL | D31: UCMV | E31: FFC | F31: Code | G31: 9 | H31: =+IF(G31="","",VLOOKUP(G31,Catégories!$B$3:$C$17,2)) -> 17-29 ans | I31: 0.3611111111 | J31: 0.3881944444 | K31: 00:39:00 | L31: =IF(K31="","",MENU!$D$10/('liste engagés'!K31*24)) -> 17.53846154 | M31: 1
A32: 27 | F32: Code | H32: =+IF(G32="","",VLOOKUP(G32,Catégories!$B$3:$C$17,2)) ->  | I32: 0.3618055556 | L32: =IF(K32="","",MENU!$D$10/('liste engagés'!K32*24)) ->  | M32: 0
A33: 28 | F33: Code | H33: =+IF(G33="","",VLOOKUP(G33,Catégories!$B$3:$C$17,2)) ->  | I33: 0.3625 | L33: =IF(K33="","",MENU!$D$10/('liste engagés'!K33*24)) ->  | M33: 0
A34: 29 | F34: Code | H34: =+IF(G34="","",VLOOKUP(G34,Catégories!$B$3:$C$17,2)) ->  | I34: 0.3631944444 | L34: =IF(K34="","",MENU!$D$10/('liste engagés'!K34*24)) ->  | M34: 0
A35: 30 | F35: Code | H35: =+IF(G35="","",VLOOKUP(G35,Catégories!$B$3:$C$17,2)) ->  | I35: 0.3638888889 | L35: =IF(K35="","",MENU!$D$10/('liste engagés'!K35*24)) ->  | M35: 0
A36: 31 | F36: Code | H36: =+IF(G36="","",VLOOKUP(G36,Catégories!$B$3:$C$17,2)) ->  | I36: 0.3645833333 | L36: =IF(K36="","",MENU!$D$10/('liste engagés'!K36*24)) ->  | M36: 0
A37: 32 | F37: Code | H37: =+IF(G37="","",VLOOKUP(G37,Catégories!$B$3:$C$17,2)) ->  | I37: 0.3652777778 | L37: =IF(K37="","",MENU!$D$10/('liste engagés'!K37*24)) ->  | M37: 0
A38: 33 | F38: Code | H38: =+IF(G38="","",VLOOKUP(G38,Catégories!$B$3:$C$17,2)) ->  | I38: 0.3659722222 | L38: =IF(K38="","",MENU!$D$10/('liste engagés'!K38*24)) ->  | M38: 0
A39: 34 | F39: Code | H39: =+IF(G39="","",VLOOKUP(G39,Catégories!$B$3:$C$17,2)) ->  | I39: 0.3666666667 | L39: =IF(K39="","",MENU!$D$10/('liste engagés'!K39*24)) ->  | M39: 0
A40: 35 | F40: Code | H40: =+IF(G40="","",VLOOKUP(G40,Catégories!$B$3:$C$17,2)) ->  | I40: 0.3673611111 | L40: =IF(K40="","",MENU!$D$10/('liste engagés'!K40*24)) ->  | M40: 0
A41: 36 | F41: Code | H41: =+IF(G41="","",VLOOKUP(G41,Catégories!$B$3:$C$17,2)) ->  | I41: 0.3680555556 | L41: =IF(K41="","",MENU!$D$10/('liste engagés'!K41*24)) ->  | M41: 0
A42: 37 | F42: Code | H42: =+IF(G42="","",VLOOKUP(G42,Catégories!$B$3:$C$17,2)) ->  | I42: 0.36875 | L42: =IF(K42="","",MENU!$D$10/('liste engagés'!K42*24)) ->  | M42: 0
A43: 38 | F43: Code | H43: =+IF(G43="","",VLOOKUP(G43,Catégories!$B$3:$C$17,2)) ->  | I43: 0.3694444444 | L43: =IF(K43="","",MENU!$D$10/('liste engagés'!K43*24)) ->  | M43: 0
A44: 39 | F44: Code | H44: =+IF(G44="","",VLOOKUP(G44,Catégories!$B$3:$C$17,2)) ->  | I44: 0.3701388889 | L44: =IF(K44="","",MENU!$D$10/('liste engagés'!K44*24)) ->  | M44: 0
A45: 40 | F45: Code | H45: =+IF(G45="","",VLOOKUP(G45,Catégories!$B$3:$C$17,2)) ->  | I45: 0.3708333333 | L45: =IF(K45="","",MENU!$D$10/('liste engagés'!K45*24)) ->  | M45: 0
A46: 41 | F46: Code | H46: =+IF(G46="","",VLOOKUP(G46,Catégories!$B$3:$C$17,2)) ->  | I46: 0.3715277778 | L46: =IF(K46="","",MENU!$D$10/('liste engagés'!K46*24)) ->  | M46: 0
A47: 42 | F47: Code | H47: =+IF(G47="","",VLOOKUP(G47,Catégories!$B$3:$C$17,2)) ->  | I47: 0.3722222222 | L47: =IF(K47="","",MENU!$D$10/('liste engagés'!K47*24)) ->  | M47: 0
A48: 43 | F48: Code | H48: =+IF(G48="","",VLOOKUP(G48,Catégories!$B$3:$C$17,2)) ->  | I48: 0.3729166667 | L48: =IF(K48="","",MENU!$D$10/('liste engagés'!K48*24)) ->  | M48: 0
A49: 44 | F49: Code | H49: =+IF(G49="","",VLOOKUP(G49,Catégories!$B$3:$C$17,2)) ->  | I49: 0.3736111111 | L49: =IF(K49="","",MENU!$D$10/('liste engagés'!K49*24)) ->  | M49: 0
A50: 45 | F50: Code | H50: =+IF(G50="","",VLOOKUP(G50,Catégories!$B$3:$C$17,2)) ->  | I50: 0.3743055556 | L50: =IF(K50="","",MENU!$D$10/('liste engagés'!K50*24)) ->  | M50: 0
A51: 46 | F51: Code | H51: =+IF(G51="","",VLOOKUP(G51,Catégories!$B$3:$C$17,2)) ->  | I51: 0.375 | L51: =IF(K51="","",MENU!$D$10/('liste engagés'!K51*24)) ->  | M51: 0
A52: 47 | F52: Code | H52: =+IF(G52="","",VLOOKUP(G52,Catégories!$B$3:$C$17,2)) ->  | I52: 0.3756944444 | L52: =IF(K52="","",MENU!$D$10/('liste engagés'!K52*24)) ->  | M52: 1
A53: 48 | F53: Code | H53: =+IF(G53="","",VLOOKUP(G53,Catégories!$B$3:$C$17,2)) ->  | I53: 0.3763888889 | L53: =IF(K53="","",MENU!$D$10/('liste engagés'!K53*24)) ->  | M53: 0
A54: 49 | F54: Code | H54: =+IF(G54="","",VLOOKUP(G54,Catégories!$B$3:$C$17,2)) ->  | I54: 0.3770833333 | L54: =IF(K54="","",MENU!$D$10/('liste engagés'!K54*24)) ->  | M54: 0
A55: 50 | F55: Code | H55: =+IF(G55="","",VLOOKUP(G55,Catégories!$B$3:$C$17,2)) ->  | I55: 0.3777777778 | L55: =IF(K55="","",MENU!$D$10/('liste engagés'!K55*24)) ->  | M55: 0
A56: 51 | B56: DEUMIER | C56: XAVIER | D56: CC ST PERAY | E56: FSGT | F56: Code | G56: 4 | H56: =+IF(G56="","",VLOOKUP(G56,Catégories!$B$3:$C$17,2)) -> FSGT 5 | I56: 0.3784722222 | J56: 0.4087962963 | K56: 00:43:40 | L56: =IF(K56="","",MENU!$D$10/('liste engagés'!K56*24)) -> 15.66412214 | M56: 1
A57: 52 | B57: LECOMTE | C57: MARC | D57: CS COUXOIS | E57: FSGT | F57: Code | G57: 4 | H57: =+IF(G57="","",VLOOKUP(G57,Catégories!$B$3:$C$17,2)) -> FSGT 5 | I57: 0.3791666667 | J57: 0.4128703704 | K57: 00:48:32 | L57: =IF(K57="","",MENU!$D$10/('liste engagés'!K57*24)) -> 14.09340659 | M57: 1
A58: 53 | B58: LECOMTE | C58: CLEMENT | D58: NON LICENCIE | E58: NL | F58: Code | G58: 9 | H58: =+IF(G58="","",VLOOKUP(G58,Catégories!$B$3:$C$17,2)) -> 17-29 ans | I58: 0.3798611111 | J58: 0.4173958333 | K58: 00:54:03 | L58: =IF(K58="","",MENU!$D$10/('liste engagés'!K58*24)) -> 12.65494912 | M58: 1
A59: 54 | B59: BRUN | C59: HERVE | D59: CS COUXOIS | E59: FSGT | F59: Code | G59: 4 | H59: =+IF(G59="","",VLOOKUP(G59,Catégories!$B$3:$C$17,2)) -> FSGT 5 | I59: 0.3805555556 | J59: 0.4226041667 | K59: 01:00:33 | L59: =IF(K59="","",MENU!$D$10/('liste engagés'!K59*24)) -> 11.29644922 | M59: 1
A60: 55 | B60: PERMINGEAT | C60: EVANN | D60: UCMV | E60: FFC | F60: Code | G60: 12 | H60: =+IF(G60="","",VLOOKUP(G60,Catégories!$B$3:$C$17,2)) -> Minimes | I60: 0.38125 | J60: 0.4231828704 | K60: 01:00:23 | L60: =IF(K60="","",MENU!$D$10/('liste engagés'!K60*24)) -> 11.32762904 | M60: 1
A61: 56 | B61: DENURRA | C61: LOUIS | D61: BRIGNAISVC | E61: FSGT | F61: Code | G61: 3 | H61: =+IF(G61="","",VLOOKUP(G61,Catégories!$B$3:$C$17,2)) -> FSGT 4 | I61: 0.3819444444 | J61: 0.4092592593 | K61: 00:39:20 | L61: =IF(K61="","",MENU!$D$10/('liste engagés'!K61*24)) -> 17.38983051 | M61: 1
A62: 57 | F62: Code | H62: =+IF(G62="","",VLOOKUP(G62,Catégories!$B$3:$C$17,2)) ->  | I62: 0.3826388889 | L62: =IF(K62="","",MENU!$D$10/('liste engagés'!K62*24)) ->  | M62: 0
A63: 58 | F63: Code | H63: =+IF(G63="","",VLOOKUP(G63,Catégories!$B$3:$C$17,2)) ->  | I63: 0.3833333333 | L63: =IF(K63="","",MENU!$D$10/('liste engagés'!K63*24)) ->  | M63: 0
A64: 59 | F64: Code | H64: =+IF(G64="","",VLOOKUP(G64,Catégories!$B$3:$C$17,2)) ->  | I64: 0.3840277778 | L64: =IF(K64="","",MENU!$D$10/('liste engagés'!K64*24)) ->  | M64: 0
A65: 60 | F65: Code | H65: =+IF(G65="","",VLOOKUP(G65,Catégories!$B$3:$C$17,2)) ->  | I65: 0.3847222222 | L65: =IF(K65="","",MENU!$D$10/('liste engagés'!K65*24)) ->  | M65: 0
A66: 61 | B66: BUATOIS | C66: GILLES | D66: UC PIERRELATTE | E66: FSGT | F66: Code | G66: 3 | H66: =+IF(G66="","",VLOOKUP(G66,Catégories!$B$3:$C$17,2)) -> FSGT 4 | I66: 0.3854166667 | J66: 0.4153125 | K66: 00:43:03 | L66: =IF(K66="","",MENU!$D$10/('liste engagés'!K66*24)) -> 15.88850174 | M66: 1
A67: 62 | B67: GARCIN | C67: PATRICK | D67: UCMV | E67: NL | F67: Code | G67: 6 | H67: =+IF(G67="","",VLOOKUP(G67,Catégories!$B$3:$C$17,2)) -> 50-59 ans | I67: 0.3861111111 | J67: 0.4146875 | K67: 00:41:09 | L67: =IF(K67="","",MENU!$D$10/('liste engagés'!K67*24)) -> 16.62211422 | M67: 1
A68: 63 | F68: Code | H68: =+IF(G68="","",VLOOKUP(G68,Catégories!$B$3:$C$17,2)) ->  | I68: 0.3868055556 | L68: =IF(K68="","",MENU!$D$10/('liste engagés'!K68*24)) ->  | M68: 0
A69: 64 | F69: Code | H69: =+IF(G69="","",VLOOKUP(G69,Catégories!$B$3:$C$17,2)) ->  | I69: 0.3875 | L69: =IF(K69="","",MENU!$D$10/('liste engagés'!K69*24)) ->  | M69: 0
A70: 65 | F70: Code | H70: =+IF(G70="","",VLOOKUP(G70,Catégories!$B$3:$C$17,2)) ->  | I70: 0.3881944444 | K70: =+IF(J70="","",J70-I70) ->  | L70: =IF(K70="","",MENU!$D$10/('liste engagés'!K70*24)) ->  | M70: =+IF(B70="",0,1) -> 0
A71: 66 | F71: Code | H71: =+IF(G71="","",VLOOKUP(G71,Catégories!$B$3:$C$17,2)) ->  | I71: 0.3888888889 | L71: =IF(K71="","",MENU!$D$10/('liste engagés'!K71*24)) ->  | M71: 0
A72: 67 | F72: Code | H72: =+IF(G72="","",VLOOKUP(G72,Catégories!$B$3:$C$17,2)) ->  | I72: 0.3895833333 | L72: =IF(K72="","",MENU!$D$10/('liste engagés'!K72*24)) ->  | M72: 0
A73: 68 | F73: Code | H73: =+IF(G73="","",VLOOKUP(G73,Catégories!$B$3:$C$17,2)) ->  | I73: 0.3902777778 | L73: =IF(K73="","",MENU!$D$10/('liste engagés'!K73*24)) ->  | M73: 0
A74: 69 | F74: Code | H74: =+IF(G74="","",VLOOKUP(G74,Catégories!$B$3:$C$17,2)) ->  | I74: 0.3909722222 | L74: =IF(K74="","",MENU!$D$10/('liste engagés'!K74*24)) ->  | M74: 0
A75: 70 | F75: Code | H75: =+IF(G75="","",VLOOKUP(G75,Catégories!$B$3:$C$17,2)) ->  | I75: 0.3916666667 | L75: =IF(K75="","",MENU!$D$10/('liste engagés'!K75*24)) ->  | M75: 0
A76: 71 | B76: BERNARD | C76: CLAUDE | D76: FRIOL CLUB | E76: VELO RANDO | F76: Code | G76: 5 | H76: =+IF(G76="","",VLOOKUP(G76,Catégories!$B$3:$C$17,2)) -> + 60 ans | I76: 0.3923611111 | J76: 0.4208101852 | K76: 00:40:58 | L76: =IF(K76="","",MENU!$D$10/('liste engagés'!K76*24)) -> 16.69650122 | M76: 1
A77: 72 | F77: Code | H77: =+IF(G77="","",VLOOKUP(G77,Catégories!$B$3:$C$17,2)) ->  | I77: 0.3930555556 | L77: =IF(K77="","",MENU!$D$10/('liste engagés'!K77*24)) ->  | M77: 0
A78: 73 | F78: Code | H78: =+IF(G78="","",VLOOKUP(G78,Catégories!$B$3:$C$17,2)) ->  | I78: 0.39375 | L78: =IF(K78="","",MENU!$D$10/('liste engagés'!K78*24)) ->  | M78: 0
A79: 74 | F79: Code | H79: =+IF(G79="","",VLOOKUP(G79,Catégories!$B$3:$C$17,2)) ->  | I79: 0.3944444444 | L79: =IF(K79="","",MENU!$D$10/('liste engagés'!K79*24)) ->  | M79: 0
A80: 75 | B80: NACCARATO | C80: MARIO | D80: TEAM ATC 26 DONZERE | E80: FSGT | F80: Code | G80: 3 | H80: =+IF(G80="","",VLOOKUP(G80,Catégories!$B$3:$C$17,2)) -> FSGT 4 | I80: 0.3951388889 | J80: 0.4298263889 | K80: 00:49:57 | L80: =IF(K80="","",MENU!$D$10/('liste engagés'!K80*24)) -> 13.69369369 | M80: 1
A81: 76 | B81: GILLES | C81: PATRICK | D81: CC ST PERAY | E81: FSGT | F81: Code | G81: 4 | H81: =+IF(G81="","",VLOOKUP(G81,Catégories!$B$3:$C$17,2)) -> FSGT 5 | I81: 0.3958333333 | J81: 0.4322453704 | K81: 00:52:26 | L81: =IF(K81="","",MENU!$D$10/('liste engagés'!K81*24)) -> 13.04513668 | M81: 1
A82: 77 | B82: GILLES | C82: CYRIL | D82: SC GRETZ TOURNAN | E82: UFOLEP 3 | F82: Code | G82: 8 | H82: =+IF(G82="","",VLOOKUP(G82,Catégories!$B$3:$C$17,2)) -> 30-39 ans | I82: 0.3965277778 | J82: 0.4239699074 | K82: 00:39:31 | L82: =IF(K82="","",MENU!$D$10/('liste engagés'!K82*24)) -> 17.30915226 | M82: 1
A83: 78 | B83: BRISSAUD | C83: SIMON | D83: UCMV | E83: FFC | F83: Code | G83: 11 | H83: =+IF(G83="","",VLOOKUP(G83,Catégories!$B$3:$C$17,2)) -> Cadets | I83: 0.3972222222 | J83: 0.4213194444 | K83: 00:34:42 | L83: =IF(K83="","",MENU!$D$10/('liste engagés'!K83*24)) -> 19.71181556 | M83: 1
A84: 79 | B84: GRESSE | C84: GUI GUI | D84: UCMV | E84: FFC | F84: Code | G84: 9 | H84: =+IF(G84="","",VLOOKUP(G84,Catégories!$B$3:$C$17,2)) -> 17-29 ans | I84: 0.3979166667 | J84: 0.4243287037 | K84: 00:38:02 | L84: =IF(K84="","",MENU!$D$10/('liste engagés'!K84*24)) -> 17.98422436 | M84: 1
A85: 80 | B85: HEYRAUD | C85: FABIEN | D85: C PRO | E85: FFC | F85: Code | G85: 7 | H85: =+IF(G85="","",VLOOKUP(G85,Catégories!$B$3:$C$17,2)) -> 40-49 ans | I85: 0.3986111111 | J85: 0.4223842593 | K85: 00:34:14 | L85: =IF(K85="","",MENU!$D$10/('liste engagés'!K85*24)) -> 19.9805258 | M85: 1
A86: 81 | B86: HEYRAUD | C86: VINCENT | D86: C PRO | E86: FFC | F86: Code | G86: 8 | H86: =+IF(G86="","",VLOOKUP(G86,Catégories!$B$3:$C$17,2)) -> 30-39 ans | I86: 0.3993055556 | J86: 0.4243865741 | K86: 00:36:07 | L86: =IF(K86="","",MENU!$D$10/('liste engagés'!K86*24)) -> 18.93862483 | M86: 1
A87: 82 | B87: CAPELLI | C87: LORIS | D87: UCMV | E87: FFC | F87: Code | G87: 11 | H87: =+IF(G87="","",VLOOKUP(G87,Catégories!$B$3:$C$17,2)) -> Cadets | I87: 0.4 | J87: 0.4338541667 | K87: 00:48:45 | L87: =IF(K87="","",MENU!$D$10/('liste engagés'!K87*24)) -> 14.03076923 | M87: 1
A88: 83 | B88: GONZALEZ | C88: MIGUEL | D88: UC PIERRELATTE | E88: FSGT | F88: Code | G88: 4 | H88: =+IF(G88="","",VLOOKUP(G88,Catégories!$B$3:$C$17,2)) -> FSGT 5 | I88: 0.4006944444 | J88: 0.4322337963 | K88: 00:45:25 | L88: =IF(K88="","",MENU!$D$10/('liste engagés'!K88*24)) -> 15.06055046 | M88: 1
A89: 84 | B89: ROSADO | C89: BRUNO | D89: UC PIERRELATTE | E89: FSGT | F89: Code | G89: 3 | H89: =+IF(G89="","",VLOOKUP(G89,Catégories!$B$3:$C$17,2)) -> FSGT 4 | I89: 0.4013888889 | J89: 0.4291550926 | K89: 00:39:59 | L89: =IF(K89="","",MENU!$D$10/('liste engagés'!K89*24)) -> 17.10712797 | M89: 1
A90: 85 | B90: SOLER | C90: DIEGO | D90: TEAM MONTAGNAC | E90: FSGT | F90: Code | G90: 3 | H90: =+IF(G90="","",VLOOKUP(G90,Catégories!$B$3:$C$17,2)) -> FSGT 4 | I90: 0.4020833333 | J90: 10:16:34 | K90: 00:37:34 | L90: =IF(K90="","",MENU!$D$10/('liste engagés'!K90*24)) -> 18.20763088 | M90: 1
A91: 86 | B91: POLIGNE | C91: ALEXANDRE | D91: NL | E91: NL | F91: Code | G91: 9 | H91: =+IF(G91="","",VLOOKUP(G91,Catégories!$B$3:$C$17,2)) -> 17-29 ans | I91: 0.4027777778 | J91: 0.4281597222 | K91: 00:36:33 | L91: =IF(K91="","",MENU!$D$10/('liste engagés'!K91*24)) -> 18.71409029 | M91: 1
A92: 87 | B92: GUIBOUD | C92: ELODIE | D92: SC BLV | E92: FFC | F92: Code | G92: 10 | H92: =+IF(G92="","",VLOOKUP(G92,Catégories!$B$3:$C$17,2)) -> Féminines | I92: 0.4034722222 | J92: 0.4438194444 | K92: 00:58:06 | L92: =IF(K92="","",MENU!$D$10/('liste engagés'!K92*24)) -> 11.77280551 | M92: 1
A93: 88 | B93: ARGAUD | C93: FRANCIS | D93: SC BLV | E93: FFC | F93: Code | G93: 6 | H93: =+IF(G93="","",VLOOKUP(G93,Catégories!$B$3:$C$17,2)) -> 50-59 ans | I93: 0.4041666667 | J93: 0.439375 | K93: 00:50:42 | L93: =IF(K93="","",MENU!$D$10/('liste engagés'!K93*24)) -> 13.49112426 | M93: 1
A94: 89 | B94: AURECHE | C94: ETIENNE | D94: AC TOURRETTOISE | E94: FSGT | F94: Code | G94: 4 | H94: =+IF(G94="","",VLOOKUP(G94,Catégories!$B$3:$C$17,2)) -> FSGT 5 | I94: 0.4048611111 | J94: 0.4341898148 | K94: 00:42:14 | L94: =IF(K94="","",MENU!$D$10/('liste engagés'!K94*24)) -> 16.19573796 | M94: 1
A95: 90 | B95: BARTHES | C95: SERGE | D95: UC ST SATURNIN | E95: UFOLEP | F95: Code | G95: 5 | H95: =+IF(G95="","",VLOOKUP(G95,Catégories!$B$3:$C$17,2)) -> + 60 ans | I95: 0.4055555556 | J95: 0.4325347222 | K95: 00:38:51 | L95: =IF(K95="","",MENU!$D$10/('liste engagés'!K95*24)) -> 17.60617761 | M95: 1
A96: 91 | B96: BUATOIS | C96: MURIELLE | D96: VC PIERRELATTE | E96: FSGT | F96: Code | G96: 10 | H96: =+IF(G96="","",VLOOKUP(G96,Catégories!$B$3:$C$17,2)) -> Féminines | I96: 0.40625 | J96: 0.4512268519 | K96: 01:04:46 | L96: =IF(K96="","",MENU!$D$10/('liste engagés'!K96*24)) -> 10.56098816 | M96: 1
A97: 92 | B97: DEVICE | C97: BRUNO | D97: NL | E97: NL | F97: Code | G97: 6 | H97: =+IF(G97="","",VLOOKUP(G97,Catégories!$B$3:$C$17,2)) -> 50-59 ans | I97: 0.4069444444 | J97: 0.437025463 | K97: 00:43:19 | L97: =IF(K97="","",MENU!$D$10/('liste engagés'!K97*24)) -> 15.79068873 | M97: 1
A98: 93 | B98: COTTE MARINON | C98: PIERRE LOUIS | D98: C PRO | E98: FFC | F98: Code | G98: 9 | H98: =+IF(G98="","",VLOOKUP(G98,Catégories!$B$3:$C$17,2)) -> 17-29 ans | I98: 0.4076388889 | J98: 0.4307291667 | K98: 00:33:15 | L98: =IF(K98="","",MENU!$D$10/('liste engagés'!K98*24)) -> 20.57142857 | M98: 1
A99: 94 | B99: PEYRONNET | C99: FABRICE | D99: TEAM VERCOES | E99: FFC | F99: Code | G99: 8 | H99: =+IF(G99="","",VLOOKUP(G99,Catégories!$B$3:$C$17,2)) -> 30-39 ans | I99: 0.4083333333 | J99: 0.4303703704 | K99: 00:31:44 | L99: =IF(K99="","",MENU!$D$10/('liste engagés'!K99*24)) -> 21.55462185 | M99: 1
A100: 95 | B100: GARCIN | C100: GUILLAUME | D100: UCMV | E100: FFC | F100: Code | G100: 11 | H100: =+IF(G100="","",VLOOKUP(G100,Catégories!$B$3:$C$17,2)) -> Cadets | I100: 0.4090277778 | J100: 0.4359837963 | K100: 00:38:49 | L100: =IF(K100="","",MENU!$D$10/('liste engagés'!K100*24)) -> 17.62129669 | M100: 1
A101: 96 | B101: WAGNER | C101: DANIEL | D101: UCMV | E101: FSGT | F101: Code | G101: 3 | H101: =+IF(G101="","",VLOOKUP(G101,Catégories!$B$3:$C$17,2)) -> FSGT 4 | I101: 0.4097222222 | J101: 0.4384259259 | K101: 00:41:20 | L101: =IF(K101="","",MENU!$D$10/('liste engagés'!K101*24)) -> 16.5483871 | M101: 1
A102: 97 | B102: DUROUX | C102: JORIS | D102: NL | E102: NL | F102: Code | G102: 9 | H102: =+IF(G102="","",VLOOKUP(G102,Catégories!$B$3:$C$17,2)) -> 17-29 ans | I102: 0.4104166667 | J102: 0.4350347222 | K102: 00:35:27 | L102: =IF(K102="","",MENU!$D$10/('liste engagés'!K102*24)) -> 19.29478138 | M102: 1
A103: 98 | F103: Code | H103: =+IF(G103="","",VLOOKUP(G103,Catégories!$B$3:$C$17,2)) ->  | I103: 0.4111111111 | L103: =IF(K103="","",MENU!$D$10/('liste engagés'!K103*24)) ->  | M103: 0
A104: 99 | F104: Code | H104: =+IF(G104="","",VLOOKUP(G104,Catégories!$B$3:$C$17,2)) ->  | I104: 0.4118055556 | L104: =IF(K104="","",MENU!$D$10/('liste engagés'!K104*24)) ->  | M104: 0
A105: 100 | F105: Code | H105: =+IF(G105="","",VLOOKUP(G105,Catégories!$B$3:$C$17,2)) ->  | I105: 0.4125 | L105: =IF(K105="","",MENU!$D$10/('liste engagés'!K105*24)) ->  | M105: 0
A106: 101 | B106: BEUGNOT | C106: PASCAL | D106: NL | E106: NL | F106: Code | G106: 6 | H106: =+IF(G106="","",VLOOKUP(G106,Catégories!$B$3:$C$17,2)) -> 50-59 ans | I106: 0.4131944444 | J106: 0.4430902778 | K106: 00:43:03 | L106: =IF(K106="","",MENU!$D$10/('liste engagés'!K106*24)) -> 15.88850174 | M106: 1
A107: 102 | B107: POINT | C107: LORICK | D107: UCMV | E107: FFC | F107: Code | G107: 12 | H107: =+IF(G107="","",VLOOKUP(G107,Catégories!$B$3:$C$17,2)) -> Minimes | I107: 0.4138888889 | J107: 0.451412037 | K107: 00:54:02 | L107: =IF(K107="","",MENU!$D$10/('liste engagés'!K107*24)) -> 12.65885256 | M107: 1
A108: 103 | F108: Code | H108: =+IF(G108="","",VLOOKUP(G108,Catégories!$B$3:$C$17,2)) ->  | I108: 0.4145833333 | L108: =IF(K108="","",MENU!$D$10/('liste engagés'!K108*24)) ->  | M108: 0
A109: 104 | F109: Code | H109: =+IF(G109="","",VLOOKUP(G109,Catégories!$B$3:$C$17,2)) ->  | I109: 0.4152777778 | L109: =IF(K109="","",MENU!$D$10/('liste engagés'!K109*24)) ->  | M109: 0
A110: 105 | B110: SAADIA | C110: OLIVIER | D110: NL | E110: NL | F110: Code | G110: 7 | H110: =+IF(G110="","",VLOOKUP(G110,Catégories!$B$3:$C$17,2)) -> 40-49 ans | I110: 0.4159722222 | J110: 0.44375 | K110: 00:40:00 | L110: =IF(K110="","",MENU!$D$10/('liste engagés'!K110*24)) -> 17.1 | M110: 1
A111: 106 | B111: MEUNIER | C111: PHILIPPE | D111: FONTANIL | E111: UFOLEP | F111: Code | G111: 8 | H111: =+IF(G111="","",VLOOKUP(G111,Catégories!$B$3:$C$17,2)) -> 30-39 ans | I111: 0.4166666667 | J111: 0.4386689815 | K111: 00:31:41 | L111: =IF(K111="","",MENU!$D$10/('liste engagés'!K111*24)) -> 21.58863756 | M111: 1
A112: 107 | B112: MARRONE | C112: AMELIE | D112: FONTANIL | E112: UFOLEP | F112: Code | G112: 10 | H112: =+IF(G112="","",VLOOKUP(G112,Catégories!$B$3:$C$17,2)) -> Féminines | I112: 0.4173611111 | J112: 0.4467361111 | K112: 00:42:18 | L112: =IF(K112="","",MENU!$D$10/('liste engagés'!K112*24)) -> 16.17021277 | M112: 1
A113: 108 | B113: ANKRI | C113: NORBERT | D113: MARSEILLE | E113: FFC | F113: Code | G113: 6 | H113: =+IF(G113="","",VLOOKUP(G113,Catégories!$B$3:$C$17,2)) -> 50-59 ans | I113: 0.4180555556 | J113: 0.4418171296 | K113: 00:34:13 | L113: =IF(K113="","",MENU!$D$10/('liste engagés'!K113*24)) -> 19.99025816 | M113: 1
A114: 109 | F114: Code | I114: 0.41875 | L114: =IF(K114="","",MENU!$D$10/('liste engagés'!K114*24)) ->  | M114: 1
A115: 110 | B115: CHEYTION | C115: ANTHONY | D115: UC ALBENNASSIENNE | E115: FFC | F115: Code | G115: 7 | H115: =+IF(G115="","",VLOOKUP(G115,Catégories!$B$3:$C$17,2)) -> 40-49 ans | I115: 0.4194444444 | J115: 0.4403472222 | K115: 00:30:06 | L115: =IF(K115="","",MENU!$D$10/('liste engagés'!K115*24)) -> 22.72425249 | M115: 1
A116: 111 | B116: PHILIPPE | C116: FRANCOIS | D116: MAX BAREL VC | E116: FSGT | F116: Code | G116: 1 | H116: =+IF(G116="","",VLOOKUP(G116,Catégories!$B$3:$C$17,2)) -> FSGT 1-2 | I116: 0.4201388889 | J116: 0.4453587963 | K116: 00:36:19 | L116: =IF(K116="","",MENU!$D$10/('liste engagés'!K116*24)) -> 18.83432767 | M116: 1
A117: 112 | B117: BELCHI | C117: LEO | D117: UCMV | E117: FFC | F117: Code | G117: 9 | H117: =+IF(G117="","",VLOOKUP(G117,Catégories!$B$3:$C$17,2)) -> 17-29 ans | I117: 0.4208333333 | J117: 0.4465162037 | K117: 00:36:59 | L117: =IF(K117="","",MENU!$D$10/('liste engagés'!K117*24)) -> 18.49481749 | M117: 1
A118: 113 | B118: DUPIN | C118: DIDIER | D118: CS COUXOIS | E118: FSGT | F118: Code | G118: 2 | H118: =+IF(G118="","",VLOOKUP(G118,Catégories!$B$3:$C$17,2)) -> FSGT 3 | I118: 0.4215277778 | J118: 0.4473842593 | K118: 00:37:14 | L118: =IF(K118="","",MENU!$D$10/('liste engagés'!K118*24)) -> 18.37063563 | M118: 1
A119: 114 | B119: PINATEL | C119: J RENE | D119: CS LA VOULTE | E119: FSGT | F119: Code | G119: 3 | H119: =+IF(G119="","",VLOOKUP(G119,Catégories!$B$3:$C$17,2)) -> FSGT 4 | I119: 0.4222222222 | J119: 0.4504050926 | K119: 00:40:35 | L119: =IF(K119="","",MENU!$D$10/('liste engagés'!K119*24)) -> 16.85420945 | M119: 1
A120: 115 | B120: BOUSBIA | C120: RAYAN | D120: SC BLV | E120: FFC | F120: Code | G120: 11 | H120: =+IF(G120="","",VLOOKUP(G120,Catégories!$B$3:$C$17,2)) -> Cadets | I120: 0.4229166667 | J120: 0.4494328704 | K120: 00:38:11 | L120: =IF(K120="","",MENU!$D$10/('liste engagés'!K120*24)) -> 17.91357486 | M120: 1
A121: 116 | B121: DONCIEUX | C121: NICOLAS | D121: UCVM | E121: FSGT | F121: Code | G121: 1 | H121: =+IF(G121="","",VLOOKUP(G121,Catégories!$B$3:$C$17,2)) -> FSGT 1-2 | I121: 0.4236111111 | J121: 0.4474652778 | K121: 00:34:21 | L121: =IF(K121="","",MENU!$D$10/('liste engagés'!K121*24)) -> 19.91266376 | M121: 1
A122: 117 | B122: BOIS | C122: FREDERIC | D122: CS COUXOIS | E122: FSGT | F122: Code | G122: 3 | H122: =+IF(G122="","",VLOOKUP(G122,Catégories!$B$3:$C$17,2)) -> FSGT 4 | I122: 0.4243055556 | J122: 0.4517939815 | K122: 00:39:35 | L122: =IF(K122="","",MENU!$D$10/('liste engagés'!K122*24)) -> 17.28 | M122: 1
A123: 118 | B123: ANDRE | C123: NOAH | D123: VC PAYS VALLONNAIS | E123: FFC | F123: Code | G123: 12 | H123: =+IF(G123="","",VLOOKUP(G123,Catégories!$B$3:$C$17,2)) -> Minimes | I123: 0.425 | J123: 0.4506712963 | K123: 00:36:58 | L123: =IF(K123="","",MENU!$D$10/('liste engagés'!K123*24)) -> 18.503156 | M123: 1
A124: 119 | B124: DOYON | C124: NICOLAS | D124: VSRP | E124: FFC | F124: Code | G124: 9 | H124: =+IF(G124="","",VLOOKUP(G124,Catégories!$B$3:$C$17,2)) -> 17-29 ans | I124: 0.4256944444 | J124: 0.449537037 | K124: 00:34:20 | L124: =IF(K124="","",MENU!$D$10/('liste engagés'!K124*24)) -> 19.9223301 | M124: 1
A125: 120 | B125: BLACHE | C125: SYLVAIN | D125: UCMV | E125: FFC | F125: Code | G125: 9 | H125: =+IF(G125="","",VLOOKUP(G125,Catégories!$B$3:$C$17,2)) -> 17-29 ans | I125: 0.4263888889 | J125: 0.4517708333 | K125: 00:36:33 | L125: =IF(K125="","",MENU!$D$10/('liste engagés'!K125*24)) -> 18.71409029 | M125: 1
A126: 121 | B126: SCHWIND | C126: MICHEL | D126: UC PIERRELATTE | E126: FSGT | F126: Code | G126: 4 | H126: =+IF(G126="","",VLOOKUP(G126,Catégories!$B$3:$C$17,2)) -> FSGT 5 | I126: 0.4270833333 | J126: 0.4551967593 | K126: 00:40:29 | L126: =IF(K126="","",MENU!$D$10/('liste engagés'!K126*24)) -> 16.89584191 | M126: 1
A127: 122 | F127: Code | I127: 0.4277777778 | L127: =IF(K127="","",MENU!$D$10/('liste engagés'!K127*24)) ->  | M127: 1
A128: 123 | B128: MAZA | C128: SAMUEL | D128: CS COUXOIS | E128: FSGT | F128: Code | G128: 1 | H128: =+IF(G128="","",VLOOKUP(G128,Catégories!$B$3:$C$17,2)) -> FSGT 1-2 | I128: 0.4284722222 | J128: 0.4528125 | K128: 00:35:03 | L128: =IF(K128="","",MENU!$D$10/('liste engagés'!K128*24)) -> 19.5149786 | M128: 1
A129: 124 | B129: COURTIAL | C129: JULIEN | D129: C PRO | E129: FFC | F129: Code | G129: 8 | H129: =+IF(G129="","",VLOOKUP(G129,Catégories!$B$3:$C$17,2)) -> 30-39 ans | I129: 0.4291666667 | J129: 0.4549884259 | K129: 00:37:11 | L129: =IF(K129="","",MENU!$D$10/('liste engagés'!K129*24)) -> 18.39533841 | M129: 1
A130: 125 | B130: ARLAUD | C130: JEROME | D130: C PRO | E130: FFC | F130: Code | G130: 7 | H130: =+IF(G130="","",VLOOKUP(G130,Catégories!$B$3:$C$17,2)) -> 40-49 ans | I130: 0.4298611111 | J130: 0.4519097222 | K130: 00:31:45 | L130: =IF(K130="","",MENU!$D$10/('liste engagés'!K130*24)) -> 21.54330709 | M130: 1
A131: 126 | F131: Code | I131: 0.4305555556 | L131: =IF(K131="","",MENU!$D$10/('liste engagés'!K131*24)) ->  | M131: 1
A132: 127 | B132: DURAND | C132: MAXIME | D132: UCMV | E132: FFC | F132: Code | G132: 11 | H132: =+IF(G132="","",VLOOKUP(G132,Catégories!$B$3:$C$17,2)) -> Cadets | I132: 0.43125 | J132: 0.4578472222 | K132: 00:38:18 | L132: =IF(K132="","",MENU!$D$10/('liste engagés'!K132*24)) -> 17.85900783 | M132: 1
A133: 128 | B133: REYNAUD | C133: EMMANUEL | D133: UCMV | E133: FSGT | F133: Code | G133: 2 | H133: =+IF(G133="","",VLOOKUP(G133,Catégories!$B$3:$C$17,2)) -> FSGT 3 | I133: 0.4319444444 | J133: 0.4582291667 | K133: 00:37:51 | L133: =IF(K133="","",MENU!$D$10/('liste engagés'!K133*24)) -> 18.07133421 | M133: 1
A134: 129 | B134: ESTORGES | C134: LUCAS | D134: UCMV | E134: FFC | F134: Code | G134: 9 | H134: =+IF(G134="","",VLOOKUP(G134,Catégories!$B$3:$C$17,2)) -> 17-29 ans | I134: 0.4326388889 | J134: 0.4659722222 | K134: =+IF(J134="","",J134-I134) -> 00:48:00 | L134: =IF(K134="","",MENU!$D$10/('liste engagés'!K134*24)) -> 14.25 | M134: =+IF(B134="",0,1) -> 1
A135: 130 | B135: LEMAIRE | C135: MATHIAS | D135: UCMV | E135: FFC | F135: Code | G135: 12 | H135: =+IF(G135="","",VLOOKUP(G135,Catégories!$B$3:$C$17,2)) -> Minimes | I135: 0.4333333333 | J135: 0.4649768519 | K135: 00:45:34 | L135: =IF(K135="","",MENU!$D$10/('liste engagés'!K135*24)) -> 15.01097293 | M135: 1
A136: 131 | B136: LEMAIRE | C136: YANNIS | D136: UCMV | E136: FFC | F136: Code | G136: 9 | H136: =+IF(G136="","",VLOOKUP(G136,Catégories!$B$3:$C$17,2)) -> 17-29 ans | I136: 0.4340277778 | J136: 0.4594444444 | K136: 00:36:36 | L136: =IF(K136="","",MENU!$D$10/('liste engagés'!K136*24)) -> 18.68852459 | M136: 1
A137: 132 | B137: GONZALVEZ | C137: LILIAN | D137: USC BERG & COIRON | E137: FSGT | F137: Code | G137: 1 | H137: =+IF(G137="","",VLOOKUP(G137,Catégories!$B$3:$C$17,2)) -> FSGT 1-2 | I137: 0.4347222222 | J137: 0.4590162037 | K137: 00:34:59 | L137: =IF(K137="","",MENU!$D$10/('liste engagés'!K137*24)) -> 19.5521677 | M137: 1
A138: 133 | B138: DEBANNE | C138: CAROLE | D138: UC PIERRELATTE | E138: FSGT | F138: Code | G138: 10 | H138: =+IF(G138="","",VLOOKUP(G138,Catégories!$B$3:$C$17,2)) -> Féminines | I138: 0.4354166667 | J138: 0.4736921296 | K138: 00:55:07 | L138: =IF(K138="","",MENU!$D$10/('liste engagés'!K138*24)) -> 12.41003931 | M138: 1
A139: 134 | B139: DEBANNE | C139: WILLIAM | D139: UC PIERRELATTE | E139: FSGT | F139: Code | G139: 3 | H139: =+IF(G139="","",VLOOKUP(G139,Catégories!$B$3:$C$17,2)) -> FSGT 4 | I139: 0.4361111111 | J139: 0.4639930556 | K139: 00:40:09 | L139: =IF(K139="","",MENU!$D$10/('liste engagés'!K139*24)) -> 17.03611457 | M139: 1
A140: 135 | B140: CROSET | C140: DIDIER | D140: VC FROGES VILLARD BONNOT | E140: FSGT | F140: Code | G140: 2 | H140: =+IF(G140="","",VLOOKUP(G140,Catégories!$B$3:$C$17,2)) -> FSGT 3 | I140: 0.4368055556 | J140: 0.4623263889 | K140: 00:36:45 | L140: =IF(K140="","",MENU!$D$10/('liste engagés'!K140*24)) -> 18.6122449 | M140: 1
A141: 136 | B141: HAYET | C141: JUSTIN | D141: AC BOLLENE | E141: FFC | F141: Code | G141: 11 | H141: =+IF(G141="","",VLOOKUP(G141,Catégories!$B$3:$C$17,2)) -> Cadets | I141: 0.4375 | J141: 0.4645601852 | K141: 00:38:58 | L141: =IF(K141="","",MENU!$D$10/('liste engagés'!K141*24)) -> 17.5534645 | M141: 1
A142: 137 | B142: PECOULT | C142: CHRISTIAN | D142: VC ISLOIS | E142: UFOLEP | F142: Code | G142: 6 | H142: =+IF(G142="","",VLOOKUP(G142,Catégories!$B$3:$C$17,2)) -> 50-59 ans | I142: 0.4381944444 | J142: 0.4671759259 | K142: 00:41:44 | L142: =IF(K142="","",MENU!$D$10/('liste engagés'!K142*24)) -> 16.38977636 | M142: 1
A143: 138 | B143: FARAVELON | C143: BORIS | D143: VSRP | E143: FFC | F143: Code | G143: 9 | H143: =+IF(G143="","",VLOOKUP(G143,Catégories!$B$3:$C$17,2)) -> 17-29 ans | I143: 0.4388888889 | J143: 0.460775463 | K143: 00:31:31 | L143: =IF(K143="","",MENU!$D$10/('liste engagés'!K143*24)) -> 21.70280275 | M143: 1
A144: 139 | B144: COSTECHAREYRE | C144: CLAUDE | D144: VC VALRHONA | E144: FFC | F144: Code | G144: 7 | H144: =+IF(G144="","",VLOOKUP(G144,Catégories!$B$3:$C$17,2)) -> 40-49 ans | I144: 0.4395833333 | J144: 0.4616898148 | K144: 00:31:50 | L144: =IF(K144="","",MENU!$D$10/('liste engagés'!K144*24)) -> 21.48691099 | M144: 1
A145: 140 | B145: PEREZ | C145: RAPHAEL | D145: UC PIERRELATTE | E145: FSGT | F145: Code | G145: 4 | H145: =+IF(G145="","",VLOOKUP(G145,Catégories!$B$3:$C$17,2)) -> FSGT 5 | I145: 0.4402777778 | J145: 0.4687384259 | K145: 00:40:59 | L145: =IF(K145="","",MENU!$D$10/('liste engagés'!K145*24)) -> 16.68971126 | M145: 1
A146: 141 | B146: BARRIER | C146: NICOLAS | D146: UCMV | E146: FFC | F146: Code | G146: 7 | H146: =+IF(G146="","",VLOOKUP(G146,Catégories!$B$3:$C$17,2)) -> 40-49 ans | I146: 0.4409722222 | J146: 0.4657291667 | K146: 00:35:39 | L146: =IF(K146="","",MENU!$D$10/('liste engagés'!K146*24)) -> 19.18653576 | M146: 1
A147: 142 | B147: DALAYGUE | C147: HERVE | D147: VC SOYONNAIS | E147: FSGT | F147: Code | G147: 4 | H147: =+IF(G147="","",VLOOKUP(G147,Catégories!$B$3:$C$17,2)) -> FSGT 5 | I147: 0.4416666667 | J147: 0.4780555556 | K147: 00:52:24 | L147: =IF(K147="","",MENU!$D$10/('liste engagés'!K147*24)) -> 13.05343511 | M147: 1
A148: 143 | F148: Code | H148: =+IF(G148="","",VLOOKUP(G148,Catégories!$B$3:$C$17,2)) ->  | I148: 0.4423611111 | L148: =IF(K148="","",MENU!$D$10/('liste engagés'!K148*24)) ->  | M148: 0
A149: 144 | F149: Code | H149: =+IF(G149="","",VLOOKUP(G149,Catégories!$B$3:$C$17,2)) ->  | I149: 0.4430555556 | L149: =IF(K149="","",MENU!$D$10/('liste engagés'!K149*24)) ->  | M149: 0
A150: 145 | F150: Code | H150: =+IF(G150="","",VLOOKUP(G150,Catégories!$B$3:$C$17,2)) ->  | I150: 0.44375 | L150: =IF(K150="","",MENU!$D$10/('liste engagés'!K150*24)) ->  | M150: 0
A151: 146 | B151: HAREL | C151: MARCEL | D151: VC SOYONNAIS | E151: FSGT | F151: Code | G151: 4 | H151: =+IF(G151="","",VLOOKUP(G151,Catégories!$B$3:$C$17,2)) -> FSGT 5 | I151: 0.4444444444 | J151: 0.474849537 | K151: 00:43:47 | L151: =IF(K151="","",MENU!$D$10/('liste engagés'!K151*24)) -> 15.62238295 | M151: 1
A152: 147 | F152: Code | H152: =+IF(G152="","",VLOOKUP(G152,Catégories!$B$3:$C$17,2)) ->  | I152: 0.4451388889 | L152: =IF(K152="","",MENU!$D$10/('liste engagés'!K152*24)) ->  | M152: 0
A153: 148 | B153: JOUFFRET | C153: DIDIER | D153: CC ST PERAY | E153: FSGT | F153: Code | G153: 3 | H153: =+IF(G153="","",VLOOKUP(G153,Catégories!$B$3:$C$17,2)) -> FSGT 4 | I153: 0.4458333333 | J153: 0.4737615741 | K153: 00:40:13 | L153: =IF(K153="","",MENU!$D$10/('liste engagés'!K153*24)) -> 17.00787402 | M153: 1
A154: 149 | B154: LOPEZ | C154: BRICE | D154: NL | E154: NL | F154: Code | G154: 7 | H154: =+IF(G154="","",VLOOKUP(G154,Catégories!$B$3:$C$17,2)) -> 40-49 ans | I154: 0.4465277778 | J154: 0.4693865741 | K154: 00:32:55 | L154: =IF(K154="","",MENU!$D$10/('liste engagés'!K154*24)) -> 20.77974684 | M154: 1
A155: 150 | B155: CHASSON CHABONNET | C155: JULES | D155: CS COUXOIS | E155: FSGT | F155: Code | G155: 11 | H155: =+IF(G155="","",VLOOKUP(G155,Catégories!$B$3:$C$17,2)) -> Cadets | I155: 0.4472222222 | J155: 0.4737152778 | K155: 00:38:09 | L155: =IF(K155="","",MENU!$D$10/('liste engagés'!K155*24)) -> 17.92922674 | M155: 1
A156: 151 | F156: Code | H156: =+IF(G156="","",VLOOKUP(G156,Catégories!$B$3:$C$17,2)) ->  | I156: 0.4479166667 | L156: =IF(K156="","",MENU!$D$10/('liste engagés'!K156*24)) ->  | M156: 0
A157: 152 | F157: Code | H157: =+IF(G157="","",VLOOKUP(G157,Catégories!$B$3:$C$17,2)) ->  | I157: 0.4486111111 | L157: =IF(K157="","",MENU!$D$10/('liste engagés'!K157*24)) ->  | M157: 0
A158: 153 | F158: Code | H158: =+IF(G158="","",VLOOKUP(G158,Catégories!$B$3:$C$17,2)) ->  | I158: 0.4493055556 | L158: =IF(K158="","",MENU!$D$10/('liste engagés'!K158*24)) ->  | M158: 0
A159: 154 | F159: Code | H159: =+IF(G159="","",VLOOKUP(G159,Catégories!$B$3:$C$17,2)) ->  | I159: 0.45 | L159: =IF(K159="","",MENU!$D$10/('liste engagés'!K159*24)) ->  | M159: 0
A160: 155 | F160: Code | H160: =+IF(G160="","",VLOOKUP(G160,Catégories!$B$3:$C$17,2)) ->  | I160: 0.4506944444 | L160: =IF(K160="","",MENU!$D$10/('liste engagés'!K160*24)) ->  | M160: 0
A161: 156 | F161: Code | H161: =+IF(G161="","",VLOOKUP(G161,Catégories!$B$3:$C$17,2)) ->  | I161: 0.4513888889 | L161: =IF(K161="","",MENU!$D$10/('liste engagés'!K161*24)) ->  | M161: 0
A162: 157 | F162: Code | H162: =+IF(G162="","",VLOOKUP(G162,Catégories!$B$3:$C$17,2)) ->  | I162: 0.4520833333 | L162: =IF(K162="","",MENU!$D$10/('liste engagés'!K162*24)) ->  | M162: 0
A163: 158 | F163: Code | H163: =+IF(G163="","",VLOOKUP(G163,Catégories!$B$3:$C$17,2)) ->  | I163: 0.4527777778 | L163: =IF(K163="","",MENU!$D$10/('liste engagés'!K163*24)) ->  | M163: 0
A164: 159 | F164: Code | H164: =+IF(G164="","",VLOOKUP(G164,Catégories!$B$3:$C$17,2)) ->  | I164: 0.4534722222 | L164: =IF(K164="","",MENU!$D$10/('liste engagés'!K164*24)) ->  | M164: 0
A165: 160 | F165: Code | H165: =+IF(G165="","",VLOOKUP(G165,Catégories!$B$3:$C$17,2)) ->  | I165: 0.4541666667 | L165: =IF(K165="","",MENU!$D$10/('liste engagés'!K165*24)) ->  | M165: 0
A166: 161 | F166: Code | H166: =+IF(G166="","",VLOOKUP(G166,Catégories!$B$3:$C$17,2)) ->  | I166: 0.4548611111 | L166: =IF(K166="","",MENU!$D$10/('liste engagés'!K166*24)) ->  | M166: 0
A167: 162 | F167: Code | H167: =+IF(G167="","",VLOOKUP(G167,Catégories!$B$3:$C$17,2)) ->  | I167: 0.4555555556 | L167: =IF(K167="","",MENU!$D$10/('liste engagés'!K167*24)) ->  | M167: 0
A168: 163 | F168: Code | H168: =+IF(G168="","",VLOOKUP(G168,Catégories!$B$3:$C$17,2)) ->  | I168: 0.45625 | L168: =IF(K168="","",MENU!$D$10/('liste engagés'!K168*24)) ->  | M168: 0
A169: 164 | F169: Code | H169: =+IF(G169="","",VLOOKUP(G169,Catégories!$B$3:$C$17,2)) ->  | I169: 0.4569444444 | L169: =IF(K169="","",MENU!$D$10/('liste engagés'!K169*24)) ->  | M169: 0
A170: 165 | B170: SORIN | C170: ALEXIS | D170: UCMV | E170: FSGT | F170: Code | G170: 2 | H170: =+IF(G170="","",VLOOKUP(G170,Catégories!$B$3:$C$17,2)) -> FSGT 3 | I170: 0.4576388889 | J170: 11:33:33 | K170: 00:34:33 | L170: =IF(K170="","",MENU!$D$10/('liste engagés'!K170*24)) -> 19.79739508 | M170: 1
A171: 166 | B171: COMTE | C171: SERGE | D171: VSRP | E171: FSGT | F171: Code | G171: 3 | H171: =+IF(G171="","",VLOOKUP(G171,Catégories!$B$3:$C$17,2)) -> FSGT 4 | I171: 0.4583333333 | J171: 11:41:26 | K171: 00:41:26 | L171: =IF(K171="","",MENU!$D$10/('liste engagés'!K171*24)) -> 16.5084473 | M171: 1
A172: 167 | B172: BAFFERT | C172: ROMAIN | D172: C PRO | E172: FFC | F172: Code | G172: 8 | H172: =+IF(G172="","",VLOOKUP(G172,Catégories!$B$3:$C$17,2)) -> 30-39 ans | I172: 0.4590277778 | J172: 11:43:06 | K172: 00:42:06 | L172: =IF(K172="","",MENU!$D$10/('liste engagés'!K172*24)) -> 16.24703088 | M172: 1
A173: 168 | F173: Code | H173: =+IF(G173="","",VLOOKUP(G173,Catégories!$B$3:$C$17,2)) ->  | I173: 0.4597222222 | L173: =IF(K173="","",MENU!$D$10/('liste engagés'!K173*24)) ->  | M173: 0
A174: 169 | F174: Code | H174: =+IF(G174="","",VLOOKUP(G174,Catégories!$B$3:$C$17,2)) ->  | I174: 0.4604166667 | L174: =IF(K174="","",MENU!$D$10/('liste engagés'!K174*24)) ->  | M174: 0
A175: 170 | F175: Code | H175: =+IF(G175="","",VLOOKUP(G175,Catégories!$B$3:$C$17,2)) ->  | I175: 0.4611111111 | L175: =IF(K175="","",MENU!$D$10/('liste engagés'!K175*24)) ->  | M175: 0
A176: 171 | F176: Code | H176: =+IF(G176="","",VLOOKUP(G176,Catégories!$B$3:$C$17,2)) ->  | I176: 0.4618055556 | L176: =IF(K176="","",MENU!$D$10/('liste engagés'!K176*24)) ->  | M176: 0
A177: 172 | F177: Code | H177: =+IF(G177="","",VLOOKUP(G177,Catégories!$B$3:$C$17,2)) ->  | I177: 0.4625 | L177: =IF(K177="","",MENU!$D$10/('liste engagés'!K177*24)) ->  | M177: 0
A178: 173 | F178: Code | H178: =+IF(G178="","",VLOOKUP(G178,Catégories!$B$3:$C$17,2)) ->  | I178: 0.4631944444 | L178: =IF(K178="","",MENU!$D$10/('liste engagés'!K178*24)) ->  | M178: 0
A179: 174 | B179: VASNIER | C179: DYLAN | D179: UCMV | E179: FFC | F179: Code | G179: 9 | H179: =+IF(G179="","",VLOOKUP(G179,Catégories!$B$3:$C$17,2)) -> 17-29 ans | I179: 0.4638888889 | J179: 11:41:19 | K179: 00:33:19 | L179: =IF(K179="","",MENU!$D$10/('liste engagés'!K179*24)) -> 20.53026513 | M179: 1
A180: 175 | B180: DREVON | C180: SEB | D180: UCMV | E180: FSGT | F180: Code | G180: 3 | H180: =+IF(G180="","",VLOOKUP(G180,Catégories!$B$3:$C$17,2)) -> FSGT 4 | I180: 0.4645833333 | J180: 11:57:20 | K180: 00:48:20 | L180: =IF(K180="","",MENU!$D$10/('liste engagés'!K180*24)) -> 14.15172414 | M180: 1
A181: 176 | F181: Code | H181: =+IF(G181="","",VLOOKUP(G181,Catégories!$B$3:$C$17,2)) ->  | I181: 0.4652777778 | L181: =IF(K181="","",MENU!$D$10/('liste engagés'!K181*24)) ->  | M181: 0
A182: 177 | F182: Code | H182: =+IF(G182="","",VLOOKUP(G182,Catégories!$B$3:$C$17,2)) ->  | I182: 0.4659722222 | L182: =IF(K182="","",MENU!$D$10/('liste engagés'!K182*24)) ->  | M182: 0
A183: 178 | F183: Code | H183: =+IF(G183="","",VLOOKUP(G183,Catégories!$B$3:$C$17,2)) ->  | I183: 0.4666666667 | L183: =IF(K183="","",MENU!$D$10/('liste engagés'!K183*24)) ->  | M183: 0
A184: 179 | F184: Code | H184: =+IF(G184="","",VLOOKUP(G184,Catégories!$B$3:$C$17,2)) ->  | I184: 0.4673611111 | L184: =IF(K184="","",MENU!$D$10/('liste engagés'!K184*24)) ->  | M184: 0
A185: 180 | F185: Code | H185: =+IF(G185="","",VLOOKUP(G185,Catégories!$B$3:$C$17,2)) ->  | I185: 0.4680555556 | L185: =IF(K185="","",MENU!$D$10/('liste engagés'!K185*24)) ->  | M185: 0
A186: 181 | F186: Code | H186: =+IF(G186="","",VLOOKUP(G186,Catégories!$B$3:$C$17,2)) ->  | I186: 0.46875 | L186: =IF(K186="","",MENU!$D$10/('liste engagés'!K186*24)) ->  | M186: 0
A187: 182 | F187: Code | H187: =+IF(G187="","",VLOOKUP(G187,Catégories!$B$3:$C$17,2)) ->  | I187: 0.4694444444 | L187: =IF(K187="","",MENU!$D$10/('liste engagés'!K187*24)) ->  | M187: 0
A188: 183 | F188: Code | H188: =+IF(G188="","",VLOOKUP(G188,Catégories!$B$3:$C$17,2)) ->  | I188: 0.4701388889 | L188: =IF(K188="","",MENU!$D$10/('liste engagés'!K188*24)) ->  | M188: 0
A189: 184 | F189: Code | H189: =+IF(G189="","",VLOOKUP(G189,Catégories!$B$3:$C$17,2)) ->  | I189: 0.4708333333 | L189: =IF(K189="","",MENU!$D$10/('liste engagés'!K189*24)) ->  | M189: 0
A190: 185 | F190: Code | H190: =+IF(G190="","",VLOOKUP(G190,Catégories!$B$3:$C$17,2)) ->  | I190: 0.4715277778 | L190: =IF(K190="","",MENU!$D$10/('liste engagés'!K190*24)) ->  | M190: 0
A191: 186 | F191: Code | H191: =+IF(G191="","",VLOOKUP(G191,Catégories!$B$3:$C$17,2)) ->  | I191: 0.4722222222 | L191: =IF(K191="","",MENU!$D$10/('liste engagés'!K191*24)) ->  | M191: 0
A192: 187 | F192: Code | H192: =+IF(G192="","",VLOOKUP(G192,Catégories!$B$3:$C$17,2)) ->  | I192: 0.4729166667 | L192: =IF(K192="","",MENU!$D$10/('liste engagés'!K192*24)) ->  | M192: 0
A193: 188 | F193: Code | H193: =+IF(G193="","",VLOOKUP(G193,Catégories!$B$3:$C$17,2)) ->  | I193: 0.4736111111 | L193: =IF(K193="","",MENU!$D$10/('liste engagés'!K193*24)) ->  | M193: 0
A194: 189 | F194: Code | H194: =+IF(G194="","",VLOOKUP(G194,Catégories!$B$3:$C$17,2)) ->  | I194: 0.4743055556 | L194: =IF(K194="","",MENU!$D$10/('liste engagés'!K194*24)) ->  | M194: 0
A195: 190 | F195: Code | H195: =+IF(G195="","",VLOOKUP(G195,Catégories!$B$3:$C$17,2)) ->  | I195: 0.475 | L195: =IF(K195="","",MENU!$D$10/('liste engagés'!K195*24)) ->  | M195: 0
A196: 191 | F196: Code | H196: =+IF(G196="","",VLOOKUP(G196,Catégories!$B$3:$C$17,2)) ->  | I196: 0.4756944444 | L196: =IF(K196="","",MENU!$D$10/('liste engagés'!K196*24)) ->  | M196: 0
A197: 192 | F197: Code | H197: =+IF(G197="","",VLOOKUP(G197,Catégories!$B$3:$C$17,2)) ->  | I197: 0.4763888889 | L197: =IF(K197="","",MENU!$D$10/('liste engagés'!K197*24)) ->  | M197: 0
A198: 193 | F198: Code | H198: =+IF(G198="","",VLOOKUP(G198,Catégories!$B$3:$C$17,2)) ->  | I198: 0.4770833333 | K198: =+IF(J198="","",J198-I198) ->  | L198: =IF(K198="","",MENU!$D$10/('liste engagés'!K198*24)) ->  | M198: =+IF(B198="",0,1) -> 0
A199: 194 | F199: Code | H199: =+IF(G199="","",VLOOKUP(G199,Catégories!$B$3:$C$17,2)) ->  | I199: 0.4777777778 | L199: =IF(K199="","",MENU!$D$10/('liste engagés'!K199*24)) ->  | M199: 0
A200: 195 | F200: Code | H200: =+IF(G200="","",VLOOKUP(G200,Catégories!$B$3:$C$17,2)) ->  | I200: 0.4784722222 | L200: =IF(K200="","",MENU!$D$10/('liste engagés'!K200*24)) ->  | M200: 0
A201: 196 | F201: Code | H201: =+IF(G201="","",VLOOKUP(G201,Catégories!$B$3:$C$17,2)) ->  | I201: 0.4791666667 | L201: =IF(K201="","",MENU!$D$10/('liste engagés'!K201*24)) ->  | M201: 0
A202: 197 | F202: Code | H202: =+IF(G202="","",VLOOKUP(G202,Catégories!$B$3:$C$17,2)) ->  | I202: 0.4798611111 | L202: =IF(K202="","",MENU!$D$10/('liste engagés'!K202*24)) ->  | M202: 0
... 14 more rows

Sheet scratch
A1: =+MENU!A1 -> CHRONO DES LIMOUCHES | G1: =+MENU!I1 -> EDITION | H1: =+MENU!J1 -> 2018
A3: CLASSEMENT GENERAL
B6: N°de DOSSARD | C6: Nom | D6: Prénom | E6: Club | F6: Catégorie | G6: Temps | H6: Moyenne
A7: 1 | B7: =IF('liste engagés'!$G115="","",'liste engagés'!A115) -> 110 | C7: =IF('liste engagés'!$G115="","",'liste engagés'!B115) -> CHEYTION | D7: =IF('liste engagés'!$G115="","",'liste engagés'!C115) -> ANTHONY | E7: =IF('liste engagés'!$G115="","",'liste engagés'!D115) -> UC ALBENNASSIENNE | F7: =IF('liste engagés'!$G115="","",'liste engagés'!G115) -> 7 | G7: =IF('liste engagés'!$G115="","",'liste engagés'!K115) -> 0.02090277778 | H7: =IF('liste engagés'!$G115="","",'liste engagés'!L115) -> 22.72425249 | I7: =+IF(C7="",0,1) -> 1
A8: =+A7+1 -> 2 | B8: =IF('liste engagés'!$G143="","",'liste engagés'!A143) -> 138 | C8: =IF('liste engagés'!$G143="","",'liste engagés'!B143) -> FARAVELON | D8: =IF('liste engagés'!$G143="","",'liste engagés'!C143) -> BORIS | E8: =IF('liste engagés'!$G143="","",'liste engagés'!D143) -> VSRP | F8: =IF('liste engagés'!$G143="","",'liste engagés'!G143) -> 9 | G8: =IF('liste engagés'!$G143="","",'liste engagés'!K143) -> 0.02188657407 | H8: =IF('liste engagés'!$G143="","",'liste engagés'!L143) -> 21.70280275 | I8: 1
A9: 3 | B9: =IF('liste engagés'!$G111="","",'liste engagés'!A111) -> 106 | C9: =IF('liste engagés'!$G111="","",'liste engagés'!B111) -> MEUNIER | D9: =IF('liste engagés'!$G111="","",'liste engagés'!C111) -> PHILIPPE | E9: =IF('liste engagés'!$G111="","",'liste engagés'!D111) -> FONTANIL | F9: =IF('liste engagés'!$G111="","",'liste engagés'!G111) -> 8 | G9: =IF('liste engagés'!$G111="","",'liste engagés'!K111) -> 0.02200231481 | H9: =IF('liste engagés'!$G111="","",'liste engagés'!L111) -> 21.58863756 | I9: 1
A10: 4 | B10: =IF('liste engagés'!$G99="","",'liste engagés'!A99) -> 94 | C10: =IF('liste engagés'!$G99="","",'liste engagés'!B99) -> PEYRONNET | D10: =IF('liste engagés'!$G99="","",'liste engagés'!C99) -> FABRICE | E10: =IF('liste engagés'!$G99="","",'liste engagés'!D99) -> TEAM VERCOES | F10: =IF('liste engagés'!$G99="","",'liste engagés'!G99) -> 8 | G10: =IF('liste engagés'!$G99="","",'liste engagés'!K99) -> 0.02203703704 | H10: =IF('liste engagés'!$G99="","",'liste engagés'!L99) -> 21.55462185 | I10: 1
A11: 5 | B11: =IF('liste engagés'!$G130="","",'liste engagés'!A130) -> 125 | C11: =IF('liste engagés'!$G130="","",'liste engagés'!B130) -> ARLAUD | D11: =IF('liste engagés'!$G130="","",'liste engagés'!C130) -> JEROME | E11: =IF('liste engagés'!$G130="","",'liste engagés'!D130) -> C PRO | F11: =IF('liste engagés'!$G130="","",'liste engagés'!G130) -> 7 | G11: =IF('liste engagés'!$G130="","",'liste engagés'!K130) -> 0.02204861111 | H11: =IF('liste engagés'!$G130="","",'liste engagés'!L130) -> 21.54330709 | I11: 1
A12: 6 | B12: =IF('liste engagés'!$G144="","",'liste engagés'!A144) -> 139 | C12: =IF('liste engagés'!$G144="","",'liste engagés'!B144) -> COSTECHAREYRE | D12: =IF('liste engagés'!$G144="","",'liste engagés'!C144) -> CLAUDE | E12: =IF('liste engagés'!$G144="","",'liste engagés'!D144) -> VC VALRHONA | F12: =IF('liste engagés'!$G144="","",'liste engagés'!G144) -> 7 | G12: =IF('liste engagés'!$G144="","",'liste engagés'!K144) -> 0.02210648148 | H12: =IF('liste engagés'!$G144="","",'liste engagés'!L144) -> 21.48691099 | I12: 1
A13: 7 | B13: =IF('liste engagés'!$G154="","",'liste engagés'!A154) -> 149 | C13: =IF('liste engagés'!$G154="","",'liste engagés'!B154) -> LOPEZ | D13: =IF('liste engagés'!$G154="","",'liste engagés'!C154) -> BRICE | E13: =IF('liste engagés'!$G154="","",'liste engagés'!D154) -> NL | F13: =IF('liste engagés'!$G154="","",'liste engagés'!G154) -> 7 | G13: =IF('liste engagés'!$G154="","",'liste engagés'!K154) -> 0.0228587963 | H13: =IF('liste engagés'!$G154="","",'liste engagés'!L154) -> 20.77974684 | I13: 1
A14: 8 | B14: =IF('liste engagés'!$G98="","",'liste engagés'!A98) -> 93 | C14: =IF('liste engagés'!$G98="","",'liste engagés'!B98) -> COTTE MARINON | D14: =IF('liste engagés'!$G98="","",'liste engagés'!C98) -> PIERRE LOUIS | E14: =IF('liste engagés'!$G98="","",'liste engagés'!D98) -> C PRO | F14: =IF('liste engagés'!$G98="","",'liste engagés'!G98) -> 9 | G14: =IF('liste engagés'!$G98="","",'liste engagés'!K98) -> 0.02309027778 | H14: =IF('liste engagés'!$G98="","",'liste engagés'!L98) -> 20.57142857 | I14: 1
A15: 9 | B15: =IF('liste engagés'!$G179="","",'liste engagés'!A179) -> 174 | C15: =IF('liste engagés'!$G179="","",'liste engagés'!B179) -> VASNIER | D15: =IF('liste engagés'!$G179="","",'liste engagés'!C179) -> DYLAN | E15: =IF('liste engagés'!$G179="","",'liste engagés'!D179) -> UCMV | F15: =IF('liste engagés'!$G179="","",'liste engagés'!G179) -> 9 | G15: =IF('liste engagés'!$G179="","",'liste engagés'!K179) -> 0.02313657407 | H15: =IF('liste engagés'!$G179="","",'liste engagés'!L179) -> 20.53026513 | I15: 1
A16: 10 | B16: =IF('liste engagés'!$G6="","",'liste engagés'!A6) -> 1 | C16: =IF('liste engagés'!$G6="","",'liste engagés'!B6) -> ESCHARD | D16: =IF('liste engagés'!$G6="","",'liste engagés'!C6) -> GUILLAUME | E16: =IF('liste engagés'!$G6="","",'liste engagés'!D6) -> UCMV | F16: =IF('liste engagés'!$G6="","",'liste engagés'!G6) -> 8 | G16: =IF('liste engagés'!$G6="","",'liste engagés'!K6) -> 0.02351851852 | H16: =IF('liste engagés'!$G6="","",'liste engagés'!L6) -> 20.19685039 | I16: 1
A17: 11 | B17: =IF('liste engagés'!$G113="","",'liste engagés'!A113) -> 108 | C17: =IF('liste engagés'!$G113="","",'liste engagés'!B113) -> ANKRI | D17: =IF('liste engagés'!$G113="","",'liste engagés'!C113) -> NORBERT | E17: =IF('liste engagés'!$G113="","",'liste engagés'!D113) -> MARSEILLE | F17: =IF('liste engagés'!$G113="","",'liste engagés'!G113) -> 6 | G17: =IF('liste engagés'!$G113="","",'liste engagés'!K113) -> 0.02376157407 | H17: =IF('liste engagés'!$G113="","",'liste engagés'!L113) -> 19.99025816 | I17: 1
A18: 12 | B18: =IF('liste engagés'!$G85="","",'liste engagés'!A85) -> 80 | C18: =IF('liste engagés'!$G85="","",'liste engagés'!B85) -> HEYRAUD | D18: =IF('liste engagés'!$G85="","",'liste engagés'!C85) -> FABIEN | E18: =IF('liste engagés'!$G85="","",'liste engagés'!D85) -> C PRO | F18: =IF('liste engagés'!$G85="","",'liste engagés'!G85) -> 7 | G18: =IF('liste engagés'!$G85="","",'liste engagés'!K85) -> 0.02377314815 | H18: =IF('liste engagés'!$G85="","",'liste engagés'!L85) -> 19.9805258 | I18: 1
A19: 13 | B19: =IF('liste engagés'!$G124="","",'liste engagés'!A124) -> 119 | C19: =IF('liste engagés'!$G124="","",'liste engagés'!B124) -> DOYON | D19: =IF('liste engagés'!$G124="","",'liste engagés'!C124) -> NICOLAS | E19: =IF('liste engagés'!$G124="","",'liste engagés'!D124) -> VSRP | F19: =IF('liste engagés'!$G124="","",'liste engagés'!G124) -> 9 | G19: =IF('liste engagés'!$G124="","",'liste engagés'!K124) -> 0.02384259259 | H19: =IF('liste engagés'!$G124="","",'liste engagés'!L124) -> 19.9223301 | I19: 1
A20: 14 | B20: =IF('liste engagés'!$G121="","",'liste engagés'!A121) -> 116 | C20: =IF('liste engagés'!$G121="","",'liste engagés'!B121) -> DONCIEUX | D20: =IF('liste engagés'!$G121="","",'liste engagés'!C121) -> NICOLAS | E20: =IF('liste engagés'!$G121="","",'liste engagés'!D121) -> UCVM | F20: =IF('liste engagés'!$G121="","",'liste engagés'!G121) -> 1 | G20: =IF('liste engagés'!$G121="","",'liste engagés'!K121) -> 0.02385416667 | H20: =IF('liste engagés'!$G121="","",'liste engagés'!L121) -> 19.91266376 | I20: 1
A21: 15 | B21: =IF('liste engagés'!$G170="","",'liste engagés'!A170) -> 165 | C21: =IF('liste engagés'!$G170="","",'liste engagés'!B170) -> SORIN | D21: =IF('liste engagés'!$G170="","",'liste engagés'!C170) -> ALEXIS | E21: =IF('liste engagés'!$G170="","",'liste engagés'!D170) -> UCMV | F21: =IF('liste engagés'!$G170="","",'liste engagés'!G170) -> 2 | G21: =IF('liste engagés'!$G170="","",'liste engagés'!K170) -> 0.02399305556 | H21: =IF('liste engagés'!$G170="","",'liste engagés'!L170) -> 19.79739508 | I21: 1
A22: 16 | B22: =IF('liste engagés'!$G83="","",'liste engagés'!A83) -> 78 | C22: =IF('liste engagés'!$G83="","",'liste engagés'!B83) -> BRISSAUD | D22: =IF('liste engagés'!$G83="","",'liste engagés'!C83) -> SIMON | E22: =IF('liste engagés'!$G83="","",'liste engagés'!D83) -> UCMV | F22: =IF('liste engagés'!$G83="","",'liste engagés'!G83) -> 11 | G22: =IF('liste engagés'!$G83="","",'liste engagés'!K83) -> 0.02409722222 | H22: =IF('liste engagés'!$G83="","",'liste engagés'!L83) -> 19.71181556 | I22: 1
A23: 17 | B23: =IF('liste engagés'!$G137="","",'liste engagés'!A137) -> 132 | C23: =IF('liste engagés'!$G137="","",'liste engagés'!B137) -> GONZALVEZ | D23: =IF('liste engagés'!$G137="","",'liste engagés'!C137) -> LILIAN | E23: =IF('liste engagés'!$G137="","",'liste engagés'!D137) -> USC BERG & COIRON | F23: =IF('liste engagés'!$G137="","",'liste engagés'!G137) -> 1 | G23: =IF('liste engagés'!$G137="","",'liste engagés'!K137) -> 0.02429398148 | H23: =IF('liste engagés'!$G137="","",'liste engagés'!L137) -> 19.5521677 | I23: 1
A24: 18 | B24: =IF('liste engagés'!$G128="","",'liste engagés'!A128) -> 123 | C24: =IF('liste engagés'!$G128="","",'liste engagés'!B128) -> MAZA | D24: =IF('liste engagés'!$G128="","",'liste engagés'!C128) -> SAMUEL | E24: =IF('liste engagés'!$G128="","",'liste engagés'!D128) -> CS COUXOIS | F24: =IF('liste engagés'!$G128="","",'liste engagés'!G128) -> 1 | G24: =IF('liste engagés'!$G128="","",'liste engagés'!K128) -> 0.02434027778 | H24: =IF('liste engagés'!$G128="","",'liste engagés'!L128) -> 19.5149786 | I24: 1
A25: 19 | B25: =IF('liste engagés'!$G102="","",'liste engagés'!A102) -> 97 | C25: =IF('liste engagés'!$G102="","",'liste engagés'!B102) -> DUROUX | D25: =IF('liste engagés'!$G102="","",'liste engagés'!C102) -> JORIS | E25: =IF('liste engagés'!$G102="","",'liste engagés'!D102) -> NL | F25: =IF('liste engagés'!$G102="","",'liste engagés'!G102) -> 9 | G25: =IF('liste engagés'!$G102="","",'liste engagés'!K102) -> 0.02461805556 | H25: =IF('liste engagés'!$G102="","",'liste engagés'!L102) -> 19.29478138 | I25: 1
A26: 20 | B26: =IF('liste engagés'!$G146="","",'liste engagés'!A146) -> 141 | C26: =IF('liste engagés'!$G146="","",'liste engagés'!B146) -> BARRIER | D26: =IF('liste engagés'!$G146="","",'liste engagés'!C145) -> RAPHAEL | E26: =IF('liste engagés'!$G146="","",'liste engagés'!D146) -> UCMV | F26: =IF('liste engagés'!$G146="","",'liste engagés'!G146) -> 7 | G26: =IF('liste engagés'!$G146="","",'liste engagés'!K146) -> 0.02475694444 | H26: =IF('liste engagés'!$G146="","",'liste engagés'!L146) -> 19.18653576 | I26: 1
A27: 21 | B27: =IF('liste engagés'!$G86="","",'liste engagés'!A86) -> 81 | C27: =IF('liste engagés'!$G86="","",'liste engagés'!B86) -> HEYRAUD | D27: =IF('liste engagés'!$G86="","",'liste engagés'!C86) -> VINCENT | E27: =IF('liste engagés'!$G86="","",'liste engagés'!D86) -> C PRO | F27: =IF('liste engagés'!$G86="","",'liste engagés'!G86) -> 8 | G27: =IF('liste engagés'!$G86="","",'liste engagés'!K86) -> 0.02508101852 | H27: =IF('liste engagés'!$G86="","",'liste engagés'!L86) -> 18.93862483 | I27: 1
A28: 22 | B28: =IF('liste engagés'!$G116="","",'liste engagés'!A116) -> 111 | C28: =IF('liste engagés'!$G116="","",'liste engagés'!B116) -> PHILIPPE | D28: =IF('liste engagés'!$G116="","",'liste engagés'!C116) -> FRANCOIS | E28: =IF('liste engagés'!$G116="","",'liste engagés'!D116) -> MAX BAREL VC | F28: =IF('liste engagés'!$G116="","",'liste engagés'!G116) -> 1 | G28: =IF('liste engagés'!$G116="","",'liste engagés'!K116) -> 0.02521990741 | H28: =IF('liste engagés'!$G116="","",'liste engagés'!L116) -> 18.83432767 | I28: 1
A29: 23 | B29: =IF('liste engagés'!$G125="","",'liste engagés'!A125) -> 120 | C29: =IF('liste engagés'!$G125="","",'liste engagés'!B125) -> BLACHE | D29: =IF('liste engagés'!$G125="","",'liste engagés'!C125) -> SYLVAIN | E29: =IF('liste engagés'!$G125="","",'liste engagés'!D125) -> UCMV | F29: =IF('liste engagés'!$G125="","",'liste engagés'!G125) -> 9 | G29: =IF('liste engagés'!$G125="","",'liste engagés'!K125) -> 0.02538194444 | H29: =IF('liste engagés'!$G125="","",'liste engagés'!L125) -> 18.71409029 | I29: 1
A30: 24 | B30: =IF('liste engagés'!$G91="","",'liste engagés'!A91) -> 86 | C30: =IF('liste engagés'!$G91="","",'liste engagés'!B91) -> POLIGNE | D30: =IF('liste engagés'!$G91="","",'liste engagés'!C91) -> ALEXANDRE | E30: =IF('liste engagés'!$G91="","",'liste engagés'!D91) -> NL | F30: =IF('liste engagés'!$G91="","",'liste engagés'!G91) -> 9 | G30: =IF('liste engagés'!$G91="","",'liste engagés'!K91) -> 0.02538194444 | H30: =IF('liste engagés'!$G91="","",'liste engagés'!L91) -> 18.71409029 | I30: 1
A31: 25 | B31: =IF('liste engagés'!$G136="","",'liste engagés'!A136) -> 131 | C31: =IF('liste engagés'!$G136="","",'liste engagés'!B136) -> LEMAIRE | D31: =IF('liste engagés'!$G136="","",'liste engagés'!C136) -> YANNIS | E31: =IF('liste engagés'!$G136="","",'liste engagés'!D136) -> UCMV | F31: =IF('liste engagés'!$G136="","",'liste engagés'!G136) -> 9 | G31: =IF('liste engagés'!$G136="","",'liste engagés'!K136) -> 0.02541666667 | H31: =IF('liste engagés'!$G136="","",'liste engagés'!L136) -> 18.68852459 | I31: 1
A32: 26 | B32: =IF('liste engagés'!$G140="","",'liste engagés'!A140) -> 135 | C32: =IF('liste engagés'!$G140="","",'liste engagés'!B140) -> CROSET | D32: =IF('liste engagés'!$G140="","",'liste engagés'!C140) -> DIDIER | E32: =IF('liste engagés'!$G140="","",'liste engagés'!D140) -> VC FROGES VILLARD BONNOT | F32: =IF('liste engagés'!$G140="","",'liste engagés'!G140) -> 2 | G32: =IF('liste engagés'!$G140="","",'liste engagés'!K140) -> 0.02552083333 | H32: =IF('liste engagés'!$G140="","",'liste engagés'!L140) -> 18.6122449 | I32: 1
A33: 27 | B33: =IF('liste engagés'!$G123="","",'liste engagés'!A123) -> 118 | C33: =IF('liste engagés'!$G123="","",'liste engagés'!B123) -> ANDRE | D33: =IF('liste engagés'!$G123="","",'liste engagés'!C123) -> NOAH | E33: =IF('liste engagés'!$G123="","",'liste engagés'!D123) -> VC PAYS VALLONNAIS | F33: =IF('liste engagés'!$G123="","",'liste engagés'!G123) -> 12 | G33: =IF('liste engagés'!$G123="","",'liste engagés'!K123) -> 0.0256712963 | H33: =IF('liste engagés'!$G123="","",'liste engagés'!L123) -> 18.503156 | I33: 1
A34: 28 | B34: =IF('liste engagés'!$G117="","",'liste engagés'!A117) -> 112 | C34: =IF('liste engagés'!$G117="","",'liste engagés'!B117) -> BELCHI | D34: =IF('liste engagés'!$G117="","",'liste engagés'!C117) -> LEO | E34: =IF('liste engagés'!$G117="","",'liste engagés'!D117) -> UCMV | F34: =IF('liste engagés'!$G117="","",'liste engagés'!G117) -> 9 | G34: =IF('liste engagés'!$G117="","",'liste engagés'!K117) -> 0.02568287037 | H34: =IF('liste engagés'!$G117="","",'liste engagés'!L117) -> 18.49481749 | I34: 1
A35: 29 | B35: =IF('liste engagés'!$G129="","",'liste engagés'!A129) -> 124 | C35: =IF('liste engagés'!$G129="","",'liste engagés'!B129) -> COURTIAL | D35: =IF('liste engagés'!$G129="","",'liste engagés'!C129) -> JULIEN | E35: =IF('liste engagés'!$G129="","",'liste engagés'!D129) -> C PRO | F35: =IF('liste engagés'!$G129="","",'liste engagés'!G129) -> 8 | G35: =IF('liste engagés'!$G129="","",'liste engagés'!K129) -> 0.02582175926 | H35: =IF('liste engagés'!$G129="","",'liste engagés'!L129) -> 18.39533841 | I35: 1
A36: 30 | B36: =IF('liste engagés'!$G118="","",'liste engagés'!A118) -> 113 | C36: =IF('liste engagés'!$G118="","",'liste engagés'!B118) -> DUPIN | D36: =IF('liste engagés'!$G118="","",'liste engagés'!C118) -> DIDIER | E36: =IF('liste engagés'!$G118="","",'liste engagés'!D118) -> CS COUXOIS | F36: =IF('liste engagés'!$G118="","",'liste engagés'!G118) -> 2 | G36: =IF('liste engagés'!$G118="","",'liste engagés'!K118) -> 0.02585648148 | H36: =IF('liste engagés'!$G118="","",'liste engagés'!L118) -> 18.37063563 | I36: 1
A37: 31 | B37: =IF('liste engagés'!$G90="","",'liste engagés'!A90) -> 85 | C37: =IF('liste engagés'!$G90="","",'liste engagés'!B90) -> SOLER | D37: =IF('liste engagés'!$G90="","",'liste engagés'!C90) -> DIEGO | E37: =IF('liste engagés'!$G90="","",'liste engagés'!D90) -> TEAM MONTAGNAC | F37: =IF('liste engagés'!$G90="","",'liste engagés'!G90) -> 3 | G37: =IF('liste engagés'!$G90="","",'liste engagés'!K90) -> 0.02608796296 | H37: =IF('liste engagés'!$G90="","",'liste engagés'!L90) -> 18.20763088 | I37: 1
A38: 32 | B38: =IF('liste engagés'!$G133="","",'liste engagés'!A133) -> 128 | C38: =IF('liste engagés'!$G133="","",'liste engagés'!B133) -> REYNAUD | D38: =IF('liste engagés'!$G133="","",'liste engagés'!C133) -> EMMANUEL | E38: =IF('liste engagés'!$G133="","",'liste engagés'!D133) -> UCMV | F38: =IF('liste engagés'!$G133="","",'liste engagés'!G133) -> 2 | G38: =IF('liste engagés'!$G133="","",'liste engagés'!K133) -> 0.02628472222 | H38: =IF('liste engagés'!$G133="","",'liste engagés'!L133) -> 18.07133421 | I38: 1
A39: 33 | B39: =IF('liste engagés'!$G84="","",'liste engagés'!A84) -> 79 | C39: =IF('liste engagés'!$G84="","",'liste engagés'!B84) -> GRESSE | D39: =IF('liste engagés'!$G84="","",'liste engagés'!C84) -> GUI GUI | E39: =IF('liste engagés'!$G84="","",'liste engagés'!D84) -> UCMV | F39: =IF('liste engagés'!$G84="","",'liste engagés'!G84) -> 9 | G39: =IF('liste engagés'!$G84="","",'liste engagés'!K84) -> 0.02641203704 | H39: =IF('liste engagés'!$G84="","",'liste engagés'!L84) -> 17.98422436 | I39: 1
A40: 34 | B40: =IF('liste engagés'!$G155="","",'liste engagés'!A155) -> 150 | C40: =IF('liste engagés'!$G155="","",'liste engagés'!B155) -> CHASSON CHABONNET | D40: =IF('liste engagés'!$G155="","",'liste engagés'!C155) -> JULES | E40: =IF('liste engagés'!$G155="","",'liste engagés'!D155) -> CS COUXOIS | F40: =IF('liste engagés'!$G155="","",'liste engagés'!G155) -> 11 | G40: =IF('liste engagés'!$G155="","",'liste engagés'!K155) -> 0.02649305556 | H40: =IF('liste engagés'!$G155="","",'liste engagés'!L155) -> 17.92922674 | I40: 1
A41: 35 | B41: =IF('liste engagés'!$G120="","",'liste engagés'!A120) -> 115 | C41: =IF('liste engagés'!$G120="","",'liste engagés'!B120) -> BOUSBIA | D41: =IF('liste engagés'!$G120="","",'liste engagés'!C120) -> RAYAN | E41: =IF('liste engagés'!$G120="","",'liste engagés'!D120) -> SC BLV | F41: =IF('liste engagés'!$G120="","",'liste engagés'!G120) -> 11 | G41: =IF('liste engagés'!$G120="","",'liste engagés'!K120) -> 0.0265162037 | H41: =IF('liste engagés'!$G120="","",'liste engagés'!L120) -> 17.91357486 | I41: 1
A42: 36 | B42: =IF('liste engagés'!$G132="","",'liste engagés'!A132) -> 127 | C42: =IF('liste engagés'!$G132="","",'liste engagés'!B132) -> DURAND | D42: =IF('liste engagés'!$G132="","",'liste engagés'!C132) -> MAXIME | E42: =IF('liste engagés'!$G132="","",'liste engagés'!D132) -> UCMV | F42: =IF('liste engagés'!$G132="","",'liste engagés'!G132) -> 11 | G42: =IF('liste engagés'!$G132="","",'liste engagés'!K132) -> 0.02659722222 | H42: =IF('liste engagés'!$G132="","",'liste engagés'!L132) -> 17.85900783 | I42: 1
A43: 37 | B43: =IF('liste engagés'!$G100="","",'liste engagés'!A100) -> 95 | C43: =IF('liste engagés'!$G100="","",'liste engagés'!B100) -> GARCIN | D43: =IF('liste engagés'!$G100="","",'liste engagés'!C100) -> GUILLAUME | E43: =IF('liste engagés'!$G100="","",'liste engagés'!D100) -> UCMV | F43: =IF('liste engagés'!$G100="","",'liste engagés'!G100) -> 11 | G43: =IF('liste engagés'!$G100="","",'liste engagés'!K100) -> 0.02695601852 | H43: =IF('liste engagés'!$G100="","",'liste engagés'!L100) -> 17.62129669 | I43: 1
A44: 38 | B44: =IF('liste engagés'!$G95="","",'liste engagés'!A95) -> 90 | C44: =IF('liste engagés'!$G95="","",'liste engagés'!B95) -> BARTHES | D44: =IF('liste engagés'!$G95="","",'liste engagés'!C95) -> SERGE | E44: =IF('liste engagés'!$G95="","",'liste engagés'!D95) -> UC ST SATURNIN | F44: =IF('liste engagés'!$G95="","",'liste engagés'!G95) -> 5 | G44: =IF('liste engagés'!$G95="","",'liste engagés'!K95) -> 0.02697916667 | H44: =IF('liste engagés'!$G95="","",'liste engagés'!L95) -> 17.60617761 | I44: 1
A45: 39 | B45: =IF('liste engagés'!$G141="","",'liste engagés'!A141) -> 136 | C45: =IF('liste engagés'!$G141="","",'liste engagés'!B141) -> HAYET | D45: =IF('liste engagés'!$G141="","",'liste engagés'!C141) -> JUSTIN | E45: =IF('liste engagés'!$G141="","",'liste engagés'!D141) -> AC BOLLENE | F45: =IF('liste engagés'!$G141="","",'liste engagés'!G141) -> 11 | G45: =IF('liste engagés'!$G141="","",'liste engagés'!K141) -> 0.02706018519 | H45: =IF('liste engagés'!$G141="","",'liste engagés'!L141) -> 17.5534645 | I45: 1
A46: 40 | B46: =IF('liste engagés'!$G31="","",'liste engagés'!A31) -> 26 | C46: =IF('liste engagés'!$G31="","",'liste engagés'!B31) -> BOYER | D46: =IF('liste engagés'!$G31="","",'liste engagés'!C31) -> AXEL | E46: =IF('liste engagés'!$G31="","",'liste engagés'!D31) -> UCMV | F46: =IF('liste engagés'!$G31="","",'liste engagés'!G31) -> 9 | G46: =IF('liste engagés'!$G31="","",'liste engagés'!K31) -> 0.02708333333 | H46: =IF('liste engagés'!$G31="","",'liste engagés'!L31) -> 17.53846154 | I46: 1
A47: 41 | B47: =IF('liste engagés'!$G61="","",'liste engagés'!A61) -> 56 | C47: =IF('liste engagés'!$G61="","",'liste engagés'!B61) -> DENURRA | D47: =IF('liste engagés'!$G61="","",'liste engagés'!C61) -> LOUIS | E47: =IF('liste engagés'!$G61="","",'liste engagés'!D61) -> BRIGNAISVC | F47: =IF('liste engagés'!$G61="","",'liste engagés'!G61) -> 3 | G47: =IF('liste engagés'!$G61="","",'liste engagés'!K61) -> 0.02731481481 | H47: =IF('liste engagés'!$G61="","",'liste engagés'!L61) -> 17.38983051 | I47: 1
A48: 42 | B48: =IF('liste engagés'!$G82="","",'liste engagés'!A82) -> 77 | C48: =IF('liste engagés'!$G82="","",'liste engagés'!B82) -> GILLES | D48: =IF('liste engagés'!$G82="","",'liste engagés'!C82) -> CYRIL | E48: =IF('liste engagés'!$G82="","",'liste engagés'!D82) -> SC GRETZ TOURNAN | F48: =IF('liste engagés'!$G82="","",'liste engagés'!G82) -> 8 | G48: =IF('liste engagés'!$G82="","",'liste engagés'!K82) -> 0.02744212963 | H48: =IF('liste engagés'!$G82="","",'liste engagés'!L82) -> 17.30915226 | I48: 1
A49: 43 | B49: =IF('liste engagés'!$G122="","",'liste engagés'!A122) -> 117 | C49: =IF('liste engagés'!$G122="","",'liste engagés'!B122) -> BOIS | D49: =IF('liste engagés'!$G122="","",'liste engagés'!C122) -> FREDERIC | E49: =IF('liste engagés'!$G122="","",'liste engagés'!D122) -> CS COUXOIS | F49: =IF('liste engagés'!$G122="","",'liste engagés'!G122) -> 3 | G49: =IF('liste engagés'!$G122="","",'liste engagés'!K122) -> 0.02748842593 | H49: =IF('liste engagés'!$G122="","",'liste engagés'!L122) -> 17.28 | I49: 1
A50: 44 | B50: =IF('liste engagés'!$G89="","",'liste engagés'!A89) -> 84 | C50: =IF('liste engagés'!$G89="","",'liste engagés'!B89) -> ROSADO | D50: =IF('liste engagés'!$G89="","",'liste engagés'!C89) -> BRUNO | E50: =IF('liste engagés'!$G89="","",'liste engagés'!D89) -> UC PIERRELATTE | F50: =IF('liste engagés'!$G89="","",'liste engagés'!G89) -> 3 | G50: =IF('liste engagés'!$G89="","",'liste engagés'!K89) -> 0.0277662037 | H50: =IF('liste engagés'!$G89="","",'liste engagés'!L89) -> 17.10712797 | I50: 1
A51: 45 | B51: =IF('liste engagés'!$G110="","",'liste engagés'!A110) -> 105 | C51: =IF('liste engagés'!$G110="","",'liste engagés'!B110) -> SAADIA | D51: =IF('liste engagés'!$G110="","",'liste engagés'!C110) -> OLIVIER | E51: =IF('liste engagés'!$G110="","",'liste engagés'!D110) -> NL | F51: =IF('liste engagés'!$G110="","",'liste engagés'!G110) -> 7 | G51: =IF('liste engagés'!$G110="","",'liste engagés'!K110) -> 0.02777777778 | H51: =IF('liste engagés'!$G110="","",'liste engagés'!L110) -> 17.1 | I51: 1
A52: 46 | B52: =IF('liste engagés'!$G139="","",'liste engagés'!A139) -> 134 | C52: =IF('liste engagés'!$G139="","",'liste engagés'!B139) -> DEBANNE | D52: =IF('liste engagés'!$G139="","",'liste engagés'!C139) -> WILLIAM | E52: =IF('liste engagés'!$G139="","",'liste engagés'!D139) -> UC PIERRELATTE | F52: =IF('liste engagés'!$G139="","",'liste engagés'!G139) -> 3 | G52: =IF('liste engagés'!$G139="","",'liste engagés'!K139) -> 0.02788194444 | H52: =IF('liste engagés'!$G139="","",'liste engagés'!L139) -> 17.03611457 | I52: 1
A53: 47 | B53: =IF('liste engagés'!$G153="","",'liste engagés'!A153) -> 148 | C53: =IF('liste engagés'!$G153="","",'liste engagés'!B153) -> JOUFFRET | D53: =IF('liste engagés'!$G153="","",'liste engagés'!C153) -> DIDIER | E53: =IF('liste engagés'!$G153="","",'liste engagés'!D153) -> CC ST PERAY | F53: =IF('liste engagés'!$G153="","",'liste engagés'!G153) -> 3 | G53: =IF('liste engagés'!$G153="","",'liste engagés'!K153) -> 0.02792824074 | H53: =IF('liste engagés'!$G153="","",'liste engagés'!L153) -> 17.00787402 | I53: 1
A54: 48 | B54: =IF('liste engagés'!$G126="","",'liste engagés'!A126) -> 121 | C54: =IF('liste engagés'!$G126="","",'liste engagés'!B126) -> SCHWIND | D54: =IF('liste engagés'!$G126="","",'liste engagés'!C126) -> MICHEL | E54: =IF('liste engagés'!$G126="","",'liste engagés'!D126) -> UC PIERRELATTE | F54: =IF('liste engagés'!$G126="","",'liste engagés'!G126) -> 4 | G54: =IF('liste engagés'!$G126="","",'liste engagés'!K126) -> 0.02811342593 | H54: =IF('liste engagés'!$G126="","",'liste engagés'!L126) -> 16.89584191 | I54: 1
A55: 49 | B55: =IF('liste engagés'!$G119="","",'liste engagés'!A119) -> 114 | C55: =IF('liste engagés'!$G119="","",'liste engagés'!B119) -> PINATEL | D55: =IF('liste engagés'!$G119="","",'liste engagés'!C119) -> J RENE | E55: =IF('liste engagés'!$G119="","",'liste engagés'!D119) -> CS LA VOULTE | F55: =IF('liste engagés'!$G119="","",'liste engagés'!G119) -> 3 | G55: =IF('liste engagés'!$G119="","",'liste engagés'!K119) -> 0.02818287037 | H55: =IF('liste engagés'!$G119="","",'liste engagés'!L119) -> 16.85420945 | I55: 1
A56: 50 | B56: =IF('liste engagés'!$G76="","",'liste engagés'!A76) -> 71 | C56: =IF('liste engagés'!$G76="","",'liste engagés'!B76) -> BERNARD | D56: =IF('liste engagés'!$G76="","",'liste engagés'!C76) -> CLAUDE | E56: =IF('liste engagés'!$G76="","",'liste engagés'!D76) -> FRIOL CLUB | F56: =IF('liste engagés'!$G76="","",'liste engagés'!G76) -> 5 | G56: =IF('liste engagés'!$G76="","",'liste engagés'!K76) -> 0.02844907407 | H56: =IF('liste engagés'!$G76="","",'liste engagés'!L76) -> 16.69650122 | I56: 1
A57: 51 | B57: =IF('liste engagés'!$G145="","",'liste engagés'!A145) -> 140 | C57: =IF('liste engagés'!$G145="","",'liste engagés'!B145) -> PEREZ | D57: =IF('liste engagés'!$G145="","",'liste engagés'!#REF!) ->  | E57: =IF('liste engagés'!$G145="","",'liste engagés'!D145) -> UC PIERRELATTE | F57: =IF('liste engagés'!$G145="","",'liste engagés'!G145) -> 4 | G57: =IF('liste engagés'!$G145="","",'liste engagés'!K145) -> 0.02846064815 | H57: =IF('liste engagés'!$G145="","",'liste engagés'!L145) -> 16.68971126 | I57: 1
A58: 52 | B58: =IF('liste engagés'!$G67="","",'liste engagés'!A67) -> 62 | C58: =IF('liste engagés'!$G67="","",'liste engagés'!B67) -> GARCIN | D58: =IF('liste engagés'!$G67="","",'liste engagés'!C67) -> PATRICK | E58: =IF('liste engagés'!$G67="","",'liste engagés'!D67) -> UCMV | F58: =IF('liste engagés'!$G67="","",'liste engagés'!G67) -> 6 | G58: =IF('liste engagés'!$G67="","",'liste engagés'!K67) -> 0.02857638889 | H58: =IF('liste engagés'!$G67="","",'liste engagés'!L67) -> 16.62211422 | I58: 1
A59: 53 | B59: =IF('liste engagés'!$G101="","",'liste engagés'!A101) -> 96 | C59: =IF('liste engagés'!$G101="","",'liste engagés'!B101) -> WAGNER | D59: =IF('liste engagés'!$G101="","",'liste engagés'!C101) -> DANIEL | E59: =IF('liste engagés'!$G101="","",'liste engagés'!D101) -> UCMV | F59: =IF('liste engagés'!$G101="","",'liste engagés'!G101) -> 3 | G59: =IF('liste engagés'!$G101="","",'liste engagés'!K101) -> 0.0287037037 | H59: =IF('liste engagés'!$G101="","",'liste engagés'!L101) -> 16.5483871 | I59: 1
A60: 54 | B60: =IF('liste engagés'!$G171="","",'liste engagés'!A171) -> 166 | C60: =IF('liste engagés'!$G171="","",'liste engagés'!B171) -> COMTE | D60: =IF('liste engagés'!$G171="","",'liste engagés'!C171) -> SERGE | E60: =IF('liste engagés'!$G171="","",'liste engagés'!D171) -> VSRP | F60: =IF('liste engagés'!$G171="","",'liste engagés'!G171) -> 3 | G60: =IF('liste engagés'!$G171="","",'liste engagés'!K171) -> 0.02877314815 | H60: =IF('liste engagés'!$G171="","",'liste engagés'!L171) -> 16.5084473 | I60: 1
A61: 55 | B61: =IF('liste engagés'!$G22="","",'liste engagés'!A22) -> 17 | C61: =IF('liste engagés'!$G22="","",'liste engagés'!B22) -> ZOULIAMIS | D61: =IF('liste engagés'!$G22="","",'liste engagés'!C22) -> NICOLAS | E61: =IF('liste engagés'!$G22="","",'liste engagés'!D22) -> CS PANTIN | F61: =IF('liste engagés'!$G22="","",'liste engagés'!G22) -> 1 | G61: =IF('liste engagés'!$G22="","",'liste engagés'!K22) -> 0.02895833333 | H61: =IF('liste engagés'!$G22="","",'liste engagés'!L22) -> 16.4028777 | I61: 1
A62: 56 | B62: =IF('liste engagés'!$G142="","",'liste engagés'!A142) -> 137 | C62: =IF('liste engagés'!$G142="","",'liste engagés'!B142) -> PECOULT | D62: =IF('liste engagés'!$G142="","",'liste engagés'!C142) -> CHRISTIAN | E62: =IF('liste engagés'!$G142="","",'liste engagés'!D142) -> VC ISLOIS | F62: =IF('liste engagés'!$G142="","",'liste engagés'!G142) -> 6 | G62: =IF('liste engagés'!$G142="","",'liste engagés'!K142) -> 0.02898148148 | H62: =IF('liste engagés'!$G142="","",'liste engagés'!L142) -> 16.38977636 | I62: 1
A63: 57 | B63: =IF('liste engagés'!$G172="","",'liste engagés'!A172) -> 167 | C63: =IF('liste engagés'!$G172="","",'liste engagés'!B172) -> BAFFERT | D63: =IF('liste engagés'!$G172="","",'liste engagés'!C172) -> ROMAIN | E63: =IF('liste engagés'!$G172="","",'liste engagés'!D172) -> C PRO | F63: =IF('liste engagés'!$G172="","",'liste engagés'!G172) -> 8 | G63: =IF('liste engagés'!$G172="","",'liste engagés'!K172) -> 0.02923611111 | H63: =IF('liste engagés'!$G172="","",'liste engagés'!L172) -> 16.24703088 | I63: 1
A64: 58 | B64: =IF('liste engagés'!$G94="","",'liste engagés'!A94) -> 89 | C64: =IF('liste engagés'!$G94="","",'liste engagés'!B94) -> AURECHE | D64: =IF('liste engagés'!$G94="","",'liste engagés'!C94) -> ETIENNE | E64: =IF('liste engagés'!$G94="","",'liste engagés'!D94) -> AC TOURRETTOISE | F64: =IF('liste engagés'!$G94="","",'liste engagés'!G94) -> 4 | G64: =IF('liste engagés'!$G94="","",'liste engagés'!K94) -> 0.0293287037 | H64: =IF('liste engagés'!$G94="","",'liste engagés'!L94) -> 16.19573796 | I64: 1
A65: 59 | B65: =IF('liste engagés'!$G112="","",'liste engagés'!A112) -> 107 | C65: =IF('liste engagés'!$G112="","",'liste engagés'!B112) -> MARRONE | D65: =IF('liste engagés'!$G112="","",'liste engagés'!C112) -> AMELIE | E65: =IF('liste engagés'!$G112="","",'liste engagés'!D112) -> FONTANIL | F65: =IF('liste engagés'!$G112="","",'liste engagés'!G112) -> 10 | G65: =IF('liste engagés'!$G112="","",'liste engagés'!K112) -> 0.029375 | H65: =IF('liste engagés'!$G112="","",'liste engagés'!L112) -> 16.17021277 | I65: 1
A66: 60 | B66: =IF('liste engagés'!$G106="","",'liste engagés'!A106) -> 101 | C66: =IF('liste engagés'!$G106="","",'liste engagés'!B106) -> BEUGNOT | D66: =IF('liste engagés'!$G106="","",'liste engagés'!C106) -> PASCAL | E66: =IF('liste engagés'!$G106="","",'liste engagés'!D106) -> NL | F66: =IF('liste engagés'!$G106="","",'liste engagés'!G106) -> 6 | G66: =IF('liste engagés'!$G106="","",'liste engagés'!K106) -> 0.02989583333 | H66: =IF('liste engagés'!$G106="","",'liste engagés'!L106) -> 15.88850174 | I66: 1
A67: 61 | B67: =IF('liste engagés'!$G66="","",'liste engagés'!A66) -> 61 | C67: =IF('liste engagés'!$G66="","",'liste engagés'!B66) -> BUATOIS | D67: =IF('liste engagés'!$G66="","",'liste engagés'!C66) -> GILLES | E67: =IF('liste engagés'!$G66="","",'liste engagés'!D66) -> UC PIERRELATTE | F67: =IF('liste engagés'!$G66="","",'liste engagés'!G66) -> 3 | G67: =IF('liste engagés'!$G66="","",'liste engagés'!K66) -> 0.02989583333 | H67: =IF('liste engagés'!$G66="","",'liste engagés'!L66) -> 15.88850174 | I67: 1
A68: 62 | B68: =IF('liste engagés'!$G11="","",'liste engagés'!A11) -> 6 | C68: =IF('liste engagés'!$G11="","",'liste engagés'!B11) -> DIDIER | D68: =IF('liste engagés'!$G11="","",'liste engagés'!C11) -> PHILIPPE | E68: =IF('liste engagés'!$G11="","",'liste engagés'!D11) -> UCMV | F68: =IF('liste engagés'!$G11="","",'liste engagés'!G11) -> 4 | G68: =IF('liste engagés'!$G11="","",'liste engagés'!K11) -> 0.0299537037 | H68: =IF('liste engagés'!$G11="","",'liste engagés'!L11) -> 15.85780526 | I68: 1
A69: 63 | B69: =IF('liste engagés'!$G97="","",'liste engagés'!A97) -> 92 | C69: =IF('liste engagés'!$G97="","",'liste engagés'!B97) -> DEVICE | D69: =IF('liste engagés'!$G97="","",'liste engagés'!C97) -> BRUNO | E69: =IF('liste engagés'!$G97="","",'liste engagés'!D97) -> NL | F69: =IF('liste engagés'!$G97="","",'liste engagés'!G97) -> 6 | G69: =IF('liste engagés'!$G97="","",'liste engagés'!K97) -> 0.03008101852 | H69: =IF('liste engagés'!$G97="","",'liste engagés'!L97) -> 15.79068873 | I69: 1
A70: 64 | B70: =IF('liste engagés'!$G23="","",'liste engagés'!A23) -> 18 | C70: =IF('liste engagés'!$G23="","",'liste engagés'!B23) -> BOYER | D70: =IF('liste engagés'!$G23="","",'liste engagés'!C23) -> FRANCK | E70: =IF('liste engagés'!$G23="","",'liste engagés'!D23) -> UCMV | F70: =IF('liste engagés'!$G23="","",'liste engagés'!G23) -> 7 | G70: =IF('liste engagés'!$G23="","",'liste engagés'!K23) -> 0.03008101852 | H70: =IF('liste engagés'!$G23="","",'liste engagés'!L23) -> 15.79068873 | I70: 1
A71: 65 | B71: =IF('liste engagés'!$G56="","",'liste engagés'!A56) -> 51 | C71: =IF('liste engagés'!$G56="","",'liste engagés'!B56) -> DEUMIER | D71: =IF('liste engagés'!$G56="","",'liste engagés'!C56) -> XAVIER | E71: =IF('liste engagés'!$G56="","",'liste engagés'!D56) -> CC ST PERAY | F71: =IF('liste engagés'!$G56="","",'liste engagés'!G56) -> 4 | G71: =IF('liste engagés'!$G56="","",'liste engagés'!K56) -> 0.03032407407 | H71: =IF('liste engagés'!$G56="","",'liste engagés'!L56) -> 15.66412214 | I71: =+IF(C71="",0,1) -> 1
A72: =+A71+1 -> 66 | B72: =IF('liste engagés'!$G151="","",'liste engagés'!A151) -> 146 | C72: =IF('liste engagés'!$G151="","",'liste engagés'!B151) -> HAREL | D72: =IF('liste engagés'!$G151="","",'liste engagés'!C151) -> MARCEL | E72: =IF('liste engagés'!$G151="","",'liste engagés'!D151) -> VC SOYONNAIS | F72: =IF('liste engagés'!$G151="","",'liste engagés'!G151) -> 4 | G72: =IF('liste engagés'!$G151="","",'liste engagés'!K151) -> 0.03040509259 | H72: =IF('liste engagés'!$G151="","",'liste engagés'!L151) -> 15.62238295 | I72: 1
A73: 67 | B73: =IF('liste engagés'!$G21="","",'liste engagés'!A21) -> 16 | C73: =IF('liste engagés'!$G21="","",'liste engagés'!B21) -> HEROLD | D73: =IF('liste engagés'!$G21="","",'liste engagés'!C21) -> GABIN | E73: =IF('liste engagés'!$G21="","",'liste engagés'!D21) -> UCMV | F73: =IF('liste engagés'!$G21="","",'liste engagés'!G21) -> 12 | G73: =IF('liste engagés'!$G21="","",'liste engagés'!K21) -> 0.03133101852 | H73: =IF('liste engagés'!$G21="","",'liste engagés'!L21) -> 15.1606945 | I73: 1
A74: 68 | B74: =IF('liste engagés'!$G88="","",'liste engagés'!A88) -> 83 | C74: =IF('liste engagés'!$G88="","",'liste engagés'!B88) -> GONZALEZ | D74: =IF('liste engagés'!$G88="","",'liste engagés'!C88) -> MIGUEL | E74: =IF('liste engagés'!$G88="","",'liste engagés'!D88) -> UC PIERRELATTE | F74: =IF('liste engagés'!$G88="","",'liste engagés'!G88) -> 4 | G74: =IF('liste engagés'!$G88="","",'liste engagés'!K88) -> 0.03153935185 | H74: =IF('liste engagés'!$G88="","",'liste engagés'!L88) -> 15.06055046 | I74: 1
A75: 69 | B75: =IF('liste engagés'!$G135="","",'liste engagés'!A135) -> 130 | C75: =IF('liste engagés'!$G135="","",'liste engagés'!B135) -> LEMAIRE | D75: =IF('liste engagés'!$G135="","",'liste engagés'!C135) -> MATHIAS | E75: =IF('liste engagés'!$G135="","",'liste engagés'!D135) -> UCMV | F75: =IF('liste engagés'!$G135="","",'liste engagés'!G135) -> 12 | G75: =IF('liste engagés'!$G135="","",'liste engagés'!K135) -> 0.03164351852 | H75: =IF('liste engagés'!$G135="","",'liste engagés'!L135) -> 15.01097293 | I75: 1
A76: 70 | B76: =IF('liste engagés'!$G7="","",'liste engagés'!A7) -> 2 | C76: =IF('liste engagés'!$G7="","",'liste engagés'!B7) -> TERRON | D76: =IF('liste engagés'!$G7="","",'liste engagés'!C7) -> SERGE | E76: =IF('liste engagés'!$G7="","",'liste engagés'!D7) -> CS COUXOIS | F76: =IF('liste engagés'!$G7="","",'liste engagés'!G7) -> 4 | G76: =IF('liste engagés'!$G7="","",'liste engagés'!K7) -> 0.03229166667 | H76: =IF('liste engagés'!$G7="","",'liste engagés'!L7) -> 14.70967742 | I76: 1
A77: 71 | B77: =IF('liste engagés'!$G134="","",'liste engagés'!A134) -> 129 | C77: =IF('liste engagés'!$G134="","",'liste engagés'!B134) -> ESTORGES | D77: =IF('liste engagés'!$G134="","",'liste engagés'!C134) -> LUCAS | E77: =IF('liste engagés'!$G134="","",'liste engagés'!D134) -> UCMV | F77: =IF('liste engagés'!$G134="","",'liste engagés'!G134) -> 9 | G77: =IF('liste engagés'!$G134="","",'liste engagés'!K134) -> 0.03333333333 | H77: =IF('liste engagés'!$G134="","",'liste engagés'!L134) -> 14.25 | I77: 1
A78: 72 | B78: =IF('liste engagés'!$G180="","",'liste engagés'!A180) -> 175 | C78: =IF('liste engagés'!$G180="","",'liste engagés'!B180) -> DREVON | D78: =IF('liste engagés'!$G180="","",'liste engagés'!C180) -> SEB | E78: =IF('liste engagés'!$G180="","",'liste engagés'!D180) -> UCMV | F78: =IF('liste engagés'!$G180="","",'liste engagés'!G180) -> 3 | G78: =IF('liste engagés'!$G180="","",'liste engagés'!K180) -> 0.03356481481 | H78: =IF('liste engagés'!$G180="","",'liste engagés'!L180) -> 14.15172414 | I78: 1
A79: 73 | B79: =IF('liste engagés'!$G57="","",'liste engagés'!A57) -> 52 | C79: =IF('liste engagés'!$G57="","",'liste engagés'!B57) -> LECOMTE | D79: =IF('liste engagés'!$G57="","",'liste engagés'!C57) -> MARC | E79: =IF('liste engagés'!$G57="","",'liste engagés'!D57) -> CS COUXOIS | F79: =IF('liste engagés'!$G57="","",'liste engagés'!G57) -> 4 | G79: =IF('liste engagés'!$G57="","",'liste engagés'!K57) -> 0.0337037037 | H79: =IF('liste engagés'!$G57="","",'liste engagés'!L57) -> 14.09340659 | I79: 1
A80: 74 | B80: =IF('liste engagés'!$G87="","",'liste engagés'!A87) -> 82 | C80: =IF('liste engagés'!$G87="","",'liste engagés'!B87) -> CAPELLI | D80: =IF('liste engagés'!$G87="","",'liste engagés'!C87) -> LORIS | E80: =IF('liste engagés'!$G87="","",'liste engagés'!D87) -> UCMV | F80: =IF('liste engagés'!$G87="","",'liste engagés'!G87) -> 11 | G80: =IF('liste engagés'!$G87="","",'liste engagés'!K87) -> 0.03385416667 | H80: =IF('liste engagés'!$G87="","",'liste engagés'!L87) -> 14.03076923 | I80: 1
A81: 75 | B81: =IF('liste engagés'!$G80="","",'liste engagés'!A80) -> 75 | C81: =IF('liste engagés'!$G80="","",'liste engagés'!B80) -> NACCARATO | D81: =IF('liste engagés'!$G80="","",'liste engagés'!C80) -> MARIO | E81: =IF('liste engagés'!$G80="","",'liste engagés'!D80) -> TEAM ATC 26 DONZERE | F81: =IF('liste engagés'!$G80="","",'liste engagés'!G80) -> 3 | G81: =IF('liste engagés'!$G80="","",'liste engagés'!K80) -> 0.0346875 | H81: =IF('liste engagés'!$G80="","",'liste engagés'!L80) -> 13.69369369 | I81: 1
A82: 76 | B82: =IF('liste engagés'!$G8="","",'liste engagés'!A8) -> 3 | C82: =IF('liste engagés'!$G8="","",'liste engagés'!B8) -> HERBAUT | D82: =IF('liste engagés'!$G8="","",'liste engagés'!C8) -> BAPTISTE | E82: =IF('liste engagés'!$G8="","",'liste engagés'!D8) -> UCMV | F82: =IF('liste engagés'!$G8="","",'liste engagés'!G8) -> 9 | G82: =IF('liste engagés'!$G8="","",'liste engagés'!K8) -> 0.03472222222 | H82: =IF('liste engagés'!$G8="","",'liste engagés'!L8) -> 13.68 | I82: 1
A83: 77 | B83: =IF('liste engagés'!$G12="","",'liste engagés'!A12) -> 7 | C83: =IF('liste engagés'!$G12="","",'liste engagés'!B12) -> LAFFONT | D83: =IF('liste engagés'!$G12="","",'liste engagés'!C12) -> FRANCIS | E83: =IF('liste engagés'!$G12="","",'liste engagés'!D12) -> NON LICENCIE | F83: =IF('liste engagés'!$G12="","",'liste engagés'!G12) -> 6 | G83: =IF('liste engagés'!$G12="","",'liste engagés'!K12) -> 0.03489583333 | H83: =IF('liste engagés'!$G12="","",'liste engagés'!L12) -> 13.6119403 | I83: 1
A84: 78 | B84: =IF('liste engagés'!$G93="","",'liste engagés'!A93) -> 88 | C84: =IF('liste engagés'!$G93="","",'liste engagés'!B93) -> ARGAUD | D84: =IF('liste engagés'!$G93="","",'liste engagés'!C93) -> FRANCIS | E84: =IF('liste engagés'!$G93="","",'liste engagés'!D93) -> SC BLV | F84: =IF('liste engagés'!$G93="","",'liste engagés'!G93) -> 6 | G84: =IF('liste engagés'!$G93="","",'liste engagés'!K93) -> 0.03520833333 | H84: =IF('liste engagés'!$G93="","",'liste engagés'!L93) -> 13.49112426 | I84: 1
A85: 79 | B85: =IF('liste engagés'!$G147="","",'liste engagés'!A147) -> 142 | C85: =IF('liste engagés'!$G147="","",'liste engagés'!B147) -> DALAYGUE | D85: =IF('liste engagés'!$G147="","",'liste engagés'!C147) -> HERVE | E85: =IF('liste engagés'!$G147="","",'liste engagés'!D147) -> VC SOYONNAIS | F85: =IF('liste engagés'!$G147="","",'liste engagés'!G147) -> 4 | G85: =IF('liste engagés'!$G147="","",'liste engagés'!K147) -> 0.03638888889 | H85: =IF('liste engagés'!$G147="","",'liste engagés'!L147) -> 13.05343511 | I85: 1
A86: 80 | B86: =IF('liste engagés'!$G81="","",'liste engagés'!A81) -> 76 | C86: =IF('liste engagés'!$G81="","",'liste engagés'!B81) -> GILLES | D86: =IF('liste engagés'!$G81="","",'liste engagés'!C81) -> PATRICK | E86: =IF('liste engagés'!$G81="","",'liste engagés'!D81) -> CC ST PERAY | F86: =IF('liste engagés'!$G81="","",'liste engagés'!G81) -> 4 | G86: =IF('liste engagés'!$G81="","",'liste engagés'!K81) -> 0.03641203704 | H86: =IF('liste engagés'!$G81="","",'liste engagés'!L81) -> 13.04513668 | I86: 1
A87: 81 | B87: =IF('liste engagés'!$G107="","",'liste engagés'!A107) -> 102 | C87: =IF('liste engagés'!$G107="","",'liste engagés'!B107) -> POINT | D87: =IF('liste engagés'!$G107="","",'liste engagés'!C107) -> LORICK | E87: =IF('liste engagés'!$G107="","",'liste engagés'!D107) -> UCMV | F87: =IF('liste engagés'!$G107="","",'liste engagés'!G107) -> 12 | G87: =IF('liste engagés'!$G107="","",'liste engagés'!K107) -> 0.03752314815 | H87: =IF('liste engagés'!$G107="","",'liste engagés'!L107) -> 12.65885256 | I87: 1
A88: 82 | B88: =IF('liste engagés'!$G58="","",'liste engagés'!A58) -> 53 | C88: =IF('liste engagés'!$G58="","",'liste engagés'!B58) -> LECOMTE | D88: =IF('liste engagés'!$G58="","",'liste engagés'!C58) -> CLEMENT | E88: =IF('liste engagés'!$G58="","",'liste engagés'!D58) -> NON LICENCIE | F88: =IF('liste engagés'!$G58="","",'liste engagés'!G58) -> 9 | G88: =IF('liste engagés'!$G58="","",'liste engagés'!K58) -> 0.03753472222 | H88: =IF('liste engagés'!$G58="","",'liste engagés'!L58) -> 12.65494912 | I88: 1
A89: 83 | B89: =IF('liste engagés'!$G138="","",'liste engagés'!A138) -> 133 | C89: =IF('liste engagés'!$G138="","",'liste engagés'!B138) -> DEBANNE | D89: =IF('liste engagés'!$G138="","",'liste engagés'!C138) -> CAROLE | E89: =IF('liste engagés'!$G138="","",'liste engagés'!D138) -> UC PIERRELATTE | F89: =IF('liste engagés'!$G138="","",'liste engagés'!G138) -> 10 | G89: =IF('liste engagés'!$G138="","",'liste engagés'!K138) -> 0.03827546296 | H89: =IF('liste engagés'!$G138="","",'liste engagés'!L138) -> 12.41003931 | I89: 1
A90: 84 | B90: =IF('liste engagés'!$G92="","",'liste engagés'!A92) -> 87 | C90: =IF('liste engagés'!$G92="","",'liste engagés'!B92) -> GUIBOUD | D90: =IF('liste engagés'!$G92="","",'liste engagés'!C92) -> ELODIE | E90: =IF('liste engagés'!$G92="","",'liste engagés'!D92) -> SC BLV | F90: =IF('liste engagés'!$G92="","",'liste engagés'!G92) -> 10 | G90: =IF('liste engagés'!$G92="","",'liste engagés'!K92) -> 0.04034722222 | H90: =IF('liste engagés'!$G92="","",'liste engagés'!L92) -> 11.77280551 | I90: 1
A91: 85 | B91: =IF('liste engagés'!$G60="","",'liste engagés'!A60) -> 55 | C91: =IF('liste engagés'!$G60="","",'liste engagés'!B60) -> PERMINGEAT | D91: =IF('liste engagés'!$G60="","",'liste engagés'!C60) -> EVANN | E91: =IF('liste engagés'!$G60="","",'liste engagés'!D60) -> UCMV | F91: =IF('liste engagés'!$G60="","",'liste engagés'!G60) -> 12 | G91: =IF('liste engagés'!$G60="","",'liste engagés'!K60) -> 0.04193287037 | H91: =IF('liste engagés'!$G60="","",'liste engagés'!L60) -> 11.32762904 | I91: 1
A92: 86 | B92: =IF('liste engagés'!$G59="","",'liste engagés'!A59) -> 54 | C92: =IF('liste engagés'!$G59="","",'liste engagés'!B59) -> BRUN | D92: =IF('liste engagés'!$G59="","",'liste engagés'!C59) -> HERVE | E92: =IF('liste engagés'!$G59="","",'liste engagés'!D59) -> CS COUXOIS | F92: =IF('liste engagés'!$G59="","",'liste engagés'!G59) -> 4 | G92: =IF('liste engagés'!$G59="","",'liste engagés'!K59) -> 0.04204861111 | H92: =IF('liste engagés'!$G59="","",'liste engagés'!L59) -> 11.29644922 | I92: 1
A93: 87 | B93: =IF('liste engagés'!$G96="","",'liste engagés'!A96) -> 91 | C93: =IF('liste engagés'!$G96="","",'liste engagés'!B96) -> BUATOIS | D93: =IF('liste engagés'!$G96="","",'liste engagés'!C96) -> MURIELLE | E93: =IF('liste engagés'!$G96="","",'liste engagés'!D96) -> VC PIERRELATTE | F93: =IF('liste engagés'!$G96="","",'liste engagés'!G96) -> 10 | G93: =IF('liste engagés'!$G96="","",'liste engagés'!K96) -> 0.04497685185 | H93: =IF('liste engagés'!$G96="","",'liste engagés'!L96) -> 10.56098816 | I93: 1
A94: 88 | B94: =IF('liste engagés'!$G9="","",'liste engagés'!A9) ->  | C94: =IF('liste engagés'!$G9="","",'liste engagés'!B9) ->  | D94: =IF('liste engagés'!$G9="","",'liste engagés'!C9) ->  | E94: =IF('liste engagés'!$G9="","",'liste engagés'!D9) ->  | F94: =IF('liste engagés'!$G9="","",'liste engagés'!G9) ->  | G94: =IF('liste engagés'!$G9="","",'liste engagés'!K9) ->  | H94: =IF('liste engagés'!$G9="","",'liste engagés'!L9) ->  | I94: 0
A95: 89 | B95: =IF('liste engagés'!$G10="","",'liste engagés'!A10) ->  | C95: =IF('liste engagés'!$G10="","",'liste engagés'!B10) ->  | D95: =IF('liste engagés'!$G10="","",'liste engagés'!C10) ->  | E95: =IF('liste engagés'!$G10="","",'liste engagés'!D10) ->  | F95: =IF('liste engagés'!$G10="","",'liste engagés'!G10) ->  | G95: =IF('liste engagés'!$G10="","",'liste engagés'!K10) ->  | H95: =IF('liste engagés'!$G10="","",'liste engagés'!L10) ->  | I95: 0
A96: 90 | B96: =IF('liste engagés'!$G13="","",'liste engagés'!A13) ->  | C96: =IF('liste engagés'!$G13="","",'liste engagés'!B13) ->  | D96: =IF('liste engagés'!$G13="","",'liste engagés'!C13) ->  | E96: =IF('liste engagés'!$G13="","",'liste engagés'!D13) ->  | F96: =IF('liste engagés'!$G13="","",'liste engagés'!G13) ->  | G96: =IF('liste engagés'!$G13="","",'liste engagés'!K13) ->  | H96: =IF('liste engagés'!$G13="","",'liste engagés'!L13) ->  | I96: 0
A97: 91 | B97: =IF('liste engagés'!$G14="","",'liste engagés'!A14) ->  | C97: =IF('liste engagés'!$G14="","",'liste engagés'!B14) ->  | D97: =IF('liste engagés'!$G14="","",'liste engagés'!C14) ->  | E97: =IF('liste engagés'!$G14="","",'liste engagés'!D14) ->  | F97: =IF('liste engagés'!$G14="","",'liste engagés'!G14) ->  | G97: =IF('liste engagés'!$G14="","",'liste engagés'!K14) ->  | H97: =IF('liste engagés'!$G14="","",'liste engagés'!L14) ->  | I97: 0
A98: 92 | B98: =IF('liste engagés'!$G15="","",'liste engagés'!A15) ->  | C98: =IF('liste engagés'!$G15="","",'liste engagés'!B15) ->  | D98: =IF('liste engagés'!$G15="","",'liste engagés'!C15) ->  | E98: =IF('liste engagés'!$G15="","",'liste engagés'!D15) ->  | F98: =IF('liste engagés'!$G15="","",'liste engagés'!G15) ->  | G98: =IF('liste engagés'!$G15="","",'liste engagés'!K15) ->  | H98: =IF('liste engagés'!$G15="","",'liste engagés'!L15) ->  | I98: 0
A99: 93 | B99: =IF('liste engagés'!$G16="","",'liste engagés'!A16) ->  | C99: =IF('liste engagés'!$G16="","",'liste engagés'!B16) ->  | D99: =IF('liste engagés'!$G16="","",'liste engagés'!C16) ->  | E99: =IF('liste engagés'!$G16="","",'liste engagés'!D16) ->  | F99: =IF('liste engagés'!$G16="","",'liste engagés'!G16) ->  | G99: =IF('liste engagés'!$G16="","",'liste engagés'!K16) ->  | H99: =IF('liste engagés'!$G16="","",'liste engagés'!L16) ->  | I99: 0
A100: 94 | B100: =IF('liste engagés'!$G17="","",'liste engagés'!A17) ->  | C100: =IF('liste engagés'!$G17="","",'liste engagés'!B17) ->  | D100: =IF('liste engagés'!$G17="","",'liste engagés'!C17) ->  | E100: =IF('liste engagés'!$G17="","",'liste engagés'!D17) ->  | F100: =IF('liste engagés'!$G17="","",'liste engagés'!G17) ->  | G100: =IF('liste engagés'!$G17="","",'liste engagés'!K17) ->  | H100: =IF('liste engagés'!$G17="","",'liste engagés'!L17) ->  | I100: 0
A101: 95 | B101: =IF('liste engagés'!$G18="","",'liste engagés'!A18) ->  | C101: =IF('liste engagés'!$G18="","",'liste engagés'!B18) ->  | D101: =IF('liste engagés'!$G18="","",'liste engagés'!C18) ->  | E101: =IF('liste engagés'!$G18="","",'liste engagés'!D18) ->  | F101: =IF('liste engagés'!$G18="","",'liste engagés'!G18) ->  | G101: =IF('liste engagés'!$G18="","",'liste engagés'!K18) ->  | H101: =IF('liste engagés'!$G18="","",'liste engagés'!L18) ->  | I101: 0
A102: 96 | B102: =IF('liste engagés'!$G19="","",'liste engagés'!A19) ->  | C102: =IF('liste engagés'!$G19="","",'liste engagés'!B19) ->  | D102: =IF('liste engagés'!$G19="","",'liste engagés'!C19) ->  | E102: =IF('liste engagés'!$G19="","",'liste engagés'!D19) ->  | F102: =IF('liste engagés'!$G19="","",'liste engagés'!G19) ->  | G102: =IF('liste engagés'!$G19="","",'liste engagés'!K19) ->  | H102: =IF('liste engagés'!$G19="","",'liste engagés'!L19) ->  | I102: 0
A103: 97 | B103: =IF('liste engagés'!$G20="","",'liste engagés'!A20) ->  | C103: =IF('liste engagés'!$G20="","",'liste engagés'!B20) ->  | D103: =IF('liste engagés'!$G20="","",'liste engagés'!C20) ->  | E103: =IF('liste engagés'!$G20="","",'liste engagés'!D20) ->  | F103: =IF('liste engagés'!$G20="","",'liste engagés'!G20) ->  | G103: =IF('liste engagés'!$G20="","",'liste engagés'!K20) ->  | H103: =IF('liste engagés'!$G20="","",'liste engagés'!L20) ->  | I103: 0
A104: 98 | B104: =IF('liste engagés'!$G24="","",'liste engagés'!A24) ->  | C104: =IF('liste engagés'!$G24="","",'liste engagés'!B24) ->  | D104: =IF('liste engagés'!$G24="","",'liste engagés'!C24) ->  | E104: =IF('liste engagés'!$G24="","",'liste engagés'!D24) ->  | F104: =IF('liste engagés'!$G24="","",'liste engagés'!G24) ->  | G104: =IF('liste engagés'!$G24="","",'liste engagés'!K24) ->  | H104: =IF('liste engagés'!$G24="","",'liste engagés'!L24) ->  | I104: 0
A105: 99 | B105: =IF('liste engagés'!$G25="","",'liste engagés'!A25) ->  | C105: =IF('liste engagés'!$G25="","",'liste engagés'!B25) ->  | D105: =IF('liste engagés'!$G25="","",'liste engagés'!C25) ->  | E105: =IF('liste engagés'!$G25="","",'liste engagés'!D25) ->  | F105: =IF('liste engagés'!$G25="","",'liste engagés'!G25) ->  | G105: =IF('liste engagés'!$G25="","",'liste engagés'!K25) ->  | H105: =IF('liste engagés'!$G25="","",'liste engagés'!L25) ->  | I105: 0
A106: 100 | B106: =IF('liste engagés'!$G26="","",'liste engagés'!A26) ->  | C106: =IF('liste engagés'!$G26="","",'liste engagés'!B26) ->  | D106: =IF('liste engagés'!$G26="","",'liste engagés'!C26) ->  | E106: =IF('liste engagés'!$G26="","",'liste engagés'!D26) ->  | F106: =IF('liste engagés'!$G26="","",'liste engagés'!G26) ->  | G106: =IF('liste engagés'!$G26="","",'liste engagés'!K26) ->  | H106: =IF('liste engagés'!$G26="","",'liste engagés'!L26) ->  | I106: 0
A107: 101 | B107: =IF('liste engagés'!$G27="","",'liste engagés'!A27) ->  | C107: =IF('liste engagés'!$G27="","",'liste engagés'!B27) ->  | D107: =IF('liste engagés'!$G27="","",'liste engagés'!C27) ->  | E107: =IF('liste engagés'!$G27="","",'liste engagés'!D27) ->  | F107: =IF('liste engagés'!$G27="","",'liste engagés'!G27) ->  | G107: =IF('liste engagés'!$G27="","",'liste engagés'!K27) ->  | H107: =IF('liste engagés'!$G27="","",'liste engagés'!L27) ->  | I107: 0
A108: 102 | B108: =IF('liste engagés'!$G28="","",'liste engagés'!A28) ->  | C108: =IF('liste engagés'!$G28="","",'liste engagés'!B28) ->  | D108: =IF('liste engagés'!$G28="","",'liste engagés'!C28) ->  | E108: =IF('liste engagés'!$G28="","",'liste engagés'!D28) ->  | F108: =IF('liste engagés'!$G28="","",'liste engagés'!G28) ->  | G108: =IF('liste engagés'!$G28="","",'liste engagés'!K28) ->  | H108: =IF('liste engagés'!$G28="","",'liste engagés'!L28) ->  | I108: 0
A109: 103 | B109: =IF('liste engagés'!$G29="","",'liste engagés'!A29) ->  | C109: =IF('liste engagés'!$G29="","",'liste engagés'!B29) ->  | D109: =IF('liste engagés'!$G29="","",'liste engagés'!C29) ->  | E109: =IF('liste engagés'!$G29="","",'liste engagés'!D29) ->  | F109: =IF('liste engagés'!$G29="","",'liste engagés'!G29) ->  | G109: =IF('liste engagés'!$G29="","",'liste engagés'!K29) ->  | H109: =IF('liste engagés'!$G29="","",'liste engagés'!L29) ->  | I109: 0
A110: 104 | B110: =IF('liste engagés'!$G30="","",'liste engagés'!A30) ->  | C110: =IF('liste engagés'!$G30="","",'liste engagés'!B30) ->  | D110: =IF('liste engagés'!$G30="","",'liste engagés'!C30) ->  | E110: =IF('liste engagés'!$G30="","",'liste engagés'!D30) ->  | F110: =IF('liste engagés'!$G30="","",'liste engagés'!G30) ->  | G110: =IF('liste engagés'!$G30="","",'liste engagés'!K30) ->  | H110: =IF('liste engagés'!$G30="","",'liste engagés'!L30) ->  | I110: 0
A111: 105 | B111: =IF('liste engagés'!$G32="","",'liste engagés'!A32) ->  | C111: =IF('liste engagés'!$G32="","",'liste engagés'!B32) ->  | D111: =IF('liste engagés'!$G32="","",'liste engagés'!C32) ->  | E111: =IF('liste engagés'!$G32="","",'liste engagés'!D32) ->  | F111: =IF('liste engagés'!$G32="","",'liste engagés'!G32) ->  | G111: =IF('liste engagés'!$G32="","",'liste engagés'!K32) ->  | H111: =IF('liste engagés'!$G32="","",'liste engagés'!L32) ->  | I111: 0
A112: 106 | B112: =IF('liste engagés'!$G33="","",'liste engagés'!A33) ->  | C112: =IF('liste engagés'!$G33="","",'liste engagés'!B33) ->  | D112: =IF('liste engagés'!$G33="","",'liste engagés'!C33) ->  | E112: =IF('liste engagés'!$G33="","",'liste engagés'!D33) ->  | F112: =IF('liste engagés'!$G33="","",'liste engagés'!G33) ->  | G112: =IF('liste engagés'!$G33="","",'liste engagés'!K33) ->  | H112: =IF('liste engagés'!$G33="","",'liste engagés'!L33) ->  | I112: 0
A113: 107 | B113: =IF('liste engagés'!$G34="","",'liste engagés'!A34) ->  | C113: =IF('liste engagés'!$G34="","",'liste engagés'!B34) ->  | D113: =IF('liste engagés'!$G34="","",'liste engagés'!C34) ->  | E113: =IF('liste engagés'!$G34="","",'liste engagés'!D34) ->  | F113: =IF('liste engagés'!$G34="","",'liste engagés'!G34) ->  | G113: =IF('liste engagés'!$G34="","",'liste engagés'!K34) ->  | H113: =IF('liste engagés'!$G34="","",'liste engagés'!L34) ->  | I113: 0
A114: 108 | B114: =IF('liste engagés'!$G35="","",'liste engagés'!A35) ->  | C114: =IF('liste engagés'!$G35="","",'liste engagés'!B35) ->  | D114: =IF('liste engagés'!$G35="","",'liste engagés'!C35) ->  | E114: =IF('liste engagés'!$G35="","",'liste engagés'!D35) ->  | F114: =IF('liste engagés'!$G35="","",'liste engagés'!G35) ->  | G114: =IF('liste engagés'!$G35="","",'liste engagés'!K35) ->  | H114: =IF('liste engagés'!$G35="","",'liste engagés'!L35) ->  | I114: 0
A115: 109 | B115: =IF('liste engagés'!$G36="","",'liste engagés'!A36) ->  | C115: =IF('liste engagés'!$G36="","",'liste engagés'!B36) ->  | D115: =IF('liste engagés'!$G36="","",'liste engagés'!C36) ->  | E115: =IF('liste engagés'!$G36="","",'liste engagés'!D36) ->  | F115: =IF('liste engagés'!$G36="","",'liste engagés'!G36) ->  | G115: =IF('liste engagés'!$G36="","",'liste engagés'!K36) ->  | H115: =IF('liste engagés'!$G36="","",'liste engagés'!L36) ->  | I115: 0
A116: 110 | B116: =IF('liste engagés'!$G37="","",'liste engagés'!A37) ->  | C116: =IF('liste engagés'!$G37="","",'liste engagés'!B37) ->  | D116: =IF('liste engagés'!$G37="","",'liste engagés'!C37) ->  | E116: =IF('liste engagés'!$G37="","",'liste engagés'!D37) ->  | F116: =IF('liste engagés'!$G37="","",'liste engagés'!G37) ->  | G116: =IF('liste engagés'!$G37="","",'liste engagés'!K37) ->  | H116: =IF('liste engagés'!$G37="","",'liste engagés'!L37) ->  | I116: 0
A117: 111 | B117: =IF('liste engagés'!$G38="","",'liste engagés'!A38) ->  | C117: =IF('liste engagés'!$G38="","",'liste engagés'!B38) ->  | D117: =IF('liste engagés'!$G38="","",'liste engagés'!C38) ->  | E117: =IF('liste engagés'!$G38="","",'liste engagés'!D38) ->  | F117: =IF('liste engagés'!$G38="","",'liste engagés'!G38) ->  | G117: =IF('liste engagés'!$G38="","",'liste engagés'!K38) ->  | H117: =IF('liste engagés'!$G38="","",'liste engagés'!L38) ->  | I117: 0
A118: 112 | B118: =IF('liste engagés'!$G39="","",'liste engagés'!A39) ->  | C118: =IF('liste engagés'!$G39="","",'liste engagés'!B39) ->  | D118: =IF('liste engagés'!$G39="","",'liste engagés'!C39) ->  | E118: =IF('liste engagés'!$G39="","",'liste engagés'!D39) ->  | F118: =IF('liste engagés'!$G39="","",'liste engagés'!G39) ->  | G118: =IF('liste engagés'!$G39="","",'liste engagés'!K39) ->  | H118: =IF('liste engagés'!$G39="","",'liste engagés'!L39) ->  | I118: 0
A119: 113 | B119: =IF('liste engagés'!$G40="","",'liste engagés'!A40) ->  | C119: =IF('liste engagés'!$G40="","",'liste engagés'!B40) ->  | D119: =IF('liste engagés'!$G40="","",'liste engagés'!C40) ->  | E119: =IF('liste engagés'!$G40="","",'liste engagés'!D40) ->  | F119: =IF('liste engagés'!$G40="","",'liste engagés'!G40) ->  | G119: =IF('liste engagés'!$G40="","",'liste engagés'!K40) ->  | H119: =IF('liste engagés'!$G40="","",'liste engagés'!L40) ->  | I119: 0
A120: 114 | B120: =IF('liste engagés'!$G41="","",'liste engagés'!A41) ->  | C120: =IF('liste engagés'!$G41="","",'liste engagés'!B41) ->  | D120: =IF('liste engagés'!$G41="","",'liste engagés'!C41) ->  | E120: =IF('liste engagés'!$G41="","",'liste engagés'!D41) ->  | F120: =IF('liste engagés'!$G41="","",'liste engagés'!G41) ->  | G120: =IF('liste engagés'!$G41="","",'liste engagés'!K41) ->  | H120: =IF('liste engagés'!$G41="","",'liste engagés'!L41) ->  | I120: 0
A121: 115 | B121: =IF('liste engagés'!$G42="","",'liste engagés'!A42) ->  | C121: =IF('liste engagés'!$G42="","",'liste engagés'!B42) ->  | D121: =IF('liste engagés'!$G42="","",'liste engagés'!C42) ->  | E121: =IF('liste engagés'!$G42="","",'liste engagés'!D42) ->  | F121: =IF('liste engagés'!$G42="","",'liste engagés'!G42) ->  | G121: =IF('liste engagés'!$G42="","",'liste engagés'!K42) ->  | H121: =IF('liste engagés'!$G42="","",'liste engagés'!L42) ->  | I121: 0
A122: 116 | B122: =IF('liste engagés'!$G43="","",'liste engagés'!A43) ->  | C122: =IF('liste engagés'!$G43="","",'liste engagés'!B43) ->  | D122: =IF('liste engagés'!$G43="","",'liste engagés'!C43) ->  | E122: =IF('liste engagés'!$G43="","",'liste engagés'!D43) ->  | F122: =IF('liste engagés'!$G43="","",'liste engagés'!G43) ->  | G122: =IF('liste engagés'!$G43="","",'liste engagés'!K43) ->  | H122: =IF('liste engagés'!$G43="","",'liste engagés'!L43) ->  | I122: 0
A123: 117 | B123: =IF('liste engagés'!$G44="","",'liste engagés'!A44) ->  | C123: =IF('liste engagés'!$G44="","",'liste engagés'!B44) ->  | D123: =IF('liste engagés'!$G44="","",'liste engagés'!C44) ->  | E123: =IF('liste engagés'!$G44="","",'liste engagés'!D44) ->  | F123: =IF('liste engagés'!$G44="","",'liste engagés'!G44) ->  | G123: =IF('liste engagés'!$G44="","",'liste engagés'!K44) ->  | H123: =IF('liste engagés'!$G44="","",'liste engagés'!L44) ->  | I123: 0
A124: 118 | B124: =IF('liste engagés'!$G45="","",'liste engagés'!A45) ->  | C124: =IF('liste engagés'!$G45="","",'liste engagés'!B45) ->  | D124: =IF('liste engagés'!$G45="","",'liste engagés'!C45) ->  | E124: =IF('liste engagés'!$G45="","",'liste engagés'!D45) ->  | F124: =IF('liste engagés'!$G45="","",'liste engagés'!G45) ->  | G124: =IF('liste engagés'!$G45="","",'liste engagés'!K45) ->  | H124: =IF('liste engagés'!$G45="","",'liste engagés'!L45) ->  | I124: 0
A125: 119 | B125: =IF('liste engagés'!$G46="","",'liste engagés'!A46) ->  | C125: =IF('liste engagés'!$G46="","",'liste engagés'!B46) ->  | D125: =IF('liste engagés'!$G46="","",'liste engagés'!C46) ->  | E125: =IF('liste engagés'!$G46="","",'liste engagés'!D46) ->  | F125: =IF('liste engagés'!$G46="","",'liste engagés'!G46) ->  | G125: =IF('liste engagés'!$G46="","",'liste engagés'!K46) ->  | H125: =IF('liste engagés'!$G46="","",'liste engagés'!L46) ->  | I125: 0
A126: 120 | B126: =IF('liste engagés'!$G47="","",'liste engagés'!A47) ->  | C126: =IF('liste engagés'!$G47="","",'liste engagés'!B47) ->  | D126: =IF('liste engagés'!$G47="","",'liste engagés'!C47) ->  | E126: =IF('liste engagés'!$G47="","",'liste engagés'!D47) ->  | F126: =IF('liste engagés'!$G47="","",'liste engagés'!G47) ->  | G126: =IF('liste engagés'!$G47="","",'liste engagés'!K47) ->  | H126: =IF('liste engagés'!$G47="","",'liste engagés'!L47) ->  | I126: 0
A127: 121 | B127: =IF('liste engagés'!$G48="","",'liste engagés'!A48) ->  | C127: =IF('liste engagés'!$G48="","",'liste engagés'!B48) ->  | D127: =IF('liste engagés'!$G48="","",'liste engagés'!C48) ->  | E127: =IF('liste engagés'!$G48="","",'liste engagés'!D48) ->  | F127: =IF('liste engagés'!$G48="","",'liste engagés'!G48) ->  | G127: =IF('liste engagés'!$G48="","",'liste engagés'!K48) ->  | H127: =IF('liste engagés'!$G48="","",'liste engagés'!L48) ->  | I127: 0
A128: 122 | B128: =IF('liste engagés'!$G49="","",'liste engagés'!A49) ->  | C128: =IF('liste engagés'!$G49="","",'liste engagés'!B49) ->  | D128: =IF('liste engagés'!$G49="","",'liste engagés'!C49) ->  | E128: =IF('liste engagés'!$G49="","",'liste engagés'!D49) ->  | F128: =IF('liste engagés'!$G49="","",'liste engagés'!G49) ->  | G128: =IF('liste engagés'!$G49="","",'liste engagés'!K49) ->  | H128: =IF('liste engagés'!$G49="","",'liste engagés'!L49) ->  | I128: 0
A129: 123 | B129: =IF('liste engagés'!$G50="","",'liste engagés'!A50) ->  | C129: =IF('liste engagés'!$G50="","",'liste engagés'!B50) ->  | D129: =IF('liste engagés'!$G50="","",'liste engagés'!C50) ->  | E129: =IF('liste engagés'!$G50="","",'liste engagés'!D50) ->  | F129: =IF('liste engagés'!$G50="","",'liste engagés'!G50) ->  | G129: =IF('liste engagés'!$G50="","",'liste engagés'!K50) ->  | H129: =IF('liste engagés'!$G50="","",'liste engagés'!L50) ->  | I129: 0
A130: 124 | B130: =IF('liste engagés'!$G51="","",'liste engagés'!A51) ->  | C130: =IF('liste engagés'!$G51="","",'liste engagés'!B51) ->  | D130: =IF('liste engagés'!$G51="","",'liste engagés'!C51) ->  | E130: =IF('liste engagés'!$G51="","",'liste engagés'!D51) ->  | F130: =IF('liste engagés'!$G51="","",'liste engagés'!G51) ->  | G130: =IF('liste engagés'!$G51="","",'liste engagés'!K51) ->  | H130: =IF('liste engagés'!$G51="","",'liste engagés'!L51) ->  | I130: 0
A131: 125 | B131: =IF('liste engagés'!$G52="","",'liste engagés'!A52) ->  | C131: =IF('liste engagés'!$G52="","",'liste engagés'!B52) ->  | D131: =IF('liste engagés'!$G52="","",'liste engagés'!C52) ->  | E131: =IF('liste engagés'!$G52="","",'liste engagés'!D52) ->  | F131: =IF('liste engagés'!$G52="","",'liste engagés'!G52) ->  | G131: =IF('liste engagés'!$G52="","",'liste engagés'!K52) ->  | H131: =IF('liste engagés'!$G52="","",'liste engagés'!L52) ->  | I131: 0
A132: 126 | B132: =IF('liste engagés'!$G53="","",'liste engagés'!A53) ->  | C132: =IF('liste engagés'!$G53="","",'liste engagés'!B53) ->  | D132: =IF('liste engagés'!$G53="","",'liste engagés'!C53) ->  | E132: =IF('liste engagés'!$G53="","",'liste engagés'!D53) ->  | F132: =IF('liste engagés'!$G53="","",'liste engagés'!G53) ->  | G132: =IF('liste engagés'!$G53="","",'liste engagés'!K53) ->  | H132: =IF('liste engagés'!$G53="","",'liste engagés'!L53) ->  | I132: 0
A133: 127 | B133: =IF('liste engagés'!$G54="","",'liste engagés'!A54) ->  | C133: =IF('liste engagés'!$G54="","",'liste engagés'!B54) ->  | D133: =IF('liste engagés'!$G54="","",'liste engagés'!C54) ->  | E133: =IF('liste engagés'!$G54="","",'liste engagés'!D54) ->  | F133: =IF('liste engagés'!$G54="","",'liste engagés'!G54) ->  | G133: =IF('liste engagés'!$G54="","",'liste engagés'!K54) ->  | H133: =IF('liste engagés'!$G54="","",'liste engagés'!L54) ->  | I133: 0
A134: 128 | B134: =IF('liste engagés'!$G55="","",'liste engagés'!A55) ->  | C134: =IF('liste engagés'!$G55="","",'liste engagés'!B55) ->  | D134: =IF('liste engagés'!$G55="","",'liste engagés'!C55) ->  | E134: =IF('liste engagés'!$G55="","",'liste engagés'!D55) ->  | F134: =IF('liste engagés'!$G55="","",'liste engagés'!G55) ->  | G134: =IF('liste engagés'!$G55="","",'liste engagés'!K55) ->  | H134: =IF('liste engagés'!$G55="","",'liste engagés'!L55) ->  | I134: 0
A135: 129 | B135: =IF('liste engagés'!$G62="","",'liste engagés'!A62) ->  | C135: =IF('liste engagés'!$G62="","",'liste engagés'!B62) ->  | D135: =IF('liste engagés'!$G62="","",'liste engagés'!C62) ->  | E135: =IF('liste engagés'!$G62="","",'liste engagés'!D62) ->  | F135: =IF('liste engagés'!$G62="","",'liste engagés'!G62) ->  | G135: =IF('liste engagés'!$G62="","",'liste engagés'!K62) ->  | H135: =IF('liste engagés'!$G62="","",'liste engagés'!L62) ->  | I135: =+IF(C135="",0,1) -> 0
A136: =+A135+1 -> 130 | B136: =IF('liste engagés'!$G63="","",'liste engagés'!A63) ->  | C136: =IF('liste engagés'!$G63="","",'liste engagés'!B63) ->  | D136: =IF('liste engagés'!$G63="","",'liste engagés'!C63) ->  | E136: =IF('liste engagés'!$G63="","",'liste engagés'!D63) ->  | F136: =IF('liste engagés'!$G63="","",'liste engagés'!G63) ->  | G136: =IF('liste engagés'!$G63="","",'liste engagés'!K63) ->  | H136: =IF('liste engagés'!$G63="","",'liste engagés'!L63) ->  | I136: 0
A137: 131 | B137: =IF('liste engagés'!$G64="","",'liste engagés'!A64) ->  | C137: =IF('liste engagés'!$G64="","",'liste engagés'!B64) ->  | D137: =IF('liste engagés'!$G64="","",'liste engagés'!C64) ->  | E137: =IF('liste engagés'!$G64="","",'liste engagés'!D64) ->  | F137: =IF('liste engagés'!$G64="","",'liste engagés'!G64) ->  | G137: =IF('liste engagés'!$G64="","",'liste engagés'!K64) ->  | H137: =IF('liste engagés'!$G64="","",'liste engagés'!L64) ->  | I137: 0
A138: 132 | B138: =IF('liste engagés'!$G65="","",'liste engagés'!A65) ->  | C138: =IF('liste engagés'!$G65="","",'liste engagés'!B65) ->  | D138: =IF('liste engagés'!$G65="","",'liste engagés'!C65) ->  | E138: =IF('liste engagés'!$G65="","",'liste engagés'!D65) ->  | F138: =IF('liste engagés'!$G65="","",'liste engagés'!G65) ->  | G138: =IF('liste engagés'!$G65="","",'liste engagés'!K65) ->  | H138: =IF('liste engagés'!$G65="","",'liste engagés'!L65) ->  | I138: 0
A139: 133 | B139: =IF('liste engagés'!$G68="","",'liste engagés'!A68) ->  | C139: =IF('liste engagés'!$G68="","",'liste engagés'!B68) ->  | D139: =IF('liste engagés'!$G68="","",'liste engagés'!C68) ->  | E139: =IF('liste engagés'!$G68="","",'liste engagés'!D68) ->  | F139: =IF('liste engagés'!$G68="","",'liste engagés'!G68) ->  | G139: =IF('liste engagés'!$G68="","",'liste engagés'!K68) ->  | H139: =IF('liste engagés'!$G68="","",'liste engagés'!L68) ->  | I139: 0
A140: 134 | B140: =IF('liste engagés'!$G69="","",'liste engagés'!A69) ->  | C140: =IF('liste engagés'!$G69="","",'liste engagés'!B69) ->  | D140: =IF('liste engagés'!$G69="","",'liste engagés'!C69) ->  | E140: =IF('liste engagés'!$G69="","",'liste engagés'!D69) ->  | F140: =IF('liste engagés'!$G69="","",'liste engagés'!G69) ->  | G140: =IF('liste engagés'!$G69="","",'liste engagés'!K69) ->  | H140: =IF('liste engagés'!$G69="","",'liste engagés'!L69) ->  | I140: 0
A141: 135 | B141: =IF('liste engagés'!$G70="","",'liste engagés'!A70) ->  | C141: =IF('liste engagés'!$G70="","",'liste engagés'!B70) ->  | D141: =IF('liste engagés'!$G70="","",'liste engagés'!C70) ->  | E141: =IF('liste engagés'!$G70="","",'liste engagés'!D70) ->  | F141: =IF('liste engagés'!$G70="","",'liste engagés'!G70) ->  | G141: =IF('liste engagés'!$G70="","",'liste engagés'!K70) ->  | H141: =IF('liste engagés'!$G70="","",'liste engagés'!L70) ->  | I141: 0
A142: 136 | B142: =IF('liste engagés'!$G71="","",'liste engagés'!A71) ->  | C142: =IF('liste engagés'!$G71="","",'liste engagés'!B71) ->  | D142: =IF('liste engagés'!$G71="","",'liste engagés'!C71) ->  | E142: =IF('liste engagés'!$G71="","",'liste engagés'!D71) ->  | F142: =IF('liste engagés'!$G71="","",'liste engagés'!G71) ->  | G142: =IF('liste engagés'!$G71="","",'liste engagés'!K71) ->  | H142: =IF('liste engagés'!$G71="","",'liste engagés'!L71) ->  | I142: 0
A143: 137 | B143: =IF('liste engagés'!$G72="","",'liste engagés'!A72) ->  | C143: =IF('liste engagés'!$G72="","",'liste engagés'!B72) ->  | D143: =IF('liste engagés'!$G72="","",'liste engagés'!C72) ->  | E143: =IF('liste engagés'!$G72="","",'liste engagés'!D72) ->  | F143: =IF('liste engagés'!$G72="","",'liste engagés'!G72) ->  | G143: =IF('liste engagés'!$G72="","",'liste engagés'!K72) ->  | H143: =IF('liste engagés'!$G72="","",'liste engagés'!L72) ->  | I143: 0
A144: 138 | B144: =IF('liste engagés'!$G73="","",'liste engagés'!A73) ->  | C144: =IF('liste engagés'!$G73="","",'liste engagés'!B73) ->  | D144: =IF('liste engagés'!$G73="","",'liste engagés'!C73) ->  | E144: =IF('liste engagés'!$G73="","",'liste engagés'!D73) ->  | F144: =IF('liste engagés'!$G73="","",'liste engagés'!G73) ->  | G144: =IF('liste engagés'!$G73="","",'liste engagés'!K73) ->  | H144: =IF('liste engagés'!$G73="","",'liste engagés'!L73) ->  | I144: 0
A145: 139 | B145: =IF('liste engagés'!$G74="","",'liste engagés'!A74) ->  | C145: =IF('liste engagés'!$G74="","",'liste engagés'!B74) ->  | D145: =IF('liste engagés'!$G74="","",'liste engagés'!C74) ->  | E145: =IF('liste engagés'!$G74="","",'liste engagés'!D74) ->  | F145: =IF('liste engagés'!$G74="","",'liste engagés'!G74) ->  | G145: =IF('liste engagés'!$G74="","",'liste engagés'!K74) ->  | H145: =IF('liste engagés'!$G74="","",'liste engagés'!L74) ->  | I145: 0
A146: 140 | B146: =IF('liste engagés'!$G75="","",'liste engagés'!A75) ->  | C146: =IF('liste engagés'!$G75="","",'liste engagés'!B75) ->  | D146: =IF('liste engagés'!$G75="","",'liste engagés'!C75) ->  | E146: =IF('liste engagés'!$G75="","",'liste engagés'!D75) ->  | F146: =IF('liste engagés'!$G75="","",'liste engagés'!G75) ->  | G146: =IF('liste engagés'!$G75="","",'liste engagés'!K75) ->  | H146: =IF('liste engagés'!$G75="","",'liste engagés'!L75) ->  | I146: 0
A147: 141 | B147: =IF('liste engagés'!$G77="","",'liste engagés'!A77) ->  | C147: =IF('liste engagés'!$G77="","",'liste engagés'!B77) ->  | D147: =IF('liste engagés'!$G77="","",'liste engagés'!C77) ->  | E147: =IF('liste engagés'!$G77="","",'liste engagés'!D77) ->  | F147: =IF('liste engagés'!$G77="","",'liste engagés'!G77) ->  | G147: =IF('liste engagés'!$G77="","",'liste engagés'!K77) ->  | H147: =IF('liste engagés'!$G77="","",'liste engagés'!L77) ->  | I147: 0
A148: 142 | B148: =IF('liste engagés'!$G78="","",'liste engagés'!A78) ->  | C148: =IF('liste engagés'!$G78="","",'liste engagés'!B78) ->  | D148: =IF('liste engagés'!$G78="","",'liste engagés'!C78) ->  | E148: =IF('liste engagés'!$G78="","",'liste engagés'!D78) ->  | F148: =IF('liste engagés'!$G78="","",'liste engagés'!G78) ->  | G148: =IF('liste engagés'!$G78="","",'liste engagés'!K78) ->  | H148: =IF('liste engagés'!$G78="","",'liste engagés'!L78) ->  | I148: 0
A149: 143 | B149: =IF('liste engagés'!$G79="","",'liste engagés'!A79) ->  | C149: =IF('liste engagés'!$G79="","",'liste engagés'!B79) ->  | D149: =IF('liste engagés'!$G79="","",'liste engagés'!C79) ->  | E149: =IF('liste engagés'!$G79="","",'liste engagés'!D79) ->  | F149: =IF('liste engagés'!$G79="","",'liste engagés'!G79) ->  | G149: =IF('liste engagés'!$G79="","",'liste engagés'!K79) ->  | H149: =IF('liste engagés'!$G79="","",'liste engagés'!L79) ->  | I149: 0
A150: 144 | B150: =IF('liste engagés'!$G103="","",'liste engagés'!A103) ->  | C150: =IF('liste engagés'!$G103="","",'liste engagés'!B103) ->  | D150: =IF('liste engagés'!$G103="","",'liste engagés'!C103) ->  | E150: =IF('liste engagés'!$G103="","",'liste engagés'!D103) ->  | F150: =IF('liste engagés'!$G103="","",'liste engagés'!G103) ->  | G150: =IF('liste engagés'!$G103="","",'liste engagés'!K103) ->  | H150: =IF('liste engagés'!$G103="","",'liste engagés'!L103) ->  | I150: 0
A151: 145 | B151: =IF('liste engagés'!$G104="","",'liste engagés'!A104) ->  | C151: =IF('liste engagés'!$G104="","",'liste engagés'!B104) ->  | D151: =IF('liste engagés'!$G104="","",'liste engagés'!C104) ->  | E151: =IF('liste engagés'!$G104="","",'liste engagés'!D104) ->  | F151: =IF('liste engagés'!$G104="","",'liste engagés'!G104) ->  | G151: =IF('liste engagés'!$G104="","",'liste engagés'!K104) ->  | H151: =IF('liste engagés'!$G104="","",'liste engagés'!L104) ->  | I151: 0
A152: 146 | B152: =IF('liste engagés'!$G105="","",'liste engagés'!A105) ->  | C152: =IF('liste engagés'!$G105="","",'liste engagés'!B105) ->  | D152: =IF('liste engagés'!$G105="","",'liste engagés'!C105) ->  | E152: =IF('liste engagés'!$G105="","",'liste engagés'!D105) ->  | F152: =IF('liste engagés'!$G105="","",'liste engagés'!G105) ->  | G152: =IF('liste engagés'!$G105="","",'liste engagés'!K105) ->  | H152: =IF('liste engagés'!$G105="","",'liste engagés'!L105) ->  | I152: 0
A153: 147 | B153: =IF('liste engagés'!$G108="","",'liste engagés'!A108) ->  | C153: =IF('liste engagés'!$G108="","",'liste engagés'!B108) ->  | D153: =IF('liste engagés'!$G108="","",'liste engagés'!C108) ->  | E153: =IF('liste engagés'!$G108="","",'liste engagés'!D108) ->  | F153: =IF('liste engagés'!$G108="","",'liste engagés'!G108) ->  | G153: =IF('liste engagés'!$G108="","",'liste engagés'!K108) ->  | H153: =IF('liste engagés'!$G108="","",'liste engagés'!L108) ->  | I153: 0
A154: 148 | B154: =IF('liste engagés'!$G109="","",'liste engagés'!A109) ->  | C154: =IF('liste engagés'!$G109="","",'liste engagés'!B109) ->  | D154: =IF('liste engagés'!$G109="","",'liste engagés'!C109) ->  | E154: =IF('liste engagés'!$G109="","",'liste engagés'!D109) ->  | F154: =IF('liste engagés'!$G109="","",'liste engagés'!G109) ->  | G154: =IF('liste engagés'!$G109="","",'liste engagés'!K109) ->  | H154: =IF('liste engagés'!$G109="","",'liste engagés'!L109) ->  | I154: 0
A155: 149 | B155: =IF('liste engagés'!$G114="","",'liste engagés'!A114) -> 109 | C155: =IF('liste engagés'!$G114="","",'liste engagés'!B114) ->  | D155: =IF('liste engagés'!$G114="","",'liste engagés'!C114) ->  | E155: =IF('liste engagés'!$G114="","",'liste engagés'!D114) ->  | F155: =IF('liste engagés'!$G114="","",'liste engagés'!G114) ->  | G155: =IF('liste engagés'!$G114="","",'liste engagés'!K114) ->  | H155: =IF('liste engagés'!$G114="","",'liste engagés'!L114) ->  | I155: 1
A156: 150 | B156: =IF('liste engagés'!$G127="","",'liste engagés'!A127) -> 122 | C156: =IF('liste engagés'!$G127="","",'liste engagés'!B127) ->  | D156: =IF('liste engagés'!$G127="","",'liste engagés'!C127) ->  | E156: =IF('liste engagés'!$G127="","",'liste engagés'!D127) ->  | F156: =IF('liste engagés'!$G127="","",'liste engagés'!G127) ->  | G156: =IF('liste engagés'!$G127="","",'liste engagés'!K127) ->  | H156: =IF('liste engagés'!$G127="","",'liste engagés'!L127) ->  | I156: 1
A157: 151 | B157: =IF('liste engagés'!$G131="","",'liste engagés'!A131) -> 126 | C157: =IF('liste engagés'!$G131="","",'liste engagés'!B131) ->  | D157: =IF('liste engagés'!$G131="","",'liste engagés'!C131) ->  | E157: =IF('liste engagés'!$G131="","",'liste engagés'!D131) ->  | F157: =IF('liste engagés'!$G131="","",'liste engagés'!G131) ->  | G157: =IF('liste engagés'!$G131="","",'liste engagés'!K131) ->  | H157: =IF('liste engagés'!$G131="","",'liste engagés'!L131) ->  | I157: 1
A158: 152 | B158: =IF('liste engagés'!$G148="","",'liste engagés'!A148) ->  | C158: =IF('liste engagés'!$G148="","",'liste engagés'!B148) ->  | D158: =IF('liste engagés'!$G148="","",'liste engagés'!C148) ->  | E158: =IF('liste engagés'!$G148="","",'liste engagés'!D148) ->  | F158: =IF('liste engagés'!$G148="","",'liste engagés'!G148) ->  | G158: =IF('liste engagés'!$G148="","",'liste engagés'!K148) ->  | H158: =IF('liste engagés'!$G148="","",'liste engagés'!L148) ->  | I158: 0
A159: 153 | B159: =IF('liste engagés'!$G149="","",'liste engagés'!A149) ->  | C159: =IF('liste engagés'!$G149="","",'liste engagés'!B149) ->  | D159: =IF('liste engagés'!$G149="","",'liste engagés'!C149) ->  | E159: =IF('liste engagés'!$G149="","",'liste engagés'!D149) ->  | F159: =IF('liste engagés'!$G149="","",'liste engagés'!G149) ->  | G159: =IF('liste engagés'!$G149="","",'liste engagés'!K149) ->  | H159: =IF('liste engagés'!$G149="","",'liste engagés'!L149) ->  | I159: 0
A160: 154 | B160: =IF('liste engagés'!$G150="","",'liste engagés'!A150) ->  | C160: =IF('liste engagés'!$G150="","",'liste engagés'!B150) ->  | D160: =IF('liste engagés'!$G150="","",'liste engagés'!C150) ->  | E160: =IF('liste engagés'!$G150="","",'liste engagés'!D150) ->  | F160: =IF('liste engagés'!$G150="","",'liste engagés'!G150) ->  | G160: =IF('liste engagés'!$G150="","",'liste engagés'!K150) ->  | H160: =IF('liste engagés'!$G150="","",'liste engagés'!L150) ->  | I160: 0
A161: 155 | B161: =IF('liste engagés'!$G152="","",'liste engagés'!A152) ->  | C161: =IF('liste engagés'!$G152="","",'liste engagés'!B152) ->  | D161: =IF('liste engagés'!$G152="","",'liste engagés'!C152) ->  | E161: =IF('liste engagés'!$G152="","",'liste engagés'!D152) ->  | F161: =IF('liste engagés'!$G152="","",'liste engagés'!G152) ->  | G161: =IF('liste engagés'!$G152="","",'liste engagés'!K152) ->  | H161: =IF('liste engagés'!$G152="","",'liste engagés'!L152) ->  | I161: 0
A162: 156 | B162: =IF('liste engagés'!$G156="","",'liste engagés'!A156) ->  | C162: =IF('liste engagés'!$G156="","",'liste engagés'!B156) ->  | D162: =IF('liste engagés'!$G156="","",'liste engagés'!C156) ->  | E162: =IF('liste engagés'!$G156="","",'liste engagés'!D156) ->  | F162: =IF('liste engagés'!$G156="","",'liste engagés'!G156) ->  | G162: =IF('liste engagés'!$G156="","",'liste engagés'!K156) ->  | H162: =IF('liste engagés'!$G156="","",'liste engagés'!L156) ->  | I162: 0
A163: 157 | B163: =IF('liste engagés'!$G157="","",'liste engagés'!A157) ->  | C163: =IF('liste engagés'!$G157="","",'liste engagés'!B157) ->  | D163: =IF('liste engagés'!$G157="","",'liste engagés'!C157) ->  | E163: =IF('liste engagés'!$G157="","",'liste engagés'!D157) ->  | F163: =IF('liste engagés'!$G157="","",'liste engagés'!G157) ->  | G163: =IF('liste engagés'!$G157="","",'liste engagés'!K157) ->  | H163: =IF('liste engagés'!$G157="","",'liste engagés'!L157) ->  | I163: 0
A164: 158 | B164: =IF('liste engagés'!$G158="","",'liste engagés'!A158) ->  | C164: =IF('liste engagés'!$G158="","",'liste engagés'!B158) ->  | D164: =IF('liste engagés'!$G158="","",'liste engagés'!C158) ->  | E164: =IF('liste engagés'!$G158="","",'liste engagés'!D158) ->  | F164: =IF('liste engagés'!$G158="","",'liste engagés'!G158) ->  | G164: =IF('liste engagés'!$G158="","",'liste engagés'!K158) ->  | H164: =IF('liste engagés'!$G158="","",'liste engagés'!L158) ->  | I164: 0
A165: 159 | B165: =IF('liste engagés'!$G159="","",'liste engagés'!A159) ->  | C165: =IF('liste engagés'!$G159="","",'liste engagés'!B159) ->  | D165: =IF('liste engagés'!$G159="","",'liste engagés'!C159) ->  | E165: =IF('liste engagés'!$G159="","",'liste engagés'!D159) ->  | F165: =IF('liste engagés'!$G159="","",'liste engagés'!G159) ->  | G165: =IF('liste engagés'!$G159="","",'liste engagés'!K159) ->  | H165: =IF('liste engagés'!$G159="","",'liste engagés'!L159) ->  | I165: 0
A166: 160 | B166: =IF('liste engagés'!$G160="","",'liste engagés'!A160) ->  | C166: =IF('liste engagés'!$G160="","",'liste engagés'!B160) ->  | D166: =IF('liste engagés'!$G160="","",'liste engagés'!C160) ->  | E166: =IF('liste engagés'!$G160="","",'liste engagés'!D160) ->  | F166: =IF('liste engagés'!$G160="","",'liste engagés'!G160) ->  | G166: =IF('liste engagés'!$G160="","",'liste engagés'!K160) ->  | H166: =IF('liste engagés'!$G160="","",'liste engagés'!L160) ->  | I166: 0
A167: 161 | B167: =IF('liste engagés'!$G161="","",'liste engagés'!A161) ->  | C167: =IF('liste engagés'!$G161="","",'liste engagés'!B161) ->  | D167: =IF('liste engagés'!$G161="","",'liste engagés'!C161) ->  | E167: =IF('liste engagés'!$G161="","",'liste engagés'!D161) ->  | F167: =IF('liste engagés'!$G161="","",'liste engagés'!G161) ->  | G167: =IF('liste engagés'!$G161="","",'liste engagés'!K161) ->  | H167: =IF('liste engagés'!$G161="","",'liste engagés'!L161) ->  | I167: 0
A168: 162 | B168: =IF('liste engagés'!$G162="","",'liste engagés'!A162) ->  | C168: =IF('liste engagés'!$G162="","",'liste engagés'!B162) ->  | D168: =IF('liste engagés'!$G162="","",'liste engagés'!C162) ->  | E168: =IF('liste engagés'!$G162="","",'liste engagés'!D162) ->  | F168: =IF('liste engagés'!$G162="","",'liste engagés'!G162) ->  | G168: =IF('liste engagés'!$G162="","",'liste engagés'!K162) ->  | H168: =IF('liste engagés'!$G162="","",'liste engagés'!L162) ->  | I168: 0
A169: 163 | B169: =IF('liste engagés'!$G163="","",'liste engagés'!A163) ->  | C169: =IF('liste engagés'!$G163="","",'liste engagés'!B163) ->  | D169: =IF('liste engagés'!$G163="","",'liste engagés'!C163) ->  | E169: =IF('liste engagés'!$G163="","",'liste engagés'!D163) ->  | F169: =IF('liste engagés'!$G163="","",'liste engagés'!G163) ->  | G169: =IF('liste engagés'!$G163="","",'liste engagés'!K163) ->  | H169: =IF('liste engagés'!$G163="","",'liste engagés'!L163) ->  | I169: 0
A170: 164 | B170: =IF('liste engagés'!$G164="","",'liste engagés'!A164) ->  | C170: =IF('liste engagés'!$G164="","",'liste engagés'!B164) ->  | D170: =IF('liste engagés'!$G164="","",'liste engagés'!C164) ->  | E170: =IF('liste engagés'!$G164="","",'liste engagés'!D164) ->  | F170: =IF('liste engagés'!$G164="","",'liste engagés'!G164) ->  | G170: =IF('liste engagés'!$G164="","",'liste engagés'!K164) ->  | H170: =IF('liste engagés'!$G164="","",'liste engagés'!L164) ->  | I170: 0
A171: 165 | B171: =IF('liste engagés'!$G165="","",'liste engagés'!A165) ->  | C171: =IF('liste engagés'!$G165="","",'liste engagés'!B165) ->  | D171: =IF('liste engagés'!$G165="","",'liste engagés'!C165) ->  | E171: =IF('liste engagés'!$G165="","",'liste engagés'!D165) ->  | F171: =IF('liste engagés'!$G165="","",'liste engagés'!G165) ->  | G171: =IF('liste engagés'!$G165="","",'liste engagés'!K165) ->  | H171: =IF('liste engagés'!$G165="","",'liste engagés'!L165) ->  | I171: 0
A172: 166 | B172: =IF('liste engagés'!$G166="","",'liste engagés'!A166) ->  | C172: =IF('liste engagés'!$G166="","",'liste engagés'!B166) ->  | D172: =IF('liste engagés'!$G166="","",'liste engagés'!C166) ->  | E172: =IF('liste engagés'!$G166="","",'liste engagés'!D166) ->  | F172: =IF('liste engagés'!$G166="","",'liste engagés'!G166) ->  | G172: =IF('liste engagés'!$G166="","",'liste engagés'!K166) ->  | H172: =IF('liste engagés'!$G166="","",'liste engagés'!L166) ->  | I172: 0
A173: 167 | B173: =IF('liste engagés'!$G167="","",'liste engagés'!A167) ->  | C173: =IF('liste engagés'!$G167="","",'liste engagés'!B167) ->  | D173: =IF('liste engagés'!$G167="","",'liste engagés'!C167) ->  | E173: =IF('liste engagés'!$G167="","",'liste engagés'!D167) ->  | F173: =IF('liste engagés'!$G167="","",'liste engagés'!G167) ->  | G173: =IF('liste engagés'!$G167="","",'liste engagés'!K167) ->  | H173: =IF('liste engagés'!$G167="","",'liste engagés'!L167) ->  | I173: 0
A174: 168 | B174: =IF('liste engagés'!$G168="","",'liste engagés'!A168) ->  | C174: =IF('liste engagés'!$G168="","",'liste engagés'!B168) ->  | D174: =IF('liste engagés'!$G168="","",'liste engagés'!C168) ->  | E174: =IF('liste engagés'!$G168="","",'liste engagés'!D168) ->  | F174: =IF('liste engagés'!$G168="","",'liste engagés'!G168) ->  | G174: =IF('liste engagés'!$G168="","",'liste engagés'!K168) ->  | H174: =IF('liste engagés'!$G168="","",'liste engagés'!L168) ->  | I174: 0
A175: 169 | B175: =IF('liste engagés'!$G169="","",'liste engagés'!A169) ->  | C175: =IF('liste engagés'!$G169="","",'liste engagés'!B169) ->  | D175: =IF('liste engagés'!$G169="","",'liste engagés'!C169) ->  | E175: =IF('liste engagés'!$G169="","",'liste engagés'!D169) ->  | F175: =IF('liste engagés'!$G169="","",'liste engagés'!G169) ->  | G175: =IF('liste engagés'!$G169="","",'liste engagés'!K169) ->  | H175: =IF('liste engagés'!$G169="","",'liste engagés'!L169) ->  | I175: 0
A176: 170 | B176: =IF('liste engagés'!$G173="","",'liste engagés'!A173) ->  | C176: =IF('liste engagés'!$G173="","",'liste engagés'!B173) ->  | D176: =IF('liste engagés'!$G173="","",'liste engagés'!C173) ->  | E176: =IF('liste engagés'!$G173="","",'liste engagés'!D173) ->  | F176: =IF('liste engagés'!$G173="","",'liste engagés'!G173) ->  | G176: =IF('liste engagés'!$G173="","",'liste engagés'!K173) ->  | H176: =IF('liste engagés'!$G173="","",'liste engagés'!L173) ->  | I176: 0
A177: 171 | B177: =IF('liste engagés'!$G174="","",'liste engagés'!A174) ->  | C177: =IF('liste engagés'!$G174="","",'liste engagés'!B174) ->  | D177: =IF('liste engagés'!$G174="","",'liste engagés'!C174) ->  | E177: =IF('liste engagés'!$G174="","",'liste engagés'!D174) ->  | F177: =IF('liste engagés'!$G174="","",'liste engagés'!G174) ->  | G177: =IF('liste engagés'!$G174="","",'liste engagés'!K174) ->  | H177: =IF('liste engagés'!$G174="","",'liste engagés'!L174) ->  | I177: 0
A178: 172 | B178: =IF('liste engagés'!$G175="","",'liste engagés'!A175) ->  | C178: =IF('liste engagés'!$G175="","",'liste engagés'!B175) ->  | D178: =IF('liste engagés'!$G175="","",'liste engagés'!C175) ->  | E178: =IF('liste engagés'!$G175="","",'liste engagés'!D175) ->  | F178: =IF('liste engagés'!$G175="","",'liste engagés'!G175) ->  | G178: =IF('liste engagés'!$G175="","",'liste engagés'!K175) ->  | H178: =IF('liste engagés'!$G175="","",'liste engagés'!L175) ->  | I178: 0
A179: 173 | B179: =IF('liste engagés'!$G176="","",'liste engagés'!A176) ->  | C179: =IF('liste engagés'!$G176="","",'liste engagés'!B176) ->  | D179: =IF('liste engagés'!$G176="","",'liste engagés'!C176) ->  | E179: =IF('liste engagés'!$G176="","",'liste engagés'!D176) ->  | F179: =IF('liste engagés'!$G176="","",'liste engagés'!G176) ->  | G179: =IF('liste engagés'!$G176="","",'liste engagés'!K176) ->  | H179: =IF('liste engagés'!$G176="","",'liste engagés'!L176) ->  | I179: 0
A180: 174 | B180: =IF('liste engagés'!$G177="","",'liste engagés'!A177) ->  | C180: =IF('liste engagés'!$G177="","",'liste engagés'!B177) ->  | D180: =IF('liste engagés'!$G177="","",'liste engagés'!C177) ->  | E180: =IF('liste engagés'!$G177="","",'liste engagés'!D177) ->  | F180: =IF('liste engagés'!$G177="","",'liste engagés'!G177) ->  | G180: =IF('liste engagés'!$G177="","",'liste engagés'!K177) ->  | H180: =IF('liste engagés'!$G177="","",'liste engagés'!L177) ->  | I180: 0
A181: 175 | B181: =IF('liste engagés'!$G178="","",'liste engagés'!A178) ->  | C181: =IF('liste engagés'!$G178="","",'liste engagés'!B178) ->  | D181: =IF('liste engagés'!$G178="","",'liste engagés'!C178) ->  | E181: =IF('liste engagés'!$G178="","",'liste engagés'!D178) ->  | F181: =IF('liste engagés'!$G178="","",'liste engagés'!G178) ->  | G181: =IF('liste engagés'!$G178="","",'liste engagés'!K178) ->  | H181: =IF('liste engagés'!$G178="","",'liste engagés'!L178) ->  | I181: 0
A182: 176 | B182: =IF('liste engagés'!$G181="","",'liste engagés'!A181) ->  | C182: =IF('liste engagés'!$G181="","",'liste engagés'!B181) ->  | D182: =IF('liste engagés'!$G181="","",'liste engagés'!C181) ->  | E182: =IF('liste engagés'!$G181="","",'liste engagés'!D181) ->  | F182: =IF('liste engagés'!$G181="","",'liste engagés'!G181) ->  | G182: =IF('liste engagés'!$G181="","",'liste engagés'!K181) ->  | H182: =IF('liste engagés'!$G181="","",'liste engagés'!L181) ->  | I182: 0
A183: 177 | B183: =IF('liste engagés'!$G182="","",'liste engagés'!A182) ->  | C183: =IF('liste engagés'!$G182="","",'liste engagés'!B182) ->  | D183: =IF('liste engagés'!$G182="","",'liste engagés'!C182) ->  | E183: =IF('liste engagés'!$G182="","",'liste engagés'!D182) ->  | F183: =IF('liste engagés'!$G182="","",'liste engagés'!G182) ->  | G183: =IF('liste engagés'!$G182="","",'liste engagés'!K182) ->  | H183: =IF('liste engagés'!$G182="","",'liste engagés'!L182) ->  | I183: 0
A184: 178 | B184: =IF('liste engagés'!$G183="","",'liste engagés'!A183) ->  | C184: =IF('liste engagés'!$G183="","",'liste engagés'!B183) ->  | D184: =IF('liste engagés'!$G183="","",'liste engagés'!C183) ->  | E184: =IF('liste engagés'!$G183="","",'liste engagés'!D183) ->  | F184: =IF('liste engagés'!$G183="","",'liste engagés'!G183) ->  | G184: =IF('liste engagés'!$G183="","",'liste engagés'!K183) ->  | H184: =IF('liste engagés'!$G183="","",'liste engagés'!L183) ->  | I184: 0
A185: 179 | B185: =IF('liste engagés'!$G184="","",'liste engagés'!A184) ->  | C185: =IF('liste engagés'!$G184="","",'liste engagés'!B184) ->  | D185: =IF('liste engagés'!$G184="","",'liste engagés'!C184) ->  | E185: =IF('liste engagés'!$G184="","",'liste engagés'!D184) ->  | F185: =IF('liste engagés'!$G184="","",'liste engagés'!G184) ->  | G185: =IF('liste engagés'!$G184="","",'liste engagés'!K184) ->  | H185: =IF('liste engagés'!$G184="","",'liste engagés'!L184) ->  | I185: 0
A186: 180 | B186: =IF('liste engagés'!$G185="","",'liste engagés'!A185) ->  | C186: =IF('liste engagés'!$G185="","",'liste engagés'!B185) ->  | D186: =IF('liste engagés'!$G185="","",'liste engagés'!C185) ->  | E186: =IF('liste engagés'!$G185="","",'liste engagés'!D185) ->  | F186: =IF('liste engagés'!$G185="","",'liste engagés'!G185) ->  | G186: =IF('liste engagés'!$G185="","",'liste engagés'!K185) ->  | H186: =IF('liste engagés'!$G185="","",'liste engagés'!L185) ->  | I186: 0
A187: 181 | B187: =IF('liste engagés'!$G186="","",'liste engagés'!A186) ->  | C187: =IF('liste engagés'!$G186="","",'liste engagés'!B186) ->  | D187: =IF('liste engagés'!$G186="","",'liste engagés'!C186) ->  | E187: =IF('liste engagés'!$G186="","",'liste engagés'!D186) ->  | F187: =IF('liste engagés'!$G186="","",'liste engagés'!G186) ->  | G187: =IF('liste engagés'!$G186="","",'liste engagés'!K186) ->  | H187: =IF('liste engagés'!$G186="","",'liste engagés'!L186) ->  | I187: 0
A188: 182 | B188: =IF('liste engagés'!$G187="","",'liste engagés'!A187) ->  | C188: =IF('liste engagés'!$G187="","",'liste engagés'!B187) ->  | D188: =IF('liste engagés'!$G187="","",'liste engagés'!C187) ->  | E188: =IF('liste engagés'!$G187="","",'liste engagés'!D187) ->  | F188: =IF('liste engagés'!$G187="","",'liste engagés'!G187) ->  | G188: =IF('liste engagés'!$G187="","",'liste engagés'!K187) ->  | H188: =IF('liste engagés'!$G187="","",'liste engagés'!L187) ->  | I188: 0
A189: 183 | B189: =IF('liste engagés'!$G188="","",'liste engagés'!A188) ->  | C189: =IF('liste engagés'!$G188="","",'liste engagés'!B188) ->  | D189: =IF('liste engagés'!$G188="","",'liste engagés'!C188) ->  | E189: =IF('liste engagés'!$G188="","",'liste engagés'!D188) ->  | F189: =IF('liste engagés'!$G188="","",'liste engagés'!G188) ->  | G189: =IF('liste engagés'!$G188="","",'liste engagés'!K188) ->  | H189: =IF('liste engagés'!$G188="","",'liste engagés'!L188) ->  | I189: 0
A190: 184 | B190: =IF('liste engagés'!$G189="","",'liste engagés'!A189) ->  | C190: =IF('liste engagés'!$G189="","",'liste engagés'!B189) ->  | D190: =IF('liste engagés'!$G189="","",'liste engagés'!C189) ->  | E190: =IF('liste engagés'!$G189="","",'liste engagés'!D189) ->  | F190: =IF('liste engagés'!$G189="","",'liste engagés'!G189) ->  | G190: =IF('liste engagés'!$G189="","",'liste engagés'!K189) ->  | H190: =IF('liste engagés'!$G189="","",'liste engagés'!L189) ->  | I190: 0
A191: 185 | B191: =IF('liste engagés'!$G190="","",'liste engagés'!A190) ->  | C191: =IF('liste engagés'!$G190="","",'liste engagés'!B190) ->  | D191: =IF('liste engagés'!$G190="","",'liste engagés'!C190) ->  | E191: =IF('liste engagés'!$G190="","",'liste engagés'!D190) ->  | F191: =IF('liste engagés'!$G190="","",'liste engagés'!G190) ->  | G191: =IF('liste engagés'!$G190="","",'liste engagés'!K190) ->  | H191: =IF('liste engagés'!$G190="","",'liste engagés'!L190) ->  | I191: 0
A192: 186 | B192: =IF('liste engagés'!$G191="","",'liste engagés'!A191) ->  | C192: =IF('liste engagés'!$G191="","",'liste engagés'!B191) ->  | D192: =IF('liste engagés'!$G191="","",'liste engagés'!C191) ->  | E192: =IF('liste engagés'!$G191="","",'liste engagés'!D191) ->  | F192: =IF('liste engagés'!$G191="","",'liste engagés'!G191) ->  | G192: =IF('liste engagés'!$G191="","",'liste engagés'!K191) ->  | H192: =IF('liste engagés'!$G191="","",'liste engagés'!L191) ->  | I192: 0
A193: 187 | B193: =IF('liste engagés'!$G192="","",'liste engagés'!A192) ->  | C193: =IF('liste engagés'!$G192="","",'liste engagés'!B192) ->  | D193: =IF('liste engagés'!$G192="","",'liste engagés'!C192) ->  | E193: =IF('liste engagés'!$G192="","",'liste engagés'!D192) ->  | F193: =IF('liste engagés'!$G192="","",'liste engagés'!G192) ->  | G193: =IF('liste engagés'!$G192="","",'liste engagés'!K192) ->  | H193: =IF('liste engagés'!$G192="","",'liste engagés'!L192) ->  | I193: 0
A194: 188 | B194: =IF('liste engagés'!$G193="","",'liste engagés'!A193) ->  | C194: =IF('liste engagés'!$G193="","",'liste engagés'!B193) ->  | D194: =IF('liste engagés'!$G193="","",'liste engagés'!C193) ->  | E194: =IF('liste engagés'!$G193="","",'liste engagés'!D193) ->  | F194: =IF('liste engagés'!$G193="","",'liste engagés'!G193) ->  | G194: =IF('liste engagés'!$G193="","",'liste engagés'!K193) ->  | H194: =IF('liste engagés'!$G193="","",'liste engagés'!L193) ->  | I194: 0
A195: 189 | B195: =IF('liste engagés'!$G194="","",'liste engagés'!A194) ->  | C195: =IF('liste engagés'!$G194="","",'liste engagés'!B194) ->  | D195: =IF('liste engagés'!$G194="","",'liste engagés'!C194) ->  | E195: =IF('liste engagés'!$G194="","",'liste engagés'!D194) ->  | F195: =IF('liste engagés'!$G194="","",'liste engagés'!G194) ->  | G195: =IF('liste engagés'!$G194="","",'liste engagés'!K194) ->  | H195: =IF('liste engagés'!$G194="","",'liste engagés'!L194) ->  | I195: 0
A196: 190 | B196: =IF('liste engagés'!$G195="","",'liste engagés'!A195) ->  | C196: =IF('liste engagés'!$G195="","",'liste engagés'!B195) ->  | D196: =IF('liste engagés'!$G195="","",'liste engagés'!C195) ->  | E196: =IF('liste engagés'!$G195="","",'liste engagés'!D195) ->  | F196: =IF('liste engagés'!$G195="","",'liste engagés'!G195) ->  | G196: =IF('liste engagés'!$G195="","",'liste engagés'!K195) ->  | H196: =IF('liste engagés'!$G195="","",'liste engagés'!L195) ->  | I196: 0
A197: 191 | B197: =IF('liste engagés'!$G196="","",'liste engagés'!A196) ->  | C197: =IF('liste engagés'!$G196="","",'liste engagés'!B196) ->  | D197: =IF('liste engagés'!$G196="","",'liste engagés'!C196) ->  | E197: =IF('liste engagés'!$G196="","",'liste engagés'!D196) ->  | F197: =IF('liste engagés'!$G196="","",'liste engagés'!G196) ->  | G197: =IF('liste engagés'!$G196="","",'liste engagés'!K196) ->  | H197: =IF('liste engagés'!$G196="","",'liste engagés'!L196) ->  | I197: 0
A198: 192 | B198: =IF('liste engagés'!$G197="","",'liste engagés'!A197) ->  | C198: =IF('liste engagés'!$G197="","",'liste engagés'!B197) ->  | D198: =IF('liste engagés'!$G197="","",'liste engagés'!C197) ->  | E198: =IF('liste engagés'!$G197="","",'liste engagés'!D197) ->  | F198: =IF('liste engagés'!$G197="","",'liste engagés'!G197) ->  | G198: =IF('liste engagés'!$G197="","",'liste engagés'!K197) ->  | H198: =IF('liste engagés'!$G197="","",'liste engagés'!L197) ->  | I198: 0
A199: 193 | B199: =IF('liste engagés'!$G198="","",'liste engagés'!A198) ->  | C199: =IF('liste engagés'!$G198="","",'liste engagés'!B198) ->  | D199: =IF('liste engagés'!$G198="","",'liste engagés'!C198) ->  | E199: =IF('liste engagés'!$G198="","",'liste engagés'!D198) ->  | F199: =IF('liste engagés'!$G198="","",'liste engagés'!G198) ->  | G199: =IF('liste engagés'!$G198="","",'liste engagés'!K198) ->  | H199: =IF('liste engagés'!$G198="","",'liste engagés'!L198) ->  | I199: =+IF(C199="",0,1) -> 0
A200: =+A199+1 -> 194 | B200: =IF('liste engagés'!$G199="","",'liste engagés'!A199) ->  | C200: =IF('liste engagés'!$G199="","",'liste engagés'!B199) ->  | D200: =IF('liste engagés'!$G199="","",'liste engagés'!C199) ->  | E200: =IF('liste engagés'!$G199="","",'liste engagés'!D199) ->  | F200: =IF('liste engagés'!$G199="","",'liste engagés'!G199) ->  | G200: =IF('liste engagés'!$G199="","",'liste engagés'!K199) ->  | H200: =IF('liste engagés'!$G199="","",'liste engagés'!L199) ->  | I200: 0
A201: 195 | B201: =IF('liste engagés'!$G200="","",'liste engagés'!A200) ->  | C201: =IF('liste engagés'!$G200="","",'liste engagés'!B200) ->  | D201: =IF('liste engagés'!$G200="","",'liste engagés'!C200) ->  | E201: =IF('liste engagés'!$G200="","",'liste engagés'!D200) ->  | F201: =IF('liste engagés'!$G200="","",'liste engagés'!G200) ->  | G201: =IF('liste engagés'!$G200="","",'liste engagés'!K200) ->  | H201: =IF('liste engagés'!$G200="","",'liste engagés'!L200) ->  | I201: 0
A202: 196 | B202: =IF('liste engagés'!$G201="","",'liste engagés'!A201) ->  | C202: =IF('liste engagés'!$G201="","",'liste engagés'!B201) ->  | D202: =IF('liste engagés'!$G201="","",'liste engagés'!C201) ->  | E202: =IF('liste engagés'!$G201="","",'liste engagés'!D201) ->  | F202: =IF('liste engagés'!$G201="","",'liste engagés'!G201) ->  | G202: =IF('liste engagés'!$G201="","",'liste engagés'!K201) ->  | H202: =IF('liste engagés'!$G201="","",'liste engagés'!L201) ->  | I202: 0
A203: 197 | B203: =IF('liste engagés'!$G202="","",'liste engagés'!A202) ->  | C203: =IF('liste engagés'!$G202="","",'liste engagés'!B202) ->  | D203: =IF('liste engagés'!$G202="","",'liste engagés'!C202) ->  | E203: =IF('liste engagés'!$G202="","",'liste engagés'!D202) ->  | F203: =IF('liste engagés'!$G202="","",'liste engagés'!G202) ->  | G203: =IF('liste engagés'!$G202="","",'liste engagés'!K202) ->  | H203: =IF('liste engagés'!$G202="","",'liste engagés'!L202) ->  | I203: 0
... 14 more rows

Sheet cat1
A1: =+MENU!A1 -> CHRONO DES LIMOUCHES | G1: =+MENU!I1 -> EDITION | H1: =+MENU!J1 -> 2018
I2: code cat | J2: 1
A3: CLASSEMENT : | C3: =+IF(J2="","",VLOOKUP($J$2,Catégories!B3:D17,3)) -> FSGT 1-2
B6: N°de DOSSARD | C6: Nom | D6: Prénom | E6: Club | F6: Fédération | G6: Temps | H6: Moyenne
A7: 1 | B7: =IF('liste engagés'!$G121=1,'liste engagés'!A121,"") -> 116 | C7: =IF('liste engagés'!$G121=1,'liste engagés'!B121,"") -> DONCIEUX | D7: =IF('liste engagés'!$G121=1,'liste engagés'!C121,"") -> NICOLAS | E7: =IF('liste engagés'!$G121=1,'liste engagés'!D121,"") -> UCVM | F7: =IF('liste engagés'!$G121=1,'liste engagés'!E121,"") -> FSGT | G7: =IF('liste engagés'!$G121=1,'liste engagés'!K121,"") -> 0.02385416667 | H7: =IF('liste engagés'!$G121=1,'liste engagés'!L121,"") -> 19.91266376 | I7: =+IF(C7="",0,1) -> 1
A8: =+A7+1 -> 2 | B8: =IF('liste engagés'!$G137=1,'liste engagés'!A137,"") -> 132 | C8: =IF('liste engagés'!$G137=1,'liste engagés'!B137,"") -> GONZALVEZ | D8: =IF('liste engagés'!$G137=1,'liste engagés'!C137,"") -> LILIAN | E8: =IF('liste engagés'!$G137=1,'liste engagés'!D137,"") -> USC BERG & COIRON | F8: =IF('liste engagés'!$G137=1,'liste engagés'!E137,"") -> FSGT | G8: =IF('liste engagés'!$G137=1,'liste engagés'!K137,"") -> 0.02429398148 | H8: =IF('liste engagés'!$G137=1,'liste engagés'!L137,"") -> 19.5521677 | I8: 1
A9: 3 | B9: =IF('liste engagés'!$G128=1,'liste engagés'!A128,"") -> 123 | C9: =IF('liste engagés'!$G128=1,'liste engagés'!B128,"") -> MAZA | D9: =IF('liste engagés'!$G128=1,'liste engagés'!C128,"") -> SAMUEL | E9: =IF('liste engagés'!$G128=1,'liste engagés'!D128,"") -> CS COUXOIS | F9: =IF('liste engagés'!$G128=1,'liste engagés'!E128,"") -> FSGT | G9: =IF('liste engagés'!$G128=1,'liste engagés'!K128,"") -> 0.02434027778 | H9: =IF('liste engagés'!$G128=1,'liste engagés'!L128,"") -> 19.5149786 | I9: 1
A10: 4 | B10: =IF('liste engagés'!$G116=1,'liste engagés'!A116,"") -> 111 | C10: =IF('liste engagés'!$G116=1,'liste engagés'!B116,"") -> PHILIPPE | D10: =IF('liste engagés'!$G116=1,'liste engagés'!C116,"") -> FRANCOIS | E10: =IF('liste engagés'!$G116=1,'liste engagés'!D116,"") -> MAX BAREL VC | F10: =IF('liste engagés'!$G116=1,'liste engagés'!E116,"") -> FSGT | G10: =IF('liste engagés'!$G116=1,'liste engagés'!K116,"") -> 0.02521990741 | H10: =IF('liste engagés'!$G116=1,'liste engagés'!L116,"") -> 18.83432767 | I10: 1
A11: 5 | B11: =IF('liste engagés'!$G22=1,'liste engagés'!A22,"") -> 17 | C11: =IF('liste engagés'!$G22=1,'liste engagés'!B22,"") -> ZOULIAMIS | D11: =IF('liste engagés'!$G22=1,'liste engagés'!C22,"") -> NICOLAS | E11: =IF('liste engagés'!$G22=1,'liste engagés'!D22,"") -> CS PANTIN | F11: =IF('liste engagés'!$G22=1,'liste engagés'!E22,"") -> FSGT | G11: =IF('liste engagés'!$G22=1,'liste engagés'!K22,"") -> 0.02895833333 | H11: =IF('liste engagés'!$G22=1,'liste engagés'!L22,"") -> 16.4028777 | I11: 1
A12: 6 | B12: =IF('liste engagés'!$G6=1,'liste engagés'!A6,"") ->  | C12: =IF('liste engagés'!$G6=1,'liste engagés'!B6,"") ->  | D12: =IF('liste engagés'!$G6=1,'liste engagés'!C6,"") ->  | E12: =IF('liste engagés'!$G6=1,'liste engagés'!D6,"") ->  | F12: =IF('liste engagés'!$G6=1,'liste engagés'!E6,"") ->  | G12: =IF('liste engagés'!$G6=1,'liste engagés'!K6,"") ->  | H12: =IF('liste engagés'!$G6=1,'liste engagés'!L6,"") ->  | I12: 0
A13: 7 | B13: =IF('liste engagés'!$G7=1,'liste engagés'!A7,"") ->  | C13: =IF('liste engagés'!$G7=1,'liste engagés'!B7,"") ->  | D13: =IF('liste engagés'!$G7=1,'liste engagés'!C7,"") ->  | E13: =IF('liste engagés'!$G7=1,'liste engagés'!D7,"") ->  | F13: =IF('liste engagés'!$G7=1,'liste engagés'!E7,"") ->  | G13: =IF('liste engagés'!$G7=1,'liste engagés'!K7,"") ->  | H13: =IF('liste engagés'!$G7=1,'liste engagés'!L7,"") ->  | I13: 0
A14: 8 | B14: =IF('liste engagés'!$G8=1,'liste engagés'!A8,"") ->  | C14: =IF('liste engagés'!$G8=1,'liste engagés'!B8,"") ->  | D14: =IF('liste engagés'!$G8=1,'liste engagés'!C8,"") ->  | E14: =IF('liste engagés'!$G8=1,'liste engagés'!D8,"") ->  | F14: =IF('liste engagés'!$G8=1,'liste engagés'!E8,"") ->  | G14: =IF('liste engagés'!$G8=1,'liste engagés'!K8,"") ->  | H14: =IF('liste engagés'!$G8=1,'liste engagés'!L8,"") ->  | I14: 0
A15: 9 | B15: =IF('liste engagés'!$G9=1,'liste engagés'!A9,"") ->  | C15: =IF('liste engagés'!$G9=1,'liste engagés'!B9,"") ->  | D15: =IF('liste engagés'!$G9=1,'liste engagés'!C9,"") ->  | E15: =IF('liste engagés'!$G9=1,'liste engagés'!D9,"") ->  | F15: =IF('liste engagés'!$G9=1,'liste engagés'!E9,"") ->  | G15: =IF('liste engagés'!$G9=1,'liste engagés'!K9,"") ->  | H15: =IF('liste engagés'!$G9=1,'liste engagés'!L9,"") ->  | I15: 0
A16: 10 | B16: =IF('liste engagés'!$G10=1,'liste engagés'!A10,"") ->  | C16: =IF('liste engagés'!$G10=1,'liste engagés'!B10,"") ->  | D16: =IF('liste engagés'!$G10=1,'liste engagés'!C10,"") ->  | E16: =IF('liste engagés'!$G10=1,'liste engagés'!D10,"") ->  | F16: =IF('liste engagés'!$G10=1,'liste engagés'!E10,"") ->  | G16: =IF('liste engagés'!$G10=1,'liste engagés'!K10,"") ->  | H16: =IF('liste engagés'!$G10=1,'liste engagés'!L10,"") ->  | I16: 0
A17: 11 | B17: =IF('liste engagés'!$G11=1,'liste engagés'!A11,"") ->  | C17: =IF('liste engagés'!$G11=1,'liste engagés'!B11,"") ->  | D17: =IF('liste engagés'!$G11=1,'liste engagés'!C11,"") ->  | E17: =IF('liste engagés'!$G11=1,'liste engagés'!D11,"") ->  | F17: =IF('liste engagés'!$G11=1,'liste engagés'!E11,"") ->  | G17: =IF('liste engagés'!$G11=1,'liste engagés'!K11,"") ->  | H17: =IF('liste engagés'!$G11=1,'liste engagés'!L11,"") ->  | I17: 0
A18: 12 | B18: =IF('liste engagés'!$G12=1,'liste engagés'!A12,"") ->  | C18: =IF('liste engagés'!$G12=1,'liste engagés'!B12,"") ->  | D18: =IF('liste engagés'!$G12=1,'liste engagés'!C12,"") ->  | E18: =IF('liste engagés'!$G12=1,'liste engagés'!D12,"") ->  | F18: =IF('liste engagés'!$G12=1,'liste engagés'!E12,"") ->  | G18: =IF('liste engagés'!$G12=1,'liste engagés'!K12,"") ->  | H18: =IF('liste engagés'!$G12=1,'liste engagés'!L12,"") ->  | I18: 0
A19: 13 | B19: =IF('liste engagés'!$G13=1,'liste engagés'!A13,"") ->  | C19: =IF('liste engagés'!$G13=1,'liste engagés'!B13,"") ->  | D19: =IF('liste engagés'!$G13=1,'liste engagés'!C13,"") ->  | E19: =IF('liste engagés'!$G13=1,'liste engagés'!D13,"") ->  | F19: =IF('liste engagés'!$G13=1,'liste engagés'!E13,"") ->  | G19: =IF('liste engagés'!$G13=1,'liste engagés'!K13,"") ->  | H19: =IF('liste engagés'!$G13=1,'liste engagés'!L13,"") ->  | I19: 0
A20: 14 | B20: =IF('liste engagés'!$G14=1,'liste engagés'!A14,"") ->  | C20: =IF('liste engagés'!$G14=1,'liste engagés'!B14,"") ->  | D20: =IF('liste engagés'!$G14=1,'liste engagés'!C14,"") ->  | E20: =IF('liste engagés'!$G14=1,'liste engagés'!D14,"") ->  | F20: =IF('liste engagés'!$G14=1,'liste engagés'!E14,"") ->  | G20: =IF('liste engagés'!$G14=1,'liste engagés'!K14,"") ->  | H20: =IF('liste engagés'!$G14=1,'liste engagés'!L14,"") ->  | I20: 0
A21: 15 | B21: =IF('liste engagés'!$G15=1,'liste engagés'!A15,"") ->  | C21: =IF('liste engagés'!$G15=1,'liste engagés'!B15,"") ->  | D21: =IF('liste engagés'!$G15=1,'liste engagés'!C15,"") ->  | E21: =IF('liste engagés'!$G15=1,'liste engagés'!D15,"") ->  | F21: =IF('liste engagés'!$G15=1,'liste engagés'!E15,"") ->  | G21: =IF('liste engagés'!$G15=1,'liste engagés'!K15,"") ->  | H21: =IF('liste engagés'!$G15=1,'liste engagés'!L15,"") ->  | I21: 0
A22: 16 | B22: =IF('liste engagés'!$G16=1,'liste engagés'!A16,"") ->  | C22: =IF('liste engagés'!$G16=1,'liste engagés'!B16,"") ->  | D22: =IF('liste engagés'!$G16=1,'liste engagés'!C16,"") ->  | E22: =IF('liste engagés'!$G16=1,'liste engagés'!D16,"") ->  | F22: =IF('liste engagés'!$G16=1,'liste engagés'!E16,"") ->  | G22: =IF('liste engagés'!$G16=1,'liste engagés'!K16,"") ->  | H22: =IF('liste engagés'!$G16=1,'liste engagés'!L16,"") ->  | I22: 0
A23: 17 | B23: =IF('liste engagés'!$G17=1,'liste engagés'!A17,"") ->  | C23: =IF('liste engagés'!$G17=1,'liste engagés'!B17,"") ->  | D23: =IF('liste engagés'!$G17=1,'liste engagés'!C17,"") ->  | E23: =IF('liste engagés'!$G17=1,'liste engagés'!D17,"") ->  | F23: =IF('liste engagés'!$G17=1,'liste engagés'!E17,"") ->  | G23: =IF('liste engagés'!$G17=1,'liste engagés'!K17,"") ->  | H23: =IF('liste engagés'!$G17=1,'liste engagés'!L17,"") ->  | I23: 0
A24: 18 | B24: =IF('liste engagés'!$G18=1,'liste engagés'!A18,"") ->  | C24: =IF('liste engagés'!$G18=1,'liste engagés'!B18,"") ->  | D24: =IF('liste engagés'!$G18=1,'liste engagés'!C18,"") ->  | E24: =IF('liste engagés'!$G18=1,'liste engagés'!D18,"") ->  | F24: =IF('liste engagés'!$G18=1,'liste engagés'!E18,"") ->  | G24: =IF('liste engagés'!$G18=1,'liste engagés'!K18,"") ->  | H24: =IF('liste engagés'!$G18=1,'liste engagés'!L18,"") ->  | I24: 0
A25: 19 | B25: =IF('liste engagés'!$G19=1,'liste engagés'!A19,"") ->  | C25: =IF('liste engagés'!$G19=1,'liste engagés'!B19,"") ->  | D25: =IF('liste engagés'!$G19=1,'liste engagés'!C19,"") ->  | E25: =IF('liste engagés'!$G19=1,'liste engagés'!D19,"") ->  | F25: =IF('liste engagés'!$G19=1,'liste engagés'!E19,"") ->  | G25: =IF('liste engagés'!$G19=1,'liste engagés'!K19,"") ->  | H25: =IF('liste engagés'!$G19=1,'liste engagés'!L19,"") ->  | I25: 0
A26: 20 | B26: =IF('liste engagés'!$G20=1,'liste engagés'!A20,"") ->  | C26: =IF('liste engagés'!$G20=1,'liste engagés'!B20,"") ->  | D26: =IF('liste engagés'!$G20=1,'liste engagés'!C20,"") ->  | E26: =IF('liste engagés'!$G20=1,'liste engagés'!D20,"") ->  | F26: =IF('liste engagés'!$G20=1,'liste engagés'!E20,"") ->  | G26: =IF('liste engagés'!$G20=1,'liste engagés'!K20,"") ->  | H26: =IF('liste engagés'!$G20=1,'liste engagés'!L20,"") ->  | I26: 0
A27: 21 | B27: =IF('liste engagés'!$G21=1,'liste engagés'!A21,"") ->  | C27: =IF('liste engagés'!$G21=1,'liste engagés'!B21,"") ->  | D27: =IF('liste engagés'!$G21=1,'liste engagés'!C21,"") ->  | E27: =IF('liste engagés'!$G21=1,'liste engagés'!D21,"") ->  | F27: =IF('liste engagés'!$G21=1,'liste engagés'!E21,"") ->  | G27: =IF('liste engagés'!$G21=1,'liste engagés'!K21,"") ->  | H27: =IF('liste engagés'!$G21=1,'liste engagés'!L21,"") ->  | I27: 0
A28: 22 | B28: =IF('liste engagés'!$G23=1,'liste engagés'!A23,"") ->  | C28: =IF('liste engagés'!$G23=1,'liste engagés'!B23,"") ->  | D28: =IF('liste engagés'!$G23=1,'liste engagés'!C23,"") ->  | E28: =IF('liste engagés'!$G23=1,'liste engagés'!D23,"") ->  | F28: =IF('liste engagés'!$G23=1,'liste engagés'!E23,"") ->  | G28: =IF('liste engagés'!$G23=1,'liste engagés'!K23,"") ->  | H28: =IF('liste engagés'!$G23=1,'liste engagés'!L23,"") ->  | I28: 0
A29: 23 | B29: =IF('liste engagés'!$G24=1,'liste engagés'!A24,"") ->  | C29: =IF('liste engagés'!$G24=1,'liste engagés'!B24,"") ->  | D29: =IF('liste engagés'!$G24=1,'liste engagés'!C24,"") ->  | E29: =IF('liste engagés'!$G24=1,'liste engagés'!D24,"") ->  | F29: =IF('liste engagés'!$G24=1,'liste engagés'!E24,"") ->  | G29: =IF('liste engagés'!$G24=1,'liste engagés'!K24,"") ->  | H29: =IF('liste engagés'!$G24=1,'liste engagés'!L24,"") ->  | I29: 0
A30: 24 | B30: =IF('liste engagés'!$G25=1,'liste engagés'!A25,"") ->  | C30: =IF('liste engagés'!$G25=1,'liste engagés'!B25,"") ->  | D30: =IF('liste engagés'!$G25=1,'liste engagés'!C25,"") ->  | E30: =IF('liste engagés'!$G25=1,'liste engagés'!D25,"") ->  | F30: =IF('liste engagés'!$G25=1,'liste engagés'!E25,"") ->  | G30: =IF('liste engagés'!$G25=1,'liste engagés'!K25,"") ->  | H30: =IF('liste engagés'!$G25=1,'liste engagés'!L25,"") ->  | I30: 0
A31: 25 | B31: =IF('liste engagés'!$G26=1,'liste engagés'!A26,"") ->  | C31: =IF('liste engagés'!$G26=1,'liste engagés'!B26,"") ->  | D31: =IF('liste engagés'!$G26=1,'liste engagés'!C26,"") ->  | E31: =IF('liste engagés'!$G26=1,'liste engagés'!D26,"") ->  | F31: =IF('liste engagés'!$G26=1,'liste engagés'!E26,"") ->  | G31: =IF('liste engagés'!$G26=1,'liste engagés'!K26,"") ->  | H31: =IF('liste engagés'!$G26=1,'liste engagés'!L26,"") ->  | I31: 0
A32: 26 | B32: =IF('liste engagés'!$G27=1,'liste engagés'!A27,"") ->  | C32: =IF('liste engagés'!$G27=1,'liste engagés'!B27,"") ->  | D32: =IF('liste engagés'!$G27=1,'liste engagés'!C27,"") ->  | E32: =IF('liste engagés'!$G27=1,'liste engagés'!D27,"") ->  | F32: =IF('liste engagés'!$G27=1,'liste engagés'!E27,"") ->  | G32: =IF('liste engagés'!$G27=1,'liste engagés'!K27,"") ->  | H32: =IF('liste engagés'!$G27=1,'liste engagés'!L27,"") ->  | I32: 0
A33: 27 | B33: =IF('liste engagés'!$G28=1,'liste engagés'!A28,"") ->  | C33: =IF('liste engagés'!$G28=1,'liste engagés'!B28,"") ->  | D33: =IF('liste engagés'!$G28=1,'liste engagés'!C28,"") ->  | E33: =IF('liste engagés'!$G28=1,'liste engagés'!D28,"") ->  | F33: =IF('liste engagés'!$G28=1,'liste engagés'!E28,"") ->  | G33: =IF('liste engagés'!$G28=1,'liste engagés'!K28,"") ->  | H33: =IF('liste engagés'!$G28=1,'liste engagés'!L28,"") ->  | I33: 0
A34: 28 | B34: =IF('liste engagés'!$G29=1,'liste engagés'!A29,"") ->  | C34: =IF('liste engagés'!$G29=1,'liste engagés'!B29,"") ->  | D34: =IF('liste engagés'!$G29=1,'liste engagés'!C29,"") ->  | E34: =IF('liste engagés'!$G29=1,'liste engagés'!D29,"") ->  | F34: =IF('liste engagés'!$G29=1,'liste engagés'!E29,"") ->  | G34: =IF('liste engagés'!$G29=1,'liste engagés'!K29,"") ->  | H34: =IF('liste engagés'!$G29=1,'liste engagés'!L29,"") ->  | I34: 0
A35: 29 | B35: =IF('liste engagés'!$G30=1,'liste engagés'!A30,"") ->  | C35: =IF('liste engagés'!$G30=1,'liste engagés'!B30,"") ->  | D35: =IF('liste engagés'!$G30=1,'liste engagés'!C30,"") ->  | E35: =IF('liste engagés'!$G30=1,'liste engagés'!D30,"") ->  | F35: =IF('liste engagés'!$G30=1,'liste engagés'!E30,"") ->  | G35: =IF('liste engagés'!$G30=1,'liste engagés'!K30,"") ->  | H35: =IF('liste engagés'!$G30=1,'liste engagés'!L30,"") ->  | I35: 0
A36: 30 | B36: =IF('liste engagés'!$G31=1,'liste engagés'!A31,"") ->  | C36: =IF('liste engagés'!$G31=1,'liste engagés'!B31,"") ->  | D36: =IF('liste engagés'!$G31=1,'liste engagés'!C31,"") ->  | E36: =IF('liste engagés'!$G31=1,'liste engagés'!D31,"") ->  | F36: =IF('liste engagés'!$G31=1,'liste engagés'!E31,"") ->  | G36: =IF('liste engagés'!$G31=1,'liste engagés'!K31,"") ->  | H36: =IF('liste engagés'!$G31=1,'liste engagés'!L31,"") ->  | I36: 0
A37: 31 | B37: =IF('liste engagés'!$G32=1,'liste engagés'!A32,"") ->  | C37: =IF('liste engagés'!$G32=1,'liste engagés'!B32,"") ->  | D37: =IF('liste engagés'!$G32=1,'liste engagés'!C32,"") ->  | E37: =IF('liste engagés'!$G32=1,'liste engagés'!D32,"") ->  | F37: =IF('liste engagés'!$G32=1,'liste engagés'!E32,"") ->  | G37: =IF('liste engagés'!$G32=1,'liste engagés'!K32,"") ->  | H37: =IF('liste engagés'!$G32=1,'liste engagés'!L32,"") ->  | I37: 0
A38: 32 | B38: =IF('liste engagés'!$G33=1,'liste engagés'!A33,"") ->  | C38: =IF('liste engagés'!$G33=1,'liste engagés'!B33,"") ->  | D38: =IF('liste engagés'!$G33=1,'liste engagés'!C33,"") ->  | E38: =IF('liste engagés'!$G33=1,'liste engagés'!D33,"") ->  | F38: =IF('liste engagés'!$G33=1,'liste engagés'!E33,"") ->  | G38: =IF('liste engagés'!$G33=1,'liste engagés'!K33,"") ->  | H38: =IF('liste engagés'!$G33=1,'liste engagés'!L33,"") ->  | I38: 0
A39: 33 | B39: =IF('liste engagés'!$G34=1,'liste engagés'!A34,"") ->  | C39: =IF('liste engagés'!$G34=1,'liste engagés'!B34,"") ->  | D39: =IF('liste engagés'!$G34=1,'liste engagés'!C34,"") ->  | E39: =IF('liste engagés'!$G34=1,'liste engagés'!D34,"") ->  | F39: =IF('liste engagés'!$G34=1,'liste engagés'!E34,"") ->  | G39: =IF('liste engagés'!$G34=1,'liste engagés'!K34,"") ->  | H39: =IF('liste engagés'!$G34=1,'liste engagés'!L34,"") ->  | I39: 0
A40: 34 | B40: =IF('liste engagés'!$G35=1,'liste engagés'!A35,"") ->  | C40: =IF('liste engagés'!$G35=1,'liste engagés'!B35,"") ->  | D40: =IF('liste engagés'!$G35=1,'liste engagés'!C35,"") ->  | E40: =IF('liste engagés'!$G35=1,'liste engagés'!D35,"") ->  | F40: =IF('liste engagés'!$G35=1,'liste engagés'!E35,"") ->  | G40: =IF('liste engagés'!$G35=1,'liste engagés'!K35,"") ->  | H40: =IF('liste engagés'!$G35=1,'liste engagés'!L35,"") ->  | I40: 0
A41: 35 | B41: =IF('liste engagés'!$G36=1,'liste engagés'!A36,"") ->  | C41: =IF('liste engagés'!$G36=1,'liste engagés'!B36,"") ->  | D41: =IF('liste engagés'!$G36=1,'liste engagés'!C36,"") ->  | E41: =IF('liste engagés'!$G36=1,'liste engagés'!D36,"") ->  | F41: =IF('liste engagés'!$G36=1,'liste engagés'!E36,"") ->  | G41: =IF('liste engagés'!$G36=1,'liste engagés'!K36,"") ->  | H41: =IF('liste engagés'!$G36=1,'liste engagés'!L36,"") ->  | I41: 0
A42: 36 | B42: =IF('liste engagés'!$G37=1,'liste engagés'!A37,"") ->  | C42: =IF('liste engagés'!$G37=1,'liste engagés'!B37,"") ->  | D42: =IF('liste engagés'!$G37=1,'liste engagés'!C37,"") ->  | E42: =IF('liste engagés'!$G37=1,'liste engagés'!D37,"") ->  | F42: =IF('liste engagés'!$G37=1,'liste engagés'!E37,"") ->  | G42: =IF('liste engagés'!$G37=1,'liste engagés'!K37,"") ->  | H42: =IF('liste engagés'!$G37=1,'liste engagés'!L37,"") ->  | I42: 0
A43: 37 | B43: =IF('liste engagés'!$G38=1,'liste engagés'!A38,"") ->  | C43: =IF('liste engagés'!$G38=1,'liste engagés'!B38,"") ->  | D43: =IF('liste engagés'!$G38=1,'liste engagés'!C38,"") ->  | E43: =IF('liste engagés'!$G38=1,'liste engagés'!D38,"") ->  | F43: =IF('liste engagés'!$G38=1,'liste engagés'!E38,"") ->  | G43: =IF('liste engagés'!$G38=1,'liste engagés'!K38,"") ->  | H43: =IF('liste engagés'!$G38=1,'liste engagés'!L38,"") ->  | I43: 0
A44: 38 | B44: =IF('liste engagés'!$G39=1,'liste engagés'!A39,"") ->  | C44: =IF('liste engagés'!$G39=1,'liste engagés'!B39,"") ->  | D44: =IF('liste engagés'!$G39=1,'liste engagés'!C39,"") ->  | E44: =IF('liste engagés'!$G39=1,'liste engagés'!D39,"") ->  | F44: =IF('liste engagés'!$G39=1,'liste engagés'!E39,"") ->  | G44: =IF('liste engagés'!$G39=1,'liste engagés'!K39,"") ->  | H44: =IF('liste engagés'!$G39=1,'liste engagés'!L39,"") ->  | I44: 0
A45: 39 | B45: =IF('liste engagés'!$G40=1,'liste engagés'!A40,"") ->  | C45: =IF('liste engagés'!$G40=1,'liste engagés'!B40,"") ->  | D45: =IF('liste engagés'!$G40=1,'liste engagés'!C40,"") ->  | E45: =IF('liste engagés'!$G40=1,'liste engagés'!D40,"") ->  | F45: =IF('liste engagés'!$G40=1,'liste engagés'!E40,"") ->  | G45: =IF('liste engagés'!$G40=1,'liste engagés'!K40,"") ->  | H45: =IF('liste engagés'!$G40=1,'liste engagés'!L40,"") ->  | I45: 0
A46: 40 | B46: =IF('liste engagés'!$G41=1,'liste engagés'!A41,"") ->  | C46: =IF('liste engagés'!$G41=1,'liste engagés'!B41,"") ->  | D46: =IF('liste engagés'!$G41=1,'liste engagés'!C41,"") ->  | E46: =IF('liste engagés'!$G41=1,'liste engagés'!D41,"") ->  | F46: =IF('liste engagés'!$G41=1,'liste engagés'!E41,"") ->  | G46: =IF('liste engagés'!$G41=1,'liste engagés'!K41,"") ->  | H46: =IF('liste engagés'!$G41=1,'liste engagés'!L41,"") ->  | I46: 0
A47: 41 | B47: =IF('liste engagés'!$G42=1,'liste engagés'!A42,"") ->  | C47: =IF('liste engagés'!$G42=1,'liste engagés'!B42,"") ->  | D47: =IF('liste engagés'!$G42=1,'liste engagés'!C42,"") ->  | E47: =IF('liste engagés'!$G42=1,'liste engagés'!D42,"") ->  | F47: =IF('liste engagés'!$G42=1,'liste engagés'!E42,"") ->  | G47: =IF('liste engagés'!$G42=1,'liste engagés'!K42,"") ->  | H47: =IF('liste engagés'!$G42=1,'liste engagés'!L42,"") ->  | I47: 0
A48: 42 | B48: =IF('liste engagés'!$G43=1,'liste engagés'!A43,"") ->  | C48: =IF('liste engagés'!$G43=1,'liste engagés'!B43,"") ->  | D48: =IF('liste engagés'!$G43=1,'liste engagés'!C43,"") ->  | E48: =IF('liste engagés'!$G43=1,'liste engagés'!D43,"") ->  | F48: =IF('liste engagés'!$G43=1,'liste engagés'!E43,"") ->  | G48: =IF('liste engagés'!$G43=1,'liste engagés'!K43,"") ->  | H48: =IF('liste engagés'!$G43=1,'liste engagés'!L43,"") ->  | I48: 0
A49: 43 | B49: =IF('liste engagés'!$G44=1,'liste engagés'!A44,"") ->  | C49: =IF('liste engagés'!$G44=1,'liste engagés'!B44,"") ->  | D49: =IF('liste engagés'!$G44=1,'liste engagés'!C44,"") ->  | E49: =IF('liste engagés'!$G44=1,'liste engagés'!D44,"") ->  | F49: =IF('liste engagés'!$G44=1,'liste engagés'!E44,"") ->  | G49: =IF('liste engagés'!$G44=1,'liste engagés'!K44,"") ->  | H49: =IF('liste engagés'!$G44=1,'liste engagés'!L44,"") ->  | I49: 0
A50: 44 | B50: =IF('liste engagés'!$G45=1,'liste engagés'!A45,"") ->  | C50: =IF('liste engagés'!$G45=1,'liste engagés'!B45,"") ->  | D50: =IF('liste engagés'!$G45=1,'liste engagés'!C45,"") ->  | E50: =IF('liste engagés'!$G45=1,'liste engagés'!D45,"") ->  | F50: =IF('liste engagés'!$G45=1,'liste engagés'!E45,"") ->  | G50: =IF('liste engagés'!$G45=1,'liste engagés'!K45,"") ->  | H50: =IF('liste engagés'!$G45=1,'liste engagés'!L45,"") ->  | I50: 0
A51: 45 | B51: =IF('liste engagés'!$G46=1,'liste engagés'!A46,"") ->  | C51: =IF('liste engagés'!$G46=1,'liste engagés'!B46,"") ->  | D51: =IF('liste engagés'!$G46=1,'liste engagés'!C46,"") ->  | E51: =IF('liste engagés'!$G46=1,'liste engagés'!D46,"") ->  | F51: =IF('liste engagés'!$G46=1,'liste engagés'!E46,"") ->  | G51: =IF('liste engagés'!$G46=1,'liste engagés'!K46,"") ->  | H51: =IF('liste engagés'!$G46=1,'liste engagés'!L46,"") ->  | I51: 0
A52: 46 | B52: =IF('liste engagés'!$G47=1,'liste engagés'!A47,"") ->  | C52: =IF('liste engagés'!$G47=1,'liste engagés'!B47,"") ->  | D52: =IF('liste engagés'!$G47=1,'liste engagés'!C47,"") ->  | E52: =IF('liste engagés'!$G47=1,'liste engagés'!D47,"") ->  | F52: =IF('liste engagés'!$G47=1,'liste engagés'!E47,"") ->  | G52: =IF('liste engagés'!$G47=1,'liste engagés'!K47,"") ->  | H52: =IF('liste engagés'!$G47=1,'liste engagés'!L47,"") ->  | I52: 0
A53: 47 | B53: =IF('liste engagés'!$G48=1,'liste engagés'!A48,"") ->  | C53: =IF('liste engagés'!$G48=1,'liste engagés'!B48,"") ->  | D53: =IF('liste engagés'!$G48=1,'liste engagés'!C48,"") ->  | E53: =IF('liste engagés'!$G48=1,'liste engagés'!D48,"") ->  | F53: =IF('liste engagés'!$G48=1,'liste engagés'!E48,"") ->  | G53: =IF('liste engagés'!$G48=1,'liste engagés'!K48,"") ->  | H53: =IF('liste engagés'!$G48=1,'liste engagés'!L48,"") ->  | I53: 0
A54: 48 | B54: =IF('liste engagés'!$G49=1,'liste engagés'!A49,"") ->  | C54: =IF('liste engagés'!$G49=1,'liste engagés'!B49,"") ->  | D54: =IF('liste engagés'!$G49=1,'liste engagés'!C49,"") ->  | E54: =IF('liste engagés'!$G49=1,'liste engagés'!D49,"") ->  | F54: =IF('liste engagés'!$G49=1,'liste engagés'!E49,"") ->  | G54: =IF('liste engagés'!$G49=1,'liste engagés'!K49,"") ->  | H54: =IF('liste engagés'!$G49=1,'liste engagés'!L49,"") ->  | I54: 0
A55: 49 | B55: =IF('liste engagés'!$G50=1,'liste engagés'!A50,"") ->  | C55: =IF('liste engagés'!$G50=1,'liste engagés'!B50,"") ->  | D55: =IF('liste engagés'!$G50=1,'liste engagés'!C50,"") ->  | E55: =IF('liste engagés'!$G50=1,'liste engagés'!D50,"") ->  | F55: =IF('liste engagés'!$G50=1,'liste engagés'!E50,"") ->  | G55: =IF('liste engagés'!$G50=1,'liste engagés'!K50,"") ->  | H55: =IF('liste engagés'!$G50=1,'liste engagés'!L50,"") ->  | I55: 0
A56: 50 | B56: =IF('liste engagés'!$G51=1,'liste engagés'!A51,"") ->  | C56: =IF('liste engagés'!$G51=1,'liste engagés'!B51,"") ->  | D56: =IF('liste engagés'!$G51=1,'liste engagés'!C51,"") ->  | E56: =IF('liste engagés'!$G51=1,'liste engagés'!D51,"") ->  | F56: =IF('liste engagés'!$G51=1,'liste engagés'!E51,"") ->  | G56: =IF('liste engagés'!$G51=1,'liste engagés'!K51,"") ->  | H56: =IF('liste engagés'!$G51=1,'liste engagés'!L51,"") ->  | I56: 0
A57: 51 | B57: =IF('liste engagés'!$G52=1,'liste engagés'!A52,"") ->  | C57: =IF('liste engagés'!$G52=1,'liste engagés'!B52,"") ->  | D57: =IF('liste engagés'!$G52=1,'liste engagés'!C52,"") ->  | E57: =IF('liste engagés'!$G52=1,'liste engagés'!D52,"") ->  | F57: =IF('liste engagés'!$G52=1,'liste engagés'!E52,"") ->  | G57: =IF('liste engagés'!$G52=1,'liste engagés'!K52,"") ->  | H57: =IF('liste engagés'!$G52=1,'liste engagés'!L52,"") ->  | I57: 0
A58: 52 | B58: =IF('liste engagés'!$G53=1,'liste engagés'!A53,"") ->  | C58: =IF('liste engagés'!$G53=1,'liste engagés'!B53,"") ->  | D58: =IF('liste engagés'!$G53=1,'liste engagés'!C53,"") ->  | E58: =IF('liste engagés'!$G53=1,'liste engagés'!D53,"") ->  | F58: =IF('liste engagés'!$G53=1,'liste engagés'!E53,"") ->  | G58: =IF('liste engagés'!$G53=1,'liste engagés'!K53,"") ->  | H58: =IF('liste engagés'!$G53=1,'liste engagés'!L53,"") ->  | I58: 0
A59: 53 | B59: =IF('liste engagés'!$G54=1,'liste engagés'!A54,"") ->  | C59: =IF('liste engagés'!$G54=1,'liste engagés'!B54,"") ->  | D59: =IF('liste engagés'!$G54=1,'liste engagés'!C54,"") ->  | E59: =IF('liste engagés'!$G54=1,'liste engagés'!D54,"") ->  | F59: =IF('liste engagés'!$G54=1,'liste engagés'!E54,"") ->  | G59: =IF('liste engagés'!$G54=1,'liste engagés'!K54,"") ->  | H59: =IF('liste engagés'!$G54=1,'liste engagés'!L54,"") ->  | I59: 0
A60: 54 | B60: =IF('liste engagés'!$G55=1,'liste engagés'!A55,"") ->  | C60: =IF('liste engagés'!$G55=1,'liste engagés'!B55,"") ->  | D60: =IF('liste engagés'!$G55=1,'liste engagés'!C55,"") ->  | E60: =IF('liste engagés'!$G55=1,'liste engagés'!D55,"") ->  | F60: =IF('liste engagés'!$G55=1,'liste engagés'!E55,"") ->  | G60: =IF('liste engagés'!$G55=1,'liste engagés'!K55,"") ->  | H60: =IF('liste engagés'!$G55=1,'liste engagés'!L55,"") ->  | I60: 0
A61: 55 | B61: =IF('liste engagés'!$G56=1,'liste engagés'!A56,"") ->  | C61: =IF('liste engagés'!$G56=1,'liste engagés'!B56,"") ->  | D61: =IF('liste engagés'!$G56=1,'liste engagés'!C56,"") ->  | E61: =IF('liste engagés'!$G56=1,'liste engagés'!D56,"") ->  | F61: =IF('liste engagés'!$G56=1,'liste engagés'!E56,"") ->  | G61: =IF('liste engagés'!$G56=1,'liste engagés'!K56,"") ->  | H61: =IF('liste engagés'!$G56=1,'liste engagés'!L56,"") ->  | I61: 0
A62: 56 | B62: =IF('liste engagés'!$G57=1,'liste engagés'!A57,"") ->  | C62: =IF('liste engagés'!$G57=1,'liste engagés'!B57,"") ->  | D62: =IF('liste engagés'!$G57=1,'liste engagés'!C57,"") ->  | E62: =IF('liste engagés'!$G57=1,'liste engagés'!D57,"") ->  | F62: =IF('liste engagés'!$G57=1,'liste engagés'!E57,"") ->  | G62: =IF('liste engagés'!$G57=1,'liste engagés'!K57,"") ->  | H62: =IF('liste engagés'!$G57=1,'liste engagés'!L57,"") ->  | I62: 0
A63: 57 | B63: =IF('liste engagés'!$G58=1,'liste engagés'!A58,"") ->  | C63: =IF('liste engagés'!$G58=1,'liste engagés'!B58,"") ->  | D63: =IF('liste engagés'!$G58=1,'liste engagés'!C58,"") ->  | E63: =IF('liste engagés'!$G58=1,'liste engagés'!D58,"") ->  | F63: =IF('liste engagés'!$G58=1,'liste engagés'!E58,"") ->  | G63: =IF('liste engagés'!$G58=1,'liste engagés'!K58,"") ->  | H63: =IF('liste engagés'!$G58=1,'liste engagés'!L58,"") ->  | I63: 0
A64: 58 | B64: =IF('liste engagés'!$G59=1,'liste engagés'!A59,"") ->  | C64: =IF('liste engagés'!$G59=1,'liste engagés'!B59,"") ->  | D64: =IF('liste engagés'!$G59=1,'liste engagés'!C59,"") ->  | E64: =IF('liste engagés'!$G59=1,'liste engagés'!D59,"") ->  | F64: =IF('liste engagés'!$G59=1,'liste engagés'!E59,"") ->  | G64: =IF('liste engagés'!$G59=1,'liste engagés'!K59,"") ->  | H64: =IF('liste engagés'!$G59=1,'liste engagés'!L59,"") ->  | I64: 0
A65: 59 | B65: =IF('liste engagés'!$G60=1,'liste engagés'!A60,"") ->  | C65: =IF('liste engagés'!$G60=1,'liste engagés'!B60,"") ->  | D65: =IF('liste engagés'!$G60=1,'liste engagés'!C60,"") ->  | E65: =IF('liste engagés'!$G60=1,'liste engagés'!D60,"") ->  | F65: =IF('liste engagés'!$G60=1,'liste engagés'!E60,"") ->  | G65: =IF('liste engagés'!$G60=1,'liste engagés'!K60,"") ->  | H65: =IF('liste engagés'!$G60=1,'liste engagés'!L60,"") ->  | I65: 0
A66: 60 | B66: =IF('liste engagés'!$G61=1,'liste engagés'!A61,"") ->  | C66: =IF('liste engagés'!$G61=1,'liste engagés'!B61,"") ->  | D66: =IF('liste engagés'!$G61=1,'liste engagés'!C61,"") ->  | E66: =IF('liste engagés'!$G61=1,'liste engagés'!D61,"") ->  | F66: =IF('liste engagés'!$G61=1,'liste engagés'!E61,"") ->  | G66: =IF('liste engagés'!$G61=1,'liste engagés'!K61,"") ->  | H66: =IF('liste engagés'!$G61=1,'liste engagés'!L61,"") ->  | I66: 0
A67: 61 | B67: =IF('liste engagés'!$G62=1,'liste engagés'!A62,"") ->  | C67: =IF('liste engagés'!$G62=1,'liste engagés'!B62,"") ->  | D67: =IF('liste engagés'!$G62=1,'liste engagés'!C62,"") ->  | E67: =IF('liste engagés'!$G62=1,'liste engagés'!D62,"") ->  | F67: =IF('liste engagés'!$G62=1,'liste engagés'!E62,"") ->  | G67: =IF('liste engagés'!$G62=1,'liste engagés'!K62,"") ->  | H67: =IF('liste engagés'!$G62=1,'liste engagés'!L62,"") ->  | I67: 0
A68: 62 | B68: =IF('liste engagés'!$G63=1,'liste engagés'!A63,"") ->  | C68: =IF('liste engagés'!$G63=1,'liste engagés'!B63,"") ->  | D68: =IF('liste engagés'!$G63=1,'liste engagés'!C63,"") ->  | E68: =IF('liste engagés'!$G63=1,'liste engagés'!D63,"") ->  | F68: =IF('liste engagés'!$G63=1,'liste engagés'!E63,"") ->  | G68: =IF('liste engagés'!$G63=1,'liste engagés'!K63,"") ->  | H68: =IF('liste engagés'!$G63=1,'liste engagés'!L63,"") ->  | I68: 0
A69: 63 | B69: =IF('liste engagés'!$G64=1,'liste engagés'!A64,"") ->  | C69: =IF('liste engagés'!$G64=1,'liste engagés'!B64,"") ->  | D69: =IF('liste engagés'!$G64=1,'liste engagés'!C64,"") ->  | E69: =IF('liste engagés'!$G64=1,'liste engagés'!D64,"") ->  | F69: =IF('liste engagés'!$G64=1,'liste engagés'!E64,"") ->  | G69: =IF('liste engagés'!$G64=1,'liste engagés'!K64,"") ->  | H69: =IF('liste engagés'!$G64=1,'liste engagés'!L64,"") ->  | I69: 0
A70: 64 | B70: =IF('liste engagés'!$G65=1,'liste engagés'!A65,"") ->  | C70: =IF('liste engagés'!$G65=1,'liste engagés'!B65,"") ->  | D70: =IF('liste engagés'!$G65=1,'liste engagés'!C65,"") ->  | E70: =IF('liste engagés'!$G65=1,'liste engagés'!D65,"") ->  | F70: =IF('liste engagés'!$G65=1,'liste engagés'!E65,"") ->  | G70: =IF('liste engagés'!$G65=1,'liste engagés'!K65,"") ->  | H70: =IF('liste engagés'!$G65=1,'liste engagés'!L65,"") ->  | I70: 0
A71: 65 | B71: =IF('liste engagés'!$G66=1,'liste engagés'!A66,"") ->  | C71: =IF('liste engagés'!$G66=1,'liste engagés'!B66,"") ->  | D71: =IF('liste engagés'!$G66=1,'liste engagés'!C66,"") ->  | E71: =IF('liste engagés'!$G66=1,'liste engagés'!D66,"") ->  | F71: =IF('liste engagés'!$G66=1,'liste engagés'!E66,"") ->  | G71: =IF('liste engagés'!$G66=1,'liste engagés'!K66,"") ->  | H71: =IF('liste engagés'!$G66=1,'liste engagés'!L66,"") ->  | I71: =+IF(C71="",0,1) -> 0
A72: =+A71+1 -> 66 | B72: =IF('liste engagés'!$G67=1,'liste engagés'!A67,"") ->  | C72: =IF('liste engagés'!$G67=1,'liste engagés'!B67,"") ->  | D72: =IF('liste engagés'!$G67=1,'liste engagés'!C67,"") ->  | E72: =IF('liste engagés'!$G67=1,'liste engagés'!D67,"") ->  | F72: =IF('liste engagés'!$G67=1,'liste engagés'!E67,"") ->  | G72: =IF('liste engagés'!$G67=1,'liste engagés'!K67,"") ->  | H72: =IF('liste engagés'!$G67=1,'liste engagés'!L67,"") ->  | I72: 0
A73: 67 | B73: =IF('liste engagés'!$G68=1,'liste engagés'!A68,"") ->  | C73: =IF('liste engagés'!$G68=1,'liste engagés'!B68,"") ->  | D73: =IF('liste engagés'!$G68=1,'liste engagés'!C68,"") ->  | E73: =IF('liste engagés'!$G68=1,'liste engagés'!D68,"") ->  | F73: =IF('liste engagés'!$G68=1,'liste engagés'!E68,"") ->  | G73: =IF('liste engagés'!$G68=1,'liste engagés'!K68,"") ->  | H73: =IF('liste engagés'!$G68=1,'liste engagés'!L68,"") ->  | I73: 0
A74: 68 | B74: =IF('liste engagés'!$G69=1,'liste engagés'!A69,"") ->  | C74: =IF('liste engagés'!$G69=1,'liste engagés'!B69,"") ->  | D74: =IF('liste engagés'!$G69=1,'liste engagés'!C69,"") ->  | E74: =IF('liste engagés'!$G69=1,'liste engagés'!D69,"") ->  | F74: =IF('liste engagés'!$G69=1,'liste engagés'!E69,"") ->  | G74: =IF('liste engagés'!$G69=1,'liste engagés'!K69,"") ->  | H74: =IF('liste engagés'!$G69=1,'liste engagés'!L69,"") ->  | I74: 0
A75: 69 | B75: =IF('liste engagés'!$G70=1,'liste engagés'!A70,"") ->  | C75: =IF('liste engagés'!$G70=1,'liste engagés'!B70,"") ->  | D75: =IF('liste engagés'!$G70=1,'liste engagés'!C70,"") ->  | E75: =IF('liste engagés'!$G70=1,'liste engagés'!D70,"") ->  | F75: =IF('liste engagés'!$G70=1,'liste engagés'!E70,"") ->  | G75: =IF('liste engagés'!$G70=1,'liste engagés'!K70,"") ->  | H75: =IF('liste engagés'!$G70=1,'liste engagés'!L70,"") ->  | I75: 0
A76: 70 | B76: =IF('liste engagés'!$G71=1,'liste engagés'!A71,"") ->  | C76: =IF('liste engagés'!$G71=1,'liste engagés'!B71,"") ->  | D76: =IF('liste engagés'!$G71=1,'liste engagés'!C71,"") ->  | E76: =IF('liste engagés'!$G71=1,'liste engagés'!D71,"") ->  | F76: =IF('liste engagés'!$G71=1,'liste engagés'!E71,"") ->  | G76: =IF('liste engagés'!$G71=1,'liste engagés'!K71,"") ->  | H76: =IF('liste engagés'!$G71=1,'liste engagés'!L71,"") ->  | I76: 0
A77: 71 | B77: =IF('liste engagés'!$G72=1,'liste engagés'!A72,"") ->  | C77: =IF('liste engagés'!$G72=1,'liste engagés'!B72,"") ->  | D77: =IF('liste engagés'!$G72=1,'liste engagés'!C72,"") ->  | E77: =IF('liste engagés'!$G72=1,'liste engagés'!D72,"") ->  | F77: =IF('liste engagés'!$G72=1,'liste engagés'!E72,"") ->  | G77: =IF('liste engagés'!$G72=1,'liste engagés'!K72,"") ->  | H77: =IF('liste engagés'!$G72=1,'liste engagés'!L72,"") ->  | I77: 0
A78: 72 | B78: =IF('liste engagés'!$G73=1,'liste engagés'!A73,"") ->  | C78: =IF('liste engagés'!$G73=1,'liste engagés'!B73,"") ->  | D78: =IF('liste engagés'!$G73=1,'liste engagés'!C73,"") ->  | E78: =IF('liste engagés'!$G73=1,'liste engagés'!D73,"") ->  | F78: =IF('liste engagés'!$G73=1,'liste engagés'!E73,"") ->  | G78: =IF('liste engagés'!$G73=1,'liste engagés'!K73,"") ->  | H78: =IF('liste engagés'!$G73=1,'liste engagés'!L73,"") ->  | I78: 0
A79: 73 | B79: =IF('liste engagés'!$G74=1,'liste engagés'!A74,"") ->  | C79: =IF('liste engagés'!$G74=1,'liste engagés'!B74,"") ->  | D79: =IF('liste engagés'!$G74=1,'liste engagés'!C74,"") ->  | E79: =IF('liste engagés'!$G74=1,'liste engagés'!D74,"") ->  | F79: =IF('liste engagés'!$G74=1,'liste engagés'!E74,"") ->  | G79: =IF('liste engagés'!$G74=1,'liste engagés'!K74,"") ->  | H79: =IF('liste engagés'!$G74=1,'liste engagés'!L74,"") ->  | I79: 0
A80: 74 | B80: =IF('liste engagés'!$G75=1,'liste engagés'!A75,"") ->  | C80: =IF('liste engagés'!$G75=1,'liste engagés'!B75,"") ->  | D80: =IF('liste engagés'!$G75=1,'liste engagés'!C75,"") ->  | E80: =IF('liste engagés'!$G75=1,'liste engagés'!D75,"") ->  | F80: =IF('liste engagés'!$G75=1,'liste engagés'!E75,"") ->  | G80: =IF('liste engagés'!$G75=1,'liste engagés'!K75,"") ->  | H80: =IF('liste engagés'!$G75=1,'liste engagés'!L75,"") ->  | I80: 0
A81: 75 | B81: =IF('liste engagés'!$G76=1,'liste engagés'!A76,"") ->  | C81: =IF('liste engagés'!$G76=1,'liste engagés'!B76,"") ->  | D81: =IF('liste engagés'!$G76=1,'liste engagés'!C76,"") ->  | E81: =IF('liste engagés'!$G76=1,'liste engagés'!D76,"") ->  | F81: =IF('liste engagés'!$G76=1,'liste engagés'!E76,"") ->  | G81: =IF('liste engagés'!$G76=1,'liste engagés'!K76,"") ->  | H81: =IF('liste engagés'!$G76=1,'liste engagés'!L76,"") ->  | I81: 0
A82: 76 | B82: =IF('liste engagés'!$G77=1,'liste engagés'!A77,"") ->  | C82: =IF('liste engagés'!$G77=1,'liste engagés'!B77,"") ->  | D82: =IF('liste engagés'!$G77=1,'liste engagés'!C77,"") ->  | E82: =IF('liste engagés'!$G77=1,'liste engagés'!D77,"") ->  | F82: =IF('liste engagés'!$G77=1,'liste engagés'!E77,"") ->  | G82: =IF('liste engagés'!$G77=1,'liste engagés'!K77,"") ->  | H82: =IF('liste engagés'!$G77=1,'liste engagés'!L77,"") ->  | I82: 0
A83: 77 | B83: =IF('liste engagés'!$G78=1,'liste engagés'!A78,"") ->  | C83: =IF('liste engagés'!$G78=1,'liste engagés'!B78,"") ->  | D83: =IF('liste engagés'!$G78=1,'liste engagés'!C78,"") ->  | E83: =IF('liste engagés'!$G78=1,'liste engagés'!D78,"") ->  | F83: =IF('liste engagés'!$G78=1,'liste engagés'!E78,"") ->  | G83: =IF('liste engagés'!$G78=1,'liste engagés'!K78,"") ->  | H83: =IF('liste engagés'!$G78=1,'liste engagés'!L78,"") ->  | I83: 0
A84: 78 | B84: =IF('liste engagés'!$G79=1,'liste engagés'!A79,"") ->  | C84: =IF('liste engagés'!$G79=1,'liste engagés'!B79,"") ->  | D84: =IF('liste engagés'!$G79=1,'liste engagés'!C79,"") ->  | E84: =IF('liste engagés'!$G79=1,'liste engagés'!D79,"") ->  | F84: =IF('liste engagés'!$G79=1,'liste engagés'!E79,"") ->  | G84: =IF('liste engagés'!$G79=1,'liste engagés'!K79,"") ->  | H84: =IF('liste engagés'!$G79=1,'liste engagés'!L79,"") ->  | I84: 0
A85: 79 | B85: =IF('liste engagés'!$G80=1,'liste engagés'!A80,"") ->  | C85: =IF('liste engagés'!$G80=1,'liste engagés'!B80,"") ->  | D85: =IF('liste engagés'!$G80=1,'liste engagés'!C80,"") ->  | E85: =IF('liste engagés'!$G80=1,'liste engagés'!D80,"") ->  | F85: =IF('liste engagés'!$G80=1,'liste engagés'!E80,"") ->  | G85: =IF('liste engagés'!$G80=1,'liste engagés'!K80,"") ->  | H85: =IF('liste engagés'!$G80=1,'liste engagés'!L80,"") ->  | I85: 0
A86: 80 | B86: =IF('liste engagés'!$G81=1,'liste engagés'!A81,"") ->  | C86: =IF('liste engagés'!$G81=1,'liste engagés'!B81,"") ->  | D86: =IF('liste engagés'!$G81=1,'liste engagés'!C81,"") ->  | E86: =IF('liste engagés'!$G81=1,'liste engagés'!D81,"") ->  | F86: =IF('liste engagés'!$G81=1,'liste engagés'!E81,"") ->  | G86: =IF('liste engagés'!$G81=1,'liste engagés'!K81,"") ->  | H86: =IF('liste engagés'!$G81=1,'liste engagés'!L81,"") ->  | I86: 0
A87: 81 | B87: =IF('liste engagés'!$G82=1,'liste engagés'!A82,"") ->  | C87: =IF('liste engagés'!$G82=1,'liste engagés'!B82,"") ->  | D87: =IF('liste engagés'!$G82=1,'liste engagés'!C82,"") ->  | E87: =IF('liste engagés'!$G82=1,'liste engagés'!D82,"") ->  | F87: =IF('liste engagés'!$G82=1,'liste engagés'!E82,"") ->  | G87: =IF('liste engagés'!$G82=1,'liste engagés'!K82,"") ->  | H87: =IF('liste engagés'!$G82=1,'liste engagés'!L82,"") ->  | I87: 0
A88: 82 | B88: =IF('liste engagés'!$G83=1,'liste engagés'!A83,"") ->  | C88: =IF('liste engagés'!$G83=1,'liste engagés'!B83,"") ->  | D88: =IF('liste engagés'!$G83=1,'liste engagés'!C83,"") ->  | E88: =IF('liste engagés'!$G83=1,'liste engagés'!D83,"") ->  | F88: =IF('liste engagés'!$G83=1,'liste engagés'!E83,"") ->  | G88: =IF('liste engagés'!$G83=1,'liste engagés'!K83,"") ->  | H88: =IF('liste engagés'!$G83=1,'liste engagés'!L83,"") ->  | I88: 0
A89: 83 | B89: =IF('liste engagés'!$G84=1,'liste engagés'!A84,"") ->  | C89: =IF('liste engagés'!$G84=1,'liste engagés'!B84,"") ->  | D89: =IF('liste engagés'!$G84=1,'liste engagés'!C84,"") ->  | E89: =IF('liste engagés'!$G84=1,'liste engagés'!D84,"") ->  | F89: =IF('liste engagés'!$G84=1,'liste engagés'!E84,"") ->  | G89: =IF('liste engagés'!$G84=1,'liste engagés'!K84,"") ->  | H89: =IF('liste engagés'!$G84=1,'liste engagés'!L84,"") ->  | I89: 0
A90: 84 | B90: =IF('liste engagés'!$G85=1,'liste engagés'!A85,"") ->  | C90: =IF('liste engagés'!$G85=1,'liste engagés'!B85,"") ->  | D90: =IF('liste engagés'!$G85=1,'liste engagés'!C85,"") ->  | E90: =IF('liste engagés'!$G85=1,'liste engagés'!D85,"") ->  | F90: =IF('liste engagés'!$G85=1,'liste engagés'!E85,"") ->  | G90: =IF('liste engagés'!$G85=1,'liste engagés'!K85,"") ->  | H90: =IF('liste engagés'!$G85=1,'liste engagés'!L85,"") ->  | I90: 0
A91: 85 | B91: =IF('liste engagés'!$G86=1,'liste engagés'!A86,"") ->  | C91: =IF('liste engagés'!$G86=1,'liste engagés'!B86,"") ->  | D91: =IF('liste engagés'!$G86=1,'liste engagés'!C86,"") ->  | E91: =IF('liste engagés'!$G86=1,'liste engagés'!D86,"") ->  | F91: =IF('liste engagés'!$G86=1,'liste engagés'!E86,"") ->  | G91: =IF('liste engagés'!$G86=1,'liste engagés'!K86,"") ->  | H91: =IF('liste engagés'!$G86=1,'liste engagés'!L86,"") ->  | I91: 0
A92: 86 | B92: =IF('liste engagés'!$G87=1,'liste engagés'!A87,"") ->  | C92: =IF('liste engagés'!$G87=1,'liste engagés'!B87,"") ->  | D92: =IF('liste engagés'!$G87=1,'liste engagés'!C87,"") ->  | E92: =IF('liste engagés'!$G87=1,'liste engagés'!D87,"") ->  | F92: =IF('liste engagés'!$G87=1,'liste engagés'!E87,"") ->  | G92: =IF('liste engagés'!$G87=1,'liste engagés'!K87,"") ->  | H92: =IF('liste engagés'!$G87=1,'liste engagés'!L87,"") ->  | I92: 0
A93: 87 | B93: =IF('liste engagés'!$G88=1,'liste engagés'!A88,"") ->  | C93: =IF('liste engagés'!$G88=1,'liste engagés'!B88,"") ->  | D93: =IF('liste engagés'!$G88=1,'liste engagés'!C88,"") ->  | E93: =IF('liste engagés'!$G88=1,'liste engagés'!D88,"") ->  | F93: =IF('liste engagés'!$G88=1,'liste engagés'!E88,"") ->  | G93: =IF('liste engagés'!$G88=1,'liste engagés'!K88,"") ->  | H93: =IF('liste engagés'!$G88=1,'liste engagés'!L88,"") ->  | I93: 0
A94: 88 | B94: =IF('liste engagés'!$G89=1,'liste engagés'!A89,"") ->  | C94: =IF('liste engagés'!$G89=1,'liste engagés'!B89,"") ->  | D94: =IF('liste engagés'!$G89=1,'liste engagés'!C89,"") ->  | E94: =IF('liste engagés'!$G89=1,'liste engagés'!D89,"") ->  | F94: =IF('liste engagés'!$G89=1,'liste engagés'!E89,"") ->  | G94: =IF('liste engagés'!$G89=1,'liste engagés'!K89,"") ->  | H94: =IF('liste engagés'!$G89=1,'liste engagés'!L89,"") ->  | I94: 0
A95: 89 | B95: =IF('liste engagés'!$G90=1,'liste engagés'!A90,"") ->  | C95: =IF('liste engagés'!$G90=1,'liste engagés'!B90,"") ->  | D95: =IF('liste engagés'!$G90=1,'liste engagés'!C90,"") ->  | E95: =IF('liste engagés'!$G90=1,'liste engagés'!D90,"") ->  | F95: =IF('liste engagés'!$G90=1,'liste engagés'!E90,"") ->  | G95: =IF('liste engagés'!$G90=1,'liste engagés'!K90,"") ->  | H95: =IF('liste engagés'!$G90=1,'liste engagés'!L90,"") ->  | I95: 0
A96: 90 | B96: =IF('liste engagés'!$G91=1,'liste engagés'!A91,"") ->  | C96: =IF('liste engagés'!$G91=1,'liste engagés'!B91,"") ->  | D96: =IF('liste engagés'!$G91=1,'liste engagés'!C91,"") ->  | E96: =IF('liste engagés'!$G91=1,'liste engagés'!D91,"") ->  | F96: =IF('liste engagés'!$G91=1,'liste engagés'!E91,"") ->  | G96: =IF('liste engagés'!$G91=1,'liste engagés'!K91,"") ->  | H96: =IF('liste engagés'!$G91=1,'liste engagés'!L91,"") ->  | I96: 0
A97: 91 | B97: =IF('liste engagés'!$G92=1,'liste engagés'!A92,"") ->  | C97: =IF('liste engagés'!$G92=1,'liste engagés'!B92,"") ->  | D97: =IF('liste engagés'!$G92=1,'liste engagés'!C92,"") ->  | E97: =IF('liste engagés'!$G92=1,'liste engagés'!D92,"") ->  | F97: =IF('liste engagés'!$G92=1,'liste engagés'!E92,"") ->  | G97: =IF('liste engagés'!$G92=1,'liste engagés'!K92,"") ->  | H97: =IF('liste engagés'!$G92=1,'liste engagés'!L92,"") ->  | I97: 0
A98: 92 | B98: =IF('liste engagés'!$G93=1,'liste engagés'!A93,"") ->  | C98: =IF('liste engagés'!$G93=1,'liste engagés'!B93,"") ->  | D98: =IF('liste engagés'!$G93=1,'liste engagés'!C93,"") ->  | E98: =IF('liste engagés'!$G93=1,'liste engagés'!D93,"") ->  | F98: =IF('liste engagés'!$G93=1,'liste engagés'!E93,"") ->  | G98: =IF('liste engagés'!$G93=1,'liste engagés'!K93,"") ->  | H98: =IF('liste engagés'!$G93=1,'liste engagés'!L93,"") ->  | I98: 0
A99: 93 | B99: =IF('liste engagés'!$G94=1,'liste engagés'!A94,"") ->  | C99: =IF('liste engagés'!$G94=1,'liste engagés'!B94,"") ->  | D99: =IF('liste engagés'!$G94=1,'liste engagés'!C94,"") ->  | E99: =IF('liste engagés'!$G94=1,'liste engagés'!D94,"") ->  | F99: =IF('liste engagés'!$G94=1,'liste engagés'!E94,"") ->  | G99: =IF('liste engagés'!$G94=1,'liste engagés'!K94,"") ->  | H99: =IF('liste engagés'!$G94=1,'liste engagés'!L94,"") ->  | I99: 0
A100: 94 | B100: =IF('liste engagés'!$G95=1,'liste engagés'!A95,"") ->  | C100: =IF('liste engagés'!$G95=1,'liste engagés'!B95,"") ->  | D100: =IF('liste engagés'!$G95=1,'liste engagés'!C95,"") ->  | E100: =IF('liste engagés'!$G95=1,'liste engagés'!D95,"") ->  | F100: =IF('liste engagés'!$G95=1,'liste engagés'!E95,"") ->  | G100: =IF('liste engagés'!$G95=1,'liste engagés'!K95,"") ->  | H100: =IF('liste engagés'!$G95=1,'liste engagés'!L95,"") ->  | I100: 0
A101: 95 | B101: =IF('liste engagés'!$G96=1,'liste engagés'!A96,"") ->  | C101: =IF('liste engagés'!$G96=1,'liste engagés'!B96,"") ->  | D101: =IF('liste engagés'!$G96=1,'liste engagés'!C96,"") ->  | E101: =IF('liste engagés'!$G96=1,'liste engagés'!D96,"") ->  | F101: =IF('liste engagés'!$G96=1,'liste engagés'!E96,"") ->  | G101: =IF('liste engagés'!$G96=1,'liste engagés'!K96,"") ->  | H101: =IF('liste engagés'!$G96=1,'liste engagés'!L96,"") ->  | I101: 0
A102: 96 | B102: =IF('liste engagés'!$G97=1,'liste engagés'!A97,"") ->  | C102: =IF('liste engagés'!$G97=1,'liste engagés'!B97,"") ->  | D102: =IF('liste engagés'!$G97=1,'liste engagés'!C97,"") ->  | E102: =IF('liste engagés'!$G97=1,'liste engagés'!D97,"") ->  | F102: =IF('liste engagés'!$G97=1,'liste engagés'!E97,"") ->  | G102: =IF('liste engagés'!$G97=1,'liste engagés'!K97,"") ->  | H102: =IF('liste engagés'!$G97=1,'liste engagés'!L97,"") ->  | I102: 0
A103: 97 | B103: =IF('liste engagés'!$G98=1,'liste engagés'!A98,"") ->  | C103: =IF('liste engagés'!$G98=1,'liste engagés'!B98,"") ->  | D103: =IF('liste engagés'!$G98=1,'liste engagés'!C98,"") ->  | E103: =IF('liste engagés'!$G98=1,'liste engagés'!D98,"") ->  | F103: =IF('liste engagés'!$G98=1,'liste engagés'!E98,"") ->  | G103: =IF('liste engagés'!$G98=1,'liste engagés'!K98,"") ->  | H103: =IF('liste engagés'!$G98=1,'liste engagés'!L98,"") ->  | I103: 0
A104: 98 | B104: =IF('liste engagés'!$G99=1,'liste engagés'!A99,"") ->  | C104: =IF('liste engagés'!$G99=1,'liste engagés'!B99,"") ->  | D104: =IF('liste engagés'!$G99=1,'liste engagés'!C99,"") ->  | E104: =IF('liste engagés'!$G99=1,'liste engagés'!D99,"") ->  | F104: =IF('liste engagés'!$G99=1,'liste engagés'!E99,"") ->  | G104: =IF('liste engagés'!$G99=1,'liste engagés'!K99,"") ->  | H104: =IF('liste engagés'!$G99=1,'liste engagés'!L99,"") ->  | I104: 0
A105: 99 | B105: =IF('liste engagés'!$G100=1,'liste engagés'!A100,"") ->  | C105: =IF('liste engagés'!$G100=1,'liste engagés'!B100,"") ->  | D105: =IF('liste engagés'!$G100=1,'liste engagés'!C100,"") ->  | E105: =IF('liste engagés'!$G100=1,'liste engagés'!D100,"") ->  | F105: =IF('liste engagés'!$G100=1,'liste engagés'!E100,"") ->  | G105: =IF('liste engagés'!$G100=1,'liste engagés'!K100,"") ->  | H105: =IF('liste engagés'!$G100=1,'liste engagés'!L100,"") ->  | I105: 0
A106: 100 | B106: =IF('liste engagés'!$G101=1,'liste engagés'!A101,"") ->  | C106: =IF('liste engagés'!$G101=1,'liste engagés'!B101,"") ->  | D106: =IF('liste engagés'!$G101=1,'liste engagés'!C101,"") ->  | E106: =IF('liste engagés'!$G101=1,'liste engagés'!D101,"") ->  | F106: =IF('liste engagés'!$G101=1,'liste engagés'!E101,"") ->  | G106: =IF('liste engagés'!$G101=1,'liste engagés'!K101,"") ->  | H106: =IF('liste engagés'!$G101=1,'liste engagés'!L101,"") ->  | I106: 0
A107: 101 | B107: =IF('liste engagés'!$G102=1,'liste engagés'!A102,"") ->  | C107: =IF('liste engagés'!$G102=1,'liste engagés'!B102,"") ->  | D107: =IF('liste engagés'!$G102=1,'liste engagés'!C102,"") ->  | E107: =IF('liste engagés'!$G102=1,'liste engagés'!D102,"") ->  | F107: =IF('liste engagés'!$G102=1,'liste engagés'!E102,"") ->  | G107: =IF('liste engagés'!$G102=1,'liste engagés'!K102,"") ->  | H107: =IF('liste engagés'!$G102=1,'liste engagés'!L102,"") ->  | I107: 0
A108: 102 | B108: =IF('liste engagés'!$G103=1,'liste engagés'!A103,"") ->  | C108: =IF('liste engagés'!$G103=1,'liste engagés'!B103,"") ->  | D108: =IF('liste engagés'!$G103=1,'liste engagés'!C103,"") ->  | E108: =IF('liste engagés'!$G103=1,'liste engagés'!D103,"") ->  | F108: =IF('liste engagés'!$G103=1,'liste engagés'!E103,"") ->  | G108: =IF('liste engagés'!$G103=1,'liste engagés'!K103,"") ->  | H108: =IF('liste engagés'!$G103=1,'liste engagés'!L103,"") ->  | I108: 0
A109: 103 | B109: =IF('liste engagés'!$G104=1,'liste engagés'!A104,"") ->  | C109: =IF('liste engagés'!$G104=1,'liste engagés'!B104,"") ->  | D109: =IF('liste engagés'!$G104=1,'liste engagés'!C104,"") ->  | E109: =IF('liste engagés'!$G104=1,'liste engagés'!D104,"") ->  | F109: =IF('liste engagés'!$G104=1,'liste engagés'!E104,"") ->  | G109: =IF('liste engagés'!$G104=1,'liste engagés'!K104,"") ->  | H109: =IF('liste engagés'!$G104=1,'liste engagés'!L104,"") ->  | I109: 0
A110: 104 | B110: =IF('liste engagés'!$G105=1,'liste engagés'!A105,"") ->  | C110: =IF('liste engagés'!$G105=1,'liste engagés'!B105,"") ->  | D110: =IF('liste engagés'!$G105=1,'liste engagés'!C105,"") ->  | E110: =IF('liste engagés'!$G105=1,'liste engagés'!D105,"") ->  | F110: =IF('liste engagés'!$G105=1,'liste engagés'!E105,"") ->  | G110: =IF('liste engagés'!$G105=1,'liste engagés'!K105,"") ->  | H110: =IF('liste engagés'!$G105=1,'liste engagés'!L105,"") ->  | I110: 0
A111: 105 | B111: =IF('liste engagés'!$G106=1,'liste engagés'!A106,"") ->  | C111: =IF('liste engagés'!$G106=1,'liste engagés'!B106,"") ->  | D111: =IF('liste engagés'!$G106=1,'liste engagés'!C106,"") ->  | E111: =IF('liste engagés'!$G106=1,'liste engagés'!D106,"") ->  | F111: =IF('liste engagés'!$G106=1,'liste engagés'!E106,"") ->  | G111: =IF('liste engagés'!$G106=1,'liste engagés'!K106,"") ->  | H111: =IF('liste engagés'!$G106=1,'liste engagés'!L106,"") ->  | I111: 0
A112: 106 | B112: =IF('liste engagés'!$G107=1,'liste engagés'!A107,"") ->  | C112: =IF('liste engagés'!$G107=1,'liste engagés'!B107,"") ->  | D112: =IF('liste engagés'!$G107=1,'liste engagés'!C107,"") ->  | E112: =IF('liste engagés'!$G107=1,'liste engagés'!D107,"") ->  | F112: =IF('liste engagés'!$G107=1,'liste engagés'!E107,"") ->  | G112: =IF('liste engagés'!$G107=1,'liste engagés'!K107,"") ->  | H112: =IF('liste engagés'!$G107=1,'liste engagés'!L107,"") ->  | I112: 0
A113: 107 | B113: =IF('liste engagés'!$G108=1,'liste engagés'!A108,"") ->  | C113: =IF('liste engagés'!$G108=1,'liste engagés'!B108,"") ->  | D113: =IF('liste engagés'!$G108=1,'liste engagés'!C108,"") ->  | E113: =IF('liste engagés'!$G108=1,'liste engagés'!D108,"") ->  | F113: =IF('liste engagés'!$G108=1,'liste engagés'!E108,"") ->  | G113: =IF('liste engagés'!$G108=1,'liste engagés'!K108,"") ->  | H113: =IF('liste engagés'!$G108=1,'liste engagés'!L108,"") ->  | I113: 0
A114: 108 | B114: =IF('liste engagés'!$G109=1,'liste engagés'!A109,"") ->  | C114: =IF('liste engagés'!$G109=1,'liste engagés'!B109,"") ->  | D114: =IF('liste engagés'!$G109=1,'liste engagés'!C109,"") ->  | E114: =IF('liste engagés'!$G109=1,'liste engagés'!D109,"") ->  | F114: =IF('liste engagés'!$G109=1,'liste engagés'!E109,"") ->  | G114: =IF('liste engagés'!$G109=1,'liste engagés'!K109,"") ->  | H114: =IF('liste engagés'!$G109=1,'liste engagés'!L109,"") ->  | I114: 0
A115: 109 | B115: =IF('liste engagés'!$G110=1,'liste engagés'!A110,"") ->  | C115: =IF('liste engagés'!$G110=1,'liste engagés'!B110,"") ->  | D115: =IF('liste engagés'!$G110=1,'liste engagés'!C110,"") ->  | E115: =IF('liste engagés'!$G110=1,'liste engagés'!D110,"") ->  | F115: =IF('liste engagés'!$G110=1,'liste engagés'!E110,"") ->  | G115: =IF('liste engagés'!$G110=1,'liste engagés'!K110,"") ->  | H115: =IF('liste engagés'!$G110=1,'liste engagés'!L110,"") ->  | I115: 0
A116: 110 | B116: =IF('liste engagés'!$G111=1,'liste engagés'!A111,"") ->  | C116: =IF('liste engagés'!$G111=1,'liste engagés'!B111,"") ->  | D116: =IF('liste engagés'!$G111=1,'liste engagés'!C111,"") ->  | E116: =IF('liste engagés'!$G111=1,'liste engagés'!D111,"") ->  | F116: =IF('liste engagés'!$G111=1,'liste engagés'!E111,"") ->  | G116: =IF('liste engagés'!$G111=1,'liste engagés'!K111,"") ->  | H116: =IF('liste engagés'!$G111=1,'liste engagés'!L111,"") ->  | I116: 0
A117: 111 | B117: =IF('liste engagés'!$G112=1,'liste engagés'!A112,"") ->  | C117: =IF('liste engagés'!$G112=1,'liste engagés'!B112,"") ->  | D117: =IF('liste engagés'!$G112=1,'liste engagés'!C112,"") ->  | E117: =IF('liste engagés'!$G112=1,'liste engagés'!D112,"") ->  | F117: =IF('liste engagés'!$G112=1,'liste engagés'!E112,"") ->  | G117: =IF('liste engagés'!$G112=1,'liste engagés'!K112,"") ->  | H117: =IF('liste engagés'!$G112=1,'liste engagés'!L112,"") ->  | I117: 0
A118: 112 | B118: =IF('liste engagés'!$G113=1,'liste engagés'!A113,"") ->  | C118: =IF('liste engagés'!$G113=1,'liste engagés'!B113,"") ->  | D118: =IF('liste engagés'!$G113=1,'liste engagés'!C113,"") ->  | E118: =IF('liste engagés'!$G113=1,'liste engagés'!D113,"") ->  | F118: =IF('liste engagés'!$G113=1,'liste engagés'!E113,"") ->  | G118: =IF('liste engagés'!$G113=1,'liste engagés'!K113,"") ->  | H118: =IF('liste engagés'!$G113=1,'liste engagés'!L113,"") ->  | I118: 0
A119: 113 | B119: =IF('liste engagés'!$G114=1,'liste engagés'!A114,"") ->  | C119: =IF('liste engagés'!$G114=1,'liste engagés'!B114,"") ->  | D119: =IF('liste engagés'!$G114=1,'liste engagés'!C114,"") ->  | E119: =IF('liste engagés'!$G114=1,'liste engagés'!D114,"") ->  | F119: =IF('liste engagés'!$G114=1,'liste engagés'!E114,"") ->  | G119: =IF('liste engagés'!$G114=1,'liste engagés'!K114,"") ->  | H119: =IF('liste engagés'!$G114=1,'liste engagés'!L114,"") ->  | I119: 0
A120: 114 | B120: =IF('liste engagés'!$G115=1,'liste engagés'!A115,"") ->  | C120: =IF('liste engagés'!$G115=1,'liste engagés'!B115,"") ->  | D120: =IF('liste engagés'!$G115=1,'liste engagés'!C115,"") ->  | E120: =IF('liste engagés'!$G115=1,'liste engagés'!D115,"") ->  | F120: =IF('liste engagés'!$G115=1,'liste engagés'!E115,"") ->  | G120: =IF('liste engagés'!$G115=1,'liste engagés'!K115,"") ->  | H120: =IF('liste engagés'!$G115=1,'liste engagés'!L115,"") ->  | I120: 0
A121: 115 | B121: =IF('liste engagés'!$G117=1,'liste engagés'!A117,"") ->  | C121: =IF('liste engagés'!$G117=1,'liste engagés'!B117,"") ->  | D121: =IF('liste engagés'!$G117=1,'liste engagés'!C117,"") ->  | E121: =IF('liste engagés'!$G117=1,'liste engagés'!D117,"") ->  | F121: =IF('liste engagés'!$G117=1,'liste engagés'!E117,"") ->  | G121: =IF('liste engagés'!$G117=1,'liste engagés'!K117,"") ->  | H121: =IF('liste engagés'!$G117=1,'liste engagés'!L117,"") ->  | I121: 0
A122: 116 | B122: =IF('liste engagés'!$G118=1,'liste engagés'!A118,"") ->  | C122: =IF('liste engagés'!$G118=1,'liste engagés'!B118,"") ->  | D122: =IF('liste engagés'!$G118=1,'liste engagés'!C118,"") ->  | E122: =IF('liste engagés'!$G118=1,'liste engagés'!D118,"") ->  | F122: =IF('liste engagés'!$G118=1,'liste engagés'!E118,"") ->  | G122: =IF('liste engagés'!$G118=1,'liste engagés'!K118,"") ->  | H122: =IF('liste engagés'!$G118=1,'liste engagés'!L118,"") ->  | I122: 0
A123: 117 | B123: =IF('liste engagés'!$G119=1,'liste engagés'!A119,"") ->  | C123: =IF('liste engagés'!$G119=1,'liste engagés'!B119,"") ->  | D123: =IF('liste engagés'!$G119=1,'liste engagés'!C119,"") ->  | E123: =IF('liste engagés'!$G119=1,'liste engagés'!D119,"") ->  | F123: =IF('liste engagés'!$G119=1,'liste engagés'!E119,"") ->  | G123: =IF('liste engagés'!$G119=1,'liste engagés'!K119,"") ->  | H123: =IF('liste engagés'!$G119=1,'liste engagés'!L119,"") ->  | I123: 0
A124: 118 | B124: =IF('liste engagés'!$G120=1,'liste engagés'!A120,"") ->  | C124: =IF('liste engagés'!$G120=1,'liste engagés'!B120,"") ->  | D124: =IF('liste engagés'!$G120=1,'liste engagés'!C120,"") ->  | E124: =IF('liste engagés'!$G120=1,'liste engagés'!D120,"") ->  | F124: =IF('liste engagés'!$G120=1,'liste engagés'!E120,"") ->  | G124: =IF('liste engagés'!$G120=1,'liste engagés'!K120,"") ->  | H124: =IF('liste engagés'!$G120=1,'liste engagés'!L120,"") ->  | I124: 0
A125: 119 | B125: =IF('liste engagés'!$G122=1,'liste engagés'!A122,"") ->  | C125: =IF('liste engagés'!$G122=1,'liste engagés'!B122,"") ->  | D125: =IF('liste engagés'!$G122=1,'liste engagés'!C122,"") ->  | E125: =IF('liste engagés'!$G122=1,'liste engagés'!D122,"") ->  | F125: =IF('liste engagés'!$G122=1,'liste engagés'!E122,"") ->  | G125: =IF('liste engagés'!$G122=1,'liste engagés'!K122,"") ->  | H125: =IF('liste engagés'!$G122=1,'liste engagés'!L122,"") ->  | I125: 0
A126: 120 | B126: =IF('liste engagés'!$G123=1,'liste engagés'!A123,"") ->  | C126: =IF('liste engagés'!$G123=1,'liste engagés'!B123,"") ->  | D126: =IF('liste engagés'!$G123=1,'liste engagés'!C123,"") ->  | E126: =IF('liste engagés'!$G123=1,'liste engagés'!D123,"") ->  | F126: =IF('liste engagés'!$G123=1,'liste engagés'!E123,"") ->  | G126: =IF('liste engagés'!$G123=1,'liste engagés'!K123,"") ->  | H126: =IF('liste engagés'!$G123=1,'liste engagés'!L123,"") ->  | I126: 0
A127: 121 | B127: =IF('liste engagés'!$G124=1,'liste engagés'!A124,"") ->  | C127: =IF('liste engagés'!$G124=1,'liste engagés'!B124,"") ->  | D127: =IF('liste engagés'!$G124=1,'liste engagés'!C124,"") ->  | E127: =IF('liste engagés'!$G124=1,'liste engagés'!D124,"") ->  | F127: =IF('liste engagés'!$G124=1,'liste engagés'!E124,"") ->  | G127: =IF('liste engagés'!$G124=1,'liste engagés'!K124,"") ->  | H127: =IF('liste engagés'!$G124=1,'liste engagés'!L124,"") ->  | I127: 0
A128: 122 | B128: =IF('liste engagés'!$G125=1,'liste engagés'!A125,"") ->  | C128: =IF('liste engagés'!$G125=1,'liste engagés'!B125,"") ->  | D128: =IF('liste engagés'!$G125=1,'liste engagés'!C125,"") ->  | E128: =IF('liste engagés'!$G125=1,'liste engagés'!D125,"") ->  | F128: =IF('liste engagés'!$G125=1,'liste engagés'!E125,"") ->  | G128: =IF('liste engagés'!$G125=1,'liste engagés'!K125,"") ->  | H128: =IF('liste engagés'!$G125=1,'liste engagés'!L125,"") ->  | I128: 0
A129: 123 | B129: =IF('liste engagés'!$G126=1,'liste engagés'!A126,"") ->  | C129: =IF('liste engagés'!$G126=1,'liste engagés'!B126,"") ->  | D129: =IF('liste engagés'!$G126=1,'liste engagés'!C126,"") ->  | E129: =IF('liste engagés'!$G126=1,'liste engagés'!D126,"") ->  | F129: =IF('liste engagés'!$G126=1,'liste engagés'!E126,"") ->  | G129: =IF('liste engagés'!$G126=1,'liste engagés'!K126,"") ->  | H129: =IF('liste engagés'!$G126=1,'liste engagés'!L126,"") ->  | I129: 0
A130: 124 | B130: =IF('liste engagés'!$G127=1,'liste engagés'!A127,"") ->  | C130: =IF('liste engagés'!$G127=1,'liste engagés'!B127,"") ->  | D130: =IF('liste engagés'!$G127=1,'liste engagés'!C127,"") ->  | E130: =IF('liste engagés'!$G127=1,'liste engagés'!D127,"") ->  | F130: =IF('liste engagés'!$G127=1,'liste engagés'!E127,"") ->  | G130: =IF('liste engagés'!$G127=1,'liste engagés'!K127,"") ->  | H130: =IF('liste engagés'!$G127=1,'liste engagés'!L127,"") ->  | I130: 0
A131: 125 | B131: =IF('liste engagés'!$G129=1,'liste engagés'!A129,"") ->  | C131: =IF('liste engagés'!$G129=1,'liste engagés'!B129,"") ->  | D131: =IF('liste engagés'!$G129=1,'liste engagés'!C129,"") ->  | E131: =IF('liste engagés'!$G129=1,'liste engagés'!D129,"") ->  | F131: =IF('liste engagés'!$G129=1,'liste engagés'!E129,"") ->  | G131: =IF('liste engagés'!$G129=1,'liste engagés'!K129,"") ->  | H131: =IF('liste engagés'!$G129=1,'liste engagés'!L129,"") ->  | I131: 0
A132: 126 | B132: =IF('liste engagés'!$G130=1,'liste engagés'!A130,"") ->  | C132: =IF('liste engagés'!$G130=1,'liste engagés'!B130,"") ->  | D132: =IF('liste engagés'!$G130=1,'liste engagés'!C130,"") ->  | E132: =IF('liste engagés'!$G130=1,'liste engagés'!D130,"") ->  | F132: =IF('liste engagés'!$G130=1,'liste engagés'!E130,"") ->  | G132: =IF('liste engagés'!$G130=1,'liste engagés'!K130,"") ->  | H132: =IF('liste engagés'!$G130=1,'liste engagés'!L130,"") ->  | I132: 0
A133: 127 | B133: =IF('liste engagés'!$G131=1,'liste engagés'!A131,"") ->  | C133: =IF('liste engagés'!$G131=1,'liste engagés'!B131,"") ->  | D133: =IF('liste engagés'!$G131=1,'liste engagés'!C131,"") ->  | E133: =IF('liste engagés'!$G131=1,'liste engagés'!D131,"") ->  | F133: =IF('liste engagés'!$G131=1,'liste engagés'!E131,"") ->  | G133: =IF('liste engagés'!$G131=1,'liste engagés'!K131,"") ->  | H133: =IF('liste engagés'!$G131=1,'liste engagés'!L131,"") ->  | I133: 0
A134: 128 | B134: =IF('liste engagés'!$G132=1,'liste engagés'!A132,"") ->  | C134: =IF('liste engagés'!$G132=1,'liste engagés'!B132,"") ->  | D134: =IF('liste engagés'!$G132=1,'liste engagés'!C132,"") ->  | E134: =IF('liste engagés'!$G132=1,'liste engagés'!D132,"") ->  | F134: =IF('liste engagés'!$G132=1,'liste engagés'!E132,"") ->  | G134: =IF('liste engagés'!$G132=1,'liste engagés'!K132,"") ->  | H134: =IF('liste engagés'!$G132=1,'liste engagés'!L132,"") ->  | I134: 0
A135: 129 | B135: =IF('liste engagés'!$G133=1,'liste engagés'!A133,"") ->  | C135: =IF('liste engagés'!$G133=1,'liste engagés'!B133,"") ->  | D135: =IF('liste engagés'!$G133=1,'liste engagés'!C133,"") ->  | E135: =IF('liste engagés'!$G133=1,'liste engagés'!D133,"") ->  | F135: =IF('liste engagés'!$G133=1,'liste engagés'!E133,"") ->  | G135: =IF('liste engagés'!$G133=1,'liste engagés'!K133,"") ->  | H135: =IF('liste engagés'!$G133=1,'liste engagés'!L133,"") ->  | I135: =+IF(C135="",0,1) -> 0
A136: =+A135+1 -> 130 | B136: =IF('liste engagés'!$G134=1,'liste engagés'!A134,"") ->  | C136: =IF('liste engagés'!$G134=1,'liste engagés'!B134,"") ->  | D136: =IF('liste engagés'!$G134=1,'liste engagés'!C134,"") ->  | E136: =IF('liste engagés'!$G134=1,'liste engagés'!D134,"") ->  | F136: =IF('liste engagés'!$G134=1,'liste engagés'!E134,"") ->  | G136: =IF('liste engagés'!$G134=1,'liste engagés'!K134,"") ->  | H136: =IF('liste engagés'!$G134=1,'liste engagés'!L134,"") ->  | I136: 0
A137: 131 | B137: =IF('liste engagés'!$G135=1,'liste engagés'!A135,"") ->  | C137: =IF('liste engagés'!$G135=1,'liste engagés'!B135,"") ->  | D137: =IF('liste engagés'!$G135=1,'liste engagés'!C135,"") ->  | E137: =IF('liste engagés'!$G135=1,'liste engagés'!D135,"") ->  | F137: =IF('liste engagés'!$G135=1,'liste engagés'!E135,"") ->  | G137: =IF('liste engagés'!$G135=1,'liste engagés'!K135,"") ->  | H137: =IF('liste engagés'!$G135=1,'liste engagés'!L135,"") ->  | I137: 0
A138: 132 | B138: =IF('liste engagés'!$G136=1,'liste engagés'!A136,"") ->  | C138: =IF('liste engagés'!$G136=1,'liste engagés'!B136,"") ->  | D138: =IF('liste engagés'!$G136=1,'liste engagés'!C136,"") ->  | E138: =IF('liste engagés'!$G136=1,'liste engagés'!D136,"") ->  | F138: =IF('liste engagés'!$G136=1,'liste engagés'!E136,"") ->  | G138: =IF('liste engagés'!$G136=1,'liste engagés'!K136,"") ->  | H138: =IF('liste engagés'!$G136=1,'liste engagés'!L136,"") ->  | I138: 0
A139: 133 | B139: =IF('liste engagés'!$G138=1,'liste engagés'!A138,"") ->  | C139: =IF('liste engagés'!$G138=1,'liste engagés'!B138,"") ->  | D139: =IF('liste engagés'!$G138=1,'liste engagés'!C138,"") ->  | E139: =IF('liste engagés'!$G138=1,'liste engagés'!D138,"") ->  | F139: =IF('liste engagés'!$G138=1,'liste engagés'!E138,"") ->  | G139: =IF('liste engagés'!$G138=1,'liste engagés'!K138,"") ->  | H139: =IF('liste engagés'!$G138=1,'liste engagés'!L138,"") ->  | I139: 0
A140: 134 | B140: =IF('liste engagés'!$G139=1,'liste engagés'!A139,"") ->  | C140: =IF('liste engagés'!$G139=1,'liste engagés'!B139,"") ->  | D140: =IF('liste engagés'!$G139=1,'liste engagés'!C139,"") ->  | E140: =IF('liste engagés'!$G139=1,'liste engagés'!D139,"") ->  | F140: =IF('liste engagés'!$G139=1,'liste engagés'!E139,"") ->  | G140: =IF('liste engagés'!$G139=1,'liste engagés'!K139,"") ->  | H140: =IF('liste engagés'!$G139=1,'liste engagés'!L139,"") ->  | I140: 0
A141: 135 | B141: =IF('liste engagés'!$G140=1,'liste engagés'!A140,"") ->  | C141: =IF('liste engagés'!$G140=1,'liste engagés'!B140,"") ->  | D141: =IF('liste engagés'!$G140=1,'liste engagés'!C140,"") ->  | E141: =IF('liste engagés'!$G140=1,'liste engagés'!D140,"") ->  | F141: =IF('liste engagés'!$G140=1,'liste engagés'!E140,"") ->  | G141: =IF('liste engagés'!$G140=1,'liste engagés'!K140,"") ->  | H141: =IF('liste engagés'!$G140=1,'liste engagés'!L140,"") ->  | I141: 0
A142: 136 | B142: =IF('liste engagés'!$G141=1,'liste engagés'!A141,"") ->  | C142: =IF('liste engagés'!$G141=1,'liste engagés'!B141,"") ->  | D142: =IF('liste engagés'!$G141=1,'liste engagés'!C141,"") ->  | E142: =IF('liste engagés'!$G141=1,'liste engagés'!D141,"") ->  | F142: =IF('liste engagés'!$G141=1,'liste engagés'!E141,"") ->  | G142: =IF('liste engagés'!$G141=1,'liste engagés'!K141,"") ->  | H142: =IF('liste engagés'!$G141=1,'liste engagés'!L141,"") ->  | I142: 0
A143: 137 | B143: =IF('liste engagés'!$G142=1,'liste engagés'!A142,"") ->  | C143: =IF('liste engagés'!$G142=1,'liste engagés'!B142,"") ->  | D143: =IF('liste engagés'!$G142=1,'liste engagés'!C142,"") ->  | E143: =IF('liste engagés'!$G142=1,'liste engagés'!D142,"") ->  | F143: =IF('liste engagés'!$G142=1,'liste engagés'!E142,"") ->  | G143: =IF('liste engagés'!$G142=1,'liste engagés'!K142,"") ->  | H143: =IF('liste engagés'!$G142=1,'liste engagés'!L142,"") ->  | I143: 0
A144: 138 | B144: =IF('liste engagés'!$G143=1,'liste engagés'!A143,"") ->  | C144: =IF('liste engagés'!$G143=1,'liste engagés'!B143,"") ->  | D144: =IF('liste engagés'!$G143=1,'liste engagés'!C143,"") ->  | E144: =IF('liste engagés'!$G143=1,'liste engagés'!D143,"") ->  | F144: =IF('liste engagés'!$G143=1,'liste engagés'!E143,"") ->  | G144: =IF('liste engagés'!$G143=1,'liste engagés'!K143,"") ->  | H144: =IF('liste engagés'!$G143=1,'liste engagés'!L143,"") ->  | I144: 0
A145: 139 | B145: =IF('liste engagés'!$G144=1,'liste engagés'!A144,"") ->  | C145: =IF('liste engagés'!$G144=1,'liste engagés'!B144,"") ->  | D145: =IF('liste engagés'!$G144=1,'liste engagés'!C144,"") ->  | E145: =IF('liste engagés'!$G144=1,'liste engagés'!D144,"") ->  | F145: =IF('liste engagés'!$G144=1,'liste engagés'!E144,"") ->  | G145: =IF('liste engagés'!$G144=1,'liste engagés'!K144,"") ->  | H145: =IF('liste engagés'!$G144=1,'liste engagés'!L144,"") ->  | I145: 0
A146: 140 | B146: =IF('liste engagés'!$G145=1,'liste engagés'!A145,"") ->  | C146: =IF('liste engagés'!$G145=1,'liste engagés'!B145,"") ->  | D146: =IF('liste engagés'!$G145=1,'liste engagés'!#REF!,"") ->  | E146: =IF('liste engagés'!$G145=1,'liste engagés'!D145,"") ->  | F146: =IF('liste engagés'!$G145=1,'liste engagés'!E145,"") ->  | G146: =IF('liste engagés'!$G145=1,'liste engagés'!K145,"") ->  | H146: =IF('liste engagés'!$G145=1,'liste engagés'!L145,"") ->  | I146: 0
A147: 141 | B147: =IF('liste engagés'!$G146=1,'liste engagés'!A146,"") ->  | C147: =IF('liste engagés'!$G146=1,'liste engagés'!B146,"") ->  | D147: =IF('liste engagés'!$G146=1,'liste engagés'!C145,"") ->  | E147: =IF('liste engagés'!$G146=1,'liste engagés'!D146,"") ->  | F147: =IF('liste engagés'!$G146=1,'liste engagés'!E146,"") ->  | G147: =IF('liste engagés'!$G146=1,'liste engagés'!K146,"") ->  | H147: =IF('liste engagés'!$G146=1,'liste engagés'!L146,"") ->  | I147: 0
A148: 142 | B148: =IF('liste engagés'!$G147=1,'liste engagés'!A147,"") ->  | C148: =IF('liste engagés'!$G147=1,'liste engagés'!B147,"") ->  | D148: =IF('liste engagés'!$G147=1,'liste engagés'!C147,"") ->  | E148: =IF('liste engagés'!$G147=1,'liste engagés'!D147,"") ->  | F148: =IF('liste engagés'!$G147=1,'liste engagés'!E147,"") ->  | G148: =IF('liste engagés'!$G147=1,'liste engagés'!K147,"") ->  | H148: =IF('liste engagés'!$G147=1,'liste engagés'!L147,"") ->  | I148: 0
A149: 143 | B149: =IF('liste engagés'!$G148=1,'liste engagés'!A148,"") ->  | C149: =IF('liste engagés'!$G148=1,'liste engagés'!B148,"") ->  | D149: =IF('liste engagés'!$G148=1,'liste engagés'!C148,"") ->  | E149: =IF('liste engagés'!$G148=1,'liste engagés'!D148,"") ->  | F149: =IF('liste engagés'!$G148=1,'liste engagés'!E148,"") ->  | G149: =IF('liste engagés'!$G148=1,'liste engagés'!K148,"") ->  | H149: =IF('liste engagés'!$G148=1,'liste engagés'!L148,"") ->  | I149: 0
A150: 144 | B150: =IF('liste engagés'!$G149=1,'liste engagés'!A149,"") ->  | C150: =IF('liste engagés'!$G149=1,'liste engagés'!B149,"") ->  | D150: =IF('liste engagés'!$G149=1,'liste engagés'!C149,"") ->  | E150: =IF('liste engagés'!$G149=1,'liste engagés'!D149,"") ->  | F150: =IF('liste engagés'!$G149=1,'liste engagés'!E149,"") ->  | G150: =IF('liste engagés'!$G149=1,'liste engagés'!K149,"") ->  | H150: =IF('liste engagés'!$G149=1,'liste engagés'!L149,"") ->  | I150: 0
A151: 145 | B151: =IF('liste engagés'!$G150=1,'liste engagés'!A150,"") ->  | C151: =IF('liste engagés'!$G150=1,'liste engagés'!B150,"") ->  | D151: =IF('liste engagés'!$G150=1,'liste engagés'!C150,"") ->  | E151: =IF('liste engagés'!$G150=1,'liste engagés'!D150,"") ->  | F151: =IF('liste engagés'!$G150=1,'liste engagés'!E150,"") ->  | G151: =IF('liste engagés'!$G150=1,'liste engagés'!K150,"") ->  | H151: =IF('liste engagés'!$G150=1,'liste engagés'!L150,"") ->  | I151: 0
A152: 146 | B152: =IF('liste engagés'!$G151=1,'liste engagés'!A151,"") ->  | C152: =IF('liste engagés'!$G151=1,'liste engagés'!B151,"") ->  | D152: =IF('liste engagés'!$G151=1,'liste engagés'!C151,"") ->  | E152: =IF('liste engagés'!$G151=1,'liste engagés'!D151,"") ->  | F152: =IF('liste engagés'!$G151=1,'liste engagés'!E151,"") ->  | G152: =IF('liste engagés'!$G151=1,'liste engagés'!K151,"") ->  | H152: =IF('liste engagés'!$G151=1,'liste engagés'!L151,"") ->  | I152: 0
A153: 147 | B153: =IF('liste engagés'!$G152=1,'liste engagés'!A152,"") ->  | C153: =IF('liste engagés'!$G152=1,'liste engagés'!B152,"") ->  | D153: =IF('liste engagés'!$G152=1,'liste engagés'!C152,"") ->  | E153: =IF('liste engagés'!$G152=1,'liste engagés'!D152,"") ->  | F153: =IF('liste engagés'!$G152=1,'liste engagés'!E152,"") ->  | G153: =IF('liste engagés'!$G152=1,'liste engagés'!K152,"") ->  | H153: =IF('liste engagés'!$G152=1,'liste engagés'!L152,"") ->  | I153: 0
A154: 148 | B154: =IF('liste engagés'!$G153=1,'liste engagés'!A153,"") ->  | C154: =IF('liste engagés'!$G153=1,'liste engagés'!B153,"") ->  | D154: =IF('liste engagés'!$G153=1,'liste engagés'!C153,"") ->  | E154: =IF('liste engagés'!$G153=1,'liste engagés'!D153,"") ->  | F154: =IF('liste engagés'!$G153=1,'liste engagés'!E153,"") ->  | G154: =IF('liste engagés'!$G153=1,'liste engagés'!K153,"") ->  | H154: =IF('liste engagés'!$G153=1,'liste engagés'!L153,"") ->  | I154: 0
A155: 149 | B155: =IF('liste engagés'!$G154=1,'liste engagés'!A154,"") ->  | C155: =IF('liste engagés'!$G154=1,'liste engagés'!B154,"") ->  | D155: =IF('liste engagés'!$G154=1,'liste engagés'!C154,"") ->  | E155: =IF('liste engagés'!$G154=1,'liste engagés'!D154,"") ->  | F155: =IF('liste engagés'!$G154=1,'liste engagés'!E154,"") ->  | G155: =IF('liste engagés'!$G154=1,'liste engagés'!K154,"") ->  | H155: =IF('liste engagés'!$G154=1,'liste engagés'!L154,"") ->  | I155: 0
A156: 150 | B156: =IF('liste engagés'!$G155=1,'liste engagés'!A155,"") ->  | C156: =IF('liste engagés'!$G155=1,'liste engagés'!B155,"") ->  | D156: =IF('liste engagés'!$G155=1,'liste engagés'!C155,"") ->  | E156: =IF('liste engagés'!$G155=1,'liste engagés'!D155,"") ->  | F156: =IF('liste engagés'!$G155=1,'liste engagés'!E155,"") ->  | G156: =IF('liste engagés'!$G155=1,'liste engagés'!K155,"") ->  | H156: =IF('liste engagés'!$G155=1,'liste engagés'!L155,"") ->  | I156: 0
A157: 151 | B157: =IF('liste engagés'!$G156=1,'liste engagés'!A156,"") ->  | C157: =IF('liste engagés'!$G156=1,'liste engagés'!B156,"") ->  | D157: =IF('liste engagés'!$G156=1,'liste engagés'!C156,"") ->  | E157: =IF('liste engagés'!$G156=1,'liste engagés'!D156,"") ->  | F157: =IF('liste engagés'!$G156=1,'liste engagés'!E156,"") ->  | G157: =IF('liste engagés'!$G156=1,'liste engagés'!K156,"") ->  | H157: =IF('liste engagés'!$G156=1,'liste engagés'!L156,"") ->  | I157: 0
A158: 152 | B158: =IF('liste engagés'!$G157=1,'liste engagés'!A157,"") ->  | C158: =IF('liste engagés'!$G157=1,'liste engagés'!B157,"") ->  | D158: =IF('liste engagés'!$G157=1,'liste engagés'!C157,"") ->  | E158: =IF('liste engagés'!$G157=1,'liste engagés'!D157,"") ->  | F158: =IF('liste engagés'!$G157=1,'liste engagés'!E157,"") ->  | G158: =IF('liste engagés'!$G157=1,'liste engagés'!K157,"") ->  | H158: =IF('liste engagés'!$G157=1,'liste engagés'!L157,"") ->  | I158: 0
A159: 153 | B159: =IF('liste engagés'!$G158=1,'liste engagés'!A158,"") ->  | C159: =IF('liste engagés'!$G158=1,'liste engagés'!B158,"") ->  | D159: =IF('liste engagés'!$G158=1,'liste engagés'!C158,"") ->  | E159: =IF('liste engagés'!$G158=1,'liste engagés'!D158,"") ->  | F159: =IF('liste engagés'!$G158=1,'liste engagés'!E158,"") ->  | G159: =IF('liste engagés'!$G158=1,'liste engagés'!K158,"") ->  | H159: =IF('liste engagés'!$G158=1,'liste engagés'!L158,"") ->  | I159: 0
A160: 154 | B160: =IF('liste engagés'!$G159=1,'liste engagés'!A159,"") ->  | C160: =IF('liste engagés'!$G159=1,'liste engagés'!B159,"") ->  | D160: =IF('liste engagés'!$G159=1,'liste engagés'!C159,"") ->  | E160: =IF('liste engagés'!$G159=1,'liste engagés'!D159,"") ->  | F160: =IF('liste engagés'!$G159=1,'liste engagés'!E159,"") ->  | G160: =IF('liste engagés'!$G159=1,'liste engagés'!K159,"") ->  | H160: =IF('liste engagés'!$G159=1,'liste engagés'!L159,"") ->  | I160: 0
A161: 155 | B161: =IF('liste engagés'!$G160=1,'liste engagés'!A160,"") ->  | C161: =IF('liste engagés'!$G160=1,'liste engagés'!B160,"") ->  | D161: =IF('liste engagés'!$G160=1,'liste engagés'!C160,"") ->  | E161: =IF('liste engagés'!$G160=1,'liste engagés'!D160,"") ->  | F161: =IF('liste engagés'!$G160=1,'liste engagés'!E160,"") ->  | G161: =IF('liste engagés'!$G160=1,'liste engagés'!K160,"") ->  | H161: =IF('liste engagés'!$G160=1,'liste engagés'!L160,"") ->  | I161: 0
A162: 156 | B162: =IF('liste engagés'!$G161=1,'liste engagés'!A161,"") ->  | C162: =IF('liste engagés'!$G161=1,'liste engagés'!B161,"") ->  | D162: =IF('liste engagés'!$G161=1,'liste engagés'!C161,"") ->  | E162: =IF('liste engagés'!$G161=1,'liste engagés'!D161,"") ->  | F162: =IF('liste engagés'!$G161=1,'liste engagés'!E161,"") ->  | G162: =IF('liste engagés'!$G161=1,'liste engagés'!K161,"") ->  | H162: =IF('liste engagés'!$G161=1,'liste engagés'!L161,"") ->  | I162: 0
A163: 157 | B163: =IF('liste engagés'!$G162=1,'liste engagés'!A162,"") ->  | C163: =IF('liste engagés'!$G162=1,'liste engagés'!B162,"") ->  | D163: =IF('liste engagés'!$G162=1,'liste engagés'!C162,"") ->  | E163: =IF('liste engagés'!$G162=1,'liste engagés'!D162,"") ->  | F163: =IF('liste engagés'!$G162=1,'liste engagés'!E162,"") ->  | G163: =IF('liste engagés'!$G162=1,'liste engagés'!K162,"") ->  | H163: =IF('liste engagés'!$G162=1,'liste engagés'!L162,"") ->  | I163: 0
A164: 158 | B164: =IF('liste engagés'!$G163=1,'liste engagés'!A163,"") ->  | C164: =IF('liste engagés'!$G163=1,'liste engagés'!B163,"") ->  | D164: =IF('liste engagés'!$G163=1,'liste engagés'!C163,"") ->  | E164: =IF('liste engagés'!$G163=1,'liste engagés'!D163,"") ->  | F164: =IF('liste engagés'!$G163=1,'liste engagés'!E163,"") ->  | G164: =IF('liste engagés'!$G163=1,'liste engagés'!K163,"") ->  | H164: =IF('liste engagés'!$G163=1,'liste engagés'!L163,"") ->  | I164: 0
A165: 159 | B165: =IF('liste engagés'!$G164=1,'liste engagés'!A164,"") ->  | C165: =IF('liste engagés'!$G164=1,'liste engagés'!B164,"") ->  | D165: =IF('liste engagés'!$G164=1,'liste engagés'!C164,"") ->  | E165: =IF('liste engagés'!$G164=1,'liste engagés'!D164,"") ->  | F165: =IF('liste engagés'!$G164=1,'liste engagés'!E164,"") ->  | G165: =IF('liste engagés'!$G164=1,'liste engagés'!K164,"") ->  | H165: =IF('liste engagés'!$G164=1,'liste engagés'!L164,"") ->  | I165: 0
A166: 160 | B166: =IF('liste engagés'!$G165=1,'liste engagés'!A165,"") ->  | C166: =IF('liste engagés'!$G165=1,'liste engagés'!B165,"") ->  | D166: =IF('liste engagés'!$G165=1,'liste engagés'!C165,"") ->  | E166: =IF('liste engagés'!$G165=1,'liste engagés'!D165,"") ->  | F166: =IF('liste engagés'!$G165=1,'liste engagés'!E165,"") ->  | G166: =IF('liste engagés'!$G165=1,'liste engagés'!K165,"") ->  | H166: =IF('liste engagés'!$G165=1,'liste engagés'!L165,"") ->  | I166: 0
A167: 161 | B167: =IF('liste engagés'!$G166=1,'liste engagés'!A166,"") ->  | C167: =IF('liste engagés'!$G166=1,'liste engagés'!B166,"") ->  | D167: =IF('liste engagés'!$G166=1,'liste engagés'!C166,"") ->  | E167: =IF('liste engagés'!$G166=1,'liste engagés'!D166,"") ->  | F167: =IF('liste engagés'!$G166=1,'liste engagés'!E166,"") ->  | G167: =IF('liste engagés'!$G166=1,'liste engagés'!K166,"") ->  | H167: =IF('liste engagés'!$G166=1,'liste engagés'!L166,"") ->  | I167: 0
A168: 162 | B168: =IF('liste engagés'!$G167=1,'liste engagés'!A167,"") ->  | C168: =IF('liste engagés'!$G167=1,'liste engagés'!B167,"") ->  | D168: =IF('liste engagés'!$G167=1,'liste engagés'!C167,"") ->  | E168: =IF('liste engagés'!$G167=1,'liste engagés'!D167,"") ->  | F168: =IF('liste engagés'!$G167=1,'liste engagés'!E167,"") ->  | G168: =IF('liste engagés'!$G167=1,'liste engagés'!K167,"") ->  | H168: =IF('liste engagés'!$G167=1,'liste engagés'!L167,"") ->  | I168: 0
A169: 163 | B169: =IF('liste engagés'!$G168=1,'liste engagés'!A168,"") ->  | C169: =IF('liste engagés'!$G168=1,'liste engagés'!B168,"") ->  | D169: =IF('liste engagés'!$G168=1,'liste engagés'!C168,"") ->  | E169: =IF('liste engagés'!$G168=1,'liste engagés'!D168,"") ->  | F169: =IF('liste engagés'!$G168=1,'liste engagés'!E168,"") ->  | G169: =IF('liste engagés'!$G168=1,'liste engagés'!K168,"") ->  | H169: =IF('liste engagés'!$G168=1,'liste engagés'!L168,"") ->  | I169: 0
A170: 164 | B170: =IF('liste engagés'!$G169=1,'liste engagés'!A169,"") ->  | C170: =IF('liste engagés'!$G169=1,'liste engagés'!B169,"") ->  | D170: =IF('liste engagés'!$G169=1,'liste engagés'!C169,"") ->  | E170: =IF('liste engagés'!$G169=1,'liste engagés'!D169,"") ->  | F170: =IF('liste engagés'!$G169=1,'liste engagés'!E169,"") ->  | G170: =IF('liste engagés'!$G169=1,'liste engagés'!K169,"") ->  | H170: =IF('liste engagés'!$G169=1,'liste engagés'!L169,"") ->  | I170: 0
A171: 165 | B171: =IF('liste engagés'!$G170=1,'liste engagés'!A170,"") ->  | C171: =IF('liste engagés'!$G170=1,'liste engagés'!B170,"") ->  | D171: =IF('liste engagés'!$G170=1,'liste engagés'!C170,"") ->  | E171: =IF('liste engagés'!$G170=1,'liste engagés'!D170,"") ->  | F171: =IF('liste engagés'!$G170=1,'liste engagés'!E170,"") ->  | G171: =IF('liste engagés'!$G170=1,'liste engagés'!K170,"") ->  | H171: =IF('liste engagés'!$G170=1,'liste engagés'!L170,"") ->  | I171: 0
A172: 166 | B172: =IF('liste engagés'!$G171=1,'liste engagés'!A171,"") ->  | C172: =IF('liste engagés'!$G171=1,'liste engagés'!B171,"") ->  | D172: =IF('liste engagés'!$G171=1,'liste engagés'!C171,"") ->  | E172: =IF('liste engagés'!$G171=1,'liste engagés'!D171,"") ->  | F172: =IF('liste engagés'!$G171=1,'liste engagés'!E171,"") ->  | G172: =IF('liste engagés'!$G171=1,'liste engagés'!K171,"") ->  | H172: =IF('liste engagés'!$G171=1,'liste engagés'!L171,"") ->  | I172: 0
A173: 167 | B173: =IF('liste engagés'!$G172=1,'liste engagés'!A172,"") ->  | C173: =IF('liste engagés'!$G172=1,'liste engagés'!B172,"") ->  | D173: =IF('liste engagés'!$G172=1,'liste engagés'!C172,"") ->  | E173: =IF('liste engagés'!$G172=1,'liste engagés'!D172,"") ->  | F173: =IF('liste engagés'!$G172=1,'liste engagés'!E172,"") ->  | G173: =IF('liste engagés'!$G172=1,'liste engagés'!K172,"") ->  | H173: =IF('liste engagés'!$G172=1,'liste engagés'!L172,"") ->  | I173: 0
A174: 168 | B174: =IF('liste engagés'!$G173=1,'liste engagés'!A173,"") ->  | C174: =IF('liste engagés'!$G173=1,'liste engagés'!B173,"") ->  | D174: =IF('liste engagés'!$G173=1,'liste engagés'!C173,"") ->  | E174: =IF('liste engagés'!$G173=1,'liste engagés'!D173,"") ->  | F174: =IF('liste engagés'!$G173=1,'liste engagés'!E173,"") ->  | G174: =IF('liste engagés'!$G173=1,'liste engagés'!K173,"") ->  | H174: =IF('liste engagés'!$G173=1,'liste engagés'!L173,"") ->  | I174: 0
A175: 169 | B175: =IF('liste engagés'!$G174=1,'liste engagés'!A174,"") ->  | C175: =IF('liste engagés'!$G174=1,'liste engagés'!B174,"") ->  | D175: =IF('liste engagés'!$G174=1,'liste engagés'!C174,"") ->  | E175: =IF('liste engagés'!$G174=1,'liste engagés'!D174,"") ->  | F175: =IF('liste engagés'!$G174=1,'liste engagés'!E174,"") ->  | G175: =IF('liste engagés'!$G174=1,'liste engagés'!K174,"") ->  | H175: =IF('liste engagés'!$G174=1,'liste engagés'!L174,"") ->  | I175: 0
A176: 170 | B176: =IF('liste engagés'!$G175=1,'liste engagés'!A175,"") ->  | C176: =IF('liste engagés'!$G175=1,'liste engagés'!B175,"") ->  | D176: =IF('liste engagés'!$G175=1,'liste engagés'!C175,"") ->  | E176: =IF('liste engagés'!$G175=1,'liste engagés'!D175,"") ->  | F176: =IF('liste engagés'!$G175=1,'liste engagés'!E175,"") ->  | G176: =IF('liste engagés'!$G175=1,'liste engagés'!K175,"") ->  | H176: =IF('liste engagés'!$G175=1,'liste engagés'!L175,"") ->  | I176: 0
A177: 171 | B177: =IF('liste engagés'!$G176=1,'liste engagés'!A176,"") ->  | C177: =IF('liste engagés'!$G176=1,'liste engagés'!B176,"") ->  | D177: =IF('liste engagés'!$G176=1,'liste engagés'!C176,"") ->  | E177: =IF('liste engagés'!$G176=1,'liste engagés'!D176,"") ->  | F177: =IF('liste engagés'!$G176=1,'liste engagés'!E176,"") ->  | G177: =IF('liste engagés'!$G176=1,'liste engagés'!K176,"") ->  | H177: =IF('liste engagés'!$G176=1,'liste engagés'!L176,"") ->  | I177: 0
A178: 172 | B178: =IF('liste engagés'!$G177=1,'liste engagés'!A177,"") ->  | C178: =IF('liste engagés'!$G177=1,'liste engagés'!B177,"") ->  | D178: =IF('liste engagés'!$G177=1,'liste engagés'!C177,"") ->  | E178: =IF('liste engagés'!$G177=1,'liste engagés'!D177,"") ->  | F178: =IF('liste engagés'!$G177=1,'liste engagés'!E177,"") ->  | G178: =IF('liste engagés'!$G177=1,'liste engagés'!K177,"") ->  | H178: =IF('liste engagés'!$G177=1,'liste engagés'!L177,"") ->  | I178: 0
A179: 173 | B179: =IF('liste engagés'!$G178=1,'liste engagés'!A178,"") ->  | C179: =IF('liste engagés'!$G178=1,'liste engagés'!B178,"") ->  | D179: =IF('liste engagés'!$G178=1,'liste engagés'!C178,"") ->  | E179: =IF('liste engagés'!$G178=1,'liste engagés'!D178,"") ->  | F179: =IF('liste engagés'!$G178=1,'liste engagés'!E178,"") ->  | G179: =IF('liste engagés'!$G178=1,'liste engagés'!K178,"") ->  | H179: =IF('liste engagés'!$G178=1,'liste engagés'!L178,"") ->  | I179: 0
A180: 174 | B180: =IF('liste engagés'!$G179=1,'liste engagés'!A179,"") ->  | C180: =IF('liste engagés'!$G179=1,'liste engagés'!B179,"") ->  | D180: =IF('liste engagés'!$G179=1,'liste engagés'!C179,"") ->  | E180: =IF('liste engagés'!$G179=1,'liste engagés'!D179,"") ->  | F180: =IF('liste engagés'!$G179=1,'liste engagés'!E179,"") ->  | G180: =IF('liste engagés'!$G179=1,'liste engagés'!K179,"") ->  | H180: =IF('liste engagés'!$G179=1,'liste engagés'!L179,"") ->  | I180: 0
A181: 175 | B181: =IF('liste engagés'!$G180=1,'liste engagés'!A180,"") ->  | C181: =IF('liste engagés'!$G180=1,'liste engagés'!B180,"") ->  | D181: =IF('liste engagés'!$G180=1,'liste engagés'!C180,"") ->  | E181: =IF('liste engagés'!$G180=1,'liste engagés'!D180,"") ->  | F181: =IF('liste engagés'!$G180=1,'liste engagés'!E180,"") ->  | G181: =IF('liste engagés'!$G180=1,'liste engagés'!K180,"") ->  | H181: =IF('liste engagés'!$G180=1,'liste engagés'!L180,"") ->  | I181: 0
A182: 176 | B182: =IF('liste engagés'!$G181=1,'liste engagés'!A181,"") ->  | C182: =IF('liste engagés'!$G181=1,'liste engagés'!B181,"") ->  | D182: =IF('liste engagés'!$G181=1,'liste engagés'!C181,"") ->  | E182: =IF('liste engagés'!$G181=1,'liste engagés'!D181,"") ->  | F182: =IF('liste engagés'!$G181=1,'liste engagés'!E181,"") ->  | G182: =IF('liste engagés'!$G181=1,'liste engagés'!K181,"") ->  | H182: =IF('liste engagés'!$G181=1,'liste engagés'!L181,"") ->  | I182: 0
A183: 177 | B183: =IF('liste engagés'!$G182=1,'liste engagés'!A182,"") ->  | C183: =IF('liste engagés'!$G182=1,'liste engagés'!B182,"") ->  | D183: =IF('liste engagés'!$G182=1,'liste engagés'!C182,"") ->  | E183: =IF('liste engagés'!$G182=1,'liste engagés'!D182,"") ->  | F183: =IF('liste engagés'!$G182=1,'liste engagés'!E182,"") ->  | G183: =IF('liste engagés'!$G182=1,'liste engagés'!K182,"") ->  | H183: =IF('liste engagés'!$G182=1,'liste engagés'!L182,"") ->  | I183: 0
A184: 178 | B184: =IF('liste engagés'!$G183=1,'liste engagés'!A183,"") ->  | C184: =IF('liste engagés'!$G183=1,'liste engagés'!B183,"") ->  | D184: =IF('liste engagés'!$G183=1,'liste engagés'!C183,"") ->  | E184: =IF('liste engagés'!$G183=1,'liste engagés'!D183,"") ->  | F184: =IF('liste engagés'!$G183=1,'liste engagés'!E183,"") ->  | G184: =IF('liste engagés'!$G183=1,'liste engagés'!K183,"") ->  | H184: =IF('liste engagés'!$G183=1,'liste engagés'!L183,"") ->  | I184: 0
A185: 179 | B185: =IF('liste engagés'!$G184=1,'liste engagés'!A184,"") ->  | C185: =IF('liste engagés'!$G184=1,'liste engagés'!B184,"") ->  | D185: =IF('liste engagés'!$G184=1,'liste engagés'!C184,"") ->  | E185: =IF('liste engagés'!$G184=1,'liste engagés'!D184,"") ->  | F185: =IF('liste engagés'!$G184=1,'liste engagés'!E184,"") ->  | G185: =IF('liste engagés'!$G184=1,'liste engagés'!K184,"") ->  | H185: =IF('liste engagés'!$G184=1,'liste engagés'!L184,"") ->  | I185: 0
A186: 180 | B186: =IF('liste engagés'!$G185=1,'liste engagés'!A185,"") ->  | C186: =IF('liste engagés'!$G185=1,'liste engagés'!B185,"") ->  | D186: =IF('liste engagés'!$G185=1,'liste engagés'!C185,"") ->  | E186: =IF('liste engagés'!$G185=1,'liste engagés'!D185,"") ->  | F186: =IF('liste engagés'!$G185=1,'liste engagés'!E185,"") ->  | G186: =IF('liste engagés'!$G185=1,'liste engagés'!K185,"") ->  | H186: =IF('liste engagés'!$G185=1,'liste engagés'!L185,"") ->  | I186: 0
A187: 181 | B187: =IF('liste engagés'!$G186=1,'liste engagés'!A186,"") ->  | C187: =IF('liste engagés'!$G186=1,'liste engagés'!B186,"") ->  | D187: =IF('liste engagés'!$G186=1,'liste engagés'!C186,"") ->  | E187: =IF('liste engagés'!$G186=1,'liste engagés'!D186,"") ->  | F187: =IF('liste engagés'!$G186=1,'liste engagés'!E186,"") ->  | G187: =IF('liste engagés'!$G186=1,'liste engagés'!K186,"") ->  | H187: =IF('liste engagés'!$G186=1,'liste engagés'!L186,"") ->  | I187: 0
A188: 182 | B188: =IF('liste engagés'!$G187=1,'liste engagés'!A187,"") ->  | C188: =IF('liste engagés'!$G187=1,'liste engagés'!B187,"") ->  | D188: =IF('liste engagés'!$G187=1,'liste engagés'!C187,"") ->  | E188: =IF('liste engagés'!$G187=1,'liste engagés'!D187,"") ->  | F188: =IF('liste engagés'!$G187=1,'liste engagés'!E187,"") ->  | G188: =IF('liste engagés'!$G187=1,'liste engagés'!K187,"") ->  | H188: =IF('liste engagés'!$G187=1,'liste engagés'!L187,"") ->  | I188: 0
A189: 183 | B189: =IF('liste engagés'!$G188=1,'liste engagés'!A188,"") ->  | C189: =IF('liste engagés'!$G188=1,'liste engagés'!B188,"") ->  | D189: =IF('liste engagés'!$G188=1,'liste engagés'!C188,"") ->  | E189: =IF('liste engagés'!$G188=1,'liste engagés'!D188,"") ->  | F189: =IF('liste engagés'!$G188=1,'liste engagés'!E188,"") ->  | G189: =IF('liste engagés'!$G188=1,'liste engagés'!K188,"") ->  | H189: =IF('liste engagés'!$G188=1,'liste engagés'!L188,"") ->  | I189: 0
A190: 184 | B190: =IF('liste engagés'!$G189=1,'liste engagés'!A189,"") ->  | C190: =IF('liste engagés'!$G189=1,'liste engagés'!B189,"") ->  | D190: =IF('liste engagés'!$G189=1,'liste engagés'!C189,"") ->  | E190: =IF('liste engagés'!$G189=1,'liste engagés'!D189,"") ->  | F190: =IF('liste engagés'!$G189=1,'liste engagés'!E189,"") ->  | G190: =IF('liste engagés'!$G189=1,'liste engagés'!K189,"") ->  | H190: =IF('liste engagés'!$G189=1,'liste engagés'!L189,"") ->  | I190: 0
A191: 185 | B191: =IF('liste engagés'!$G190=1,'liste engagés'!A190,"") ->  | C191: =IF('liste engagés'!$G190=1,'liste engagés'!B190,"") ->  | D191: =IF('liste engagés'!$G190=1,'liste engagés'!C190,"") ->  | E191: =IF('liste engagés'!$G190=1,'liste engagés'!D190,"") ->  | F191: =IF('liste engagés'!$G190=1,'liste engagés'!E190,"") ->  | G191: =IF('liste engagés'!$G190=1,'liste engagés'!K190,"") ->  | H191: =IF('liste engagés'!$G190=1,'liste engagés'!L190,"") ->  | I191: 0
A192: 186 | B192: =IF('liste engagés'!$G191=1,'liste engagés'!A191,"") ->  | C192: =IF('liste engagés'!$G191=1,'liste engagés'!B191,"") ->  | D192: =IF('liste engagés'!$G191=1,'liste engagés'!C191,"") ->  | E192: =IF('liste engagés'!$G191=1,'liste engagés'!D191,"") ->  | F192: =IF('liste engagés'!$G191=1,'liste engagés'!E191,"") ->  | G192: =IF('liste engagés'!$G191=1,'liste engagés'!K191,"") ->  | H192: =IF('liste engagés'!$G191=1,'liste engagés'!L191,"") ->  | I192: 0
A193: 187 | B193: =IF('liste engagés'!$G192=1,'liste engagés'!A192,"") ->  | C193: =IF('liste engagés'!$G192=1,'liste engagés'!B192,"") ->  | D193: =IF('liste engagés'!$G192=1,'liste engagés'!C192,"") ->  | E193: =IF('liste engagés'!$G192=1,'liste engagés'!D192,"") ->  | F193: =IF('liste engagés'!$G192=1,'liste engagés'!E192,"") ->  | G193: =IF('liste engagés'!$G192=1,'liste engagés'!K192,"") ->  | H193: =IF('liste engagés'!$G192=1,'liste engagés'!L192,"") ->  | I193: 0
A194: 188 | B194: =IF('liste engagés'!$G193=1,'liste engagés'!A193,"") ->  | C194: =IF('liste engagés'!$G193=1,'liste engagés'!B193,"") ->  | D194: =IF('liste engagés'!$G193=1,'liste engagés'!C193,"") ->  | E194: =IF('liste engagés'!$G193=1,'liste engagés'!D193,"") ->  | F194: =IF('liste engagés'!$G193=1,'liste engagés'!E193,"") ->  | G194: =IF('liste engagés'!$G193=1,'liste engagés'!K193,"") ->  | H194: =IF('liste engagés'!$G193=1,'liste engagés'!L193,"") ->  | I194: 0
A195: 189 | B195: =IF('liste engagés'!$G194=1,'liste engagés'!A194,"") ->  | C195: =IF('liste engagés'!$G194=1,'liste engagés'!B194,"") ->  | D195: =IF('liste engagés'!$G194=1,'liste engagés'!C194,"") ->  | E195: =IF('liste engagés'!$G194=1,'liste engagés'!D194,"") ->  | F195: =IF('liste engagés'!$G194=1,'liste engagés'!E194,"") ->  | G195: =IF('liste engagés'!$G194=1,'liste engagés'!K194,"") ->  | H195: =IF('liste engagés'!$G194=1,'liste engagés'!L194,"") ->  | I195: 0
A196: 190 | B196: =IF('liste engagés'!$G195=1,'liste engagés'!A195,"") ->  | C196: =IF('liste engagés'!$G195=1,'liste engagés'!B195,"") ->  | D196: =IF('liste engagés'!$G195=1,'liste engagés'!C195,"") ->  | E196: =IF('liste engagés'!$G195=1,'liste engagés'!D195,"") ->  | F196: =IF('liste engagés'!$G195=1,'liste engagés'!E195,"") ->  | G196: =IF('liste engagés'!$G195=1,'liste engagés'!K195,"") ->  | H196: =IF('liste engagés'!$G195=1,'liste engagés'!L195,"") ->  | I196: 0
A197: 191 | B197: =IF('liste engagés'!$G196=1,'liste engagés'!A196,"") ->  | C197: =IF('liste engagés'!$G196=1,'liste engagés'!B196,"") ->  | D197: =IF('liste engagés'!$G196=1,'liste engagés'!C196,"") ->  | E197: =IF('liste engagés'!$G196=1,'liste engagés'!D196,"") ->  | F197: =IF('liste engagés'!$G196=1,'liste engagés'!E196,"") ->  | G197: =IF('liste engagés'!$G196=1,'liste engagés'!K196,"") ->  | H197: =IF('liste engagés'!$G196=1,'liste engagés'!L196,"") ->  | I197: 0
A198: 192 | B198: =IF('liste engagés'!$G197=1,'liste engagés'!A197,"") ->  | C198: =IF('liste engagés'!$G197=1,'liste engagés'!B197,"") ->  | D198: =IF('liste engagés'!$G197=1,'liste engagés'!C197,"") ->  | E198: =IF('liste engagés'!$G197=1,'liste engagés'!D197,"") ->  | F198: =IF('liste engagés'!$G197=1,'liste engagés'!E197,"") ->  | G198: =IF('liste engagés'!$G197=1,'liste engagés'!K197,"") ->  | H198: =IF('liste engagés'!$G197=1,'liste engagés'!L197,"") ->  | I198: 0
A199: 193 | B199: =IF('liste engagés'!$G198=1,'liste engagés'!A198,"") ->  | C199: =IF('liste engagés'!$G198=1,'liste engagés'!B198,"") ->  | D199: =IF('liste engagés'!$G198=1,'liste engagés'!C198,"") ->  | E199: =IF('liste engagés'!$G198=1,'liste engagés'!D198,"") ->  | F199: =IF('liste engagés'!$G198=1,'liste engagés'!E198,"") ->  | G199: =IF('liste engagés'!$G198=1,'liste engagés'!K198,"") ->  | H199: =IF('liste engagés'!$G198=1,'liste engagés'!L198,"") ->  | I199: =+IF(C199="",0,1) -> 0
A200: =+A199+1 -> 194 | B200: =IF('liste engagés'!$G199=1,'liste engagés'!A199,"") ->  | C200: =IF('liste engagés'!$G199=1,'liste engagés'!B199,"") ->  | D200: =IF('liste engagés'!$G199=1,'liste engagés'!C199,"") ->  | E200: =IF('liste engagés'!$G199=1,'liste engagés'!D199,"") ->  | F200: =IF('liste engagés'!$G199=1,'liste engagés'!E199,"") ->  | G200: =IF('liste engagés'!$G199=1,'liste engagés'!K199,"") ->  | H200: =IF('liste engagés'!$G199=1,'liste engagés'!L199,"") ->  | I200: 0
A201: 195 | B201: =IF('liste engagés'!$G200=1,'liste engagés'!A200,"") ->  | C201: =IF('liste engagés'!$G200=1,'liste engagés'!B200,"") ->  | D201: =IF('liste engagés'!$G200=1,'liste engagés'!C200,"") ->  | E201: =IF('liste engagés'!$G200=1,'liste engagés'!D200,"") ->  | F201: =IF('liste engagés'!$G200=1,'liste engagés'!E200,"") ->  | G201: =IF('liste engagés'!$G200=1,'liste engagés'!K200,"") ->  | H201: =IF('liste engagés'!$G200=1,'liste engagés'!L200,"") ->  | I201: 0
A202: 196 | B202: =IF('liste engagés'!$G201=1,'liste engagés'!A201,"") ->  | C202: =IF('liste engagés'!$G201=1,'liste engagés'!B201,"") ->  | D202: =IF('liste engagés'!$G201=1,'liste engagés'!C201,"") ->  | E202: =IF('liste engagés'!$G201=1,'liste engagés'!D201,"") ->  | F202: =IF('liste engagés'!$G201=1,'liste engagés'!E201,"") ->  | G202: =IF('liste engagés'!$G201=1,'liste engagés'!K201,"") ->  | H202: =IF('liste engagés'!$G201=1,'liste engagés'!L201,"") ->  | I202: 0
... 15 more rows

Sheet cat3
A1: =+MENU!A1 -> CHRONO DES LIMOUCHES | G1: =+MENU!I1 -> EDITION | H1: =+MENU!J1 -> 2018
I2: code cat | J2: 3
A3: CLASSEMENT : | C3: =+IF(J2="","",VLOOKUP($J$2,Catégories!B3:D17,3)) -> FSGT 4
B6: N°de DOSSARD | C6: Nom | D6: Prénom | E6: Club | F6: Fédération | G6: Temps | H6: Moyenne
A7: 1 | B7: =IF('liste engagés'!$G90=3,'liste engagés'!A90,"") -> 85 | C7: =IF('liste engagés'!$G90=3,'liste engagés'!B90,"") -> SOLER | D7: =IF('liste engagés'!$G90=3,'liste engagés'!C90,"") -> DIEGO | E7: =IF('liste engagés'!$G90=3,'liste engagés'!D90,"") -> TEAM MONTAGNAC | F7: =IF('liste engagés'!$G90=3,'liste engagés'!E90,"") -> FSGT | G7: =IF('liste engagés'!$G90=3,'liste engagés'!K90,"") -> 0.02608796296 | H7: =IF('liste engagés'!$G90=3,'liste engagés'!L90,"") -> 18.20763088 | I7: =+IF(C7="",0,1) -> 1
A8: =+A7+1 -> 2 | B8: =IF('liste engagés'!$G61=3,'liste engagés'!A61,"") -> 56 | C8: =IF('liste engagés'!$G61=3,'liste engagés'!B61,"") -> DENURRA | D8: =IF('liste engagés'!$G61=3,'liste engagés'!C61,"") -> LOUIS | E8: =IF('liste engagés'!$G61=3,'liste engagés'!D61,"") -> BRIGNAISVC | F8: =IF('liste engagés'!$G61=3,'liste engagés'!E61,"") -> FSGT | G8: =IF('liste engagés'!$G61=3,'liste engagés'!K61,"") -> 0.02731481481 | H8: =IF('liste engagés'!$G61=3,'liste engagés'!L61,"") -> 17.38983051 | I8: 1
A9: 3 | B9: =IF('liste engagés'!$G122=3,'liste engagés'!A122,"") -> 117 | C9: =IF('liste engagés'!$G122=3,'liste engagés'!B122,"") -> BOIS | D9: =IF('liste engagés'!$G122=3,'liste engagés'!C122,"") -> FREDERIC | E9: =IF('liste engagés'!$G122=3,'liste engagés'!D122,"") -> CS COUXOIS | F9: =IF('liste engagés'!$G122=3,'liste engagés'!E122,"") -> FSGT | G9: =IF('liste engagés'!$G122=3,'liste engagés'!K122,"") -> 0.02748842593 | H9: =IF('liste engagés'!$G122=3,'liste engagés'!L122,"") -> 17.28 | I9: 1
A10: 4 | B10: =IF('liste engagés'!$G89=3,'liste engagés'!A89,"") -> 84 | C10: =IF('liste engagés'!$G89=3,'liste engagés'!B89,"") -> ROSADO | D10: =IF('liste engagés'!$G89=3,'liste engagés'!C89,"") -> BRUNO | E10: =IF('liste engagés'!$G89=3,'liste engagés'!D89,"") -> UC PIERRELATTE | F10: =IF('liste engagés'!$G89=3,'liste engagés'!E89,"") -> FSGT | G10: =IF('liste engagés'!$G89=3,'liste engagés'!K89,"") -> 0.0277662037 | H10: =IF('liste engagés'!$G89=3,'liste engagés'!L89,"") -> 17.10712797 | I10: 1
A11: 5 | B11: =IF('liste engagés'!$G139=3,'liste engagés'!A139,"") -> 134 | C11: =IF('liste engagés'!$G139=3,'liste engagés'!B139,"") -> DEBANNE | D11: =IF('liste engagés'!$G139=3,'liste engagés'!C139,"") -> WILLIAM | E11: =IF('liste engagés'!$G139=3,'liste engagés'!D139,"") -> UC PIERRELATTE | F11: =IF('liste engagés'!$G139=3,'liste engagés'!E139,"") -> FSGT | G11: =IF('liste engagés'!$G139=3,'liste engagés'!K139,"") -> 0.02788194444 | H11: =IF('liste engagés'!$G139=3,'liste engagés'!L139,"") -> 17.03611457 | I11: 1
A12: 6 | B12: =IF('liste engagés'!$G153=3,'liste engagés'!A153,"") -> 148 | C12: =IF('liste engagés'!$G153=3,'liste engagés'!B153,"") -> JOUFFRET | D12: =IF('liste engagés'!$G153=3,'liste engagés'!C153,"") -> DIDIER | E12: =IF('liste engagés'!$G153=3,'liste engagés'!D153,"") -> CC ST PERAY | F12: =IF('liste engagés'!$G153=3,'liste engagés'!E153,"") -> FSGT | G12: =IF('liste engagés'!$G153=3,'liste engagés'!K153,"") -> 0.02792824074 | H12: =IF('liste engagés'!$G153=3,'liste engagés'!L153,"") -> 17.00787402 | I12: 1
A13: 7 | B13: =IF('liste engagés'!$G119=3,'liste engagés'!A119,"") -> 114 | C13: =IF('liste engagés'!$G119=3,'liste engagés'!B119,"") -> PINATEL | D13: =IF('liste engagés'!$G119=3,'liste engagés'!C119,"") -> J RENE | E13: =IF('liste engagés'!$G119=3,'liste engagés'!D119,"") -> CS LA VOULTE | F13: =IF('liste engagés'!$G119=3,'liste engagés'!E119,"") -> FSGT | G13: =IF('liste engagés'!$G119=3,'liste engagés'!K119,"") -> 0.02818287037 | H13: =IF('liste engagés'!$G119=3,'liste engagés'!L119,"") -> 16.85420945 | I13: 1
A14: 8 | B14: =IF('liste engagés'!$G101=3,'liste engagés'!A101,"") -> 96 | C14: =IF('liste engagés'!$G101=3,'liste engagés'!B101,"") -> WAGNER | D14: =IF('liste engagés'!$G101=3,'liste engagés'!C101,"") -> DANIEL | E14: =IF('liste engagés'!$G101=3,'liste engagés'!D101,"") -> UCMV | F14: =IF('liste engagés'!$G101=3,'liste engagés'!E101,"") -> FSGT | G14: =IF('liste engagés'!$G101=3,'liste engagés'!K101,"") -> 0.0287037037 | H14: =IF('liste engagés'!$G101=3,'liste engagés'!L101,"") -> 16.5483871 | I14: 1
A15: 9 | B15: =IF('liste engagés'!$G171=3,'liste engagés'!A171,"") -> 166 | C15: =IF('liste engagés'!$G171=3,'liste engagés'!B171,"") -> COMTE | D15: =IF('liste engagés'!$G171=3,'liste engagés'!C171,"") -> SERGE | E15: =IF('liste engagés'!$G171=3,'liste engagés'!D171,"") -> VSRP | F15: =IF('liste engagés'!$G171=3,'liste engagés'!E171,"") -> FSGT | G15: =IF('liste engagés'!$G171=3,'liste engagés'!K171,"") -> 0.02877314815 | H15: =IF('liste engagés'!$G171=3,'liste engagés'!L171,"") -> 16.5084473 | I15: 1
A16: 10 | B16: =IF('liste engagés'!$G66=3,'liste engagés'!A66,"") -> 61 | C16: =IF('liste engagés'!$G66=3,'liste engagés'!B66,"") -> BUATOIS | D16: =IF('liste engagés'!$G66=3,'liste engagés'!C66,"") -> GILLES | E16: =IF('liste engagés'!$G66=3,'liste engagés'!D66,"") -> UC PIERRELATTE | F16: =IF('liste engagés'!$G66=3,'liste engagés'!E66,"") -> FSGT | G16: =IF('liste engagés'!$G66=3,'liste engagés'!K66,"") -> 0.02989583333 | H16: =IF('liste engagés'!$G66=3,'liste engagés'!L66,"") -> 15.88850174 | I16: 1
A17: 11 | B17: =IF('liste engagés'!$G180=3,'liste engagés'!A180,"") -> 175 | C17: =IF('liste engagés'!$G180=3,'liste engagés'!B180,"") -> DREVON | D17: =IF('liste engagés'!$G180=3,'liste engagés'!C180,"") -> SEB | E17: =IF('liste engagés'!$G180=3,'liste engagés'!D180,"") -> UCMV | F17: =IF('liste engagés'!$G180=3,'liste engagés'!E180,"") -> FSGT | G17: =IF('liste engagés'!$G180=3,'liste engagés'!K180,"") -> 0.03356481481 | H17: =IF('liste engagés'!$G180=3,'liste engagés'!L180,"") -> 14.15172414 | I17: 1
A18: 12 | B18: =IF('liste engagés'!$G80=3,'liste engagés'!A80,"") -> 75 | C18: =IF('liste engagés'!$G80=3,'liste engagés'!B80,"") -> NACCARATO | D18: =IF('liste engagés'!$G80=3,'liste engagés'!C80,"") -> MARIO | E18: =IF('liste engagés'!$G80=3,'liste engagés'!D80,"") -> TEAM ATC 26 DONZERE | F18: =IF('liste engagés'!$G80=3,'liste engagés'!E80,"") -> FSGT | G18: =IF('liste engagés'!$G80=3,'liste engagés'!K80,"") -> 0.0346875 | H18: =IF('liste engagés'!$G80=3,'liste engagés'!L80,"") -> 13.69369369 | I18: 1
A19: 13 | B19: =IF('liste engagés'!$G6=3,'liste engagés'!A6,"") ->  | C19: =IF('liste engagés'!$G6=3,'liste engagés'!B6,"") ->  | D19: =IF('liste engagés'!$G6=3,'liste engagés'!C6,"") ->  | E19: =IF('liste engagés'!$G6=3,'liste engagés'!D6,"") ->  | F19: =IF('liste engagés'!$G6=3,'liste engagés'!E6,"") ->  | G19: =IF('liste engagés'!$G6=3,'liste engagés'!K6,"") ->  | H19: =IF('liste engagés'!$G6=3,'liste engagés'!L6,"") ->  | I19: 0
A20: 14 | B20: =IF('liste engagés'!$G7=3,'liste engagés'!A7,"") ->  | C20: =IF('liste engagés'!$G7=3,'liste engagés'!B7,"") ->  | D20: =IF('liste engagés'!$G7=3,'liste engagés'!C7,"") ->  | E20: =IF('liste engagés'!$G7=3,'liste engagés'!D7,"") ->  | F20: =IF('liste engagés'!$G7=3,'liste engagés'!E7,"") ->  | G20: =IF('liste engagés'!$G7=3,'liste engagés'!K7,"") ->  | H20: =IF('liste engagés'!$G7=3,'liste engagés'!L7,"") ->  | I20: 0
A21: 15 | B21: =IF('liste engagés'!$G8=3,'liste engagés'!A8,"") ->  | C21: =IF('liste engagés'!$G8=3,'liste engagés'!B8,"") ->  | D21: =IF('liste engagés'!$G8=3,'liste engagés'!C8,"") ->  | E21: =IF('liste engagés'!$G8=3,'liste engagés'!D8,"") ->  | F21: =IF('liste engagés'!$G8=3,'liste engagés'!E8,"") ->  | G21: =IF('liste engagés'!$G8=3,'liste engagés'!K8,"") ->  | H21: =IF('liste engagés'!$G8=3,'liste engagés'!L8,"") ->  | I21: 0
A22: 16 | B22: =IF('liste engagés'!$G9=3,'liste engagés'!A9,"") ->  | C22: =IF('liste engagés'!$G9=3,'liste engagés'!B9,"") ->  | D22: =IF('liste engagés'!$G9=3,'liste engagés'!C9,"") ->  | E22: =IF('liste engagés'!$G9=3,'liste engagés'!D9,"") ->  | F22: =IF('liste engagés'!$G9=3,'liste engagés'!E9,"") ->  | G22: =IF('liste engagés'!$G9=3,'liste engagés'!K9,"") ->  | H22: =IF('liste engagés'!$G9=3,'liste engagés'!L9,"") ->  | I22: 0
A23: 17 | B23: =IF('liste engagés'!$G10=3,'liste engagés'!A10,"") ->  | C23: =IF('liste engagés'!$G10=3,'liste engagés'!B10,"") ->  | D23: =IF('liste engagés'!$G10=3,'liste engagés'!C10,"") ->  | E23: =IF('liste engagés'!$G10=3,'liste engagés'!D10,"") ->  | F23: =IF('liste engagés'!$G10=3,'liste engagés'!E10,"") ->  | G23: =IF('liste engagés'!$G10=3,'liste engagés'!K10,"") ->  | H23: =IF('liste engagés'!$G10=3,'liste engagés'!L10,"") ->  | I23: 0
A24: 18 | B24: =IF('liste engagés'!$G11=3,'liste engagés'!A11,"") ->  | C24: =IF('liste engagés'!$G11=3,'liste engagés'!B11,"") ->  | D24: =IF('liste engagés'!$G11=3,'liste engagés'!C11,"") ->  | E24: =IF('liste engagés'!$G11=3,'liste engagés'!D11,"") ->  | F24: =IF('liste engagés'!$G11=3,'liste engagés'!E11,"") ->  | G24: =IF('liste engagés'!$G11=3,'liste engagés'!K11,"") ->  | H24: =IF('liste engagés'!$G11=3,'liste engagés'!L11,"") ->  | I24: 0
A25: 19 | B25: =IF('liste engagés'!$G12=3,'liste engagés'!A12,"") ->  | C25: =IF('liste engagés'!$G12=3,'liste engagés'!B12,"") ->  | D25: =IF('liste engagés'!$G12=3,'liste engagés'!C12,"") ->  | E25: =IF('liste engagés'!$G12=3,'liste engagés'!D12,"") ->  | F25: =IF('liste engagés'!$G12=3,'liste engagés'!E12,"") ->  | G25: =IF('liste engagés'!$G12=3,'liste engagés'!K12,"") ->  | H25: =IF('liste engagés'!$G12=3,'liste engagés'!L12,"") ->  | I25: 0
A26: 20 | B26: =IF('liste engagés'!$G13=3,'liste engagés'!A13,"") ->  | C26: =IF('liste engagés'!$G13=3,'liste engagés'!B13,"") ->  | D26: =IF('liste engagés'!$G13=3,'liste engagés'!C13,"") ->  | E26: =IF('liste engagés'!$G13=3,'liste engagés'!D13,"") ->  | F26: =IF('liste engagés'!$G13=3,'liste engagés'!E13,"") ->  | G26: =IF('liste engagés'!$G13=3,'liste engagés'!K13,"") ->  | H26: =IF('liste engagés'!$G13=3,'liste engagés'!L13,"") ->  | I26: 0
A27: 21 | B27: =IF('liste engagés'!$G14=3,'liste engagés'!A14,"") ->  | C27: =IF('liste engagés'!$G14=3,'liste engagés'!B14,"") ->  | D27: =IF('liste engagés'!$G14=3,'liste engagés'!C14,"") ->  | E27: =IF('liste engagés'!$G14=3,'liste engagés'!D14,"") ->  | F27: =IF('liste engagés'!$G14=3,'liste engagés'!E14,"") ->  | G27: =IF('liste engagés'!$G14=3,'liste engagés'!K14,"") ->  | H27: =IF('liste engagés'!$G14=3,'liste engagés'!L14,"") ->  | I27: 0
A28: 22 | B28: =IF('liste engagés'!$G15=3,'liste engagés'!A15,"") ->  | C28: =IF('liste engagés'!$G15=3,'liste engagés'!B15,"") ->  | D28: =IF('liste engagés'!$G15=3,'liste engagés'!C15,"") ->  | E28: =IF('liste engagés'!$G15=3,'liste engagés'!D15,"") ->  | F28: =IF('liste engagés'!$G15=3,'liste engagés'!E15,"") ->  | G28: =IF('liste engagés'!$G15=3,'liste engagés'!K15,"") ->  | H28: =IF('liste engagés'!$G15=3,'liste engagés'!L15,"") ->  | I28: 0
A29: 23 | B29: =IF('liste engagés'!$G16=3,'liste engagés'!A16,"") ->  | C29: =IF('liste engagés'!$G16=3,'liste engagés'!B16,"") ->  | D29: =IF('liste engagés'!$G16=3,'liste engagés'!C16,"") ->  | E29: =IF('liste engagés'!$G16=3,'liste engagés'!D16,"") ->  | F29: =IF('liste engagés'!$G16=3,'liste engagés'!E16,"") ->  | G29: =IF('liste engagés'!$G16=3,'liste engagés'!K16,"") ->  | H29: =IF('liste engagés'!$G16=3,'liste engagés'!L16,"") ->  | I29: 0
A30: 24 | B30: =IF('liste engagés'!$G17=3,'liste engagés'!A17,"") ->  | C30: =IF('liste engagés'!$G17=3,'liste engagés'!B17,"") ->  | D30: =IF('liste engagés'!$G17=3,'liste engagés'!C17,"") ->  | E30: =IF('liste engagés'!$G17=3,'liste engagés'!D17,"") ->  | F30: =IF('liste engagés'!$G17=3,'liste engagés'!E17,"") ->  | G30: =IF('liste engagés'!$G17=3,'liste engagés'!K17,"") ->  | H30: =IF('liste engagés'!$G17=3,'liste engagés'!L17,"") ->  | I30: 0
A31: 25 | B31: =IF('liste engagés'!$G18=3,'liste engagés'!A18,"") ->  | C31: =IF('liste engagés'!$G18=3,'liste engagés'!B18,"") ->  | D31: =IF('liste engagés'!$G18=3,'liste engagés'!C18,"") ->  | E31: =IF('liste engagés'!$G18=3,'liste engagés'!D18,"") ->  | F31: =IF('liste engagés'!$G18=3,'liste engagés'!E18,"") ->  | G31: =IF('liste engagés'!$G18=3,'liste engagés'!K18,"") ->  | H31: =IF('liste engagés'!$G18=3,'liste engagés'!L18,"") ->  | I31: 0
A32: 26 | B32: =IF('liste engagés'!$G19=3,'liste engagés'!A19,"") ->  | C32: =IF('liste engagés'!$G19=3,'liste engagés'!B19,"") ->  | D32: =IF('liste engagés'!$G19=3,'liste engagés'!C19,"") ->  | E32: =IF('liste engagés'!$G19=3,'liste engagés'!D19,"") ->  | F32: =IF('liste engagés'!$G19=3,'liste engagés'!E19,"") ->  | G32: =IF('liste engagés'!$G19=3,'liste engagés'!K19,"") ->  | H32: =IF('liste engagés'!$G19=3,'liste engagés'!L19,"") ->  | I32: 0
A33: 27 | B33: =IF('liste engagés'!$G20=3,'liste engagés'!A20,"") ->  | C33: =IF('liste engagés'!$G20=3,'liste engagés'!B20,"") ->  | D33: =IF('liste engagés'!$G20=3,'liste engagés'!C20,"") ->  | E33: =IF('liste engagés'!$G20=3,'liste engagés'!D20,"") ->  | F33: =IF('liste engagés'!$G20=3,'liste engagés'!E20,"") ->  | G33: =IF('liste engagés'!$G20=3,'liste engagés'!K20,"") ->  | H33: =IF('liste engagés'!$G20=3,'liste engagés'!L20,"") ->  | I33: 0
A34: 28 | B34: =IF('liste engagés'!$G21=3,'liste engagés'!A21,"") ->  | C34: =IF('liste engagés'!$G21=3,'liste engagés'!B21,"") ->  | D34: =IF('liste engagés'!$G21=3,'liste engagés'!C21,"") ->  | E34: =IF('liste engagés'!$G21=3,'liste engagés'!D21,"") ->  | F34: =IF('liste engagés'!$G21=3,'liste engagés'!E21,"") ->  | G34: =IF('liste engagés'!$G21=3,'liste engagés'!K21,"") ->  | H34: =IF('liste engagés'!$G21=3,'liste engagés'!L21,"") ->  | I34: 0
A35: 29 | B35: =IF('liste engagés'!$G22=3,'liste engagés'!A22,"") ->  | C35: =IF('liste engagés'!$G22=3,'liste engagés'!B22,"") ->  | D35: =IF('liste engagés'!$G22=3,'liste engagés'!C22,"") ->  | E35: =IF('liste engagés'!$G22=3,'liste engagés'!D22,"") ->  | F35: =IF('liste engagés'!$G22=3,'liste engagés'!E22,"") ->  | G35: =IF('liste engagés'!$G22=3,'liste engagés'!K22,"") ->  | H35: =IF('liste engagés'!$G22=3,'liste engagés'!L22,"") ->  | I35: 0
A36: 30 | B36: =IF('liste engagés'!$G23=3,'liste engagés'!A23,"") ->  | C36: =IF('liste engagés'!$G23=3,'liste engagés'!B23,"") ->  | D36: =IF('liste engagés'!$G23=3,'liste engagés'!C23,"") ->  | E36: =IF('liste engagés'!$G23=3,'liste engagés'!D23,"") ->  | F36: =IF('liste engagés'!$G23=3,'liste engagés'!E23,"") ->  | G36: =IF('liste engagés'!$G23=3,'liste engagés'!K23,"") ->  | H36: =IF('liste engagés'!$G23=3,'liste engagés'!L23,"") ->  | I36: 0
A37: 31 | B37: =IF('liste engagés'!$G24=3,'liste engagés'!A24,"") ->  | C37: =IF('liste engagés'!$G24=3,'liste engagés'!B24,"") ->  | D37: =IF('liste engagés'!$G24=3,'liste engagés'!C24,"") ->  | E37: =IF('liste engagés'!$G24=3,'liste engagés'!D24,"") ->  | F37: =IF('liste engagés'!$G24=3,'liste engagés'!E24,"") ->  | G37: =IF('liste engagés'!$G24=3,'liste engagés'!K24,"") ->  | H37: =IF('liste engagés'!$G24=3,'liste engagés'!L24,"") ->  | I37: 0
A38: 32 | B38: =IF('liste engagés'!$G25=3,'liste engagés'!A25,"") ->  | C38: =IF('liste engagés'!$G25=3,'liste engagés'!B25,"") ->  | D38: =IF('liste engagés'!$G25=3,'liste engagés'!C25,"") ->  | E38: =IF('liste engagés'!$G25=3,'liste engagés'!D25,"") ->  | F38: =IF('liste engagés'!$G25=3,'liste engagés'!E25,"") ->  | G38: =IF('liste engagés'!$G25=3,'liste engagés'!K25,"") ->  | H38: =IF('liste engagés'!$G25=3,'liste engagés'!L25,"") ->  | I38: 0
A39: 33 | B39: =IF('liste engagés'!$G26=3,'liste engagés'!A26,"") ->  | C39: =IF('liste engagés'!$G26=3,'liste engagés'!B26,"") ->  | D39: =IF('liste engagés'!$G26=3,'liste engagés'!C26,"") ->  | E39: =IF('liste engagés'!$G26=3,'liste engagés'!D26,"") ->  | F39: =IF('liste engagés'!$G26=3,'liste engagés'!E26,"") ->  | G39: =IF('liste engagés'!$G26=3,'liste engagés'!K26,"") ->  | H39: =IF('liste engagés'!$G26=3,'liste engagés'!L26,"") ->  | I39: 0
A40: 34 | B40: =IF('liste engagés'!$G27=3,'liste engagés'!A27,"") ->  | C40: =IF('liste engagés'!$G27=3,'liste engagés'!B27,"") ->  | D40: =IF('liste engagés'!$G27=3,'liste engagés'!C27,"") ->  | E40: =IF('liste engagés'!$G27=3,'liste engagés'!D27,"") ->  | F40: =IF('liste engagés'!$G27=3,'liste engagés'!E27,"") ->  | G40: =IF('liste engagés'!$G27=3,'liste engagés'!K27,"") ->  | H40: =IF('liste engagés'!$G27=3,'liste engagés'!L27,"") ->  | I40: 0
A41: 35 | B41: =IF('liste engagés'!$G28=3,'liste engagés'!A28,"") ->  | C41: =IF('liste engagés'!$G28=3,'liste engagés'!B28,"") ->  | D41: =IF('liste engagés'!$G28=3,'liste engagés'!C28,"") ->  | E41: =IF('liste engagés'!$G28=3,'liste engagés'!D28,"") ->  | F41: =IF('liste engagés'!$G28=3,'liste engagés'!E28,"") ->  | G41: =IF('liste engagés'!$G28=3,'liste engagés'!K28,"") ->  | H41: =IF('liste engagés'!$G28=3,'liste engagés'!L28,"") ->  | I41: 0
A42: 36 | B42: =IF('liste engagés'!$G29=3,'liste engagés'!A29,"") ->  | C42: =IF('liste engagés'!$G29=3,'liste engagés'!B29,"") ->  | D42: =IF('liste engagés'!$G29=3,'liste engagés'!C29,"") ->  | E42: =IF('liste engagés'!$G29=3,'liste engagés'!D29,"") ->  | F42: =IF('liste engagés'!$G29=3,'liste engagés'!E29,"") ->  | G42: =IF('liste engagés'!$G29=3,'liste engagés'!K29,"") ->  | H42: =IF('liste engagés'!$G29=3,'liste engagés'!L29,"") ->  | I42: 0
A43: 37 | B43: =IF('liste engagés'!$G30=3,'liste engagés'!A30,"") ->  | C43: =IF('liste engagés'!$G30=3,'liste engagés'!B30,"") ->  | D43: =IF('liste engagés'!$G30=3,'liste engagés'!C30,"") ->  | E43: =IF('liste engagés'!$G30=3,'liste engagés'!D30,"") ->  | F43: =IF('liste engagés'!$G30=3,'liste engagés'!E30,"") ->  | G43: =IF('liste engagés'!$G30=3,'liste engagés'!K30,"") ->  | H43: =IF('liste engagés'!$G30=3,'liste engagés'!L30,"") ->  | I43: 0
A44: 38 | B44: =IF('liste engagés'!$G31=3,'liste engagés'!A31,"") ->  | C44: =IF('liste engagés'!$G31=3,'liste engagés'!B31,"") ->  | D44: =IF('liste engagés'!$G31=3,'liste engagés'!C31,"") ->  | E44: =IF('liste engagés'!$G31=3,'liste engagés'!D31,"") ->  | F44: =IF('liste engagés'!$G31=3,'liste engagés'!E31,"") ->  | G44: =IF('liste engagés'!$G31=3,'liste engagés'!K31,"") ->  | H44: =IF('liste engagés'!$G31=3,'liste engagés'!L31,"") ->  | I44: 0
A45: 39 | B45: =IF('liste engagés'!$G32=3,'liste engagés'!A32,"") ->  | C45: =IF('liste engagés'!$G32=3,'liste engagés'!B32,"") ->  | D45: =IF('liste engagés'!$G32=3,'liste engagés'!C32,"") ->  | E45: =IF('liste engagés'!$G32=3,'liste engagés'!D32,"") ->  | F45: =IF('liste engagés'!$G32=3,'liste engagés'!E32,"") ->  | G45: =IF('liste engagés'!$G32=3,'liste engagés'!K32,"") ->  | H45: =IF('liste engagés'!$G32=3,'liste engagés'!L32,"") ->  | I45: 0
A46: 40 | B46: =IF('liste engagés'!$G33=3,'liste engagés'!A33,"") ->  | C46: =IF('liste engagés'!$G33=3,'liste engagés'!B33,"") ->  | D46: =IF('liste engagés'!$G33=3,'liste engagés'!C33,"") ->  | E46: =IF('liste engagés'!$G33=3,'liste engagés'!D33,"") ->  | F46: =IF('liste engagés'!$G33=3,'liste engagés'!E33,"") ->  | G46: =IF('liste engagés'!$G33=3,'liste engagés'!K33,"") ->  | H46: =IF('liste engagés'!$G33=3,'liste engagés'!L33,"") ->  | I46: 0
A47: 41 | B47: =IF('liste engagés'!$G34=3,'liste engagés'!A34,"") ->  | C47: =IF('liste engagés'!$G34=3,'liste engagés'!B34,"") ->  | D47: =IF('liste engagés'!$G34=3,'liste engagés'!C34,"") ->  | E47: =IF('liste engagés'!$G34=3,'liste engagés'!D34,"") ->  | F47: =IF('liste engagés'!$G34=3,'liste engagés'!E34,"") ->  | G47: =IF('liste engagés'!$G34=3,'liste engagés'!K34,"") ->  | H47: =IF('liste engagés'!$G34=3,'liste engagés'!L34,"") ->  | I47: 0
A48: 42 | B48: =IF('liste engagés'!$G35=3,'liste engagés'!A35,"") ->  | C48: =IF('liste engagés'!$G35=3,'liste engagés'!B35,"") ->  | D48: =IF('liste engagés'!$G35=3,'liste engagés'!C35,"") ->  | E48: =IF('liste engagés'!$G35=3,'liste engagés'!D35,"") ->  | F48: =IF('liste engagés'!$G35=3,'liste engagés'!E35,"") ->  | G48: =IF('liste engagés'!$G35=3,'liste engagés'!K35,"") ->  | H48: =IF('liste engagés'!$G35=3,'liste engagés'!L35,"") ->  | I48: 0
A49: 43 | B49: =IF('liste engagés'!$G36=3,'liste engagés'!A36,"") ->  | C49: =IF('liste engagés'!$G36=3,'liste engagés'!B36,"") ->  | D49: =IF('liste engagés'!$G36=3,'liste engagés'!C36,"") ->  | E49: =IF('liste engagés'!$G36=3,'liste engagés'!D36,"") ->  | F49: =IF('liste engagés'!$G36=3,'liste engagés'!E36,"") ->  | G49: =IF('liste engagés'!$G36=3,'liste engagés'!K36,"") ->  | H49: =IF('liste engagés'!$G36=3,'liste engagés'!L36,"") ->  | I49: 0
A50: 44 | B50: =IF('liste engagés'!$G37=3,'liste engagés'!A37,"") ->  | C50: =IF('liste engagés'!$G37=3,'liste engagés'!B37,"") ->  | D50: =IF('liste engagés'!$G37=3,'liste engagés'!C37,"") ->  | E50: =IF('liste engagés'!$G37=3,'liste engagés'!D37,"") ->  | F50: =IF('liste engagés'!$G37=3,'liste engagés'!E37,"") ->  | G50: =IF('liste engagés'!$G37=3,'liste engagés'!K37,"") ->  | H50: =IF('liste engagés'!$G37=3,'liste engagés'!L37,"") ->  | I50: 0
A51: 45 | B51: =IF('liste engagés'!$G38=3,'liste engagés'!A38,"") ->  | C51: =IF('liste engagés'!$G38=3,'liste engagés'!B38,"") ->  | D51: =IF('liste engagés'!$G38=3,'liste engagés'!C38,"") ->  | E51: =IF('liste engagés'!$G38=3,'liste engagés'!D38,"") ->  | F51: =IF('liste engagés'!$G38=3,'liste engagés'!E38,"") ->  | G51: =IF('liste engagés'!$G38=3,'liste engagés'!K38,"") ->  | H51: =IF('liste engagés'!$G38=3,'liste engagés'!L38,"") ->  | I51: 0
A52: 46 | B52: =IF('liste engagés'!$G39=3,'liste engagés'!A39,"") ->  | C52: =IF('liste engagés'!$G39=3,'liste engagés'!B39,"") ->  | D52: =IF('liste engagés'!$G39=3,'liste engagés'!C39,"") ->  | E52: =IF('liste engagés'!$G39=3,'liste engagés'!D39,"") ->  | F52: =IF('liste engagés'!$G39=3,'liste engagés'!E39,"") ->  | G52: =IF('liste engagés'!$G39=3,'liste engagés'!K39,"") ->  | H52: =IF('liste engagés'!$G39=3,'liste engagés'!L39,"") ->  | I52: 0
A53: 47 | B53: =IF('liste engagés'!$G40=3,'liste engagés'!A40,"") ->  | C53: =IF('liste engagés'!$G40=3,'liste engagés'!B40,"") ->  | D53: =IF('liste engagés'!$G40=3,'liste engagés'!C40,"") ->  | E53: =IF('liste engagés'!$G40=3,'liste engagés'!D40,"") ->  | F53: =IF('liste engagés'!$G40=3,'liste engagés'!E40,"") ->  | G53: =IF('liste engagés'!$G40=3,'liste engagés'!K40,"") ->  | H53: =IF('liste engagés'!$G40=3,'liste engagés'!L40,"") ->  | I53: 0
A54: 48 | B54: =IF('liste engagés'!$G41=3,'liste engagés'!A41,"") ->  | C54: =IF('liste engagés'!$G41=3,'liste engagés'!B41,"") ->  | D54: =IF('liste engagés'!$G41=3,'liste engagés'!C41,"") ->  | E54: =IF('liste engagés'!$G41=3,'liste engagés'!D41,"") ->  | F54: =IF('liste engagés'!$G41=3,'liste engagés'!E41,"") ->  | G54: =IF('liste engagés'!$G41=3,'liste engagés'!K41,"") ->  | H54: =IF('liste engagés'!$G41=3,'liste engagés'!L41,"") ->  | I54: 0
A55: 49 | B55: =IF('liste engagés'!$G42=3,'liste engagés'!A42,"") ->  | C55: =IF('liste engagés'!$G42=3,'liste engagés'!B42,"") ->  | D55: =IF('liste engagés'!$G42=3,'liste engagés'!C42,"") ->  | E55: =IF('liste engagés'!$G42=3,'liste engagés'!D42,"") ->  | F55: =IF('liste engagés'!$G42=3,'liste engagés'!E42,"") ->  | G55: =IF('liste engagés'!$G42=3,'liste engagés'!K42,"") ->  | H55: =IF('liste engagés'!$G42=3,'liste engagés'!L42,"") ->  | I55: 0
A56: 50 | B56: =IF('liste engagés'!$G43=3,'liste engagés'!A43,"") ->  | C56: =IF('liste engagés'!$G43=3,'liste engagés'!B43,"") ->  | D56: =IF('liste engagés'!$G43=3,'liste engagés'!C43,"") ->  | E56: =IF('liste engagés'!$G43=3,'liste engagés'!D43,"") ->  | F56: =IF('liste engagés'!$G43=3,'liste engagés'!E43,"") ->  | G56: =IF('liste engagés'!$G43=3,'liste engagés'!K43,"") ->  | H56: =IF('liste engagés'!$G43=3,'liste engagés'!L43,"") ->  | I56: 0
A57: 51 | B57: =IF('liste engagés'!$G44=3,'liste engagés'!A44,"") ->  | C57: =IF('liste engagés'!$G44=3,'liste engagés'!B44,"") ->  | D57: =IF('liste engagés'!$G44=3,'liste engagés'!C44,"") ->  | E57: =IF('liste engagés'!$G44=3,'liste engagés'!D44,"") ->  | F57: =IF('liste engagés'!$G44=3,'liste engagés'!E44,"") ->  | G57: =IF('liste engagés'!$G44=3,'liste engagés'!K44,"") ->  | H57: =IF('liste engagés'!$G44=3,'liste engagés'!L44,"") ->  | I57: 0
A58: 52 | B58: =IF('liste engagés'!$G45=3,'liste engagés'!A45,"") ->  | C58: =IF('liste engagés'!$G45=3,'liste engagés'!B45,"") ->  | D58: =IF('liste engagés'!$G45=3,'liste engagés'!C45,"") ->  | E58: =IF('liste engagés'!$G45=3,'liste engagés'!D45,"") ->  | F58: =IF('liste engagés'!$G45=3,'liste engagés'!E45,"") ->  | G58: =IF('liste engagés'!$G45=3,'liste engagés'!K45,"") ->  | H58: =IF('liste engagés'!$G45=3,'liste engagés'!L45,"") ->  | I58: 0
A59: 53 | B59: =IF('liste engagés'!$G46=3,'liste engagés'!A46,"") ->  | C59: =IF('liste engagés'!$G46=3,'liste engagés'!B46,"") ->  | D59: =IF('liste engagés'!$G46=3,'liste engagés'!C46,"") ->  | E59: =IF('liste engagés'!$G46=3,'liste engagés'!D46,"") ->  | F59: =IF('liste engagés'!$G46=3,'liste engagés'!E46,"") ->  | G59: =IF('liste engagés'!$G46=3,'liste engagés'!K46,"") ->  | H59: =IF('liste engagés'!$G46=3,'liste engagés'!L46,"") ->  | I59: 0
A60: 54 | B60: =IF('liste engagés'!$G47=3,'liste engagés'!A47,"") ->  | C60: =IF('liste engagés'!$G47=3,'liste engagés'!B47,"") ->  | D60: =IF('liste engagés'!$G47=3,'liste engagés'!C47,"") ->  | E60: =IF('liste engagés'!$G47=3,'liste engagés'!D47,"") ->  | F60: =IF('liste engagés'!$G47=3,'liste engagés'!E47,"") ->  | G60: =IF('liste engagés'!$G47=3,'liste engagés'!K47,"") ->  | H60: =IF('liste engagés'!$G47=3,'liste engagés'!L47,"") ->  | I60: 0
A61: 55 | B61: =IF('liste engagés'!$G48=3,'liste engagés'!A48,"") ->  | C61: =IF('liste engagés'!$G48=3,'liste engagés'!B48,"") ->  | D61: =IF('liste engagés'!$G48=3,'liste engagés'!C48,"") ->  | E61: =IF('liste engagés'!$G48=3,'liste engagés'!D48,"") ->  | F61: =IF('liste engagés'!$G48=3,'liste engagés'!E48,"") ->  | G61: =IF('liste engagés'!$G48=3,'liste engagés'!K48,"") ->  | H61: =IF('liste engagés'!$G48=3,'liste engagés'!L48,"") ->  | I61: 0
A62: 56 | B62: =IF('liste engagés'!$G49=3,'liste engagés'!A49,"") ->  | C62: =IF('liste engagés'!$G49=3,'liste engagés'!B49,"") ->  | D62: =IF('liste engagés'!$G49=3,'liste engagés'!C49,"") ->  | E62: =IF('liste engagés'!$G49=3,'liste engagés'!D49,"") ->  | F62: =IF('liste engagés'!$G49=3,'liste engagés'!E49,"") ->  | G62: =IF('liste engagés'!$G49=3,'liste engagés'!K49,"") ->  | H62: =IF('liste engagés'!$G49=3,'liste engagés'!L49,"") ->  | I62: 0
A63: 57 | B63: =IF('liste engagés'!$G50=3,'liste engagés'!A50,"") ->  | C63: =IF('liste engagés'!$G50=3,'liste engagés'!B50,"") ->  | D63: =IF('liste engagés'!$G50=3,'liste engagés'!C50,"") ->  | E63: =IF('liste engagés'!$G50=3,'liste engagés'!D50,"") ->  | F63: =IF('liste engagés'!$G50=3,'liste engagés'!E50,"") ->  | G63: =IF('liste engagés'!$G50=3,'liste engagés'!K50,"") ->  | H63: =IF('liste engagés'!$G50=3,'liste engagés'!L50,"") ->  | I63: 0
A64: 58 | B64: =IF('liste engagés'!$G51=3,'liste engagés'!A51,"") ->  | C64: =IF('liste engagés'!$G51=3,'liste engagés'!B51,"") ->  | D64: =IF('liste engagés'!$G51=3,'liste engagés'!C51,"") ->  | E64: =IF('liste engagés'!$G51=3,'liste engagés'!D51,"") ->  | F64: =IF('liste engagés'!$G51=3,'liste engagés'!E51,"") ->  | G64: =IF('liste engagés'!$G51=3,'liste engagés'!K51,"") ->  | H64: =IF('liste engagés'!$G51=3,'liste engagés'!L51,"") ->  | I64: 0
A65: 59 | B65: =IF('liste engagés'!$G52=3,'liste engagés'!A52,"") ->  | C65: =IF('liste engagés'!$G52=3,'liste engagés'!B52,"") ->  | D65: =IF('liste engagés'!$G52=3,'liste engagés'!C52,"") ->  | E65: =IF('liste engagés'!$G52=3,'liste engagés'!D52,"") ->  | F65: =IF('liste engagés'!$G52=3,'liste engagés'!E52,"") ->  | G65: =IF('liste engagés'!$G52=3,'liste engagés'!K52,"") ->  | H65: =IF('liste engagés'!$G52=3,'liste engagés'!L52,"") ->  | I65: 0
A66: 60 | B66: =IF('liste engagés'!$G53=3,'liste engagés'!A53,"") ->  | C66: =IF('liste engagés'!$G53=3,'liste engagés'!B53,"") ->  | D66: =IF('liste engagés'!$G53=3,'liste engagés'!C53,"") ->  | E66: =IF('liste engagés'!$G53=3,'liste engagés'!D53,"") ->  | F66: =IF('liste engagés'!$G53=3,'liste engagés'!E53,"") ->  | G66: =IF('liste engagés'!$G53=3,'liste engagés'!K53,"") ->  | H66: =IF('liste engagés'!$G53=3,'liste engagés'!L53,"") ->  | I66: 0
A67: 61 | B67: =IF('liste engagés'!$G54=3,'liste engagés'!A54,"") ->  | C67: =IF('liste engagés'!$G54=3,'liste engagés'!B54,"") ->  | D67: =IF('liste engagés'!$G54=3,'liste engagés'!C54,"") ->  | E67: =IF('liste engagés'!$G54=3,'liste engagés'!D54,"") ->  | F67: =IF('liste engagés'!$G54=3,'liste engagés'!E54,"") ->  | G67: =IF('liste engagés'!$G54=3,'liste engagés'!K54,"") ->  | H67: =IF('liste engagés'!$G54=3,'liste engagés'!L54,"") ->  | I67: 0
A68: 62 | B68: =IF('liste engagés'!$G55=3,'liste engagés'!A55,"") ->  | C68: =IF('liste engagés'!$G55=3,'liste engagés'!B55,"") ->  | D68: =IF('liste engagés'!$G55=3,'liste engagés'!C55,"") ->  | E68: =IF('liste engagés'!$G55=3,'liste engagés'!D55,"") ->  | F68: =IF('liste engagés'!$G55=3,'liste engagés'!E55,"") ->  | G68: =IF('liste engagés'!$G55=3,'liste engagés'!K55,"") ->  | H68: =IF('liste engagés'!$G55=3,'liste engagés'!L55,"") ->  | I68: 0
A69: 63 | B69: =IF('liste engagés'!$G56=3,'liste engagés'!A56,"") ->  | C69: =IF('liste engagés'!$G56=3,'liste engagés'!B56,"") ->  | D69: =IF('liste engagés'!$G56=3,'liste engagés'!C56,"") ->  | E69: =IF('liste engagés'!$G56=3,'liste engagés'!D56,"") ->  | F69: =IF('liste engagés'!$G56=3,'liste engagés'!E56,"") ->  | G69: =IF('liste engagés'!$G56=3,'liste engagés'!K56,"") ->  | H69: =IF('liste engagés'!$G56=3,'liste engagés'!L56,"") ->  | I69: 0
A70: 64 | B70: =IF('liste engagés'!$G57=3,'liste engagés'!A57,"") ->  | C70: =IF('liste engagés'!$G57=3,'liste engagés'!B57,"") ->  | D70: =IF('liste engagés'!$G57=3,'liste engagés'!C57,"") ->  | E70: =IF('liste engagés'!$G57=3,'liste engagés'!D57,"") ->  | F70: =IF('liste engagés'!$G57=3,'liste engagés'!E57,"") ->  | G70: =IF('liste engagés'!$G57=3,'liste engagés'!K57,"") ->  | H70: =IF('liste engagés'!$G57=3,'liste engagés'!L57,"") ->  | I70: 0
A71: 65 | B71: =IF('liste engagés'!$G58=3,'liste engagés'!A58,"") ->  | C71: =IF('liste engagés'!$G58=3,'liste engagés'!B58,"") ->  | D71: =IF('liste engagés'!$G58=3,'liste engagés'!C58,"") ->  | E71: =IF('liste engagés'!$G58=3,'liste engagés'!D58,"") ->  | F71: =IF('liste engagés'!$G58=3,'liste engagés'!E58,"") ->  | G71: =IF('liste engagés'!$G58=3,'liste engagés'!K58,"") ->  | H71: =IF('liste engagés'!$G58=3,'liste engagés'!L58,"") ->  | I71: =+IF(C71="",0,1) -> 0
A72: =+A71+1 -> 66 | B72: =IF('liste engagés'!$G59=3,'liste engagés'!A59,"") ->  | C72: =IF('liste engagés'!$G59=3,'liste engagés'!B59,"") ->  | D72: =IF('liste engagés'!$G59=3,'liste engagés'!C59,"") ->  | E72: =IF('liste engagés'!$G59=3,'liste engagés'!D59,"") ->  | F72: =IF('liste engagés'!$G59=3,'liste engagés'!E59,"") ->  | G72: =IF('liste engagés'!$G59=3,'liste engagés'!K59,"") ->  | H72: =IF('liste engagés'!$G59=3,'liste engagés'!L59,"") ->  | I72: 0
A73: 67 | B73: =IF('liste engagés'!$G60=3,'liste engagés'!A60,"") ->  | C73: =IF('liste engagés'!$G60=3,'liste engagés'!B60,"") ->  | D73: =IF('liste engagés'!$G60=3,'liste engagés'!C60,"") ->  | E73: =IF('liste engagés'!$G60=3,'liste engagés'!D60,"") ->  | F73: =IF('liste engagés'!$G60=3,'liste engagés'!E60,"") ->  | G73: =IF('liste engagés'!$G60=3,'liste engagés'!K60,"") ->  | H73: =IF('liste engagés'!$G60=3,'liste engagés'!L60,"") ->  | I73: 0
A74: 68 | B74: =IF('liste engagés'!$G62=3,'liste engagés'!A62,"") ->  | C74: =IF('liste engagés'!$G62=3,'liste engagés'!B62,"") ->  | D74: =IF('liste engagés'!$G62=3,'liste engagés'!C62,"") ->  | E74: =IF('liste engagés'!$G62=3,'liste engagés'!D62,"") ->  | F74: =IF('liste engagés'!$G62=3,'liste engagés'!E62,"") ->  | G74: =IF('liste engagés'!$G62=3,'liste engagés'!K62,"") ->  | H74: =IF('liste engagés'!$G62=3,'liste engagés'!L62,"") ->  | I74: 0
A75: 69 | B75: =IF('liste engagés'!$G63=3,'liste engagés'!A63,"") ->  | C75: =IF('liste engagés'!$G63=3,'liste engagés'!B63,"") ->  | D75: =IF('liste engagés'!$G63=3,'liste engagés'!C63,"") ->  | E75: =IF('liste engagés'!$G63=3,'liste engagés'!D63,"") ->  | F75: =IF('liste engagés'!$G63=3,'liste engagés'!E63,"") ->  | G75: =IF('liste engagés'!$G63=3,'liste engagés'!K63,"") ->  | H75: =IF('liste engagés'!$G63=3,'liste engagés'!L63,"") ->  | I75: 0
A76: 70 | B76: =IF('liste engagés'!$G64=3,'liste engagés'!A64,"") ->  | C76: =IF('liste engagés'!$G64=3,'liste engagés'!B64,"") ->  | D76: =IF('liste engagés'!$G64=3,'liste engagés'!C64,"") ->  | E76: =IF('liste engagés'!$G64=3,'liste engagés'!D64,"") ->  | F76: =IF('liste engagés'!$G64=3,'liste engagés'!E64,"") ->  | G76: =IF('liste engagés'!$G64=3,'liste engagés'!K64,"") ->  | H76: =IF('liste engagés'!$G64=3,'liste engagés'!L64,"") ->  | I76: 0
A77: 71 | B77: =IF('liste engagés'!$G65=3,'liste engagés'!A65,"") ->  | C77: =IF('liste engagés'!$G65=3,'liste engagés'!B65,"") ->  | D77: =IF('liste engagés'!$G65=3,'liste engagés'!C65,"") ->  | E77: =IF('liste engagés'!$G65=3,'liste engagés'!D65,"") ->  | F77: =IF('liste engagés'!$G65=3,'liste engagés'!E65,"") ->  | G77: =IF('liste engagés'!$G65=3,'liste engagés'!K65,"") ->  | H77: =IF('liste engagés'!$G65=3,'liste engagés'!L65,"") ->  | I77: 0
A78: 72 | B78: =IF('liste engagés'!$G67=3,'liste engagés'!A67,"") ->  | C78: =IF('liste engagés'!$G67=3,'liste engagés'!B67,"") ->  | D78: =IF('liste engagés'!$G67=3,'liste engagés'!C67,"") ->  | E78: =IF('liste engagés'!$G67=3,'liste engagés'!D67,"") ->  | F78: =IF('liste engagés'!$G67=3,'liste engagés'!E67,"") ->  | G78: =IF('liste engagés'!$G67=3,'liste engagés'!K67,"") ->  | H78: =IF('liste engagés'!$G67=3,'liste engagés'!L67,"") ->  | I78: 0
A79: 73 | B79: =IF('liste engagés'!$G68=3,'liste engagés'!A68,"") ->  | C79: =IF('liste engagés'!$G68=3,'liste engagés'!B68,"") ->  | D79: =IF('liste engagés'!$G68=3,'liste engagés'!C68,"") ->  | E79: =IF('liste engagés'!$G68=3,'liste engagés'!D68,"") ->  | F79: =IF('liste engagés'!$G68=3,'liste engagés'!E68,"") ->  | G79: =IF('liste engagés'!$G68=3,'liste engagés'!K68,"") ->  | H79: =IF('liste engagés'!$G68=3,'liste engagés'!L68,"") ->  | I79: 0
A80: 74 | B80: =IF('liste engagés'!$G69=3,'liste engagés'!A69,"") ->  | C80: =IF('liste engagés'!$G69=3,'liste engagés'!B69,"") ->  | D80: =IF('liste engagés'!$G69=3,'liste engagés'!C69,"") ->  | E80: =IF('liste engagés'!$G69=3,'liste engagés'!D69,"") ->  | F80: =IF('liste engagés'!$G69=3,'liste engagés'!E69,"") ->  | G80: =IF('liste engagés'!$G69=3,'liste engagés'!K69,"") ->  | H80: =IF('liste engagés'!$G69=3,'liste engagés'!L69,"") ->  | I80: 0
A81: 75 | B81: =IF('liste engagés'!$G70=3,'liste engagés'!A70,"") ->  | C81: =IF('liste engagés'!$G70=3,'liste engagés'!B70,"") ->  | D81: =IF('liste engagés'!$G70=3,'liste engagés'!C70,"") ->  | E81: =IF('liste engagés'!$G70=3,'liste engagés'!D70,"") ->  | F81: =IF('liste engagés'!$G70=3,'liste engagés'!E70,"") ->  | G81: =IF('liste engagés'!$G70=3,'liste engagés'!K70,"") ->  | H81: =IF('liste engagés'!$G70=3,'liste engagés'!L70,"") ->  | I81: 0
A82: 76 | B82: =IF('liste engagés'!$G71=3,'liste engagés'!A71,"") ->  | C82: =IF('liste engagés'!$G71=3,'liste engagés'!B71,"") ->  | D82: =IF('liste engagés'!$G71=3,'liste engagés'!C71,"") ->  | E82: =IF('liste engagés'!$G71=3,'liste engagés'!D71,"") ->  | F82: =IF('liste engagés'!$G71=3,'liste engagés'!E71,"") ->  | G82: =IF('liste engagés'!$G71=3,'liste engagés'!K71,"") ->  | H82: =IF('liste engagés'!$G71=3,'liste engagés'!L71,"") ->  | I82: 0
A83: 77 | B83: =IF('liste engagés'!$G72=3,'liste engagés'!A72,"") ->  | C83: =IF('liste engagés'!$G72=3,'liste engagés'!B72,"") ->  | D83: =IF('liste engagés'!$G72=3,'liste engagés'!C72,"") ->  | E83: =IF('liste engagés'!$G72=3,'liste engagés'!D72,"") ->  | F83: =IF('liste engagés'!$G72=3,'liste engagés'!E72,"") ->  | G83: =IF('liste engagés'!$G72=3,'liste engagés'!K72,"") ->  | H83: =IF('liste engagés'!$G72=3,'liste engagés'!L72,"") ->  | I83: 0
A84: 78 | B84: =IF('liste engagés'!$G73=3,'liste engagés'!A73,"") ->  | C84: =IF('liste engagés'!$G73=3,'liste engagés'!B73,"") ->  | D84: =IF('liste engagés'!$G73=3,'liste engagés'!C73,"") ->  | E84: =IF('liste engagés'!$G73=3,'liste engagés'!D73,"") ->  | F84: =IF('liste engagés'!$G73=3,'liste engagés'!E73,"") ->  | G84: =IF('liste engagés'!$G73=3,'liste engagés'!K73,"") ->  | H84: =IF('liste engagés'!$G73=3,'liste engagés'!L73,"") ->  | I84: 0
A85: 79 | B85: =IF('liste engagés'!$G74=3,'liste engagés'!A74,"") ->  | C85: =IF('liste engagés'!$G74=3,'liste engagés'!B74,"") ->  | D85: =IF('liste engagés'!$G74=3,'liste engagés'!C74,"") ->  | E85: =IF('liste engagés'!$G74=3,'liste engagés'!D74,"") ->  | F85: =IF('liste engagés'!$G74=3,'liste engagés'!E74,"") ->  | G85: =IF('liste engagés'!$G74=3,'liste engagés'!K74,"") ->  | H85: =IF('liste engagés'!$G74=3,'liste engagés'!L74,"") ->  | I85: 0
A86: 80 | B86: =IF('liste engagés'!$G75=3,'liste engagés'!A75,"") ->  | C86: =IF('liste engagés'!$G75=3,'liste engagés'!B75,"") ->  | D86: =IF('liste engagés'!$G75=3,'liste engagés'!C75,"") ->  | E86: =IF('liste engagés'!$G75=3,'liste engagés'!D75,"") ->  | F86: =IF('liste engagés'!$G75=3,'liste engagés'!E75,"") ->  | G86: =IF('liste engagés'!$G75=3,'liste engagés'!K75,"") ->  | H86: =IF('liste engagés'!$G75=3,'liste engagés'!L75,"") ->  | I86: 0
A87: 81 | B87: =IF('liste engagés'!$G76=3,'liste engagés'!A76,"") ->  | C87: =IF('liste engagés'!$G76=3,'liste engagés'!B76,"") ->  | D87: =IF('liste engagés'!$G76=3,'liste engagés'!C76,"") ->  | E87: =IF('liste engagés'!$G76=3,'liste engagés'!D76,"") ->  | F87: =IF('liste engagés'!$G76=3,'liste engagés'!E76,"") ->  | G87: =IF('liste engagés'!$G76=3,'liste engagés'!K76,"") ->  | H87: =IF('liste engagés'!$G76=3,'liste engagés'!L76,"") ->  | I87: 0
A88: 82 | B88: =IF('liste engagés'!$G77=3,'liste engagés'!A77,"") ->  | C88: =IF('liste engagés'!$G77=3,'liste engagés'!B77,"") ->  | D88: =IF('liste engagés'!$G77=3,'liste engagés'!C77,"") ->  | E88: =IF('liste engagés'!$G77=3,'liste engagés'!D77,"") ->  | F88: =IF('liste engagés'!$G77=3,'liste engagés'!E77,"") ->  | G88: =IF('liste engagés'!$G77=3,'liste engagés'!K77,"") ->  | H88: =IF('liste engagés'!$G77=3,'liste engagés'!L77,"") ->  | I88: 0
A89: 83 | B89: =IF('liste engagés'!$G78=3,'liste engagés'!A78,"") ->  | C89: =IF('liste engagés'!$G78=3,'liste engagés'!B78,"") ->  | D89: =IF('liste engagés'!$G78=3,'liste engagés'!C78,"") ->  | E89: =IF('liste engagés'!$G78=3,'liste engagés'!D78,"") ->  | F89: =IF('liste engagés'!$G78=3,'liste engagés'!E78,"") ->  | G89: =IF('liste engagés'!$G78=3,'liste engagés'!K78,"") ->  | H89: =IF('liste engagés'!$G78=3,'liste engagés'!L78,"") ->  | I89: 0
A90: 84 | B90: =IF('liste engagés'!$G79=3,'liste engagés'!A79,"") ->  | C90: =IF('liste engagés'!$G79=3,'liste engagés'!B79,"") ->  | D90: =IF('liste engagés'!$G79=3,'liste engagés'!C79,"") ->  | E90: =IF('liste engagés'!$G79=3,'liste engagés'!D79,"") ->  | F90: =IF('liste engagés'!$G79=3,'liste engagés'!E79,"") ->  | G90: =IF('liste engagés'!$G79=3,'liste engagés'!K79,"") ->  | H90: =IF('liste engagés'!$G79=3,'liste engagés'!L79,"") ->  | I90: 0
A91: 85 | B91: =IF('liste engagés'!$G81=3,'liste engagés'!A81,"") ->  | C91: =IF('liste engagés'!$G81=3,'liste engagés'!B81,"") ->  | D91: =IF('liste engagés'!$G81=3,'liste engagés'!C81,"") ->  | E91: =IF('liste engagés'!$G81=3,'liste engagés'!D81,"") ->  | F91: =IF('liste engagés'!$G81=3,'liste engagés'!E81,"") ->  | G91: =IF('liste engagés'!$G81=3,'liste engagés'!K81,"") ->  | H91: =IF('liste engagés'!$G81=3,'liste engagés'!L81,"") ->  | I91: 0
A92: 86 | B92: =IF('liste engagés'!$G82=3,'liste engagés'!A82,"") ->  | C92: =IF('liste engagés'!$G82=3,'liste engagés'!B82,"") ->  | D92: =IF('liste engagés'!$G82=3,'liste engagés'!C82,"") ->  | E92: =IF('liste engagés'!$G82=3,'liste engagés'!D82,"") ->  | F92: =IF('liste engagés'!$G82=3,'liste engagés'!E82,"") ->  | G92: =IF('liste engagés'!$G82=3,'liste engagés'!K82,"") ->  | H92: =IF('liste engagés'!$G82=3,'liste engagés'!L82,"") ->  | I92: 0
A93: 87 | B93: =IF('liste engagés'!$G83=3,'liste engagés'!A83,"") ->  | C93: =IF('liste engagés'!$G83=3,'liste engagés'!B83,"") ->  | D93: =IF('liste engagés'!$G83=3,'liste engagés'!C83,"") ->  | E93: =IF('liste engagés'!$G83=3,'liste engagés'!D83,"") ->  | F93: =IF('liste engagés'!$G83=3,'liste engagés'!E83,"") ->  | G93: =IF('liste engagés'!$G83=3,'liste engagés'!K83,"") ->  | H93: =IF('liste engagés'!$G83=3,'liste engagés'!L83,"") ->  | I93: 0
A94: 88 | B94: =IF('liste engagés'!$G84=3,'liste engagés'!A84,"") ->  | C94: =IF('liste engagés'!$G84=3,'liste engagés'!B84,"") ->  | D94: =IF('liste engagés'!$G84=3,'liste engagés'!C84,"") ->  | E94: =IF('liste engagés'!$G84=3,'liste engagés'!D84,"") ->  | F94: =IF('liste engagés'!$G84=3,'liste engagés'!E84,"") ->  | G94: =IF('liste engagés'!$G84=3,'liste engagés'!K84,"") ->  | H94: =IF('liste engagés'!$G84=3,'liste engagés'!L84,"") ->  | I94: 0
A95: 89 | B95: =IF('liste engagés'!$G85=3,'liste engagés'!A85,"") ->  | C95: =IF('liste engagés'!$G85=3,'liste engagés'!B85,"") ->  | D95: =IF('liste engagés'!$G85=3,'liste engagés'!C85,"") ->  | E95: =IF('liste engagés'!$G85=3,'liste engagés'!D85,"") ->  | F95: =IF('liste engagés'!$G85=3,'liste engagés'!E85,"") ->  | G95: =IF('liste engagés'!$G85=3,'liste engagés'!K85,"") ->  | H95: =IF('liste engagés'!$G85=3,'liste engagés'!L85,"") ->  | I95: 0
A96: 90 | B96: =IF('liste engagés'!$G86=3,'liste engagés'!A86,"") ->  | C96: =IF('liste engagés'!$G86=3,'liste engagés'!B86,"") ->  | D96: =IF('liste engagés'!$G86=3,'liste engagés'!C86,"") ->  | E96: =IF('liste engagés'!$G86=3,'liste engagés'!D86,"") ->  | F96: =IF('liste engagés'!$G86=3,'liste engagés'!E86,"") ->  | G96: =IF('liste engagés'!$G86=3,'liste engagés'!K86,"") ->  | H96: =IF('liste engagés'!$G86=3,'liste engagés'!L86,"") ->  | I96: 0
A97: 91 | B97: =IF('liste engagés'!$G87=3,'liste engagés'!A87,"") ->  | C97: =IF('liste engagés'!$G87=3,'liste engagés'!B87,"") ->  | D97: =IF('liste engagés'!$G87=3,'liste engagés'!C87,"") ->  | E97: =IF('liste engagés'!$G87=3,'liste engagés'!D87,"") ->  | F97: =IF('liste engagés'!$G87=3,'liste engagés'!E87,"") ->  | G97: =IF('liste engagés'!$G87=3,'liste engagés'!K87,"") ->  | H97: =IF('liste engagés'!$G87=3,'liste engagés'!L87,"") ->  | I97: 0
A98: 92 | B98: =IF('liste engagés'!$G88=3,'liste engagés'!A88,"") ->  | C98: =IF('liste engagés'!$G88=3,'liste engagés'!B88,"") ->  | D98: =IF('liste engagés'!$G88=3,'liste engagés'!C88,"") ->  | E98: =IF('liste engagés'!$G88=3,'liste engagés'!D88,"") ->  | F98: =IF('liste engagés'!$G88=3,'liste engagés'!E88,"") ->  | G98: =IF('liste engagés'!$G88=3,'liste engagés'!K88,"") ->  | H98: =IF('liste engagés'!$G88=3,'liste engagés'!L88,"") ->  | I98: 0
A99: 93 | B99: =IF('liste engagés'!$G91=3,'liste engagés'!A91,"") ->  | C99: =IF('liste engagés'!$G91=3,'liste engagés'!B91,"") ->  | D99: =IF('liste engagés'!$G91=3,'liste engagés'!C91,"") ->  | E99: =IF('liste engagés'!$G91=3,'liste engagés'!D91,"") ->  | F99: =IF('liste engagés'!$G91=3,'liste engagés'!E91,"") ->  | G99: =IF('liste engagés'!$G91=3,'liste engagés'!K91,"") ->  | H99: =IF('liste engagés'!$G91=3,'liste engagés'!L91,"") ->  | I99: 0
A100: 94 | B100: =IF('liste engagés'!$G92=3,'liste engagés'!A92,"") ->  | C100: =IF('liste engagés'!$G92=3,'liste engagés'!B92,"") ->  | D100: =IF('liste engagés'!$G92=3,'liste engagés'!C92,"") ->  | E100: =IF('liste engagés'!$G92=3,'liste engagés'!D92,"") ->  | F100: =IF('liste engagés'!$G92=3,'liste engagés'!E92,"") ->  | G100: =IF('liste engagés'!$G92=3,'liste engagés'!K92,"") ->  | H100: =IF('liste engagés'!$G92=3,'liste engagés'!L92,"") ->  | I100: 0
A101: 95 | B101: =IF('liste engagés'!$G93=3,'liste engagés'!A93,"") ->  | C101: =IF('liste engagés'!$G93=3,'liste engagés'!B93,"") ->  | D101: =IF('liste engagés'!$G93=3,'liste engagés'!C93,"") ->  | E101: =IF('liste engagés'!$G93=3,'liste engagés'!D93,"") ->  | F101: =IF('liste engagés'!$G93=3,'liste engagés'!E93,"") ->  | G101: =IF('liste engagés'!$G93=3,'liste engagés'!K93,"") ->  | H101: =IF('liste engagés'!$G93=3,'liste engagés'!L93,"") ->  | I101: 0
A102: 96 | B102: =IF('liste engagés'!$G94=3,'liste engagés'!A94,"") ->  | C102: =IF('liste engagés'!$G94=3,'liste engagés'!B94,"") ->  | D102: =IF('liste engagés'!$G94=3,'liste engagés'!C94,"") ->  | E102: =IF('liste engagés'!$G94=3,'liste engagés'!D94,"") ->  | F102: =IF('liste engagés'!$G94=3,'liste engagés'!E94,"") ->  | G102: =IF('liste engagés'!$G94=3,'liste engagés'!K94,"") ->  | H102: =IF('liste engagés'!$G94=3,'liste engagés'!L94,"") ->  | I102: 0
A103: 97 | B103: =IF('liste engagés'!$G95=3,'liste engagés'!A95,"") ->  | C103: =IF('liste engagés'!$G95=3,'liste engagés'!B95,"") ->  | D103: =IF('liste engagés'!$G95=3,'liste engagés'!C95,"") ->  | E103: =IF('liste engagés'!$G95=3,'liste engagés'!D95,"") ->  | F103: =IF('liste engagés'!$G95=3,'liste engagés'!E95,"") ->  | G103: =IF('liste engagés'!$G95=3,'liste engagés'!K95,"") ->  | H103: =IF('liste engagés'!$G95=3,'liste engagés'!L95,"") ->  | I103: 0
A104: 98 | B104: =IF('liste engagés'!$G96=3,'liste engagés'!A96,"") ->  | C104: =IF('liste engagés'!$G96=3,'liste engagés'!B96,"") ->  | D104: =IF('liste engagés'!$G96=3,'liste engagés'!C96,"") ->  | E104: =IF('liste engagés'!$G96=3,'liste engagés'!D96,"") ->  | F104: =IF('liste engagés'!$G96=3,'liste engagés'!E96,"") ->  | G104: =IF('liste engagés'!$G96=3,'liste engagés'!K96,"") ->  | H104: =IF('liste engagés'!$G96=3,'liste engagés'!L96,"") ->  | I104: 0
A105: 99 | B105: =IF('liste engagés'!$G97=3,'liste engagés'!A97,"") ->  | C105: =IF('liste engagés'!$G97=3,'liste engagés'!B97,"") ->  | D105: =IF('liste engagés'!$G97=3,'liste engagés'!C97,"") ->  | E105: =IF('liste engagés'!$G97=3,'liste engagés'!D97,"") ->  | F105: =IF('liste engagés'!$G97=3,'liste engagés'!E97,"") ->  | G105: =IF('liste engagés'!$G97=3,'liste engagés'!K97,"") ->  | H105: =IF('liste engagés'!$G97=3,'liste engagés'!L97,"") ->  | I105: 0
A106: 100 | B106: =IF('liste engagés'!$G98=3,'liste engagés'!A98,"") ->  | C106: =IF('liste engagés'!$G98=3,'liste engagés'!B98,"") ->  | D106: =IF('liste engagés'!$G98=3,'liste engagés'!C98,"") ->  | E106: =IF('liste engagés'!$G98=3,'liste engagés'!D98,"") ->  | F106: =IF('liste engagés'!$G98=3,'liste engagés'!E98,"") ->  | G106: =IF('liste engagés'!$G98=3,'liste engagés'!K98,"") ->  | H106: =IF('liste engagés'!$G98=3,'liste engagés'!L98,"") ->  | I106: 0
A107: 101 | B107: =IF('liste engagés'!$G99=3,'liste engagés'!A99,"") ->  | C107: =IF('liste engagés'!$G99=3,'liste engagés'!B99,"") ->  | D107: =IF('liste engagés'!$G99=3,'liste engagés'!C99,"") ->  | E107: =IF('liste engagés'!$G99=3,'liste engagés'!D99,"") ->  | F107: =IF('liste engagés'!$G99=3,'liste engagés'!E99,"") ->  | G107: =IF('liste engagés'!$G99=3,'liste engagés'!K99,"") ->  | H107: =IF('liste engagés'!$G99=3,'liste engagés'!L99,"") ->  | I107: 0
A108: 102 | B108: =IF('liste engagés'!$G100=3,'liste engagés'!A100,"") ->  | C108: =IF('liste engagés'!$G100=3,'liste engagés'!B100,"") ->  | D108: =IF('liste engagés'!$G100=3,'liste engagés'!C100,"") ->  | E108: =IF('liste engagés'!$G100=3,'liste engagés'!D100,"") ->  | F108: =IF('liste engagés'!$G100=3,'liste engagés'!E100,"") ->  | G108: =IF('liste engagés'!$G100=3,'liste engagés'!K100,"") ->  | H108: =IF('liste engagés'!$G100=3,'liste engagés'!L100,"") ->  | I108: 0
A109: 103 | B109: =IF('liste engagés'!$G102=3,'liste engagés'!A102,"") ->  | C109: =IF('liste engagés'!$G102=3,'liste engagés'!B102,"") ->  | D109: =IF('liste engagés'!$G102=3,'liste engagés'!C102,"") ->  | E109: =IF('liste engagés'!$G102=3,'liste engagés'!D102,"") ->  | F109: =IF('liste engagés'!$G102=3,'liste engagés'!E102,"") ->  | G109: =IF('liste engagés'!$G102=3,'liste engagés'!K102,"") ->  | H109: =IF('liste engagés'!$G102=3,'liste engagés'!L102,"") ->  | I109: 0
A110: 104 | B110: =IF('liste engagés'!$G103=3,'liste engagés'!A103,"") ->  | C110: =IF('liste engagés'!$G103=3,'liste engagés'!B103,"") ->  | D110: =IF('liste engagés'!$G103=3,'liste engagés'!C103,"") ->  | E110: =IF('liste engagés'!$G103=3,'liste engagés'!D103,"") ->  | F110: =IF('liste engagés'!$G103=3,'liste engagés'!E103,"") ->  | G110: =IF('liste engagés'!$G103=3,'liste engagés'!K103,"") ->  | H110: =IF('liste engagés'!$G103=3,'liste engagés'!L103,"") ->  | I110: 0
A111: 105 | B111: =IF('liste engagés'!$G104=3,'liste engagés'!A104,"") ->  | C111: =IF('liste engagés'!$G104=3,'liste engagés'!B104,"") ->  | D111: =IF('liste engagés'!$G104=3,'liste engagés'!C104,"") ->  | E111: =IF('liste engagés'!$G104=3,'liste engagés'!D104,"") ->  | F111: =IF('liste engagés'!$G104=3,'liste engagés'!E104,"") ->  | G111: =IF('liste engagés'!$G104=3,'liste engagés'!K104,"") ->  | H111: =IF('liste engagés'!$G104=3,'liste engagés'!L104,"") ->  | I111: 0
A112: 106 | B112: =IF('liste engagés'!$G105=3,'liste engagés'!A105,"") ->  | C112: =IF('liste engagés'!$G105=3,'liste engagés'!B105,"") ->  | D112: =IF('liste engagés'!$G105=3,'liste engagés'!C105,"") ->  | E112: =IF('liste engagés'!$G105=3,'liste engagés'!D105,"") ->  | F112: =IF('liste engagés'!$G105=3,'liste engagés'!E105,"") ->  | G112: =IF('liste engagés'!$G105=3,'liste engagés'!K105,"") ->  | H112: =IF('liste engagés'!$G105=3,'liste engagés'!L105,"") ->  | I112: 0
A113: 107 | B113: =IF('liste engagés'!$G106=3,'liste engagés'!A106,"") ->  | C113: =IF('liste engagés'!$G106=3,'liste engagés'!B106,"") ->  | D113: =IF('liste engagés'!$G106=3,'liste engagés'!C106,"") ->  | E113: =IF('liste engagés'!$G106=3,'liste engagés'!D106,"") ->  | F113: =IF('liste engagés'!$G106=3,'liste engagés'!E106,"") ->  | G113: =IF('liste engagés'!$G106=3,'liste engagés'!K106,"") ->  | H113: =IF('liste engagés'!$G106=3,'liste engagés'!L106,"") ->  | I113: 0
A114: 108 | B114: =IF('liste engagés'!$G107=3,'liste engagés'!A107,"") ->  | C114: =IF('liste engagés'!$G107=3,'liste engagés'!B107,"") ->  | D114: =IF('liste engagés'!$G107=3,'liste engagés'!C107,"") ->  | E114: =IF('liste engagés'!$G107=3,'liste engagés'!D107,"") ->  | F114: =IF('liste engagés'!$G107=3,'liste engagés'!E107,"") ->  | G114: =IF('liste engagés'!$G107=3,'liste engagés'!K107,"") ->  | H114: =IF('liste engagés'!$G107=3,'liste engagés'!L107,"") ->  | I114: 0
A115: 109 | B115: =IF('liste engagés'!$G108=3,'liste engagés'!A108,"") ->  | C115: =IF('liste engagés'!$G108=3,'liste engagés'!B108,"") ->  | D115: =IF('liste engagés'!$G108=3,'liste engagés'!C108,"") ->  | E115: =IF('liste engagés'!$G108=3,'liste engagés'!D108,"") ->  | F115: =IF('liste engagés'!$G108=3,'liste engagés'!E108,"") ->  | G115: =IF('liste engagés'!$G108=3,'liste engagés'!K108,"") ->  | H115: =IF('liste engagés'!$G108=3,'liste engagés'!L108,"") ->  | I115: 0
A116: 110 | B116: =IF('liste engagés'!$G109=3,'liste engagés'!A109,"") ->  | C116: =IF('liste engagés'!$G109=3,'liste engagés'!B109,"") ->  | D116: =IF('liste engagés'!$G109=3,'liste engagés'!C109,"") ->  | E116: =IF('liste engagés'!$G109=3,'liste engagés'!D109,"") ->  | F116: =IF('liste engagés'!$G109=3,'liste engagés'!E109,"") ->  | G116: =IF('liste engagés'!$G109=3,'liste engagés'!K109,"") ->  | H116: =IF('liste engagés'!$G109=3,'liste engagés'!L109,"") ->  | I116: 0
A117: 111 | B117: =IF('liste engagés'!$G110=3,'liste engagés'!A110,"") ->  | C117: =IF('liste engagés'!$G110=3,'liste engagés'!B110,"") ->  | D117: =IF('liste engagés'!$G110=3,'liste engagés'!C110,"") ->  | E117: =IF('liste engagés'!$G110=3,'liste engagés'!D110,"") ->  | F117: =IF('liste engagés'!$G110=3,'liste engagés'!E110,"") ->  | G117: =IF('liste engagés'!$G110=3,'liste engagés'!K110,"") ->  | H117: =IF('liste engagés'!$G110=3,'liste engagés'!L110,"") ->  | I117: 0
A118: 112 | B118: =IF('liste engagés'!$G111=3,'liste engagés'!A111,"") ->  | C118: =IF('liste engagés'!$G111=3,'liste engagés'!B111,"") ->  | D118: =IF('liste engagés'!$G111=3,'liste engagés'!C111,"") ->  | E118: =IF('liste engagés'!$G111=3,'liste engagés'!D111,"") ->  | F118: =IF('liste engagés'!$G111=3,'liste engagés'!E111,"") ->  | G118: =IF('liste engagés'!$G111=3,'liste engagés'!K111,"") ->  | H118: =IF('liste engagés'!$G111=3,'liste engagés'!L111,"") ->  | I118: 0
A119: 113 | B119: =IF('liste engagés'!$G112=3,'liste engagés'!A112,"") ->  | C119: =IF('liste engagés'!$G112=3,'liste engagés'!B112,"") ->  | D119: =IF('liste engagés'!$G112=3,'liste engagés'!C112,"") ->  | E119: =IF('liste engagés'!$G112=3,'liste engagés'!D112,"") ->  | F119: =IF('liste engagés'!$G112=3,'liste engagés'!E112,"") ->  | G119: =IF('liste engagés'!$G112=3,'liste engagés'!K112,"") ->  | H119: =IF('liste engagés'!$G112=3,'liste engagés'!L112,"") ->  | I119: 0
A120: 114 | B120: =IF('liste engagés'!$G113=3,'liste engagés'!A113,"") ->  | C120: =IF('liste engagés'!$G113=3,'liste engagés'!B113,"") ->  | D120: =IF('liste engagés'!$G113=3,'liste engagés'!C113,"") ->  | E120: =IF('liste engagés'!$G113=3,'liste engagés'!D113,"") ->  | F120: =IF('liste engagés'!$G113=3,'liste engagés'!E113,"") ->  | G120: =IF('liste engagés'!$G113=3,'liste engagés'!K113,"") ->  | H120: =IF('liste engagés'!$G113=3,'liste engagés'!L113,"") ->  | I120: 0
A121: 115 | B121: =IF('liste engagés'!$G114=3,'liste engagés'!A114,"") ->  | C121: =IF('liste engagés'!$G114=3,'liste engagés'!B114,"") ->  | D121: =IF('liste engagés'!$G114=3,'liste engagés'!C114,"") ->  | E121: =IF('liste engagés'!$G114=3,'liste engagés'!D114,"") ->  | F121: =IF('liste engagés'!$G114=3,'liste engagés'!E114,"") ->  | G121: =IF('liste engagés'!$G114=3,'liste engagés'!K114,"") ->  | H121: =IF('liste engagés'!$G114=3,'liste engagés'!L114,"") ->  | I121: 0
A122: 116 | B122: =IF('liste engagés'!$G115=3,'liste engagés'!A115,"") ->  | C122: =IF('liste engagés'!$G115=3,'liste engagés'!B115,"") ->  | D122: =IF('liste engagés'!$G115=3,'liste engagés'!C115,"") ->  | E122: =IF('liste engagés'!$G115=3,'liste engagés'!D115,"") ->  | F122: =IF('liste engagés'!$G115=3,'liste engagés'!E115,"") ->  | G122: =IF('liste engagés'!$G115=3,'liste engagés'!K115,"") ->  | H122: =IF('liste engagés'!$G115=3,'liste engagés'!L115,"") ->  | I122: 0
A123: 117 | B123: =IF('liste engagés'!$G116=3,'liste engagés'!A116,"") ->  | C123: =IF('liste engagés'!$G116=3,'liste engagés'!B116,"") ->  | D123: =IF('liste engagés'!$G116=3,'liste engagés'!C116,"") ->  | E123: =IF('liste engagés'!$G116=3,'liste engagés'!D116,"") ->  | F123: =IF('liste engagés'!$G116=3,'liste engagés'!E116,"") ->  | G123: =IF('liste engagés'!$G116=3,'liste engagés'!K116,"") ->  | H123: =IF('liste engagés'!$G116=3,'liste engagés'!L116,"") ->  | I123: 0
A124: 118 | B124: =IF('liste engagés'!$G117=3,'liste engagés'!A117,"") ->  | C124: =IF('liste engagés'!$G117=3,'liste engagés'!B117,"") ->  | D124: =IF('liste engagés'!$G117=3,'liste engagés'!C117,"") ->  | E124: =IF('liste engagés'!$G117=3,'liste engagés'!D117,"") ->  | F124: =IF('liste engagés'!$G117=3,'liste engagés'!E117,"") ->  | G124: =IF('liste engagés'!$G117=3,'liste engagés'!K117,"") ->  | H124: =IF('liste engagés'!$G117=3,'liste engagés'!L117,"") ->  | I124: 0
A125: 119 | B125: =IF('liste engagés'!$G118=3,'liste engagés'!A118,"") ->  | C125: =IF('liste engagés'!$G118=3,'liste engagés'!B118,"") ->  | D125: =IF('liste engagés'!$G118=3,'liste engagés'!C118,"") ->  | E125: =IF('liste engagés'!$G118=3,'liste engagés'!D118,"") ->  | F125: =IF('liste engagés'!$G118=3,'liste engagés'!E118,"") ->  | G125: =IF('liste engagés'!$G118=3,'liste engagés'!K118,"") ->  | H125: =IF('liste engagés'!$G118=3,'liste engagés'!L118,"") ->  | I125: 0
A126: 120 | B126: =IF('liste engagés'!$G120=3,'liste engagés'!A120,"") ->  | C126: =IF('liste engagés'!$G120=3,'liste engagés'!B120,"") ->  | D126: =IF('liste engagés'!$G120=3,'liste engagés'!C120,"") ->  | E126: =IF('liste engagés'!$G120=3,'liste engagés'!D120,"") ->  | F126: =IF('liste engagés'!$G120=3,'liste engagés'!E120,"") ->  | G126: =IF('liste engagés'!$G120=3,'liste engagés'!K120,"") ->  | H126: =IF('liste engagés'!$G120=3,'liste engagés'!L120,"") ->  | I126: 0
A127: 121 | B127: =IF('liste engagés'!$G121=3,'liste engagés'!A121,"") ->  | C127: =IF('liste engagés'!$G121=3,'liste engagés'!B121,"") ->  | D127: =IF('liste engagés'!$G121=3,'liste engagés'!C121,"") ->  | E127: =IF('liste engagés'!$G121=3,'liste engagés'!D121,"") ->  | F127: =IF('liste engagés'!$G121=3,'liste engagés'!E121,"") ->  | G127: =IF('liste engagés'!$G121=3,'liste engagés'!K121,"") ->  | H127: =IF('liste engagés'!$G121=3,'liste engagés'!L121,"") ->  | I127: 0
A128: 122 | B128: =IF('liste engagés'!$G123=3,'liste engagés'!A123,"") ->  | C128: =IF('liste engagés'!$G123=3,'liste engagés'!B123,"") ->  | D128: =IF('liste engagés'!$G123=3,'liste engagés'!C123,"") ->  | E128: =IF('liste engagés'!$G123=3,'liste engagés'!D123,"") ->  | F128: =IF('liste engagés'!$G123=3,'liste engagés'!E123,"") ->  | G128: =IF('liste engagés'!$G123=3,'liste engagés'!K123,"") ->  | H128: =IF('liste engagés'!$G123=3,'liste engagés'!L123,"") ->  | I128: 0
A129: 123 | B129: =IF('liste engagés'!$G124=3,'liste engagés'!A124,"") ->  | C129: =IF('liste engagés'!$G124=3,'liste engagés'!B124,"") ->  | D129: =IF('liste engagés'!$G124=3,'liste engagés'!C124,"") ->  | E129: =IF('liste engagés'!$G124=3,'liste engagés'!D124,"") ->  | F129: =IF('liste engagés'!$G124=3,'liste engagés'!E124,"") ->  | G129: =IF('liste engagés'!$G124=3,'liste engagés'!K124,"") ->  | H129: =IF('liste engagés'!$G124=3,'liste engagés'!L124,"") ->  | I129: 0
A130: 124 | B130: =IF('liste engagés'!$G125=3,'liste engagés'!A125,"") ->  | C130: =IF('liste engagés'!$G125=3,'liste engagés'!B125,"") ->  | D130: =IF('liste engagés'!$G125=3,'liste engagés'!C125,"") ->  | E130: =IF('liste engagés'!$G125=3,'liste engagés'!D125,"") ->  | F130: =IF('liste engagés'!$G125=3,'liste engagés'!E125,"") ->  | G130: =IF('liste engagés'!$G125=3,'liste engagés'!K125,"") ->  | H130: =IF('liste engagés'!$G125=3,'liste engagés'!L125,"") ->  | I130: 0
A131: 125 | B131: =IF('liste engagés'!$G126=3,'liste engagés'!A126,"") ->  | C131: =IF('liste engagés'!$G126=3,'liste engagés'!B126,"") ->  | D131: =IF('liste engagés'!$G126=3,'liste engagés'!C126,"") ->  | E131: =IF('liste engagés'!$G126=3,'liste engagés'!D126,"") ->  | F131: =IF('liste engagés'!$G126=3,'liste engagés'!E126,"") ->  | G131: =IF('liste engagés'!$G126=3,'liste engagés'!K126,"") ->  | H131: =IF('liste engagés'!$G126=3,'liste engagés'!L126,"") ->  | I131: 0
A132: 126 | B132: =IF('liste engagés'!$G127=3,'liste engagés'!A127,"") ->  | C132: =IF('liste engagés'!$G127=3,'liste engagés'!B127,"") ->  | D132: =IF('liste engagés'!$G127=3,'liste engagés'!C127,"") ->  | E132: =IF('liste engagés'!$G127=3,'liste engagés'!D127,"") ->  | F132: =IF('liste engagés'!$G127=3,'liste engagés'!E127,"") ->  | G132: =IF('liste engagés'!$G127=3,'liste engagés'!K127,"") ->  | H132: =IF('liste engagés'!$G127=3,'liste engagés'!L127,"") ->  | I132: 0
A133: 127 | B133: =IF('liste engagés'!$G128=3,'liste engagés'!A128,"") ->  | C133: =IF('liste engagés'!$G128=3,'liste engagés'!B128,"") ->  | D133: =IF('liste engagés'!$G128=3,'liste engagés'!C128,"") ->  | E133: =IF('liste engagés'!$G128=3,'liste engagés'!D128,"") ->  | F133: =IF('liste engagés'!$G128=3,'liste engagés'!E128,"") ->  | G133: =IF('liste engagés'!$G128=3,'liste engagés'!K128,"") ->  | H133: =IF('liste engagés'!$G128=3,'liste engagés'!L128,"") ->  | I133: 0
A134: 128 | B134: =IF('liste engagés'!$G129=3,'liste engagés'!A129,"") ->  | C134: =IF('liste engagés'!$G129=3,'liste engagés'!B129,"") ->  | D134: =IF('liste engagés'!$G129=3,'liste engagés'!C129,"") ->  | E134: =IF('liste engagés'!$G129=3,'liste engagés'!D129,"") ->  | F134: =IF('liste engagés'!$G129=3,'liste engagés'!E129,"") ->  | G134: =IF('liste engagés'!$G129=3,'liste engagés'!K129,"") ->  | H134: =IF('liste engagés'!$G129=3,'liste engagés'!L129,"") ->  | I134: 0
A135: 129 | B135: =IF('liste engagés'!$G130=3,'liste engagés'!A130,"") ->  | C135: =IF('liste engagés'!$G130=3,'liste engagés'!B130,"") ->  | D135: =IF('liste engagés'!$G130=3,'liste engagés'!C130,"") ->  | E135: =IF('liste engagés'!$G130=3,'liste engagés'!D130,"") ->  | F135: =IF('liste engagés'!$G130=3,'liste engagés'!E130,"") ->  | G135: =IF('liste engagés'!$G130=3,'liste engagés'!K130,"") ->  | H135: =IF('liste engagés'!$G130=3,'liste engagés'!L130,"") ->  | I135: =+IF(C135="",0,1) -> 0
A136: =+A135+1 -> 130 | B136: =IF('liste engagés'!$G131=3,'liste engagés'!A131,"") ->  | C136: =IF('liste engagés'!$G131=3,'liste engagés'!B131,"") ->  | D136: =IF('liste engagés'!$G131=3,'liste engagés'!C131,"") ->  | E136: =IF('liste engagés'!$G131=3,'liste engagés'!D131,"") ->  | F136: =IF('liste engagés'!$G131=3,'liste engagés'!E131,"") ->  | G136: =IF('liste engagés'!$G131=3,'liste engagés'!K131,"") ->  | H136: =IF('liste engagés'!$G131=3,'liste engagés'!L131,"") ->  | I136: 0
A137: 131 | B137: =IF('liste engagés'!$G132=3,'liste engagés'!A132,"") ->  | C137: =IF('liste engagés'!$G132=3,'liste engagés'!B132,"") ->  | D137: =IF('liste engagés'!$G132=3,'liste engagés'!C132,"") ->  | E137: =IF('liste engagés'!$G132=3,'liste engagés'!D132,"") ->  | F137: =IF('liste engagés'!$G132=3,'liste engagés'!E132,"") ->  | G137: =IF('liste engagés'!$G132=3,'liste engagés'!K132,"") ->  | H137: =IF('liste engagés'!$G132=3,'liste engagés'!L132,"") ->  | I137: 0
A138: 132 | B138: =IF('liste engagés'!$G133=3,'liste engagés'!A133,"") ->  | C138: =IF('liste engagés'!$G133=3,'liste engagés'!B133,"") ->  | D138: =IF('liste engagés'!$G133=3,'liste engagés'!C133,"") ->  | E138: =IF('liste engagés'!$G133=3,'liste engagés'!D133,"") ->  | F138: =IF('liste engagés'!$G133=3,'liste engagés'!E133,"") ->  | G138: =IF('liste engagés'!$G133=3,'liste engagés'!K133,"") ->  | H138: =IF('liste engagés'!$G133=3,'liste engagés'!L133,"") ->  | I138: 0
A139: 133 | B139: =IF('liste engagés'!$G134=3,'liste engagés'!A134,"") ->  | C139: =IF('liste engagés'!$G134=3,'liste engagés'!B134,"") ->  | D139: =IF('liste engagés'!$G134=3,'liste engagés'!C134,"") ->  | E139: =IF('liste engagés'!$G134=3,'liste engagés'!D134,"") ->  | F139: =IF('liste engagés'!$G134=3,'liste engagés'!E134,"") ->  | G139: =IF('liste engagés'!$G134=3,'liste engagés'!K134,"") ->  | H139: =IF('liste engagés'!$G134=3,'liste engagés'!L134,"") ->  | I139: 0
A140: 134 | B140: =IF('liste engagés'!$G135=3,'liste engagés'!A135,"") ->  | C140: =IF('liste engagés'!$G135=3,'liste engagés'!B135,"") ->  | D140: =IF('liste engagés'!$G135=3,'liste engagés'!C135,"") ->  | E140: =IF('liste engagés'!$G135=3,'liste engagés'!D135,"") ->  | F140: =IF('liste engagés'!$G135=3,'liste engagés'!E135,"") ->  | G140: =IF('liste engagés'!$G135=3,'liste engagés'!K135,"") ->  | H140: =IF('liste engagés'!$G135=3,'liste engagés'!L135,"") ->  | I140: 0
A141: 135 | B141: =IF('liste engagés'!$G136=3,'liste engagés'!A136,"") ->  | C141: =IF('liste engagés'!$G136=3,'liste engagés'!B136,"") ->  | D141: =IF('liste engagés'!$G136=3,'liste engagés'!C136,"") ->  | E141: =IF('liste engagés'!$G136=3,'liste engagés'!D136,"") ->  | F141: =IF('liste engagés'!$G136=3,'liste engagés'!E136,"") ->  | G141: =IF('liste engagés'!$G136=3,'liste engagés'!K136,"") ->  | H141: =IF('liste engagés'!$G136=3,'liste engagés'!L136,"") ->  | I141: 0
A142: 136 | B142: =IF('liste engagés'!$G137=3,'liste engagés'!A137,"") ->  | C142: =IF('liste engagés'!$G137=3,'liste engagés'!B137,"") ->  | D142: =IF('liste engagés'!$G137=3,'liste engagés'!C137,"") ->  | E142: =IF('liste engagés'!$G137=3,'liste engagés'!D137,"") ->  | F142: =IF('liste engagés'!$G137=3,'liste engagés'!E137,"") ->  | G142: =IF('liste engagés'!$G137=3,'liste engagés'!K137,"") ->  | H142: =IF('liste engagés'!$G137=3,'liste engagés'!L137,"") ->  | I142: 0
